{"text_format":"1","workbook":"xlsx","n_sheets":3,"sheets":["UA","Fiche","Indicateur"],"not_rendered":{"charts":0,"images":1,"macros":1,"external_links":3,"defined_names":1,"comments":1,"pivot_tables":0},"unopened":[],"bounds":{"document_bytes":16777216,"sheet_cells":100000,"rows_first":2000,"rows_last":500,"rows_between":2000,"halvings":0,"cell_chars":16384,"cell_head_chars":4096},"cells_cut":0,"cells_raw":0,"read":"whole","date_system":"1900"}

{"sheet":"UA","index":0,"n_rows":2341,"n_cols":8,"rows_kept":2341,"cut":false,"hidden":true,"merged":[]}
["code primaire","UA","Code adresse","site","adresse","Ville","Code postale","Nom"]
[100171,8999501,1070,700,"100, RUE DU CHANOINE-LIONEL-GROULX","SAINTE-THERESE","J7E 5E1","TB CNR CHSLD Boisé Ste-Thérèse"]
[100171,8999400,1060,400,"290 RUE MONTIGNY","SAINT-JEROME","J7Z 5T3","SJ CNR intérêts sur emprunts"]
[100171,7158010,1060,400,"290 RUE MONTIGNY","SAINT-JEROME","J7Z 5T3","CI Services ambulanciers"]
[100171,7158018,1060,400,"290 RUE MONTIGNY","SAINT-JEROME","J7Z 5T3","CI SPU Premiers répondants form. préparation"]
[100171,7158016,1060,400,"290 RUE MONTIGNY","SAINT-JEROME","J7Z 5T3","CI SPU Formation continue régionale"]
[100171,8999700,1051,800,"145 AVENUE DE LA PROVIDENCE","LACHUTE","J8H 4C7","AR Comité des usagers"]
[100171,8999702,1051,800,"145 AVENUE DE LA PROVIDENCE","LACHUTE","J8H 4C7","AR Congé après accumulation"]
[100171,8999127,8000,100,"2561 CHEMIN DE LA LIEVRE SUD","MONT-LAURIER","J9L 3G3","AL EV ML-Liste rappel-Soins infirm."]
[100171,8999125,1047,200,"1525 RUE L'ANNONCIATION NORD","RIVIERE-ROUGE","J0T 1T0","AL EV RR-Liste rappel-Soins infirm."]
[100171,8999124,1047,200,"1525 RUE L'ANNONCIATION NORD","RIVIERE-ROUGE","J0T 1T0","AL EV RR/Gériatrie/Psychiatrie"]
[100171,8999123,1047,200,"1525 RUE L'ANNONCIATION NORD","RIVIERE-ROUGE","J0T 1T0","AL EV RR/Soins infirmiers"]
[100171,8999121,8000,100,"2561 CHEMIN DE LA LIEVRE SUD","MONT-LAURIER","J9L 3G3","AL INACTIF Dépenses remboursées"]
[100171,8999112,1047,200,"1525 RUE L'ANNONCIATION NORD","RIVIERE-ROUGE","J0T 1T0","AL EV Réclamations-Remplacements"]
[100171,7303110,1047,200,"1525 RUE L'ANNONCIATION NORD","RIVIERE-ROUGE","J0T 1T0","AL Comité paritaire SST"]
[100171,8999007,1044,100,"757 DE LA MADONE","MONT-LAURIER","J9L 1T3","CI CNR - Prov Ass salaire"]
[100171,8999100,1047,200,"1525 RUE L'ANNONCIATION NORD","RIVIERE-ROUGE","J0T 1T0","AL Comité des usagers"]
[100171,8999672,1093,600,"520 BOUL. ARTHUR-SAUVE","SAINT-EUSTACHE","J7R 5B1","DM EV Occasionnel HSE"]
[100171,7303601,1093,600,"520 BOUL. ARTHUR-SAUVE","SAINT-EUSTACHE","J7R 5B1","DM EV Équipe volante"]
[100171,8052941,1085,300,"234 RUE SAINT-VINCENT","SAINTE-AGATHE-DES-MONTS","J8C 2B8","FL ICI-TED-N6 - SA"]
[100171,8051949,1047,200,"1525 RUE L'ANNONCIATION NORD","RIVIERE-ROUGE","J0T 1T0","FL AR-RIVIÈRE ROUGE"]
[100171,8051941,1085,300,"234 RUE SAINT-VINCENT","SAINTE-AGATHE-DES-MONTS","J8C 2B8","FL AR-SERV STE-AGATHE/PEH"]
[100171,8051932,1070,700,"100, RUE DU CHANOINE-LIONEL-GROULX","SAINTE-THERESE","J7E 5E1","FL AR-DI TSA 22+ TDB"]
[100171,8051930,1060,400,"290 RUE MONTIGNY","SAINT-JEROME","J7Z 5T3","FL AR-COOR-DI-TSA 22+"]
[100171,8051925,1085,700,"234 RUE SAINT-VINCENT","SAINTE-AGATHE-DES-MONTS","J8C 2B8","FL AR-DI N6"]
[100171,8051921,1060,400,"290 RUE MONTIGNY","SAINT-JEROME","J7Z 5T3","FL AR-DI TSA 7-21 CTRE"]
[100171,8051900,1147,900,"125 A RUE TOUR DU LAC","STE-AGATHE-DES-MONTS","J8C 3A1","FL Rég./AEO/DITSA  Accès"]
[100171,7995101,1047,200,"1525 RUE L'ANNONCIATION NORD","RIVIERE-ROUGE","J0T 1T0","AL Virus EBOLA"]
[100171,7910700,1051,800,"145 AVENUE DE LA PROVIDENCE","LACHUTE","J8H 4C7","AR Besoins spéciaux"]
[100171,7910642,1070,700,"100, RUE DU CHANOINE-LIONEL-GROULX","SAINTE-THERESE","J7E 5E1","DM Besoins spéciaux"]
[100171,7910500,1070,700,"100, RUE DU CHANOINE-LIONEL-GROULX","SAINTE-THERESE","J7E 5E1","TB Besoins spéciaux"]
[100171,7910403,1060,400,"290 RUE MONTIGNY","SAINT-JEROME","J7Z 5T3","SJ Besoins spéc Auberge"]
[100171,7910402,1060,400,"290 RUE MONTIGNY","SAINT-JEROME","J7Z 5T3","SJ Besoins spéc Résidence"]
[100171,7910401,1060,400,"290 RUE MONTIGNY","SAINT-JEROME","J7Z 5T3","SJ Besoins spéc Youville"]
[100171,7910203,1085,300,"234 RUE SAINT-VINCENT","SAINTE-AGATHE-DES-MONTS","J8C 2B8","DS Besoins spéciaux - Labelle"]
[100171,7910202,1085,300,"234 RUE SAINT-VINCENT","SAINTE-AGATHE-DES-MONTS","J8C 2B8","DS Besoins spéciaux - St-Jovite"]
[100171,7910201,1085,300,"234 RUE SAINT-VINCENT","SAINTE-AGATHE-DES-MONTS","J8C 2B8","DS Beoins spéciaux - P.Lapointe"]
[100171,7910103,8000,100,"2561 CHEMIN DE LA LIEVRE SUD","MONT-LAURIER","J9L 3G3","AL SA-Besoins spéciaux"]
[100171,7910102,1047,200,"1525 RUE L'ANNONCIATION NORD","RIVIERE-ROUGE","J0T 1T0","AL RR-Dép.remboursées par clients en fiducie"]
[100171,7910101,1047,200,"1525 RUE L'ANNONCIATION NORD","RIVIERE-ROUGE","J0T 1T0","AL RR-Besoins spéciaux"]
[100171,7906700,1051,800,"145 AVENUE DE LA PROVIDENCE","LACHUTE","J8H 4C7","AR Indemnité en fin d'emploi"]
[100171,7906672,1093,600,"520 BOUL. ARTHUR-SAUVE","SAINT-EUSTACHE","J7R 5B1","DM Indemnité de cessation d'emploi"]
[100171,7906500,1070,700,"100, RUE DU CHANOINE-LIONEL-GROULX","SAINTE-THERESE","J7E 5E1","TB Indemnités de cess. d'emploi"]
[100171,7906400,1060,400,"290 RUE MONTIGNY","SAINT-JEROME","J7Z 5T3","SJ Indemnités cessation d'emploi"]
[100171,7906200,1085,300,"234 RUE SAINT-VINCENT","SAINTE-AGATHE-DES-MONTS","J8C 2B8","DS Indemnités cessation emploi"]
[100171,7906101,1047,200,"1525 RUE L'ANNONCIATION NORD","RIVIERE-ROUGE","J0T 1T0","AL Indemnités cessation emploi"]
[100171,7905700,1051,800,"145 AVENUE DE LA PROVIDENCE","LACHUTE","J8H 4C7","AR Personnel non disp. en assignation"]
[100171,7905672,1093,600,"520 BOUL. ARTHUR-SAUVE","SAINT-EUSTACHE","J7R 5B1","DM Pers. non disponible à une affectation"]
[100171,7904700,1051,800,"145 AVENUE DE LA PROVIDENCE","LACHUTE","J8H 4C7","AR Personnel en attente d'assignation"]
[100171,7904672,1093,600,"520 BOUL. ARTHUR-SAUVE","SAINT-EUSTACHE","J7R 5B1","DM Pers. en attente d'assignation"]
[100171,7904500,1070,700,"100, RUE DU CHANOINE-LIONEL-GROULX","SAINTE-THERESE","J7E 5E1","TB Pers. attente d'assigantion"]
[100171,7904400,1060,400,"290 RUE MONTIGNY","SAINT-JEROME","J7Z 5T3","SJ Personnel en attente d'assignation"]
[100171,7903672,1093,600,"520 BOUL. ARTHUR-SAUVE","SAINT-EUSTACHE","J7R 5B1","DM Personnel en recyclage"]
[100171,7902672,1093,600,"520 BOUL. ARTHUR-SAUVE","SAINT-EUSTACHE","J7R 5B1","DM Personne en orientation, adaptation"]
[100171,7901700,1051,800,"145 AVENUE DE LA PROVIDENCE","LACHUTE","J8H 4C7","AR Personnel surnuméraire"]
[100171,7901672,1093,600,"520 BOUL. ARTHUR-SAUVE","SAINT-EUSTACHE","J7R 5B1","DM Personnel en surnuméraire"]
[100171,7807803,1029,901,"225 CHEMIN DU LAC-BERTRAND","SAINTE-SOPHIE","J5J 2M1","CJ Entr. & rép.inst.-Ste-Sophie"]
[100171,7807802,1035,901,"333 RUE ANTONIN-CAMPEAU","DEUX-MONTAGNES","J7R 3W7","CJ E.&rép.inst.-Deux-Mont refact."]
[100171,7807000,1060,null,"290 RUE MONTIGNY","SAINT-JEROME","J7Z 5T3","CR Entretien et rép. - Immobilier, mobilier, équip."]
[100171,7806432,1060,400,"290 RUE MONTIGNY","SAINT-JEROME","J7Z 5T3","SJ Projet 2013-026-IVG"]
[100171,7806431,1060,400,"290 RUE MONTIGNY","SAINT-JEROME","J7Z 5T3","SJ Projet 2013-016"]
[100171,7806430,1060,400,"290 RUE MONTIGNY","SAINT-JEROME","J7Z 5T3","SJ Projet 2013-026-CEP-B"]
[100171,7806429,1060,400,"290 RUE MONTIGNY","SAINT-JEROME","J7Z 5T3","SJ Projet 2011-067"]
[100171,7806428,1060,400,"290 RUE MONTIGNY","SAINT-JEROME","J7Z 5T3","SJ Projet 2013-026-SINTER"]
[100171,7806427,1060,400,"290 RUE MONTIGNY","SAINT-JEROME","J7Z 5T3","SJ Réaménagement des locaux au 55 rue St-Joseph 276 000$"]
[100171,7806426,1060,400,"290 RUE MONTIGNY","SAINT-JEROME","J7Z 5T3","SJ Installation d'un 2e scan en radiologie (1.5M $ Fondation Hô"]
[100171,7806425,1060,400,"290 RUE MONTIGNY","SAINT-JEROME","J7Z 5T3","SJ Analyse/étude sismique MA13-14 25 000 $"]
[100171,7806424,1060,400,"290 RUE MONTIGNY","SAINT-JEROME","J7Z 5T3","SJ Chaîne robotisée au laboratoire"]
[100171,7806423,1060,400,"290 RUE MONTIGNY","SAINT-JEROME","J7Z 5T3","SJ Ajout de chambre en gériatrie 7e étage 70 000$ 2015-16"]
[100171,7806422,1060,400,"290 RUE MONTIGNY","SAINT-JEROME","J7Z 5T3","SJ Rénovation fonctionnelle mineure en CHSLD 46 000 $"]
[100171,7806421,1060,400,"290 RUE MONTIGNY","SAINT-JEROME","J7Z 5T3","SJ Rénovation fonctionnelle mineure en CHSLD 294 592 $ ART"]
[100171,7806420,1060,400,"290 RUE MONTIGNY","SAINT-JEROME","J7Z 5T3","SJ Projet centre mère-enfant (1 500 000$ fondation Hôp.)"]
[100171,7806419,1060,400,"290 RUE MONTIGNY","SAINT-JEROME","J7Z 5T3","SJ DAI - Pavillon de santé mentale 600 000 $"]
[100171,7806418,1060,400,"290 RUE MONTIGNY","SAINT-JEROME","J7Z 5T3","SJ Réaménagement salles de bain à l'Auberge 240 000$"]
[100171,7806417,1060,400,"290 RUE MONTIGNY","SAINT-JEROME","J7Z 5T3","SJ Poste de garde et système de pagette Auberge 89000$"]
[100171,7806416,1060,400,"290 RUE MONTIGNY","SAINT-JEROME","J7Z 5T3","SJ Agrandissement cafétéria en lien avec 212 lits 250 000$"]
[100171,7806415,1060,400,"290 RUE MONTIGNY","SAINT-JEROME","J7Z 5T3","SJ Réfection du réseau de plomberie (colonnes de drainage)"]
[100171,7806414,1060,400,"290 RUE MONTIGNY","SAINT-JEROME","J7Z 5T3","SJ Programme de mise à niveau des revêtements de sol"]
[100171,7806413,1060,400,"290 RUE MONTIGNY","SAINT-JEROME","J7Z 5T3","SJ Installation d'équipements pour le PCEM (PRF 10-11)"]
[100171,7806412,1060,400,"290 RUE MONTIGNY","SAINT-JEROME","J7Z 5T3","SJ Programme de réfection de l'enveloppe intérieure"]
[100171,7806411,1060,400,"290 RUE MONTIGNY","SAINT-JEROME","J7Z 5T3","SJ Réfection des toitures 2009-10 (125 000$)"]
[100171,7806410,1060,400,"290 RUE MONTIGNY","SAINT-JEROME","J7Z 5T3","SJ Programme de réfection des gaz médicaux (MA 50 000 $)"]
[100171,7806409,1060,400,"290 RUE MONTIGNY","SAINT-JEROME","J7Z 5T3","SJ Programme de mise aux normes du réseau de détection"]
[100171,7806408,1060,400,"290 RUE MONTIGNY","SAINT-JEROME","J7Z 5T3","SJ Mise à niveau des systèmes d'appel de garde - Phase 1"]
[100171,7806407,1060,400,"290 RUE MONTIGNY","SAINT-JEROME","J7Z 5T3","SJ Prog. mise niveau réseau électrique d'urgence (génératrice)"]
[100171,7806406,1060,400,"290 RUE MONTIGNY","SAINT-JEROME","J7Z 5T3","SJ Tour C"]
[100171,7806405,1060,400,"290 RUE MONTIGNY","SAINT-JEROME","J7Z 5T3","SJ Réfection d'équipement CVCA (140 000 $)"]
[100171,7806404,1060,400,"290 RUE MONTIGNY","SAINT-JEROME","J7Z 5T3","SJ Réfection de la maçonnerie et béton 2009-10 (350 000 $ ART)"]
[100171,7806403,1060,400,"290 RUE MONTIGNY","SAINT-JEROME","J7Z 5T3","SJ Aménagement de la pédiatrie 270 000$"]
[100171,7806402,1060,400,"290 RUE MONTIGNY","SAINT-JEROME","J7Z 5T3","SJ Chambres bariatriques LG Rolland (rénov. fonct. 35 000 $)"]
[100171,7806401,1060,400,"290 RUE MONTIGNY","SAINT-JEROME","J7Z 5T3","SJ Remplacement fenêtres 2007-08 (550 000$)"]
[100171,7806200,1085,300,"234 RUE SAINT-VINCENT","SAINTE-AGATHE-DES-MONTS","J8C 2B8","DS Maintien d'actifs immobiliers"]
[100171,7805803,1132,901,"419 DE LA MADONE","MONT-LAURIER","J9L 1S1","CJ Entr. & rép.instal.-Mt-Laurier"]
[100171,7805802,1131,901,"143 AVENUE DE LA PROVIDENCE","LACHUTE","J8H 4E9","CJ Entr. & rép. install.-Lachute"]
[100171,7805801,1036,901,"500 BOULEVARD DES LAURENTIDES SUITE 241","SAINT-JÉRÔME","J7Z 4M2","CJ Entr. & rép. install.-Salaires"]
[100171,7805101,1044,100,"757 DE LA MADONE","MONT-LAURIER","J9L 1T3","AL CL-Entretien et rép. espaces loués"]
[100171,7802701,1051,800,"145 AVENUE DE LA PROVIDENCE","LACHUTE","J8H 4C7","AR GBM Exploitation EM"]
[100171,7802700,1051,800,"145 AVENUE DE LA PROVIDENCE","LACHUTE","J8H 4C7","AR INACTIF RE 7802701 Entretien réparations"]
[100171,7802666,1088,600,"9100 RUE DUMOUCHEL","MIRABEL","J7N 5A1","DM INACTIF RE 7802601 Ent Rép EM CHSB"]
[100171,7802651,1070,700,"100, RUE DU CHANOINE-LIONEL-GROULX","SAINTE-THERESE","J7E 5E1","DM INACTIF RE 7802601 Ent Rép EM CLSC"]
[100171,7802641,1070,700,"100, RUE DU CHANOINE-LIONEL-GROULX","SAINTE-THERESE","J7E 5E1","DM INACTIF RE 7802601 Ent Rép EM CHSE"]
[100171,7802636,1093,600,"520 BOUL. ARTHUR-SAUVE","SAINT-EUSTACHE","J7R 5B1","DM INACTIF Ent. Rép. Équip. Méd PSY RE 7802601"]
[100171,7802601,1093,600,"520 BOUL. ARTHUR-SAUVE","SAINT-EUSTACHE","J7R 5B1","DM  GBM Exploitation EM"]
[100171,7802410,1060,400,"290 RUE MONTIGNY","SAINT-JEROME","J7Z 5T3","DS GBM Exploitation Dialyse"]
[100171,7802344,1060,400,"290 RUE MONTIGNY","SAINT-JEROME","J7Z 5T3","SJ INACTIF RE 7802401 GBM exploit EM PDH"]
[100171,7802544,1060,400,"290 RUE MONTIGNY","SAINT-JEROME","J7Z 5T3","SJ INACTIF RE 7802401 GBM exploit EM TDB"]
[100171,7802744,1060,400,"290 RUE MONTIGNY","SAINT-JEROME","J7Z 5T3","SJ INACTIF RE 7802401 GBM exploit EM ARG"]
[100171,7802401,1060,400,"290 RUE MONTIGNY","SAINT-JEROME","J7Z 5T3","SJ GBM Exploitation EM"]
[100171,6607261,1085,300,"234 RUE SAINT-VINCENT","SAINTE-AGATHE-DES-MONTS","J8C 2B8","DS GBM Laboratoires regroupés"]
[100171,6831281,1085,300,"234 RUE SAINT-VINCENT","SAINTE-AGATHE-DES-MONTS","J8C 2B8","DS GBM Radiologie générale"]
[100171,7802201,1085,300,"234 RUE SAINT-VINCENT","SAINTE-AGATHE-DES-MONTS","J8C 2B8","DS GBM Exploitation EM"]
[100171,7802103,8000,100,"2561 CHEMIN DE LA LIEVRE SUD","MONT-LAURIER","J9L 3G3","AL INACTIF RE 7802101 SA-Ent.rép.inst-équip.médicaux"]
[100171,7802102,8000,100,"2561 CHEMIN DE LA LIEVRE SUD","MONT-LAURIER","J9L 3G3","AL INACTIF RE 7802101 ML Ent rép inst EM"]
[100171,7802101,8000,100,"2561 CHEMIN DE LA LIEVRE SUD","MONT-LAURIER","J9L 3G3","AL GBM Exploitation EM"]
[100171,7801806,1047,200,"1525 RUE L'ANNONCIATION NORD","RIVIERE-ROUGE","J0T 1T0","CJ Entr. & rép.install.-Huberdeau"]
[100171,7801805,1031,901,"148 RUE CASTONGUAY","SAINT-JÉRÔME"," J7Y2J2","CJ Entr.&rép.install.-C.St-Jérôme"]
[100171,7801804,1034,901,"358 RUE LAVIOLETTE","SAINT-JÉRÔME","J7Y 2T1","CJ E.&rép.install.-348-352 Bocage"]
[100171,7801801,1028,901,"125A CHEMIN DU TOUR-DU-LAC","SAINTE-AGATHE-DES-MONTS","J8C 1B4","CJ Entr.&rép. install.-Ste-Agathe"]
[100171,7801701,1051,800,"145 AVENUE DE LA PROVIDENCE","LACHUTE","J8H 4C7","AR Entretien du parc immobilier"]
[100171,7801700,1051,800,"145 AVENUE DE LA PROVIDENCE","LACHUTE","J8H 4C7","AR INACTIF RE 7801602 Entretien- réparations"]
[100171,7801666,1070,700,"100, RUE DU CHANOINE-LIONEL-GROULX","SAINTE-THERESE","J7E 5E1","DM Ent.  Rép. Installations CHSB"]
[100171,7801651,1093,600,"520 BOUL. ARTHUR-SAUVE","SAINT-EUSTACHE","J7R 5B1","DM Ent. Rép. Installations CLSC"]
[100171,7801641,1070,700,"100, RUE DU CHANOINE-LIONEL-GROULX","SAINTE-THERESE","J7E 5E1","DM Ent. Rép. Installations CHSE"]
[100171,7801636,1093,600,"520 BOUL. ARTHUR-SAUVE","SAINT-EUSTACHE","J7R 5B1","DM Ent. Rép. Installations PSY"]
[100171,7801602,1093,600,"520 BOUL. ARTHUR-SAUVE","SAINT-EUSTACHE","J7R 5B1","DM Ent. Rép. Installations HSE"]
[100171,7801501,1070,700,"100, RUE DU CHANOINE-LIONEL-GROULX","SAINTE-THERESE","J7E 5E1","TB Entr. & rép. des inst.(CLSC)"]
[100171,7801500,1070,700,"100, RUE DU CHANOINE-LIONEL-GROULX","SAINTE-THERESE","J7E 5E1","TB Entr. & rép.des installations"]
[100171,7801409,1060,400,"290 RUE MONTIGNY","SAINT-JEROME","J7Z 5T3","SJ Ent rép inst - Trav spéciaux"]
[100171,7801405,1060,400,"290 RUE MONTIGNY","SAINT-JEROME","J7Z 5T3","SJ Ent rép inst CLSC"]
[100171,7801403,1060,400,"290 RUE MONTIGNY","SAINT-JEROME","J7Z 5T3","SJ Ent réparation inst Auberge"]
[100171,7801402,1060,400,"290 RUE MONTIGNY","SAINT-JEROME","J7Z 5T3","SJ Ent./rép./inst. 212 lits"]
[100171,7801401,1060,400,"290 RUE MONTIGNY","SAINT-JEROME","J7Z 5T3","SJ Ent réparation inst Youville"]
[100171,7801400,1060,400,"290 RUE MONTIGNY","SAINT-JEROME","J7Z 5T3","SJ Ent réparation inst C.H."]
[100171,7801301,1074,201,"707 BOULEVARD DE SAINTE-ADÈLE","SAINTE-ADÈLE","J8B 2N1","PH ENT.&REP. IMMOB. ET MOBILIER"]
[100171,7801209,1085,300,"234 RUE SAINT-VINCENT","SAINTE-AGATHE-DES-MONTS","J8C 2B8","DS Inondation Sous Sol Tremblant 2013"]
[100171,7801206,1085,300,"234 RUE SAINT-VINCENT","SAINTE-AGATHE-DES-MONTS","J8C 2B8","DS Ent. et rép. installations CLSC"]
[100171,7801205,1085,300,"234 RUE SAINT-VINCENT","SAINTE-AGATHE-DES-MONTS","J8C 2B8","DS Ent. et rép. installations - rue Godon"]
[100171,7801204,1085,300,"234 RUE SAINT-VINCENT","SAINTE-AGATHE-DES-MONTS","J8C 2B8","DS Ent. et rép. installations - Grignon"]
[100171,7801203,1047,200,"1525 RUE L'ANNONCIATION NORD","RIVIERE-ROUGE","J0T 1T0","DS Ent. et rép. installations Labelle"]
[100171,7801202,1085,300,"234 RUE SAINT-VINCENT","SAINTE-AGATHE-DES-MONTS","J8C 2B8","DS Ent. et rép. instalations St-Jovite"]
[100171,7801201,1085,300,"234 RUE SAINT-VINCENT","SAINTE-AGATHE-DES-MONTS","J8C 2B8","DS Ent. et rép. installations - 234 St-Vincent"]
[100171,7801105,1047,200,"1525 RUE L'ANNONCIATION NORD","RIVIERE-ROUGE","J0T 1T0","AL RR-Bris de la conduite d'eau"]
[100171,7801104,8000,100,"2561 CHEMIN DE LA LIEVRE SUD","MONT-LAURIER","J9L 3G3","AL CL-Ent.rép.instal.(générales)"]
[100171,7801103,8000,100,"2561 CHEMIN DE LA LIEVRE SUD","MONT-LAURIER","J9L 3G3","AL SA-Ent.rép.instal.(générales)"]
[100171,7801102,8000,100,"2561 CHEMIN DE LA LIEVRE SUD","MONT-LAURIER","J9L 3G3","AL ML-Ent.rép.instal.(générales)"]
[100171,7801101,1047,200,"1525 RUE L'ANNONCIATION NORD","RIVIERE-ROUGE","J0T 1T0","AL RR-Ent.rép.instal.(générales)"]
[100171,7801010,1051,800,"145 AVENUE DE LA PROVIDENCE","LACHUTE","J8H 4C7","RL ARG Ent. parc immobilier et parc d'équipement non médical et"]
[100171,7710802,1035,901,"333 RUE ANTONIN-CAMPEAU","DEUX-MONTAGNES","J7R 3W7","CJ Séc. - Deux-Mont à refacturer"]
[100171,7710801,1036,901,"500 BOULEVARD DES LAURENTIDES SUITE 241","SAINT-JÉRÔME","J7Z 4M2","CJ Sécurité - Gal. Laur."]
[100171,7710700,1051,800,"145 AVENUE DE LA PROVIDENCE","LACHUTE","J8H 4C7","AR Service de sécurité"]
[100171,7710666,1088,600,"9100 RUE DUMOUCHEL","MIRABEL","J7N 5A1","DM Sécurité CHSB"]
[100171,7710651,1070,700,"100, RUE DU CHANOINE-LIONEL-GROULX","SAINTE-THERESE","J7E 5E1","DM Sécurité CLSC"]
[100171,7710641,1070,700,"100, RUE DU CHANOINE-LIONEL-GROULX","SAINTE-THERESE","J7E 5E1","DM Sécurité CHSE"]
[100171,7710636,1090,600,"111 RUE SAINT-LAURENT","SAINT-EUSTACHE","J7P 3Z5","DM Sécurité PCI"]
[100171,7710603,1093,600,"520 BOUL. ARTHUR-SAUVE","SAINT-EUSTACHE","J7R 5B1","DM Sécurité  HSE"]
[100171,7710500,1070,700,"100, RUE DU CHANOINE-LIONEL-GROULX","SAINTE-THERESE","J7E 5E1","TB Sécurité - CHSLD"]
[100171,7710419,1060,400,"290 RUE MONTIGNY","SAINT-JEROME","J7Z 5T3","SJ Sécurité - Prév infections"]
[100171,7710405,1060,400,"290 RUE MONTIGNY","SAINT-JEROME","J7Z 5T3","SJ Sécurité CLSC"]
[100171,7710402,1060,400,"290 RUE MONTIGNY","SAINT-JEROME","J7Z 5T3","SJ Sécurité Résidence"]
[100171,7710401,1060,400,"290 RUE MONTIGNY","SAINT-JEROME","J7Z 5T3","SJ Sécurité Youville"]
[100171,7710400,1060,400,"290 RUE MONTIGNY","SAINT-JEROME","J7Z 5T3","SJ Service de sécurité C.H."]
[100171,7710204,1085,300,"234 RUE SAINT-VINCENT","SAINTE-AGATHE-DES-MONTS","J8C 2B8","DS Sécurtié - CLSC"]
[100171,7710203,1085,300,"234 RUE SAINT-VINCENT","SAINTE-AGATHE-DES-MONTS","J8C 2B8","DS Sécurité - Résidence Labelle"]
[100171,7710202,1085,300,"234 RUE SAINT-VINCENT","SAINTE-AGATHE-DES-MONTS","J8C 2B8","DS Sécurité - Résidence St-Jovite"]
[100171,7710201,1085,300,"234 RUE SAINT-VINCENT","SAINTE-AGATHE-DES-MONTS","J8C 2B8","DS Sécurité - Ste-Agathe"]
[100171,7710105,1047,200,"1525 RUE L'ANNONCIATION NORD","RIVIERE-ROUGE","J0T 1T0","AL Sécurité - Plan de mesure d'urgence (PMU)"]
[100171,7710103,8000,100,"2561 CHEMIN DE LA LIEVRE SUD","MONT-LAURIER","J9L 3G3","AL SA-Sécurité"]
[100171,7710102,8000,100,"2561 CHEMIN DE LA LIEVRE SUD","MONT-LAURIER","J9L 3G3","AL ML-Sécurité"]
[100171,7710101,1047,200,"1525 RUE L'ANNONCIATION NORD","RIVIERE-ROUGE","J0T 1T0","AL RR-Sécurité"]
[100171,7703700,1051,800,"145 AVENUE DE LA PROVIDENCE","LACHUTE","J8H 4C7","AR Fonctionnement des installations"]
[100171,7703666,1070,700,"100, RUE DU CHANOINE-LIONEL-GROULX","SAINTE-THERESE","J7E 5E1","DM Fonctionnement installations CHSB"]
[100171,7703651,1070,700,"100, RUE DU CHANOINE-LIONEL-GROULX","SAINTE-THERESE","J7E 5E1","DM Fonctionnement installations CLSC"]
[100171,7703641,1070,700,"100, RUE DU CHANOINE-LIONEL-GROULX","SAINTE-THERESE","J7E 5E1","DM Fonctionnement installations CHSE"]
[100171,7703636,1093,600,"520 BOUL. ARTHUR-SAUVE","SAINT-EUSTACHE","J7R 5B1","DM Fonctionnement  installations  PSY"]
[100171,7703603,1093,600,"520 BOUL. ARTHUR-SAUVE","SAINT-EUSTACHE","J7R 5B1","DM Fonctionnement  installations  HSE"]
[100171,7703500,1070,700,"100, RUE DU CHANOINE-LIONEL-GROULX","SAINTE-THERESE","J7E 5E1","TB Fonct. des installations"]
[100171,7703451,1060,400,"290 RUE MONTIGNY","SAINT-JEROME","J7Z 5T3","SJ Projet S.M. volet immo"]
[100171,7703419,1060,400,"290 RUE MONTIGNY","SAINT-JEROME","J7Z 5T3","SJ Trans mat - déménag"]
[100171,7703405,1060,400,"290 RUE MONTIGNY","SAINT-JEROME","J7Z 5T3","SJ Fonct instal CLSC"]
[100171,7703403,1060,400,"290 RUE MONTIGNY","SAINT-JEROME","J7Z 5T3","SJ Fonct instal Auberge"]
[100171,7703402,1060,400,"290 RUE MONTIGNY","SAINT-JEROME","J7Z 5T3","SJ Fonct instal Résidence"]
[100171,7703401,1060,400,"290 RUE MONTIGNY","SAINT-JEROME","J7Z 5T3","SJ Fonct instal Youville"]
[100171,7703400,1060,400,"290 RUE MONTIGNY","SAINT-JEROME","J7Z 5T3","SJ Fonct instal C.H."]
[100171,7703301,1047,200,"1525 RUE L'ANNONCIATION NORD","RIVIERE-ROUGE","J0T 1T0","PH FONCT. DES INSTALL. - CLSC"]
[100171,7703300,1047,200,"1525 RUE L'ANNONCIATION NORD","RIVIERE-ROUGE","J0T 1T0","PH FONCT. DES INSTALL. - CHSLD"]
[100171,7703206,1085,300,"234 RUE SAINT-VINCENT","SAINTE-AGATHE-DES-MONTS","J8C 2B8","DS Fonctionnement des installations - CLSC"]
[100171,7703205,1085,300,"234 RUE SAINT-VINCENT","SAINTE-AGATHE-DES-MONTS","J8C 2B8","DS Fonct. des installations - rue Godon"]
[100171,7703204,1085,300,"234 RUE SAINT-VINCENT","SAINTE-AGATHE-DES-MONTS","J8C 2B8","DS Fonct. des installations - Grignon"]
[100171,7703203,1085,300,"234 RUE SAINT-VINCENT","SAINTE-AGATHE-DES-MONTS","J8C 2B8","DS Fonctionnement des installations Labelle"]
[100171,7703202,1085,300,"234 RUE SAINT-VINCENT","SAINTE-AGATHE-DES-MONTS","J8C 2B8","DS Fonctionnement des installations St-Jovite"]
[100171,7703201,1085,300,"234 RUE SAINT-VINCENT","SAINTE-AGATHE-DES-MONTS","J8C 2B8","DS Fonct. des installations - 234 St-Vincent"]
[100171,7703103,8000,100,"2561 CHEMIN DE LA LIEVRE SUD","MONT-LAURIER","J9L 3G3","AL SA-Fonct.installations"]
[100171,7703102,8000,100,"2561 CHEMIN DE LA LIEVRE SUD","MONT-LAURIER","J9L 3G3","AL ML-Fonct.installations"]
[100171,7703101,1047,200,"1525 RUE L'ANNONCIATION NORD","RIVIERE-ROUGE","J0T 1T0","AL RR-Fonct.installations"]
[100171,7703010,1053,800,"377 RUE PRINCIPALE","LACHUTE","J8H 1Y1","RL Fonctionnement des installations - Autres"]
[100171,7703000,1060,null,"290 RUE MONTIGNY","SAINT-JEROME","J7Z 5T3","CR Fonctionnement des installations"]
[100171,7690803,1036,901,"500 BOULEVARD DES LAURENTIDES SUITE 241","SAINT-JÉRÔME","J7Z 4M2","CJ Transports - Flotte - Aut.dép."]
[100171,7690694,1093,600,"520 BOUL. ARTHUR-SAUVE","SAINT-EUSTACHE","J7R 5B1","DM Transport externe des usagers  PPA"]
[100171,7690671,1070,700,"100, RUE DU CHANOINE-LIONEL-GROULX","SAINTE-THERESE","J7E 5E1","DM Transport externe des usagers HSE"]
[100171,7690500,1070,700,"100, RUE DU CHANOINE-LIONEL-GROULX","SAINTE-THERESE","J7E 5E1","TB Transport des usagers"]
[100171,7690203,1085,300,"234 RUE SAINT-VINCENT","SAINTE-AGATHE-DES-MONTS","J8C 2B8","DS Transport des usagers - Labelle"]
[100171,7690202,1085,300,"234 RUE SAINT-VINCENT","SAINTE-AGATHE-DES-MONTS","J8C 2B8","DS Transport des usagers - St-Jovite"]
[100171,7690201,1085,300,"234 RUE SAINT-VINCENT","SAINTE-AGATHE-DES-MONTS","J8C 2B8","DS Transport des usagers - P.Lapointe"]
[100171,7690106,1047,200,"1525 RUE L'ANNONCIATION NORD","RIVIERE-ROUGE","J0T 1T0","AL RR-Transport ext. usagers - Mini-Van-Autobus"]
[100171,7690103,8000,100,"2561 CHEMIN DE LA LIEVRE SUD","MONT-LAURIER","J9L 3G3","AL SA-Transp.externe des usagers"]
[100171,7690102,8000,100,"2561 CHEMIN DE LA LIEVRE SUD","MONT-LAURIER","J9L 3G3","AL ML-Transp.externe des usagers"]
[100171,7690101,1047,200,"1525 RUE L'ANNONCIATION NORD","RIVIERE-ROUGE","J0T 1T0","AL RR-Transport externe usagers"]
[100171,7690000,1060,null,"290 RUE MONTIGNY","SAINT-JEROME","J7Z 5T3","CR Transport des usagers"]
[100171,7650713,1051,800,"145 AVENUE DE LA PROVIDENCE","LACHUTE","J8H 4C7","AR INACTIF RE 7650700 Déchets biomédicaux"]
[100171,6260488,1060,400,"290 RUE MONTIGNY","SAINT-JEROME","J7Z 5T3","SJ Contrib./Partenariat Ophtalmo"]
[100171,7650700,1051,800,"145 AVENUE DE LA PROVIDENCE","LACHUTE","J8H 4C7","AR Ent mén DBMI"]
[100171,7650671,1093,600,"520 BOUL. ARTHUR-SAUVE","SAINT-EUSTACHE","J7R 5B1","DM Gestion des déchets biomédicaux"]
[100171,7650500,1070,700,"100, RUE DU CHANOINE-LIONEL-GROULX","SAINTE-THERESE","J7E 5E1","TB Gestion déchets biomédicaux"]
[100171,7650400,1060,400,"290 RUE MONTIGNY","SAINT-JEROME","J7Z 5T3","SJ Gest déchets biomédicaux"]
[100171,7650302,1075,201,"150 RUE PRINCIPALE","SAINT-SAUVEUR","J0R 1R6","PH GEST. DECHETS BIOMED. CLSC"]
[100171,7650200,1085,300,"234 RUE SAINT-VINCENT","SAINTE-AGATHE-DES-MONTS","J8C 2B8","DS Déchest bio-médicaux"]
[100171,7650102,8000,100,"2561 CHEMIN DE LA LIEVRE SUD","MONT-LAURIER","J9L 3G3","AL ML-Gestion déchets biomédicaux"]
[100171,7650101,1047,200,"1525 RUE L'ANNONCIATION NORD","RIVIERE-ROUGE","J0T 1T0","AL RR-Gestion déchets biomédicaux"]
[100171,7646700,1051,800,"145 AVENUE DE LA PROVIDENCE","LACHUTE","J8H 4C7","AR Hygiène et salubrité - suite transf dép."]
[100171,5980505,1070,700,"100, RUE DU CHANOINE-LIONEL-GROULX","SAINTE-THERESE","J7E 5E1","TB GMF Des Mille-Îles"]
[100171,6056110,1070,700,"100, RUE DU CHANOINE-LIONEL-GROULX","SAINTE-THERESE","J7E 5E1","AL Infirm./liaison"]
[100171,7646601,1093,600,"520 BOUL. ARTHUR-SAUVE","SAINT-EUSTACHE","J7R 5B1","DM Hyg. - Sal. - Désinf. transf. ou départ HSE"]
[100171,7646500,1070,700,"100, RUE DU CHANOINE-LIONEL-GROULX","SAINTE-THERESE","J7E 5E1","TB Hyg sal - Désinfection"]
[100171,7646400,1060,400,"290 RUE MONTIGNY","SAINT-JEROME","J7Z 5T3","SJ Ent mén prév infec"]
[100171,7646200,1085,300,"234 RUE SAINT-VINCENT","SAINTE-AGATHE-DES-MONTS","J8C 2B8","DS H.&S. désinfection transferts départs"]
[100171,7646103,1044,100,"757 DE LA MADONE","MONT-LAURIER","J9L 1T3","AL SA-Hygiène sal.-Désinf. suite à transferts"]
[100171,7646102,1044,100,"757 DE LA MADONE","MONT-LAURIER","J9L 1T3","AL INACTIF ML-Hygiène sal.-Désinf. suite à transferts"]
[100171,7646101,1047,200,"1525 RUE L'ANNONCIATION NORD","RIVIERE-ROUGE","J0T 1T0","AL RR-Hygiène sal.-Désinf. suite à transferts"]
[100171,7645700,1051,800,"145 AVENUE DE LA PROVIDENCE","LACHUTE","J8H 4C7","AR Hygiène et salubrité - tâches fonct."]
[100171,6056710,1070,700,"100, RUE DU CHANOINE-LIONEL-GROULX","SAINTE-THERESE","J7E 5E1","AR Infirm./liaison"]
[100171,7645651,1070,700,"100, RUE DU CHANOINE-LIONEL-GROULX","SAINTE-THERESE","J7E 5E1","DM Hygiène - salubrité TF CLSC"]
[100171,7645641,1070,700,"100, RUE DU CHANOINE-LIONEL-GROULX","SAINTE-THERESE","J7E 5E1","DM Hygiène - salubrité TF CHSE"]
[100171,7553205,1070,700,"100, RUE DU CHANOINE-LIONEL-GROULX","SAINTE-THERESE","J7E 5E1","DS Nutrition Clin./héberg."]
[100171,7645601,1093,600,"520 BOUL. ARTHUR-SAUVE","SAINT-EUSTACHE","J7R 5B1","DM Hygiène - salubrité TF HSE"]
[100171,7645501,1070,700,"100, RUE DU CHANOINE-LIONEL-GROULX","SAINTE-THERESE","J7E 5E1","TB INACTIF Hyg. et sal. - Tâches fonct."]
[100171,7645500,1070,700,"100, RUE DU CHANOINE-LIONEL-GROULX","SAINTE-THERESE","J7E 5E1","TB Hyg sal - Tâches fonct"]
[100171,7645200,1085,300,"234 RUE SAINT-VINCENT","SAINTE-AGATHE-DES-MONTS","J8C 2B8","DS H.&S. tâches fonctionnelles"]
[100171,7645103,8000,100,"2561 CHEMIN DE LA LIEVRE SUD","MONT-LAURIER","J9L 3G3","AL SA-Hygiène et salubrité-Fonct"]
[100171,7645102,8000,100,"2561 CHEMIN DE LA LIEVRE SUD","MONT-LAURIER","J9L 3G3","AL INACTIF ML-Hygiène et salubrité-Fonct"]
[100171,7645101,1047,200,"1525 RUE L'ANNONCIATION NORD","RIVIERE-ROUGE","J0T 1T0","AL RR-Hygiène et salubrité-Fonct"]
[100171,7644815,1085,300,"234 RUE SAINT-VINCENT","SAINTE-AGATHE-DES-MONTS","J8C 2B8","CJ Entr. mén.- Ste-Agathe"]
[100171,7644813,1036,901,"500 BOULEVARD DES LAURENTIDES SUITE 241","SAINT-JÉRÔME","J7Z 4M2","CJ INACTIF RE 7644809 Entretien ménager - Salaires"]
[100171,7644812,1030,901,"300 RUE SICARD","SAINTE-THÉRÈSE","J7E 3X5","CJ INACTIF RE 7644809 Entretien ménager-300 Sicard"]
[100171,7644810,1060,400,"290 RUE MONTIGNY","SAINT-JEROME","J7Z 5T3","CJ INACTIF RE 7644809 Entr. mén.-Ste-Sophie"]
[100171,7644809,1060,400,"290 RUE MONTIGNY","SAINT-JEROME","J7Z 5T3","CJ Entr. mén.-St-Jérôme-Aut. dép."]
[100171,7644808,1034,901,"358 RUE LAVIOLETTE","SAINT-JÉRÔME","J7Y 2T1","CJ INACTIF RE 7644809 E.M.-St-Jér.-358 Lav.-Aut.dép."]
[100171,7644807,1047,200,"1525 RUE L'ANNONCIATION NORD","RIVIERE-ROUGE","J0T 1T0","CJ Entr. mén.-Huberdeau-Aut. dép."]
[100171,7644806,1132,901,"419 DE LA MADONE","MONT-LAURIER","J9L 1S1","CJ INACTIF Entr.mén.-Mt-Laurier-Aut. dép."]
[100171,7644805,1131,901,"143 AVENUE DE LA PROVIDENCE","LACHUTE","J8H 4E9","CJ Entr. mén.-Lachute-Autres dép."]
[100171,7644803,1093,600,"520 BOUL. ARTHUR-SAUVE","SAINT-EUSTACHE","J7R 5B1","CJ Entr.mén.-D-M à ref.-Aut. dép."]
[100171,7644801,1085,300,"234 RUE SAINT-VINCENT","SAINTE-AGATHE-DES-MONTS","J8C 2B8","CJ INACTIF Entr.mén.-Ste-Agathe-Aut. dép."]
[100171,7644701,1051,800,"145 AVENUE DE LA PROVIDENCE","LACHUTE","J8H 4C7","AR INACTIF Hygiène et salubrité - tâches op."]
[100171,7644700,1051,800,"145 AVENUE DE LA PROVIDENCE","LACHUTE","J8H 4C7","AR Entretien ménager"]
[100171,7644666,1070,700,"100, RUE DU CHANOINE-LIONEL-GROULX","SAINTE-THERESE","J7E 5E1","DM Hygiène - salubrité  TO CHSB"]
[100171,7644641,1070,700,"100, RUE DU CHANOINE-LIONEL-GROULX","SAINTE-THERESE","J7E 5E1","DM Hygiène - salubrité  TO  CHSE"]
[100171,7644636,1093,600,"520 BOUL. ARTHUR-SAUVE","SAINT-EUSTACHE","J7R 5B1","DM INACTIF Hygiène - salubrité TO PSY"]
[100171,7644629,1093,600,"520 BOUL. ARTHUR-SAUVE","SAINT-EUSTACHE","J7R 5B1","DM Entretien ménager  CIR"]
[100171,7644601,1093,600,"520 BOUL. ARTHUR-SAUVE","SAINT-EUSTACHE","J7R 5B1","DM Hygiène - salubrité TO HSE"]
[100171,7644500,1070,700,"100, RUE DU CHANOINE-LIONEL-GROULX","SAINTE-THERESE","J7E 5E1","TB Hyg sal - Tâches opérat."]
[100171,8999041,1060,400,"290 RUE MONTIGNY","SAINT-JEROME","J7Z 5T3","CI CHSLD Louise-Faubert SJE"]
[100171,7807400,1060,400,"290 RUE MONTIGNY","SAINT-JEROME","J7Z 5T3","SJ Esp./loués Entr./rép./install."]
[100171,6051204,1060,400,"290 RUE MONTIGNY","SAINT-JEROME","J7Z 5T3","DS Soins palliatifs"]
[100171,7644400,1060,400,"290 RUE MONTIGNY","SAINT-JEROME","J7Z 5T3","SJ Serv hygiène et salubrité Hôpital"]
[100171,7644301,1047,200,"1525 RUE L'ANNONCIATION NORD","RIVIERE-ROUGE","J0T 1T0","PH HYGIÈNE ET SALUBRITÉ CHSLD"]
[100171,6051102,1085,300,"234 RUE SAINT-VINCENT","SAINTE-AGATHE-DES-MONTS","J8C 2B8","AL ML Médecine 2e"]
[100171,7644205,1085,300,"234 RUE SAINT-VINCENT","SAINTE-AGATHE-DES-MONTS","J8C 2B8","DS Entretien ménager Grignon"]
[100171,7644204,1085,300,"234 RUE SAINT-VINCENT","SAINTE-AGATHE-DES-MONTS","J8C 2B8","DS Entretien ménager Foyer"]
[100171,7644203,1047,200,"1525 RUE L'ANNONCIATION NORD","RIVIERE-ROUGE","J0T 1T0","DS Entretien ménager - Labelle"]
[100171,7644202,1047,200,"1525 RUE L'ANNONCIATION NORD","RIVIERE-ROUGE","J0T 1T0","DS Entretien ménager - St-Jovite"]
[100171,7644201,1085,300,"234 RUE SAINT-VINCENT","SAINTE-AGATHE-DES-MONTS","J8C 2B8","DS Entretien ménager - P.Lapointe"]
[100171,7644200,1085,300,"234 RUE SAINT-VINCENT","SAINTE-AGATHE-DES-MONTS","J8C 2B8","DS Entretien ménager"]
[100171,7644109,8000,100,"2561 CHEMIN DE LA LIEVRE SUD","MONT-LAURIER","J9L 3G3","AL Hygiène et salubrité-HOTTE Pharmacie"]
[100171,7644108,8000,100,"2561 CHEMIN DE LA LIEVRE SUD","MONT-LAURIER","J9L 3G3","AL CL-Hygiène et salubrité-Opér"]
[100171,7644107,8000,100,"2561 CHEMIN DE LA LIEVRE SUD","MONT-LAURIER","J9L 3G3","AL SA-Hygiène-salubrité-C.Jeunesse"]
[100171,7644106,8000,100,"2561 CHEMIN DE LA LIEVRE SUD","MONT-LAURIER","J9L 3G3","AL SA-Hygiène et salubrité-NR"]
[100171,7644105,8000,100,"2561 CHEMIN DE LA LIEVRE SUD","MONT-LAURIER","J9L 3G3","AL SA-Hygiène et salubrité-Opérat"]
[100171,7644103,8000,100,"2561 CHEMIN DE LA LIEVRE SUD","MONT-LAURIER","J9L 3G3","AL ML-Hygiène et salubrité-NR"]
[100171,7644102,1047,200,"1525 RUE L'ANNONCIATION NORD","RIVIERE-ROUGE","J0T 1T0","AL INACTIF RR-Hygiène et salubrité-Opérat"]
[100171,7644101,1047,200,"1525 RUE L'ANNONCIATION NORD","RIVIERE-ROUGE","J0T 1T0","AL RR-Hygiène et salubrité-NR"]
[100171,7644010,1053,800,"377 RUE PRINCIPALE","LACHUTE","J8H 1Y1","RL Hygiène et salubrité - Tâches opérationnelles"]
[100171,7644000,1060,null,"290 RUE MONTIGNY","SAINT-JEROME","J7Z 5T3","CR Hyg & salubrité"]
[100171,7606801,1047,200,"1525 RUE L'ANNONCIATION NORD","RIVIERE-ROUGE","J0T 1T0","CJ Cueill,distr.&autres-Gal.Laur."]
[100171,7606712,1051,800,"145 AVENUE DE LA PROVIDENCE","LACHUTE","J8H 4C7","AR Cueillette distribution et autres charges"]
[100171,7606710,1051,800,"145 AVENUE DE LA PROVIDENCE","LACHUTE","J8H 4C7","AR Buanderie-lingerie"]
[100171,6351750,1051,800,"145 AVENUE DE LA PROVIDENCE","LACHUTE","J8H 4C7","AR Aides/mat. Oxygéno"]
[100171,6880404,1060,400,"290 RUE MONTIGNY","SAINT-JEROME","J7Z 5T3","SJ Ergo CHSLD"]
[100171,6870404,1060,400,"290 RUE MONTIGNY","SAINT-JEROME","J7Z 5T3","SJ Physio CHSLD"]
[100171,7606676,1070,700,"100, RUE DU CHANOINE-LIONEL-GROULX","SAINTE-THERESE","J7E 5E1","DM Produits jetables CHSB"]
[100171,7606666,1070,700,"100, RUE DU CHANOINE-LIONEL-GROULX","SAINTE-THERESE","J7E 5E1","DM Cueillette,distribution, autres charges CHSB"]
[100171,7606645,1070,700,"100, RUE DU CHANOINE-LIONEL-GROULX","SAINTE-THERESE","J7E 5E1","DM Produits jetables CHSE"]
[100171,7606641,1070,700,"100, RUE DU CHANOINE-LIONEL-GROULX","SAINTE-THERESE","J7E 5E1","DM Cueillette,distribution, autres charges CHSE"]
[100171,7606602,1093,600,"520 BOUL. ARTHUR-SAUVE","SAINT-EUSTACHE","J7R 5B1","DM Cueillette,distribution, autres charges HSE"]
[100171,7606500,1070,700,"100, RUE DU CHANOINE-LIONEL-GROULX","SAINTE-THERESE","J7E 5E1","TB Cueill, distr. & autres charg"]
[100171,7606415,1099,400,"290 RUE DE MONTIGNY","SAINT-JEROME","J7Z 5T3","SJ Champs op & emballage jetables"]
[100171,7606400,1060,400,"290 RUE MONTIGNY","SAINT-JEROME","J7Z 5T3","SJ Lingerie C.H."]
[100171,7606301,1047,200,"1525 RUE L'ANNONCIATION NORD","RIVIERE-ROUGE","J0T 1T0","PH CUEILL,DISTR.& AUTRES CHARGES"]
[100171,7606203,1085,300,"234 RUE SAINT-VINCENT","SAINTE-AGATHE-DES-MONTS","J8C 2B8","DS Cueillette, distribution - Labelle"]
[100171,7606202,1085,300,"234 RUE SAINT-VINCENT","SAINTE-AGATHE-DES-MONTS","J8C 2B8","DS Cueillette, distribution - Tremblant"]
[100171,7606201,1085,300,"234 RUE SAINT-VINCENT","SAINTE-AGATHE-DES-MONTS","J8C 2B8","DS Cueillette, distribution - Ste-Agathe"]
[100171,7606113,1044,100,"757 DE LA MADONE","MONT-LAURIER","J9L 1T3","AL SA-Buanderie  (cueil., dist.)"]
[100171,7606111,1044,100,"757 DE LA MADONE","MONT-LAURIER","J9L 1T3","AL ML-Buanderie  (cueil., dist.)"]
[100171,6173750,1047,200,"1525 RUE L'ANNONCIATION NORD","RIVIERE-ROUGE","J0T 1T0","AR Aides/mat. Fct./d'élim."]
[100171,7606106,1047,200,"1525 RUE L'ANNONCIATION NORD","RIVIERE-ROUGE","J0T 1T0","AL RR - Buanderie - Service de couture"]
[100171,7606105,1047,200,"1525 RUE L'ANNONCIATION NORD","RIVIERE-ROUGE","J0T 1T0","AL RR-Buanderie (cueil., dist.) CC"]
[100171,7606103,1047,200,"1525 RUE L'ANNONCIATION NORD","RIVIERE-ROUGE","J0T 1T0","AL RR Buanderie (cueil dist) SAG"]
[100171,7606102,1047,200,"1525 RUE L'ANNONCIATION NORD","RIVIERE-ROUGE","J0T 1T0","AL RR Buanderie (cueil dist.) ML"]
[100171,7606101,1047,200,"1525 RUE L'ANNONCIATION NORD","RIVIERE-ROUGE","J0T 1T0","AL RR-Buanderie (cueil., dist.)"]
[100171,7605801,1047,200,"1525 RUE L'ANNONCIATION NORD","RIVIERE-ROUGE","J0T 1T0","CJ Entr. vêt. usag.-Gal. Laur."]
[100171,7605700,1051,800,"145 AVENUE DE LA PROVIDENCE","LACHUTE","J8H 4C7","AR Entretien vêtements des usagers"]
[100171,7605666,1070,700,"100, RUE DU CHANOINE-LIONEL-GROULX","SAINTE-THERESE","J7E 5E1","DM Entretien vêtements des usagers CHSB"]
[100171,7605642,1070,700,"100, RUE DU CHANOINE-LIONEL-GROULX","SAINTE-THERESE","J7E 5E1","DM Entretien vêtements des usagers CHSE"]
[100171,7605500,1070,700,"100, RUE DU CHANOINE-LIONEL-GROULX","SAINTE-THERESE","J7E 5E1","TB Entret. vêtements usagers"]
[100171,7605403,1065,400,"66 RUE DANIS","SAINT-JEROME","J7Y 2R3","SJ Buanderie lingerie Auberge"]
[100171,7605402,1066,400,"175 RUE DURAND","SAINT-JEROME","J7Z 2V4","SJ Buanderie lingerie Résidence"]
[100171,7605401,1064,400,"531 RUE LAVIOLETTE","SAINT-JEROME","J7Y 2T8","SJ Buand./Ling. héberg"]
[100171,7605200,1085,300,"234 RUE SAINT-VINCENT","SAINTE-AGATHE-DES-MONTS","J8C 2B8","DS Entretien vêtements - P. Lapointe"]
[100171,7605103,8000,100,"2561 CHEMIN DE LA LIEVRE SUD","MONT-LAURIER","J9L 3G3","AL SA-Ent.vêtements des usagers"]
[100171,7605101,1047,200,"1525 RUE L'ANNONCIATION NORD","RIVIERE-ROUGE","J0T 1T0","AL RR-Ent.vêtements des usagers (RR)"]
[100171,7604700,1051,800,"145 AVENUE DE LA PROVIDENCE","LACHUTE","J8H 4C7","AR Buanderie"]
[100171,7604666,1070,700,"100, RUE DU CHANOINE-LIONEL-GROULX","SAINTE-THERESE","J7E 5E1","DM Buanderie CHSB"]
[100171,7604641,1070,700,"100, RUE DU CHANOINE-LIONEL-GROULX","SAINTE-THERESE","J7E 5E1","DM Buanderie CHSE"]
[100171,7604603,1093,600,"520 BOUL. ARTHUR-SAUVE","SAINT-EUSTACHE","J7R 5B1","DM Buanderie - HSE"]
[100171,7604500,1070,700,"100, RUE DU CHANOINE-LIONEL-GROULX","SAINTE-THERESE","J7E 5E1","TB Buanderie"]
[100171,7604400,1060,400,"290 RUE MONTIGNY","SAINT-JEROME","J7Z 5T3","SJ Buanderie C.H."]
[100171,7604203,1085,300,"234 RUE SAINT-VINCENT","SAINTE-AGATHE-DES-MONTS","J8C 2B8","DS Buanderie - Labellle"]
[100171,7604202,1085,300,"234 RUE SAINT-VINCENT","SAINTE-AGATHE-DES-MONTS","J8C 2B8","DS Buanderie - Tremblant"]
[100171,7604201,1085,300,"234 RUE SAINT-VINCENT","SAINTE-AGATHE-DES-MONTS","J8C 2B8","DS Buanderie - Ste-Agathe"]
[100171,7604111,8000,100,"2561 CHEMIN DE LA LIEVRE SUD","MONT-LAURIER","J9L 3G3","AL INACTIF ML-Buanderie"]
[100171,6051101,1047,200,"1525 RUE L'ANNONCIATION NORD","RIVIERE-ROUGE","J0T 1T0","AL RR Médecine"]
[100171,7604108,1047,200,"1525 RUE L'ANNONCIATION NORD","RIVIERE-ROUGE","J0T 1T0","AL RR-Buanderie-Labelle"]
[100171,7604107,1047,200,"1525 RUE L'ANNONCIATION NORD","RIVIERE-ROUGE","J0T 1T0","AL RR-Buanderie-Tremblant"]
[100171,7604106,1047,200,"1525 RUE L'ANNONCIATION NORD","RIVIERE-ROUGE","J0T 1T0","AL RR-Buanderie-SA"]
[100171,7604105,1047,200,"1525 RUE L'ANNONCIATION NORD","RIVIERE-ROUGE","J0T 1T0","AL RR-Buanderie-CC"]
[100171,7604104,1047,200,"1525 RUE L'ANNONCIATION NORD","RIVIERE-ROUGE","J0T 1T0","AL RR-Buanderie-Partagée"]
[100171,7604103,1047,200,"1525 RUE L'ANNONCIATION NORD","RIVIERE-ROUGE","J0T 1T0","AL RR-Buanderie-Ste-Agathe"]
[100171,7604102,1047,200,"1525 RUE L'ANNONCIATION NORD","RIVIERE-ROUGE","J0T 1T0","AL RR-Buanderie-ML"]
[100171,7604101,1047,200,"1525 RUE L'ANNONCIATION NORD","RIVIERE-ROUGE","J0T 1T0","AL RR-Buanderie"]
[100171,7604010,1053,400,"377 RUE PRINCIPALE","LACHUTE","J8H 1Y1","RL Buanderie"]
[100171,7554803,1031,901,"148 RUE CASTONGUAY","SAINT-JÉRÔME"," J7Y2J2","CJ Aliment. St-Jérôme-Autres dép."]
[100171,7554700,1051,800,"145 AVENUE DE LA PROVIDENCE","LACHUTE","J8H 4C7","AR Alimentation"]
[100171,7554666,1070,700,"100, RUE DU CHANOINE-LIONEL-GROULX","SAINTE-THERESE","J7E 5E1","DM Alimentation CHSB"]
[100171,7554641,1070,700,"100, RUE DU CHANOINE-LIONEL-GROULX","SAINTE-THERESE","J7E 5E1","DM Alimentation CHSE"]
[100171,7554601,1093,600,"520 BOUL. ARTHUR-SAUVE","SAINT-EUSTACHE","J7R 5B1","DM Alimentation HSE"]
[100171,7554501,1070,700,"100, RUE DU CHANOINE-LIONEL-GROULX","SAINTE-THERESE","J7E 5E1","TB INACTIF Projet - Service alimentaire"]
[100171,7554500,1070,700,"100, RUE DU CHANOINE-LIONEL-GROULX","SAINTE-THERESE","J7E 5E1","TB Alimentation - Autres"]
[100171,7554400,1060,400,"290 RUE MONTIGNY","SAINT-JEROME","J7Z 5T3","SJ Alimentation"]
[100171,7554301,1074,201,"707 BOULEVARD DE SAINTE-ADÈLE","SAINTE-ADÈLE","J8B 2N1","PH ALIMENTATION - AUTRES"]
[100171,7554204,1085,300,"234 RUE SAINT-VINCENT","SAINTE-AGATHE-DES-MONTS","J8C 2B8","DS Alimentation - Fondation McConnell"]
[100171,7554203,1119,302,"50 RUE DE L'ÉGLISE","LABELLE","J0T1H0","DS Alimentation - Labelle"]
[100171,7554202,1121,304,"925 RUE DE SAINT-JOVITE","MONT-TREMBLANT","J8E 3J8","DS Alimentation - St-Jovite"]
[100171,7554200,1085,300,"234 RUE SAINT-VINCENT","SAINTE-AGATHE-DES-MONTS","J8C 2B8","DS Alimentation - Ste-Agathe"]
[100171,7554103,1126,101,"411 RUE DE LA MADONE","MONT-LAURIER","J9L 1S1","AL SA-Alimentation - Autres"]
[100171,7554102,8000,100,"2561 CHEMIN DE LA LIEVRE SUD","MONT-LAURIER","J9L 3G3","AL ML-Alimentation - Autres"]
[100171,7554101,1047,200,"1525 RUE L'ANNONCIATION NORD","RIVIERE-ROUGE","J0T 1T0","AL RR-Alimentation - Autres"]
[100171,7554010,1053,800,"377 RUE PRINCIPALE","LACHUTE","J8H 1Y1","RL Alimentation - Autres"]
[100171,7553700,1051,800,"145 AVENUE DE LA PROVIDENCE","LACHUTE","J8H 4C7","AR Nutrition clinique"]
[100171,7553688,1093,600,"520 BOUL. ARTHUR-SAUVE","SAINT-EUSTACHE","J7R 5B1","DM Nutrition clinique"]
[100171,7553501,1070,700,"100, RUE DU CHANOINE-LIONEL-GROULX","SAINTE-THERESE","J7E 5E1","TB Diététique - Soins palliatifs"]
[100171,7553500,1070,700,"100, RUE DU CHANOINE-LIONEL-GROULX","SAINTE-THERESE","J7E 5E1","TB Nutrition clinique"]
[100171,7553405,1060,400,"290 RUE MONTIGNY","SAINT-JEROME","J7Z 5T3","SJ Nutrition clinique CHSLD"]
[100171,7553400,1060,400,"290 RUE MONTIGNY","SAINT-JEROME","J7Z 5T3","SJ Nutrition clinique"]
[100171,7553301,1075,201,"150 RUE PRINCIPALE","SAINT-SAUVEUR","J0R 1R6","PH Nutrition clinique"]
[100171,7553200,1085,300,"234 RUE SAINT-VINCENT","SAINTE-AGATHE-DES-MONTS","J8C 2B8","DS Nutrition clinique"]
[100171,7553103,8000,100,"2561 CHEMIN DE LA LIEVRE SUD","MONT-LAURIER","J9L 3G3","AL SA-Nutrition clinique"]
[100171,7553102,8000,100,"2561 CHEMIN DE LA LIEVRE SUD","MONT-LAURIER","J9L 3G3","AL ML-Nutrition clinique"]
[100171,7553101,1047,200,"1525 RUE L'ANNONCIATION NORD","RIVIERE-ROUGE","J0T 1T0","AL RR-Nutrition clinique"]
[100171,7536700,1051,800,"145 AVENUE DE LA PROVIDENCE","LACHUTE","J8H 4C7","AR Transcriptions dictées médicales"]
[100171,7536605,1093,600,"520 BOUL. ARTHUR-SAUVE","SAINT-EUSTACHE","J7R 5B1","DM Transcription des dictées médicales"]
[100171,7536400,1060,400,"290 RUE MONTIGNY","SAINT-JEROME","J7Z 5T3","SJ Trans dictées méd"]
[100171,7536200,1085,300,"234 RUE SAINT-VINCENT","SAINTE-AGATHE-DES-MONTS","J8C 2B8","DS Transcription dictées médicales"]
[100171,7536101,1044,100,"757 DE LA MADONE","MONT-LAURIER","J9L 1T3","AL Transcription des dictées médicales"]
[100171,7535702,1051,800,"145 AVENUE DE LA PROVIDENCE","LACHUTE","J8H 4C7","AR Télécommunications"]
[100171,7535701,1051,800,"145 AVENUE DE LA PROVIDENCE","LACHUTE","J8H 4C7","AR INACTIF Télécom RE 7535090"]
[100171,7535684,1093,600,"520 BOUL. ARTHUR-SAUVE","SAINT-EUSTACHE","J7R 5B1","DM Télécommunications"]
[100171,7535500,1070,700,"100, RUE DU CHANOINE-LIONEL-GROULX","SAINTE-THERESE","J7E 5E1","TB Télécomm. - Messagerie"]
[100171,7307410,1060,400,"290 RUE MONTIGNY","SAINT-JEROME","J7Z 5T3","SJ Imprimerie"]
[100171,7535454,1060,400,"290 RUE MONTIGNY","SAINT-JEROME","J7Z 5T3","SJ Projet tél rég - Agence"]
[100171,7535453,1060,400,"290 RUE MONTIGNY","SAINT-JEROME","J7Z 5T3","SJ Projet tél rég - CSSS Pays d'en Haut"]
[100171,7535452,1060,400,"290 RUE MONTIGNY","SAINT-JEROME","J7Z 5T3","SJ Projet tél rég - Centre Flores"]
[100171,7535451,1060,400,"290 RUE MONTIGNY","SAINT-JEROME","J7Z 5T3","SJ INACTIF Télécom rég RE 7535003"]
[100171,7535450,1060,400,"290 RUE MONTIGNY","SAINT-JEROME","J7Z 5T3","SJ Projet tél rég - Centre André Boudreau"]
[100171,7535419,1060,400,"290 RUE MONTIGNY","SAINT-JEROME","J7Z 5T3","SJ Photocopieur Bloc G"]
[100171,7535410,1060,400,"290 RUE MONTIGNY","SAINT-JEROME","J7Z 5T3","SJ INACTIF Messagerie RE 7535090"]
[100171,7535401,1060,400,"290 RUE MONTIGNY","SAINT-JEROME","J7Z 5T3","SJ Télécom - fourn autres dép"]
[100171,7535400,1060,400,"290 RUE MONTIGNY","SAINT-JEROME","J7Z 5T3","SJ Communications - salaires"]
[100171,7535201,1085,300,"234 RUE SAINT-VINCENT","SAINTE-AGATHE-DES-MONTS","J8C 2B8","DS INACTIF Frais de poste 7533(0854)"]
[100171,7535101,1047,200,"1525 RUE L'ANNONCIATION NORD","RIVIERE-ROUGE","J0T 1T0","AL RR-Télécommunication"]
[100171,7535090,1060,400,"290 RUE MONTIGNY","SAINT-JEROME","J7Z 5T3","CI Messagerie"]
[100171,7534700,1051,800,"145 AVENUE DE LA PROVIDENCE","LACHUTE","J8H 4C7","AR Réception"]
[100171,7534651,1070,700,"100, RUE DU CHANOINE-LIONEL-GROULX","SAINTE-THERESE","J7E 5E1","DM Accueil - réception  CLSC"]
[100171,7534641,1070,700,"100, RUE DU CHANOINE-LIONEL-GROULX","SAINTE-THERESE","J7E 5E1","DM Réception  CHSE"]
[100171,7534626,1093,600,"520 BOUL. ARTHUR-SAUVE","SAINT-EUSTACHE","J7R 5B1","DM Centrale de rendez-vous"]
[100171,7534625,1093,600,"520 BOUL. ARTHUR-SAUVE","SAINT-EUSTACHE","J7R 5B1","DM Accueil - admission HSE"]
[100171,7534502,1070,700,"100, RUE DU CHANOINE-LIONEL-GROULX","SAINTE-THERESE","J7E 5E1","TB Réception - CLSC"]
[100171,7534501,1070,700,"100, RUE DU CHANOINE-LIONEL-GROULX","SAINTE-THERESE","J7E 5E1","TB Réception (CDD et HM)"]
[100171,7534404,1060,400,"290 RUE MONTIGNY","SAINT-JEROME","J7Z 5T3","SJ Méca d'accès volet endo"]
[100171,7534403,1060,400,"290 RUE MONTIGNY","SAINT-JEROME","J7Z 5T3","SJ Gestion priorités opératoires"]
[100171,7534402,1060,400,"290 RUE MONTIGNY","SAINT-JEROME","J7Z 5T3","SJ Guichet clientèle orpheline"]
[100171,7534401,1060,400,"290 RUE MONTIGNY","SAINT-JEROME","J7Z 5T3","SJ INACTIF Projet SIMASS"]
[100171,7534400,1060,400,"290 RUE MONTIGNY","SAINT-JEROME","J7Z 5T3","SJ Accueil des usagers"]
[100171,7534301,1074,200,"707 BOULEVARD DE SAINTE-ADÈLE","SAINTE-ADÈLE","J8B 2N1","PH Réception"]
[100171,6000204,1085,300,"234 RUE SAINT-VINCENT","SAINTE-AGATHE-DES-MONTS","J8C 2B8","DS Adm./soins héberg"]
[100171,7152683,1085,300,"234 RUE SAINT-VINCENT","SAINTE-AGATHE-DES-MONTS","J8C 2B8","DM Gest & sout jeun (Guichet)"]
[100171,7534200,1085,300,"234 RUE SAINT-VINCENT","SAINTE-AGATHE-DES-MONTS","J8C 2B8","DS Accueil"]
[100171,7534103,8000,100,"2561 CHEMIN DE LA LIEVRE SUD","MONT-LAURIER","J9L 3G3","AL SA-Réception"]
[100171,7534101,8000,100,"2561 CHEMIN DE LA LIEVRE SUD","MONT-LAURIER","J9L 3G3","AL Réception"]
[100171,7533403,1060,400,"290 RUE MONTIGNY","SAINT-JEROME","J7Z 5T3","SJ Accueil CHSLD de St-Jérôme"]
[100171,7533402,1060,400,"290 RUE MONTIGNY","SAINT-JEROME","J7Z 5T3","SJ Accueil comm Résidence"]
[100171,7533401,1060,400,"290 RUE MONTIGNY","SAINT-JEROME","J7Z 5T3","SJ Accueil comm Youville"]
[100171,7533203,1047,200,"1525 RUE L'ANNONCIATION NORD","RIVIERE-ROUGE","J0T 1T0","DS Accueil, réception - Labelle"]
[100171,7533202,1047,200,"1525 RUE L'ANNONCIATION NORD","RIVIERE-ROUGE","J0T 1T0","DS Accueil, réception - St-Jovite"]
[100171,7533201,1085,300,"234 RUE SAINT-VINCENT","SAINTE-AGATHE-DES-MONTS","J8C 2B8","DS Accueil, réception - P.Lapointe"]
[100171,7533200,1085,300,"234 RUE SAINT-VINCENT","SAINTE-AGATHE-DES-MONTS","J8C 2B8","DS Accueil, réception, archives CLSC"]
[100171,7533030,1060,400,"290 RUE MONTIGNY","SAINT-JEROME","J7Z 5T3","BC INACTIF RE 7532030 Réceptionniste/Archives - Laurentides"]
[100171,7533010,1053,400,"377 RUE PRINCIPALE","LACHUTE","J8H 1Y1","RL Réception - Archives - Télécommunications (non réparti)"]
[100171,7533000,1060,null,"290 RUE MONTIGNY","SAINT-JEROME","J7Z 5T3","CR INACTIF Télécom RE 7535002"]
[100171,7532700,1051,800,"145 AVENUE DE LA PROVIDENCE","LACHUTE","J8H 4C7","AR Archives"]
[100171,7532651,1070,700,"100, RUE DU CHANOINE-LIONEL-GROULX","SAINTE-THERESE","J7E 5E1","DM Archives CLSC"]
[100171,7532602,1093,600,"520 BOUL. ARTHUR-SAUVE","SAINT-EUSTACHE","J7R 5B1","DM Archives HSE/CLSC"]
[100171,7532500,1071,700,"125 RUE DUQUET","SAINTE-THERESE","J7E 0A5","TB Archives"]
[100171,7532410,1060,400,"290 RUE MONTIGNY","SAINT-JEROME","J7Z 5T3","SJ  INACTIF RE 7532400 Archives - Reg du cancer"]
[100171,7532405,1060,400,"290 RUE MONTIGNY","SAINT-JEROME","J7Z 5T3","SJ Archives - op cléricales"]
[100171,7532400,1060,400,"290 RUE MONTIGNY","SAINT-JEROME","J7Z 5T3","SJ Archives"]
[100171,7532302,1047,200,"1525 RUE L'ANNONCIATION NORD","RIVIERE-ROUGE","J0T 1T0","PH Archives"]
[100171,7532200,1085,300,"234 RUE SAINT-VINCENT","SAINTE-AGATHE-DES-MONTS","J8C 2B8","DS Archives"]
[100171,7532105,1047,200,"1525 RUE L'ANNONCIATION NORD","RIVIERE-ROUGE","J0T 1T0","AL INACTIF Archives-Index patient-maître"]
[100171,7532101,8000,100,"2561 CHEMIN DE LA LIEVRE SUD","MONT-LAURIER","J9L 3G3","AL Archives"]
[100171,7404400,1060,400,"290 RUE MONTIGNY","SAINT-JEROME","J7Z 5T3","SJ Dépl cas électifs"]
[100171,7402700,1051,800,"145 AVENUE DE LA PROVIDENCE","LACHUTE","J8H 4C7","AR Bénéficiaires agés de 65 ans et plus"]
[100171,7402671,1093,600,"520 BOUL. ARTHUR-SAUVE","SAINT-EUSTACHE","J7R 5B1","DM Déplacement des usagers 65 plus"]
[100171,7402500,1070,700,"100, RUE DU CHANOINE-LIONEL-GROULX","SAINTE-THERESE","J7E 5E1","TB Dépl. usagers 65 ans et +"]
[100171,7402400,1060,400,"290 RUE MONTIGNY","SAINT-JEROME","J7Z 5T3","SJ Dépl usagers 65 ans et +"]
[100171,7402203,1085,300,"234 RUE SAINT-VINCENT","SAINTE-AGATHE-DES-MONTS","J8C 2B8","DS Déplacement 65 ans et + P.Lapointe"]
[100171,7402202,1085,300,"234 RUE SAINT-VINCENT","SAINTE-AGATHE-DES-MONTS","J8C 2B8","DS Déplacements 65 ans et + Labelle"]
[100171,7402201,1085,300,"234 RUE SAINT-VINCENT","SAINTE-AGATHE-DES-MONTS","J8C 2B8","DS Déplacement 65 ans et + St-Jovite"]
[100171,7402200,1085,300,"234 RUE SAINT-VINCENT","SAINTE-AGATHE-DES-MONTS","J8C 2B8","DS Déplacement 65 ans et +"]
[100171,7402102,8000,100,"2561 CHEMIN DE LA LIEVRE SUD","MONT-LAURIER","J9L 3G3","AL ML-Dépl.usagers entre établis(+65ans)"]
[100171,7402101,1047,200,"1525 RUE L'ANNONCIATION NORD","RIVIERE-ROUGE","J0T 1T0","AL RR-Dépl.usagers entre établis(+65ans)"]
[100171,7401700,1051,800,"145 AVENUE DE LA PROVIDENCE","LACHUTE","J8H 4C7","AR Bénéficiaires établissements"]
[100171,7401671,1093,600,"520 BOUL. ARTHUR-SAUVE","SAINT-EUSTACHE","J7R 5B1","DM Déplacement des usagers inter établissement"]
[100171,7401500,1070,700,"100, RUE DU CHANOINE-LIONEL-GROULX","SAINTE-THERESE","J7E 5E1","TB Dépl. usagers entre établ."]
[100171,7401425,1060,400,"290 RUE MONTIGNY","SAINT-JEROME","J7Z 5T3","SJ Dépl usagers Maison soins palliatifs"]
[100171,7401420,1060,400,"290 RUE MONTIGNY","SAINT-JEROME","J7Z 5T3","SJ Dépl usagers CHSLD"]
[100171,7401415,1060,400,"290 RUE MONTIGNY","SAINT-JEROME","J7Z 5T3","SJ Dépl usagers R.I."]
[100171,7401410,1060,400,"290 RUE MONTIGNY","SAINT-JEROME","J7Z 5T3","SJ Transport - Hôpital de jour"]
[100171,7401405,1060,400,"290 RUE MONTIGNY","SAINT-JEROME","J7Z 5T3","SJ Déplacement usagers hôp"]
[100171,7401400,1060,400,"290 RUE MONTIGNY","SAINT-JEROME","J7Z 5T3","SJ Service d'accompagnement"]
[100171,7401203,1085,300,"234 RUE SAINT-VINCENT","SAINTE-AGATHE-DES-MONTS","J8C 2B8","DS Déplacement entre étab. - Labelle"]
[100171,7401202,1085,300,"234 RUE SAINT-VINCENT","SAINTE-AGATHE-DES-MONTS","J8C 2B8","DS Déplacement entre étab. - St-Jovite"]
[100171,7401201,1085,300,"234 RUE SAINT-VINCENT","SAINTE-AGATHE-DES-MONTS","J8C 2B8","DS Déplac usagers entre étab"]
[100171,7401200,1085,300,"234 RUE SAINT-VINCENT","SAINTE-AGATHE-DES-MONTS","J8C 2B8","DS Déplacement entre établissement"]
[100171,7401105,8000,100,"2561 CHEMIN DE LA LIEVRE SUD","MONT-LAURIER","J9L 3G3","AL Projet Opti-Route"]
[100171,7401104,1044,100,"757 DE LA MADONE","MONT-LAURIER","J9L 1T3","AL Dépl.usagers entre établis-Compilation"]
[100171,7401103,8000,100,"2561 CHEMIN DE LA LIEVRE SUD","MONT-LAURIER","J9L 3G3","AL SA-Dépl.usagers entre établis"]
[100171,7401101,1047,200,"1525 RUE L'ANNONCIATION NORD","RIVIERE-ROUGE","J0T 1T0","AL RR-Dépl.usagers entre établis"]
[100171,7401010,1053,400,"377 RUE PRINCIPALE","LACHUTE","J8H 1Y1","RL Déplacement des usagers entre les établissements"]
[100171,7395400,1060,400,"290 RUE MONTIGNY","SAINT-JEROME","J7Z 5T3","SJ INACTIF Transp usager dialyse RE 7395001"]
[100171,7350803,1060,400,"290 RUE MONTIGNY","SAINT-JEROME","J7Z 5T3","CJ Archives"]
[100171,7340676,1093,600,"520 BOUL. ARTHUR-SAUVE","SAINT-EUSTACHE","J7R 5B1","DM Ressources informationnelles"]
[100171,7340500,1070,700,"100, RUE DU CHANOINE-LIONEL-GROULX","SAINTE-THERESE","J7E 5E1","TB Informatique"]
[100171,7340450,1060,400,"290 RUE MONTIGNY","SAINT-JEROME","J7Z 5T3","SJ Projets TI - PGRI"]
[100171,7340205,1085,300,"234 RUE SAINT-VINCENT","SAINTE-AGATHE-DES-MONTS","J8C 2B8","DS PDRI"]
[100171,7340010,1053,400,"377 RUE PRINCIPALE","LACHUTE","J8H 1Y1","RL Informatique"]
[100171,7340000,1060,null,"290 RUE MONTIGNY","SAINT-JEROME","J7Z 5T3","CR Informatique"]
[100171,7320700,1051,800,"145 AVENUE DE LA PROVIDENCE","LACHUTE","J8H 4C7","AR Projet Argenteuil DST"]
[100171,7320676,1060,600,"290 RUE MONTIGNY","SAINT-JEROME","J7Z 5T3","DM Direction des services techniques - GBM"]
[100171,7320500,1070,700,"100, RUE DU CHANOINE-LIONEL-GROULX","SAINTE-THERESE","J7E 5E1","TB Adm. des services techniques"]
[100171,7320450,1060,400,"290 RUE MONTIGNY","SAINT-JEROME","J7Z 5T3","SJ Projet opération boule de neige"]
[100171,7320400,1060,400,"290 RUE MONTIGNY","SAINT-JEROME","J7Z 5T3","SJ Bureau de projet DST"]
[100171,7320200,1085,300,"234 RUE SAINT-VINCENT","SAINTE-AGATHE-DES-MONTS","J8C 2B8","DS D.S.T. & inf."]
[100171,7320101,1047,200,"1525 RUE L'ANNONCIATION NORD","RIVIERE-ROUGE","J0T 1T0","AL Projet Rivière-Rouge DST"]
[100171,7320050,1060,400,"290 RUE MONTIGNY","SAINT-JEROME","J7Z 5T3","CI Direction services techniques CISSS"]
[100171,7307804,1025,901,"104 RUE DU VERT-PRÉ","HUBERDEAU","J0T 1G0","CJ Approv. & services - Huberdeau"]
[100171,7307803,1036,901,"500 BOULEVARD DES LAURENTIDES SUITE 241","SAINT-JÉRÔME","J7Z 4M2","CJ Adm. financière DJ - Réception"]
[100171,7307802,1036,901,"500 BOULEVARD DES LAURENTIDES SUITE 241","SAINT-JÉRÔME","J7Z 4M2","CJ INACTIF Appro RE 7535090"]
[100171,7307700,1051,800,"145 AVENUE DE LA PROVIDENCE","LACHUTE","J8H 4C7","AR INACTIF Appro RE 7307041"]
[100171,7307500,1070,700,"100, RUE DU CHANOINE-LIONEL-GROULX","SAINTE-THERESE","J7E 5E1","TB INACTIF Appro RE 7307041"]
[100171,7307450,1060,400,"290 RUE MONTIGNY","SAINT-JEROME","J7Z 5T3","SJ Projet dialyse LG Roland volet appro"]
[100171,7307405,1060,400,"290 RUE MONTIGNY","SAINT-JEROME","J7Z 5T3","SJ Entreposage réception et distribution"]
[100171,7307400,1060,400,"290 RUE MONTIGNY","SAINT-JEROME","J7Z 5T3","SJ INACTIF Serv achats RE 7307031"]
[100171,7307200,1085,300,"234 RUE SAINT-VINCENT","SAINTE-AGATHE-DES-MONTS","J8C 2B8","DS INACTIF Appro RE 7307042"]
[100171,7306010,1053,400,"377 RUE PRINCIPALE","LACHUTE","J8H 1Y1","RL  Adm. financière et du personnel (non réparti)"]
[100171,7303000,1060,null,"290 RUE MONTIGNY","SAINT-JEROME","J7Z 5T3","CR Administration financière et du personnel"]
[100171,7303458,1060,400,"290 RUE MONTIGNY","SAINT-JEROME","J7Z 5T3","SJ Disponible travail de bureau"]
[100171,7304810,1036,901,"500 BOULEVARD DES LAURENTIDES SUITE 241","SAINT-JÉRÔME","J7Z 4M2","CJ Adm. serv. prof.-psych. & inf."]
[100171,7304801,1160,901,"500 boul. des Laurentides, suite 241","Saint-Jérôme","J7Z4M2","CJ Admin Serv Prof (régional)"]
[100171,7304500,1070,700,"100, RUE DU CHANOINE-LIONEL-GROULX","SAINTE-THERESE","J7E 5E1","TB INACTIF Adm. services professionnels"]
[100171,7304491,1060,400,"290 RUE MONTIGNY","SAINT-JEROME","J7Z 5T3","SJ Brancarderie centralisée"]
[100171,7304202,1085,300,"234 RUE SAINT-VINCENT","SAINTE-AGATHE-DES-MONTS","J8C 2B8","DS INACTIF CMDP"]
[100171,7304201,1085,300,"234 RUE SAINT-VINCENT","SAINTE-AGATHE-DES-MONTS","J8C 2B8","DS Gestionnaires DSPH"]
[100171,7304050,1060,400,"290 RUE MONTIGNY","SAINT-JEROME","J7Z 5T3","CI Direction services professionnels CISSS"]
[100171,7303684,1093,600,"520 BOUL. ARTHUR-SAUVE","SAINT-EUSTACHE","J7R 5B1","DM Comité paritaire SST"]
[100171,7303679,1093,600,"520 BOUL. ARTHUR-SAUVE","SAINT-EUSTACHE","J7R 5B1","DM Rémunération - avantages sociaux"]
[100171,7303678,1093,600,"520 BOUL. ARTHUR-SAUVE","SAINT-EUSTACHE","J7R 5B1","DM Développement organisationnel, des comp."]
[100171,7303677,1093,600,"520 BOUL. ARTHUR-SAUVE","SAINT-EUSTACHE","J7R 5B1","DM Dotation"]
[100171,7303503,1070,700,"100, RUE DU CHANOINE-LIONEL-GROULX","SAINTE-THERESE","J7E 5E1","TB Service de santé"]
[100171,7303502,1070,700,"100, RUE DU CHANOINE-LIONEL-GROULX","SAINTE-THERESE","J7E 5E1","TB  Adm. personnel - Liste rappel"]
[100171,7303501,1070,700,"100, RUE DU CHANOINE-LIONEL-GROULX","SAINTE-THERESE","J7E 5E1","TB Adm. personnel - Autres"]
[100171,7303500,1070,700,"100, RUE DU CHANOINE-LIONEL-GROULX","SAINTE-THERESE","J7E 5E1","TB Adm. personnel - Dotation"]
[100171,7303429,1060,400,"290 RUE MONTIGNY","SAINT-JEROME","J7Z 5T3","SJ Politique harcèlement"]
[100171,7303425,1060,400,"290 RUE MONTIGNY","SAINT-JEROME","J7Z 5T3","SJ Vacc influenza - personnel"]
[100171,7303404,1060,400,"290 RUE MONTIGNY","SAINT-JEROME","J7Z 5T3","SJ Service développement R.H."]
[100171,7303201,1085,300,"234 RUE SAINT-VINCENT","SAINTE-AGATHE-DES-MONTS","J8C 2B8","DS INACTIF RE 7303073 Gestion des remplacements"]
[100171,7303108,1044,100,"757 DE LA MADONE","MONT-LAURIER","J9L 1T3","AL Adm.pers.(Mobilisation et reconnaissance)"]
[100171,7303107,1047,200,"1525 RUE L'ANNONCIATION NORD","RIVIERE-ROUGE","J0T 1T0","AL Adm.pers.(SST-Agence/Vac.influenza)"]
[100171,7303106,1047,200,"1525 RUE L'ANNONCIATION NORD","RIVIERE-ROUGE","J0T 1T0","AL Adm.pers.(SST-Présence au travail)"]
[100171,7303105,8000,100,"2561 CHEMIN DE LA LIEVRE SUD","MONT-LAURIER","J9L 3G3","AL Adm.pers.(Relation de travail)"]
[100171,7303104,8000,100,"2561 CHEMIN DE LA LIEVRE SUD","MONT-LAURIER","J9L 3G3","AL Adm.pers-Dotation, Formation et Dév.Org."]
[100171,7303103,1047,200,"1525 RUE L'ANNONCIATION NORD","RIVIERE-ROUGE","J0T 1T0","AL INACTIF RE 7303077 Adm.personnel (SST)"]
[100171,7303102,8000,100,"2561 CHEMIN DE LA LIEVRE SUD","MONT-LAURIER","J9L 3G3","AL Centrale de remplacement, Av.sociaux et rémunération"]
[100171,7303011,1085,300,"234 RUE SAINT-VINCENT","SAINTE-AGATHE-DES-MONTS","J8C 2B8","CI Services RH Prévention Mieux-être"]
[100171,7303050,1060,400,"290 RUE MONTIGNY","SAINT-JEROME","J7Z 5T3","CI DRHCAJ"]
[100171,7302681,1093,600,"520 BOUL. ARTHUR-SAUVE","SAINT-EUSTACHE","J7R 5B1","DM Bureau de projets"]
[100171,7302679,1089,600,"1 PLACE DE LA GARE","SAINT-EUSTACHE","J7R 0B4","DM Paie"]
[100171,7302676,1089,600,"1 PLACE DE LA GARE","SAINT-EUSTACHE","J7R 0B4","DM Direction des ressources financières"]
[100171,7302675,1093,600,"520 BOUL. ARTHUR-SAUVE","SAINT-EUSTACHE","J7R 5B1","DM Budget - analyse financière"]
[100171,7302401,1060,400,"290 RUE MONTIGNY","SAINT-JEROME","J7Z 5T3","SJ Direction ressources financières"]
[100171,7302201,1085,300,"234 RUE SAINT-VINCENT","SAINTE-AGATHE-DES-MONTS","J8C 2B8","DS Planification budgétaire et performance"]
[100171,7302102,1047,200,"1525 RUE L'ANNONCIATION NORD","RIVIERE-ROUGE","J0T 1T0","AL Adm.financière (service)"]
[100171,7302101,1047,200,"1525 RUE L'ANNONCIATION NORD","RIVIERE-ROUGE","J0T 1T0","AL Adm.financière (direction)"]
[100171,7302050,1060,400,"290 RUE MONTIGNY","SAINT-JEROME","J7Z 5T3","CI Direction ressources financières CISSS"]
[100171,7301701,1051,800,"145 AVENUE DE LA PROVIDENCE","LACHUTE","J8H 4C7","AR Accès aux services et aux soins"]
[100171,8999679,1093,600,"520 BOUL. ARTHUR-SAUVE","SAINT-EUSTACHE","J7R 5B1","DM Comité des usagers"]
[100171,7301678,1093,600,"520 BOUL. ARTHUR-SAUVE","SAINT-EUSTACHE","J7R 5B1","DM CA - autres conseils"]
[100171,7301677,1093,600,"520 BOUL. ARTHUR-SAUVE","SAINT-EUSTACHE","J7R 5B1","DM Bénévoles"]
[100171,7301675,1093,600,"520 BOUL. ARTHUR-SAUVE","SAINT-EUSTACHE","J7R 5B1","DM Agrément"]
[100171,7301674,1093,600,"520 BOUL. ARTHUR-SAUVE","SAINT-EUSTACHE","J7R 5B1","DM Commissaire aux Plaintes"]
[100171,7301673,1093,600,"520 BOUL. ARTHUR-SAUVE","SAINT-EUSTACHE","J7R 5B1","DM Relations publiques - communications"]
[100171,7301670,1060,600,"290 RUE MONTIGNY","SAINT-JEROME","J7Z 5T3","DM Qualité"]
[100171,7301503,1070,700,"100, RUE DU CHANOINE-LIONEL-GROULX","SAINTE-THERESE","J7E 5E1","TB Bureau de projet et soutien à la transformation"]
[100171,7301502,1070,700,"100, RUE DU CHANOINE-LIONEL-GROULX","SAINTE-THERESE","J7E 5E1","TB Dir.perf.part.et santé publ."]
[100171,7301501,1070,700,"100, RUE DU CHANOINE-LIONEL-GROULX","SAINTE-THERESE","J7E 5E1","TB Communications"]
[100171,7301432,1060,400,"290 RUE MONTIGNY","SAINT-JEROME","J7Z 5T3","SJ Photo complexe admin"]
[100171,7301430,1060,400,"290 RUE MONTIGNY","SAINT-JEROME","J7Z 5T3","SJ Prog acc prof APTS"]
[100171,7301420,1060,400,"290 RUE MONTIGNY","SAINT-JEROME","J7Z 5T3","SJ Service des relations médias, relations publiques et à la"]
[100171,7301410,1060,400,"290 RUE MONTIGNY","SAINT-JEROME","J7Z 5T3","SJ Dir pratiques multi"]
[100171,7301405,1060,400,"290 RUE MONTIGNY","SAINT-JEROME","J7Z 5T3","SJ Service des bénévoles"]
[100171,7301403,1090,600,"111 RUE SAINT-LAURENT","SAINT-EUSTACHE","J7P 3Z5","SJ Éthique"]
[100171,7301402,1060,400,"290 RUE MONTIGNY","SAINT-JEROME","J7Z 5T3","SJ Comité éthique rech"]
[100171,7301209,1085,300,"234 RUE SAINT-VINCENT","SAINTE-AGATHE-DES-MONTS","J8C 2B8","DS Comité des usagers"]
[100171,7301203,1085,300,"234 RUE SAINT-VINCENT","SAINTE-AGATHE-DES-MONTS","J8C 2B8","DS Service de bénévolat"]
[100171,7301201,1085,300,"234 RUE SAINT-VINCENT","SAINTE-AGATHE-DES-MONTS","J8C 2B8","DS Service de communication"]
[100171,7301106,1047,200,"1525 RUE L'ANNONCIATION NORD","RIVIERE-ROUGE","J0T 1T0","AL D.Q.S - Dépenses pour processus d'agrément"]
[100171,7301104,1047,200,"1525 RUE L'ANNONCIATION NORD","RIVIERE-ROUGE","J0T 1T0","AL Commissaire local à la qualité des service"]
[100171,7301103,1047,200,"1525 RUE L'ANNONCIATION NORD","RIVIERE-ROUGE","J0T 1T0","AL Coordination du bénévolat"]
[100171,7301102,1047,200,"1525 RUE L'ANNONCIATION NORD","RIVIERE-ROUGE","J0T 1T0","AL Direction à la qualité des services"]
[100171,7301093,1085,300,"234 RUE SAINT-VINCENT","SAINTE-AGATHE-DES-MONTS","J8C 2B8","CI Sécurité civile"]
[100171,7301091,1060,400,"290 RUE MONTIGNY","SAINT-JEROME","J7Z 5T3","CI Langue anglaise adaptation services"]
[100171,7202001,1085,300,"234 RUE SAINT-VINCENT","SAINTE-AGATHE-DES-MONTS","J8C 2B8","CI Direction enseignement Universitaire CISSS"]
[100171,7301070,1160,400,"500 boul. des Laurentides, suite 241","Saint-Jérôme","J7Z4M2","CI Direction performance et qualité CISSS"]
[100171,7301065,1085,300,"234 RUE SAINT-VINCENT","SAINTE-AGATHE-DES-MONTS","J8C 2B8","CI Direction logistique CISSS"]
[100171,5900001,1060,400,"290 RUE MONTIGNY","SAINT-JEROME","J7Z 5T3","CI DPJ"]
[100171,7301055,1057,400,"1000 RUE LABELLE","SAINT-JEROME","J7Z 5N6","CI DGA soutien admin. performance  logistique CISSS"]
[100171,7301052,1060,400,"290 RUE MONTIGNY","SAINT-JEROME","J7Z 5T3","CI Commissariat aux plaintes et à la qualité"]
[100171,7301010,1053,400,"377 RUE PRINCIPALE","LACHUTE","J8H 1Y1","RL Direction générale"]
[100171,7203671,1093,600,"520 BOUL. ARTHUR-SAUVE","SAINT-EUSTACHE","J7R 5B1","DM Bibliothèque"]
[100171,7203101,1047,200,"1525 RUE L'ANNONCIATION NORD","RIVIERE-ROUGE","J0T 1T0","AL RR-Bibliothèque"]
[100171,7202606,1093,600,"520 BOUL. ARTHUR-SAUVE","SAINT-EUSTACHE","J7R 5B1","DM Supervision - stage infirmier"]
[100171,7202602,1093,600,"520 BOUL. ARTHUR-SAUVE","SAINT-EUSTACHE","J7R 5B1","DM Médecin résident ACD"]
[100171,7202410,1060,400,"290 RUE MONTIGNY","SAINT-JEROME","J7Z 5T3","SJ Stages en soins infirmiers"]
[100171,7202406,1060,400,"290 RUE MONTIGNY","SAINT-JEROME","J7Z 5T3","SJ Inst clin labo"]
[100171,7202400,1060,400,"290 RUE MONTIGNY","SAINT-JEROME","J7Z 5T3","SJ Inst clin radio"]
[100171,7202200,1085,300,"234 RUE SAINT-VINCENT","SAINTE-AGATHE-DES-MONTS","J8C 2B8","DS PFMD (Coordination et soutien stages)"]
[100171,7202102,1044,100,"757 DE LA MADONE","MONT-LAURIER","J9L 1T3","AL PFMD (Coordination et soutien stages - UMF)"]
[100171,7201605,1093,600,"520 BOUL. ARTHUR-SAUVE","SAINT-EUSTACHE","J7R 5B1","DM Programme d'intéressement aux étudiants"]
[100171,7201200,1085,300,"234 RUE SAINT-VINCENT","SAINTE-AGATHE-DES-MONTS","J8C 2B8","DS Formation infirmière auxilaire"]
[100171,7180941,1085,300,"234 RUE SAINT-VINCENT","SAINTE-AGATHE-DES-MONTS","J8C 2B8","FL PROG.-READ STE-AGATHE/PEH"]
[100171,7180921,1060,400,"290 RUE MONTIGNY","SAINT-JEROME","J7Z 5T3","FL PROG.DI TSA 7-21 CTR"]
[100171,7180900,1127,900,"XXX","XXX","XXX XXX","FL SOUT.PROG.-DQPPO"]
[100171,7163651,1070,700,"100, RUE DU CHANOINE-LIONEL-GROULX","SAINTE-THERESE","J7E 5E1","DM Prêt d'équipement aux usagers"]
[100171,7163500,1070,700,"100, RUE DU CHANOINE-LIONEL-GROULX","SAINTE-THERESE","J7E 5E1","TB Ergo/Physio - Prêt d'équip."]
[100171,7163400,1060,400,"290 RUE MONTIGNY","SAINT-JEROME","J7Z 5T3","SJ Prêt d'équipement"]
[100171,7163301,1073,200,"694 CHEMIN AVILA","PIEDMONT","J0R1R3","PH PRÊT D'ÉQUIPEMENTS À DOMICILE"]
[100171,7163200,1085,300,"234 RUE SAINT-VINCENT","SAINTE-AGATHE-DES-MONTS","J8C 2B8","DS Pret Équipements Usagers SAD"]
[100171,7163101,1044,100,"757 DE LA MADONE","MONT-LAURIER","J9L 1T3","AL Prêt équipement aux usagers SAD"]
[100171,7162700,1051,800,"145 AVENUE DE LA PROVIDENCE","LACHUTE","J8H 4C7","AR Physiothérapie"]
[100171,7162654,1070,700,"100, RUE DU CHANOINE-LIONEL-GROULX","SAINTE-THERESE","J7E 5E1","DM Physiothérapie RI-RPA"]
[100171,7162652,1070,700,"100, RUE DU CHANOINE-LIONEL-GROULX","SAINTE-THERESE","J7E 5E1","DM Physiothérapie à domicile"]
[100171,7162500,1070,700,"100, RUE DU CHANOINE-LIONEL-GROULX","SAINTE-THERESE","J7E 5E1","TB Physiothérapie à domicile"]
[100171,7162405,1060,400,"290 RUE MONTIGNY","SAINT-JEROME","J7Z 5T3","SJ Physiothérapie RI-RPA"]
[100171,7162400,1060,400,"290 RUE MONTIGNY","SAINT-JEROME","J7Z 5T3","SJ Physiothérapie à domicile"]
[100171,7162301,1073,200,"694 CHEMIN AVILA","PIEDMONT","J0R1R3","PH PHYSIOTHERAPIE À DOMICILE"]
[100171,7162200,1085,300,"234 RUE SAINT-VINCENT","SAINTE-AGATHE-DES-MONTS","J8C 2B8","DS Physiothréapie - SAD"]
[100171,7162101,8000,100,"2561 CHEMIN DE LA LIEVRE SUD","MONT-LAURIER","J9L 3G3","AL Physiothérapie SAD"]
[100171,7161700,1051,800,"145 AVENUE DE LA PROVIDENCE","LACHUTE","J8H 4C7","AR Ergothérapie"]
[100171,7161656,1070,700,"100, RUE DU CHANOINE-LIONEL-GROULX","SAINTE-THERESE","J7E 5E1","DM Ergothérapie RI-RPA"]
[100171,7161500,1070,700,"100, RUE DU CHANOINE-LIONEL-GROULX","SAINTE-THERESE","J7E 5E1","TB Ergothérapie à domicile"]
[100171,7161420,1060,400,"290 RUE MONTIGNY","SAINT-JEROME","J7Z 5T3","SJ Ergo à domicile -18 ans"]
[100171,7161405,1060,400,"290 RUE MONTIGNY","SAINT-JEROME","J7Z 5T3","SJ Ergothérapie RI-RPA"]
[100171,7161400,1060,400,"290 RUE MONTIGNY","SAINT-JEROME","J7Z 5T3","SJ Ergothérapie à domicile"]
[100171,7161301,1073,200,"694 CHEMIN AVILA","PIEDMONT","J0R1R3","PH ERGOTHERAPIE À DOMICILE"]
[100171,7161200,1085,300,"234 RUE SAINT-VINCENT","SAINTE-AGATHE-DES-MONTS","J8C 2B8","DS Ergothérapie - SAD"]
[100171,7161101,8000,100,"2561 CHEMIN DE LA LIEVRE SUD","MONT-LAURIER","J9L 3G3","AL Ergothérapie SAD-ML"]
[100171,7158090,1070,700,"100, RUE DU CHANOINE-LIONEL-GROULX","SAINTE-THERESE","J7E 5E1","CI Qualité des milieux de vie"]
[100171,7157500,1070,700,"100, RUE DU CHANOINE-LIONEL-GROULX","SAINTE-THERESE","J7E 5E1","TB Gest. & Sout.-Santé publique"]
[100171,7157207,1085,300,"234 RUE SAINT-VINCENT","SAINTE-AGATHE-DES-MONTS","J8C 2B8","DS Vaccination massive"]
[100171,4120201,1085,300,"234 RUE SAINT-VINCENT","SAINTE-AGATHE-DES-MONTS","J8C 2B8","DS Défi 0-5-30"]
[100171,4132201,1085,300,"234 RUE SAINT-VINCENT","SAINTE-AGATHE-DES-MONTS","J8C 2B8","DS Vaccination anti-grippale"]
[100171,7157204,1085,300,"234 RUE SAINT-VINCENT","SAINTE-AGATHE-DES-MONTS","J8C 2B8","DS PCP"]
[100171,7157203,1085,300,"234 RUE SAINT-VINCENT","SAINTE-AGATHE-DES-MONTS","J8C 2B8","DS Programme Sentinelle"]
[100171,7157202,1085,300,"234 RUE SAINT-VINCENT","SAINTE-AGATHE-DES-MONTS","J8C 2B8","DS Prévention et protection"]
[100171,7157201,1085,300,"234 RUE SAINT-VINCENT","SAINTE-AGATHE-DES-MONTS","J8C 2B8","DS Prévention - tabagisme"]
[100171,7157200,1085,300,"234 RUE SAINT-VINCENT","SAINTE-AGATHE-DES-MONTS","J8C 2B8","DS Gestion programme Santé Publique"]
[100171,7157090,1044,100,"757 DE LA MADONE","MONT-LAURIER","J9L 1T3","CI Soutien programmes MSSS (GAV)"]
[100171,7154500,1070,700,"100, RUE DU CHANOINE-LIONEL-GROULX","SAINTE-THERESE","J7E 5E1","TB Gestion & soutien centrale IS"]
[100171,7153032,1060,400,"290 RUE MONTIGNY","SAINT-JEROME","J7Z 5T3","BC DITSADP SFB"]
[100171,7153000,1060,null,"290 RUE MONTIGNY","SAINT-JEROME","J7Z 5T3","CR  Gestion et soutien aux programmes"]
[100171,7152695,1070,700,"100, RUE DU CHANOINE-LIONEL-GROULX","SAINTE-THERESE","J7E 5E1","DM Gestion, soutien autres programmes DCPA"]
[100171,7152686,1070,700,"100, RUE DU CHANOINE-LIONEL-GROULX","SAINTE-THERESE","J7E 5E1","DM Gestion, soutien autres programmes  DCPLSM"]
[100171,7152509,1070,700,"100, RUE DU CHANOINE-LIONEL-GROULX","SAINTE-THERESE","J7E 5E1","TB Gestion et soutien-Prélèvem."]
[100171,7152508,1070,700,"100, RUE DU CHANOINE-LIONEL-GROULX","SAINTE-THERESE","J7E 5E1","TB Gest & sout jeun (PPE-CLSC)"]
[100171,7152507,1070,700,"100, RUE DU CHANOINE-LIONEL-GROULX","SAINTE-THERESE","J7E 5E1","TB EV Liste de rappel secrétariat"]
[100171,7152506,1070,700,"100, RUE DU CHANOINE-LIONEL-GROULX","SAINTE-THERESE","J7E 5E1","TB Gestion et soutien-D.Q.P.P.C."]
[100171,7152505,1070,700,"100, RUE DU CHANOINE-LIONEL-GROULX","SAINTE-THERESE","J7E 5E1","TB Projet Accueil clinique"]
[100171,7152504,1070,700,"100, RUE DU CHANOINE-LIONEL-GROULX","SAINTE-THERESE","J7E 5E1","TB estion & soutien-D.S.A.S.G."]
[100171,7152503,1070,700,"100, RUE DU CHANOINE-LIONEL-GROULX","SAINTE-THERESE","J7E 5E1","TB Projet Mentorat"]
[100171,7152501,1070,700,"100, RUE DU CHANOINE-LIONEL-GROULX","SAINTE-THERESE","J7E 5E1","TB Gest./prog. Jeunes 0-18"]
[100171,7152500,1070,700,"100, RUE DU CHANOINE-LIONEL-GROULX","SAINTE-THERESE","J7E 5E1","TB Projet - Trajectoire"]
[100171,7152451,1060,400,"290 RUE MONTIGNY","SAINT-JEROME","J7Z 5T3","SJ Projet org travail TGC"]
[100171,7152450,1060,400,"290 RUE MONTIGNY","SAINT-JEROME","J7Z 5T3","SJ Projet d'optimisation S.M."]
[100171,7152405,1060,400,"290 RUE MONTIGNY","SAINT-JEROME","J7Z 5T3","SJ Direction programme S.M."]
[100171,7152402,1060,400,"290 RUE MONTIGNY","SAINT-JEROME","J7Z 5T3","SJ Gest & sout jeun (Pédiatrie)"]
[100171,7152401,1060,400,"290 RUE MONTIGNY","SAINT-JEROME","J7Z 5T3","SJ Gest & sout jeun (0-18 ans CLSC)"]
[100171,7152212,1085,300,"234 RUE SAINT-VINCENT","SAINTE-AGATHE-DES-MONTS","J8C 2B8","DS Gest & sout jeun (PPE-CLSC)"]
[100171,7152211,1085,300,"234 RUE SAINT-VINCENT","SAINTE-AGATHE-DES-MONTS","J8C 2B8","DS Pertes Cognitives"]
[100171,7152210,1085,300,"234 RUE SAINT-VINCENT","SAINTE-AGATHE-DES-MONTS","J8C 2B8","DS Programmes réseaux"]
[100171,7152209,1085,300,"234 RUE SAINT-VINCENT","SAINTE-AGATHE-DES-MONTS","J8C 2B8","DS Projets spéciaux SAPA"]
[100171,7152208,1085,300,"234 RUE SAINT-VINCENT","SAINTE-AGATHE-DES-MONTS","J8C 2B8","DS Gest./prog. Coord./clin. SAD"]
[100171,7152204,1085,300,"234 RUE SAINT-VINCENT","SAINTE-AGATHE-DES-MONTS","J8C 2B8","DS Gest & sout jeun (0-18 ans-CLSC)"]
[100171,7152203,1085,300,"234 RUE SAINT-VINCENT","SAINTE-AGATHE-DES-MONTS","J8C 2B8","DS Gestion prog. héb. - Labelle"]
[100171,7152202,1085,300,"234 RUE SAINT-VINCENT","SAINTE-AGATHE-DES-MONTS","J8C 2B8","DS Gestion prog. héb. St-Jovite"]
[100171,7152201,1085,300,"234 RUE SAINT-VINCENT","SAINTE-AGATHE-DES-MONTS","J8C 2B8","DS Gestion programmes - PAPA"]
[100171,7152200,1085,300,"234 RUE SAINT-VINCENT","SAINTE-AGATHE-DES-MONTS","J8C 2B8","DS INACTIF Gestion progr. santé physique ACD"]
[100171,7152112,1044,100,"757 DE LA MADONE","MONT-LAURIER","J9L 1T3","AL SA - POT en CHSLD"]
[100171,7152111,1047,200,"1525 RUE L'ANNONCIATION NORD","RIVIERE-ROUGE","J0T 1T0","AL RR-POT 5e en CHSLD"]
[100171,7152110,1047,200,"1525 RUE L'ANNONCIATION NORD","RIVIERE-ROUGE","J0T 1T0","AL RR-POT 6e en CHSLD"]
[100171,7152107,8000,100,"2561 CHEMIN DE LA LIEVRE SUD","MONT-LAURIER","J9L 3G3","AL Gestion-soutien progr.- SAPA"]
[100171,7152106,8000,100,"2561 CHEMIN DE LA LIEVRE SUD","MONT-LAURIER","J9L 3G3","AL Gestion-soutien progr.-P.S.P."]
[100171,7152105,1047,200,"1525 RUE L'ANNONCIATION NORD","RIVIERE-ROUGE","J0T 1T0","AL RR-Gest.-sout.progr.-PSM (Chef.serv.ext. RR)"]
[100171,7152104,1047,200,"1525 RUE L'ANNONCIATION NORD","RIVIERE-ROUGE","J0T 1T0","AL RR-Gestion-soutien progr.-PSM (Direction)"]
[100171,7152103,8000,100,"2561 CHEMIN DE LA LIEVRE SUD","MONT-LAURIER","J9L 3G3","AL CL Gestion soutien progr Dir.Serv Comm"]
[100171,7152102,8000,100,"2561 CHEMIN DE LA LIEVRE SUD","MONT-LAURIER","J9L 3G3","AL CL-Gestion-soutien progr-SC"]
[100171,7152101,8000,100,"2561 CHEMIN DE LA LIEVRE SUD","MONT-LAURIER","J9L 3G3","AL Gest & sout jeun (0-18 ans-CLSC)"]
[100171,7152065,1060,400,"290 RUE MONTIGNY","SAINT-JEROME","J7Z 5T3","CI Direction programme DI-TSA-DP CISSS"]
[100171,7152060,1060,400,"290 RUE MONTIGNY","SAINT-JEROME","J7Z 5T3","CI Direction programme jeunesse CISSS"]
[100171,7152050,1060,400,"290 RUE MONTIGNY","SAINT-JEROME","J7Z 5T3","CI Direction services multidisciplinaires CISSS"]
[100171,7151700,1051,800,"145 AVENUE DE LA PROVIDENCE","LACHUTE","J8H 4C7","AR Gestion programme SAD"]
[100171,7151694,1093,600,"520 BOUL. ARTHUR-SAUVE","SAINT-EUSTACHE","J7R 5B1","DM Projets spéciaux PALV"]
[100171,7151653,1070,700,"100, RUE DU CHANOINE-LIONEL-GROULX","SAINTE-THERESE","J7E 5E1","DM Soutien des services à domicile"]
[100171,7151652,1070,700,"100, RUE DU CHANOINE-LIONEL-GROULX","SAINTE-THERESE","J7E 5E1","Gestion, soutien des services à domicile SUD"]
[100171,7151500,1070,700,"100, RUE DU CHANOINE-LIONEL-GROULX","SAINTE-THERESE","J7E 5E1","TB Gestion et soutien SAD"]
[100171,7151450,1098,400,"290 RUE DE MONTIGNY","SAINT-JEROME","J7Z 5T3","SJ Amélioration alimentation en CHSLD"]
[100171,7151402,1061,400,"430 RUE LABELLE","SAINT-JEROME","J7Z 5L3","SJ Gest & soutien serv dom"]
[100171,7151401,1060,400,"290 RUE MONTIGNY","SAINT-JEROME","J7Z 5T3","SJ Direction prog PPA et MAD"]
[100171,7151301,1060,400,"290 RUE MONTIGNY","SAINT-JEROME","J7Z 5T3","PH GESTION ET SOUTIEN - SAD"]
[100171,7151200,1116,304,"21 RUE GODON OUEST","STE-AGATHE-DES-MONTS","J8C 1E5","DS Gestion programmes - SAD"]
[100171,7151101,8000,100,"2561 CHEMIN DE LA LIEVRE SUD","MONT-LAURIER","J9L 3G3","AL Gestion-soutien progr-SAD"]
[100171,7151050,1060,400,"290 RUE MONTIGNY","SAINT-JEROME","J7Z 5T3","CI Direction programme SAPA CISSS"]
[100171,7120202,1085,300,"234 RUE SAINT-VINCENT","SAINTE-AGATHE-DES-MONTS","J8C 2B8","DS Service SDA"]
[100171,7120201,1085,300,"234 RUE SAINT-VINCENT","SAINTE-AGATHE-DES-MONTS","J8C 2B8","DS Intervention communautaire - Autres"]
[100171,7120701,1051,800,"145 AVENUE DE LA PROVIDENCE","LACHUTE","J8H 4C7","AR Intervention communautaire autres"]
[100171,7120700,1051,800,"145 AVENUE DE LA PROVIDENCE","LACHUTE","J8H 4C7","AR Intervention communautaire MAD"]
[100171,7120501,1070,700,"100, RUE DU CHANOINE-LIONEL-GROULX","SAINTE-THERESE","J7E 5E1","TB Interv. comm. SAD - Autres"]
[100171,7120001,1070,700,"100, RUE DU CHANOINE-LIONEL-GROULX","SAINTE-THERESE","J7E 5E1","CI Relations/org. commun. MAD"]
[100171,7112700,1051,800,"145 AVENUE DE LA PROVIDENCE","LACHUTE","J8H 4C7","AR Nutrition - autres"]
[100171,7112651,1093,600,"520 BOUL. ARTHUR-SAUVE","SAINT-EUSTACHE","J7R 5B1","DM Nutrition - FEJ"]
[100171,7112500,1070,700,"100, RUE DU CHANOINE-LIONEL-GROULX","SAINTE-THERESE","J7E 5E1","TB Nutrition - Autres (71102)"]
[100171,7112200,1085,300,"234 RUE SAINT-VINCENT","SAINTE-AGATHE-DES-MONTS","J8C 2B8","DS Nutrition FEJ"]
[100171,7112102,8000,100,"2561 CHEMIN DE LA LIEVRE SUD","MONT-LAURIER","J9L 3G3","AL Nutrition - FEJ"]
[100171,7112101,8000,100,"2561 CHEMIN DE LA LIEVRE SUD","MONT-LAURIER","J9L 3G3","AL CL-Nutrition-Diabète SC (Sauf OLO)"]
[100171,7111700,1051,800,"145 AVENUE DE LA PROVIDENCE","LACHUTE","J8H 4C7","AR Nutrition SAD"]
[100171,7111651,1070,700,"100, RUE DU CHANOINE-LIONEL-GROULX","SAINTE-THERESE","J7E 5E1","DM Nutrition à domicile"]
[100171,7111500,1070,700,"100, RUE DU CHANOINE-LIONEL-GROULX","SAINTE-THERESE","J7E 5E1","TB Nutrition à domicile"]
[100171,7111400,1060,400,"290 RUE MONTIGNY","SAINT-JEROME","J7Z 5T3","SJ Nutrition à domicile"]
[100171,7111300,1073,200,"694 CHEMIN AVILA","PIEDMONT","J0R1R3","PH NUTRITION À DOMICILE"]
[100171,7111101,8000,100,"2561 CHEMIN DE LA LIEVRE SUD","MONT-LAURIER","J9L 3G3","AL CL-Nutrition SAD (Sauf OLO)"]
[100171,7108700,1051,800,"145 AVENUE DE LA PROVIDENCE","LACHUTE","J8H 4C7","AR Adaptation soutien à la personne"]
[100171,7108501,1070,700,"100, RUE DU CHANOINE-LIONEL-GROULX","SAINTE-THERESE","J7E 5E1","TB Équipe DI-TED - Serv.courants"]
[100171,7108500,1070,700,"100, RUE DU CHANOINE-LIONEL-GROULX","SAINTE-THERESE","J7E 5E1","TB INACTIF RE 6561002 Équipe DI-TED - CDP"]
[100171,7108420,1060,400,"290 RUE MONTIGNY","SAINT-JEROME","J7Z 5T3","SJ Horizon soleil -18 ans DP"]
[100171,7108200,1085,300,"234 RUE SAINT-VINCENT","SAINTE-AGATHE-DES-MONTS","J8C 2B8","DS Services psychosociaux DP"]
[100171,7108101,1044,100,"757 DE LA MADONE","MONT-LAURIER","J9L 1T3","AL Adapt.Soutien Pers.Fam - D.Phys - SC"]
[100171,7101700,1051,800,"145 AVENUE DE LA PROVIDENCE","LACHUTE","J8H 4C7","AR Services aux usagers milieu naturel- DI/TED"]
[100171,7101400,1060,400,"290 RUE MONTIGNY","SAINT-JEROME","J7Z 5T3","SJ Services sociaux DI-TED"]
[100171,7101201,1085,300,"234 RUE SAINT-VINCENT","SAINTE-AGATHE-DES-MONTS","J8C 2B8","DS Services d'accès et coord. DI/TED/DP"]
[100171,7101200,1085,300,"234 RUE SAINT-VINCENT","SAINTE-AGATHE-DES-MONTS","J8C 2B8","DS Services psychosociaux DI/TED"]
[100171,7101101,1044,100,"757 DE LA MADONE","MONT-LAURIER","J9L 1T3","AL Adapt.Soutien Pers.Fam - DI-TED - SC"]
[100171,7090701,1051,800,"145 AVENUE DE LA PROVIDENCE","LACHUTE","J8H 4C7","AR Clinique diabète"]
[100171,7090700,1051,800,"145 AVENUE DE LA PROVIDENCE","LACHUTE","J8H 4C7","AR Médecine de jour"]
[100171,7090627,1093,600,"520 BOUL. ARTHUR-SAUVE","SAINT-EUSTACHE","J7R 5B1","DM Clinique MPOC - activités respiratoires"]
[100171,7090626,1093,600,"520 BOUL. ARTHUR-SAUVE","SAINT-EUSTACHE","J7R 5B1","DM Médecine de jour Cardio."]
[100171,7090624,1093,600,"520 BOUL. ARTHUR-SAUVE","SAINT-EUSTACHE","J7R 5B1","DM Médecine de jour pharmacie"]
[100171,7090622,1093,600,"520 BOUL. ARTHUR-SAUVE","SAINT-EUSTACHE","J7R 5B1","DM Médecine de jour  Clinique pré-admission"]
[100171,7090620,1093,600,"520 BOUL. ARTHUR-SAUVE","SAINT-EUSTACHE","J7R 5B1","DM Médecine de jour"]
[100171,7090420,1060,400,"290 RUE MONTIGNY","SAINT-JEROME","J7Z 5T3","SJ Méd jour pédiatrique"]
[100171,7090403,1060,400,"290 RUE MONTIGNY","SAINT-JEROME","J7Z 5T3","SJ INACTIF RE 6302414 CAMI - Médecine de jour"]
[100171,7090402,1060,400,"290 RUE MONTIGNY","SAINT-JEROME","J7Z 5T3","SJ Services de pré-dialyse"]
[100171,7090401,1060,400,"290 RUE MONTIGNY","SAINT-JEROME","J7Z 5T3","SJ Pré-admission chir"]
[100171,7090400,1060,400,"290 RUE MONTIGNY","SAINT-JEROME","J7Z 5T3","SJ Médecine de jour"]
[100171,7090200,1085,300,"234 RUE SAINT-VINCENT","SAINTE-AGATHE-DES-MONTS","J8C 2B8","DS Médecine de jour"]
[100171,7090101,8000,100,"2561 CHEMIN DE LA LIEVRE SUD","MONT-LAURIER","J9L 3G3","AL ML-Médecine de jour"]
[100171,7083700,1051,800,"145 AVENUE DE LA PROVIDENCE","LACHUTE","J8H 4C7","AR Répit santé mentale"]
[100171,7083651,1070,700,"100, RUE DU CHANOINE-LIONEL-GROULX","SAINTE-THERESE","J7E 5E1","DM Soutien aux familles TED"]
[100171,7083500,1070,700,"100, RUE DU CHANOINE-LIONEL-GROULX","SAINTE-THERESE","J7E 5E1","TB Sout. fam. de pers. ayant TED"]
[100171,7083400,1060,400,"290 RUE MONTIGNY","SAINT-JEROME","J7Z 5T3","SJ Soutien aux fam / TED"]
[100171,7083301,1075,201,"150 RUE PRINCIPALE","SAINT-SAUVEUR","J0R 1R6","PH DIMOS TED"]
[100171,7083200,1085,300,"234 RUE SAINT-VINCENT","SAINTE-AGATHE-DES-MONTS","J8C 2B8","DS SAF personne ayant TED"]
[100171,7082700,1051,800,"145 AVENUE DE LA PROVIDENCE","LACHUTE","J8H 4C7","AR Déficience intellectuelle-allocations"]
[100171,7082651,1070,700,"100, RUE DU CHANOINE-LIONEL-GROULX","SAINTE-THERESE","J7E 5E1","DM Soutien aux familles DI"]
[100171,7082500,1070,700,"100, RUE DU CHANOINE-LIONEL-GROULX","SAINTE-THERESE","J7E 5E1","TB Sout. fam. pers. ayant une DI"]
[100171,7082400,1060,400,"290 RUE MONTIGNY","SAINT-JEROME","J7Z 5T3","SJ Soutien fam / Déf intellec"]
[100171,7082301,1075,201,"150 RUE PRINCIPALE","SAINT-SAUVEUR","J0R 1R6","PH DIMOS DÉFICIENCE INTELLECTUELLE."]
[100171,7082201,1085,300,"234 RUE SAINT-VINCENT","SAINTE-AGATHE-DES-MONTS","J8C 2B8","DS Soutien à la famille déf. Intel."]
[100171,7082200,1085,300,"234 RUE SAINT-VINCENT","SAINTE-AGATHE-DES-MONTS","J8C 2B8","DS SAF déficience intellectuelle"]
[100171,7082102,1044,100,"757 DE LA MADONE","MONT-LAURIER","J9L 1T3","AL CL - Soutien aux familles pers. Santé mentale"]
[100171,7081700,1051,800,"145 AVENUE DE LA PROVIDENCE","LACHUTE","J8H 4C7","AR Déficience physique-allocation"]
[100171,7081651,1070,700,"100, RUE DU CHANOINE-LIONEL-GROULX","SAINTE-THERESE","J7E 5E1","DM Soutien aux familles DP"]
[100171,7081500,1070,700,"100, RUE DU CHANOINE-LIONEL-GROULX","SAINTE-THERESE","J7E 5E1","TB Sout. fam. pers. ayant une DP"]
[100171,7081400,1060,400,"290 RUE MONTIGNY","SAINT-JEROME","J7Z 5T3","SJ Soutien fam / Déf phys"]
[100171,7081200,1085,300,"234 RUE SAINT-VINCENT","SAINTE-AGATHE-DES-MONTS","J8C 2B8","DS Dimos - déf. physique"]
[100171,7060602,1060,600,"290 RUE MONTIGNY","SAINT-JEROME","J7Z 5T3","DM Hémato-oncologie"]
[100171,7061400,1060,400,"290 RUE MONTIGNY","SAINT-JEROME","J7Z 5T3","SJ Services externes hémato-oncologie"]
[100171,7060200,1085,300,"234 RUE SAINT-VINCENT","SAINTE-AGATHE-DES-MONTS","J8C 2B8","DS Hémato-oncologie"]
[100171,7060102,8000,100,"2561 CHEMIN DE LA LIEVRE SUD","MONT-LAURIER","J9L 3G3","AL ML-Hémato-oncologie"]
[100171,7060101,1047,200,"1525 RUE L'ANNONCIATION NORD","RIVIERE-ROUGE","J0T 1T0","AL RR-Hémato-oncologie"]
[100171,7033200,1085,300,"234 RUE SAINT-VINCENT","SAINTE-AGATHE-DES-MONTS","J8C 2B8","DS Integration Emploi - Santé Mentale"]
[100171,7033101,1047,200,"1525 RUE L'ANNONCIATION NORD","RIVIERE-ROUGE","J0T 1T0","AL RR-Intégration emploi-SM"]
[100171,7025941,1085,300,"234 RUE SAINT-VINCENT","SAINTE-AGATHE-DES-MONTS","J8C 2B8","FL PL.TRAV.-DITSA 22+SA"]
[100171,7023200,1085,300,"234 RUE SAINT-VINCENT","SAINTE-AGATHE-DES-MONTS","J8C 2B8","DS Support stage mil.trav.-Santé mentale"]
[100171,7023102,1047,200,"1525 RUE L'ANNONCIATION NORD","RIVIERE-ROUGE","J0T 1T0","AL RR-Stages travail-S.Mentale-ML"]
[100171,7023101,1047,200,"1525 RUE L'ANNONCIATION NORD","RIVIERE-ROUGE","J0T 1T0","AL RR-Stages travail-S.Mentale-LA"]
[100171,7120651,1070,700,"100, RUE DU CHANOINE-LIONEL-GROULX","SAINTE-THERESE","J7E 5E1","DM Intervention communautaire SAD"]
[100171,7013200,1085,300,"234 RUE SAINT-VINCENT","SAINTE-AGATHE-DES-MONTS","J8C 2B8","DS Intégration sociaux profes. S. mentale"]
[100171,7013102,1047,200,"1525 RUE L'ANNONCIATION NORD","RIVIERE-ROUGE","J0T 1T0","AL RR-C.Jour SM - Adultes -LD"]
[100171,7013101,1047,200,"1525 RUE L'ANNONCIATION NORD","RIVIERE-ROUGE","J0T 1T0","AL RR-Atelier travail-S.M.-LA"]
[100171,7001949,1047,900,"1525 RUE L'ANNONCIATION NORD","RIVIERE-ROUGE","J0T 1T0","FL INT.COM-RIVIÈRE-ROUGE"]
[100171,7001941,1085,300,"234 RUE SAINT-VINCENT","SAINTE-AGATHE-DES-MONTS","J8C 2B8","FL INT.COM-DITSA 22+ SA"]
[100171,7001933,1093,600,"520 BOUL. ARTHUR-SAUVE","SAINT-EUSTACHE","J7R 5B1","FL INT.COM-DITSA 22+ DM"]
[100171,6960229,1085,300,"234 RUE SAINT-VINCENT","SAINTE-AGATHE-DES-MONTS","J8C 2B8","DS Projet Proches aidants"]
[100171,6960203,1085,300,"234 RUE SAINT-VINCENT","SAINTE-AGATHE-DES-MONTS","J8C 2B8","DS Centre de services externes Labelle"]
[100171,6960202,1047,200,"1525 RUE L'ANNONCIATION NORD","RIVIERE-ROUGE","J0T 1T0","DS Centre de services externes Tremblant"]
[100171,6960201,1085,300,"234 RUE SAINT-VINCENT","SAINTE-AGATHE-DES-MONTS","J8C 2B8","DS Centre de jour Ste-Agathe"]
[100171,6960700,1051,800,"145 AVENUE DE LA PROVIDENCE","LACHUTE","J8H 4C7","AR Centre de jour"]
[100171,6960642,1093,600,"520 BOUL. ARTHUR-SAUVE","SAINT-EUSTACHE","J7R 5B1","DM Centre de jour - PPA - Transport"]
[100171,6960641,1070,700,"100, RUE DU CHANOINE-LIONEL-GROULX","SAINTE-THERESE","J7E 5E1","DM Centre de jour PPA"]
[100171,6960500,1070,700,"100, RUE DU CHANOINE-LIONEL-GROULX","SAINTE-THERESE","J7E 5E1","TB Centre de jour - PAPA"]
[100171,6960301,1074,200,"707 BOULEVARD DE SAINTE-ADÈLE","SAINTE-ADÈLE","J8B 2N1","PH CENTRE DE JOUR"]
[100171,6960102,1044,100,"757 DE LA MADONE","MONT-LAURIER","J9L 1T3","AL Centre de jour SAPA (Réadaptation)"]
[100171,6960101,8000,100,"2561 CHEMIN DE LA LIEVRE SUD","MONT-LAURIER","J9L 3G3","ALA Centre de jour SAPA"]
[100171,6900400,1060,400,"290 RUE MONTIGNY","SAINT-JEROME","J7Z 5T3","SJ Projet rég trauma crânio cérébral"]
[100171,6890700,1051,800,"145 AVENUE DE LA PROVIDENCE","LACHUTE","J8H 4C7","AR Activités dirigées"]
[100171,6890642,1070,700,"100, RUE DU CHANOINE-LIONEL-GROULX","SAINTE-THERESE","J7E 5E1","DM Animation, loisirs"]
[100171,6890500,1070,700,"100, RUE DU CHANOINE-LIONEL-GROULX","SAINTE-THERESE","J7E 5E1","TB Animation - Loisirs CHSLD D.Deschambault"]
[100171,6890403,1060,400,"290 RUE MONTIGNY","SAINT-JEROME","J7Z 5T3","SJ INACTIF RE 6890404 Act loisirs CHSLD de St-Jérôme"]
[100171,6890402,1060,400,"290 RUE MONTIGNY","SAINT-JEROME","J7Z 5T3","SJ Activités loisirs Résidence"]
[100171,6890206,1085,300,"234 RUE SAINT-VINCENT","SAINTE-AGATHE-DES-MONTS","J8C 2B8","DS Milieu de vie - Labelle"]
[100171,6890205,1085,300,"234 RUE SAINT-VINCENT","SAINTE-AGATHE-DES-MONTS","J8C 2B8","DS Milieu de vie - Tremblant"]
[100171,6890204,1085,300,"234 RUE SAINT-VINCENT","SAINTE-AGATHE-DES-MONTS","J8C 2B8","DS Milieu de vie - Ste-Agathe"]
[100171,6890203,1085,300,"234 RUE SAINT-VINCENT","SAINTE-AGATHE-DES-MONTS","J8C 2B8","DS Animation et loisirs - Labelle"]
[100171,6890202,1085,300,"234 RUE SAINT-VINCENT","SAINTE-AGATHE-DES-MONTS","J8C 2B8","DS Animation et loisirs - St-Jovite"]
[100171,6890201,1085,300,"234 RUE SAINT-VINCENT","SAINTE-AGATHE-DES-MONTS","J8C 2B8","DS Animation et loisirs - P.Lapointe"]
[100171,6890103,8000,100,"2561 CHEMIN DE LA LIEVRE SUD","MONT-LAURIER","J9L 3G3","AL SA-Animation - Loisirs - SAPA"]
[100171,6890102,1047,200,"1525 RUE L'ANNONCIATION NORD","RIVIERE-ROUGE","J0T 1T0","AL RR-Animation-Loisirs-SAPA"]
[100171,6890101,1047,200,"1525 RUE L'ANNONCIATION NORD","RIVIERE-ROUGE","J0T 1T0","AL RR RE 6890111 Animation-Loisirs-S.M"]
[100171,6890010,1053,400,"377 RUE PRINCIPALE","LACHUTE","J8H 1Y1","RL  Animation - Loisirs"]
[100171,6880701,1051,800,"145 AVENUE DE LA PROVIDENCE","LACHUTE","J8H 4C7","AR Ergothérapie PAPA"]
[100171,6880700,1051,800,"145 AVENUE DE LA PROVIDENCE","LACHUTE","J8H 4C7","AR Ergothérapie"]
[100171,6880691,1093,600,"520 BOUL. ARTHUR-SAUVE","SAINT-EUSTACHE","J7R 5B1","DM Ergothérapie autres  HSE"]
[100171,6880688,1093,600,"520 BOUL. ARTHUR-SAUVE","SAINT-EUSTACHE","J7R 5B1","DM Ergothérapie HSE"]
[100171,6880501,1070,700,"100, RUE DU CHANOINE-LIONEL-GROULX","SAINTE-THERESE","J7E 5E1","TB Serv./ext gériatriques"]
[100171,6880500,1070,700,"100, RUE DU CHANOINE-LIONEL-GROULX","SAINTE-THERESE","J7E 5E1","TB Ergothérapie Hébergement"]
[100171,6880420,1060,400,"290 RUE MONTIGNY","SAINT-JEROME","J7Z 5T3","SJ Ergo volet CH -18 ans"]
[100171,6173650,1060,400,"290 RUE MONTIGNY","SAINT-JEROME","J7Z 5T3","DM Aides/mat. Fct./d'élim."]
[100171,6880415,1060,400,"290 RUE MONTIGNY","SAINT-JEROME","J7Z 5T3","SJ Serv./ext gériatriques ergo"]
[100171,6880410,1060,400,"290 RUE MONTIGNY","SAINT-JEROME","J7Z 5T3","SJ UCDG ergo"]
[100171,6880405,1060,400,"290 RUE MONTIGNY","SAINT-JEROME","J7Z 5T3","SJ Ergothérapie Hébergement"]
[100171,6880400,1060,400,"290 RUE MONTIGNY","SAINT-JEROME","J7Z 5T3","SJ Ergothérapie C.H."]
[100171,6880209,1085,300,"234 RUE SAINT-VINCENT","SAINTE-AGATHE-DES-MONTS","J8C 2B8","DS Emploi Canada"]
[100171,6880203,1085,300,"234 RUE SAINT-VINCENT","SAINTE-AGATHE-DES-MONTS","J8C 2B8","DS Ergothérapie - Labelle"]
[100171,6880202,1085,300,"234 RUE SAINT-VINCENT","SAINTE-AGATHE-DES-MONTS","J8C 2B8","DS Ergothérapie - St-Jovite"]
[100171,6880201,1085,300,"234 RUE SAINT-VINCENT","SAINTE-AGATHE-DES-MONTS","J8C 2B8","DS Ergothérapie - P.Lapointe"]
[100171,6880200,1085,300,"234 RUE SAINT-VINCENT","SAINTE-AGATHE-DES-MONTS","J8C 2B8","DS Ergothérapie"]
[100171,6880105,8000,100,"2561 CHEMIN DE LA LIEVRE SUD","MONT-LAURIER","J9L 3G3","AL SA-Ergothérapie"]
[100171,6880104,1047,200,"1525 RUE L'ANNONCIATION NORD","RIVIERE-ROUGE","J0T 1T0","AL RR-Ergothérapie - SAPA"]
[100171,6880103,1047,200,"1525 RUE L'ANNONCIATION NORD","RIVIERE-ROUGE","J0T 1T0","AL RR-Ergothérapie - PSM-LD"]
[100171,6880102,8000,100,"2561 CHEMIN DE LA LIEVRE SUD","MONT-LAURIER","J9L 3G3","AL- ML-Ergothérapie"]
[100171,6880101,1047,200,"1525 RUE L'ANNONCIATION NORD","RIVIERE-ROUGE","J0T 1T0","AL RR-Ergothérapie - P.S.P."]
[100171,6880010,1053,400,"377 RUE PRINCIPALE","LACHUTE","J8H 1Y1","RL Ergothérapie"]
[100171,6870701,1051,800,"145 AVENUE DE LA PROVIDENCE","LACHUTE","J8H 4C7","AR Physiothérapie PAPA"]
[100171,6870700,1051,800,"145 AVENUE DE LA PROVIDENCE","LACHUTE","J8H 4C7","AR Physiothérapie"]
[100171,6870695,1070,700,"100, RUE DU CHANOINE-LIONEL-GROULX","SAINTE-THERESE","J7E 5E1","DM Physiothérapie clinique ext. 65 plus"]
[100171,6870694,1070,700,"100, RUE DU CHANOINE-LIONEL-GROULX","SAINTE-THERESE","J7E 5E1","DM Physiothérapie  DCPA"]
[100171,6870691,1093,600,"520 BOUL. ARTHUR-SAUVE","SAINT-EUSTACHE","J7R 5B1","DM Physiothérapie autres HSE"]
[100171,6870688,1093,600,"520 BOUL. ARTHUR-SAUVE","SAINT-EUSTACHE","J7R 5B1","DM Physiothérapie HSE"]
[100171,6870501,1070,700,"100, RUE DU CHANOINE-LIONEL-GROULX","SAINTE-THERESE","J7E 5E1","TB Serv./ext gériatriques physio"]
[100171,6870500,1070,700,"100, RUE DU CHANOINE-LIONEL-GROULX","SAINTE-THERESE","J7E 5E1","TB Physiothérapie hébergement"]
[100171,6870420,1060,400,"290 RUE MONTIGNY","SAINT-JEROME","J7Z 5T3","SJ Physio volet CH -18 ans"]
[100171,6870415,1060,400,"290 RUE MONTIGNY","SAINT-JEROME","J7Z 5T3","SJ Physio serv ext gériatrie"]
[100171,6870410,1060,400,"290 RUE MONTIGNY","SAINT-JEROME","J7Z 5T3","SJ UCDG Physio"]
[100171,6870405,1060,400,"290 RUE MONTIGNY","SAINT-JEROME","J7Z 5T3","SJ  Physiothérapie Héb."]
[100171,6870400,1060,400,"290 RUE MONTIGNY","SAINT-JEROME","J7Z 5T3","SJ Physiothérapie C.H."]
[100171,6870204,1085,300,"234 RUE SAINT-VINCENT","SAINTE-AGATHE-DES-MONTS","J8C 2B8","DS Physiothérapie fin de semaine"]
[100171,6870203,1085,300,"234 RUE SAINT-VINCENT","SAINTE-AGATHE-DES-MONTS","J8C 2B8","DS Physiothérapie - Labelle"]
[100171,6870202,1085,300,"234 RUE SAINT-VINCENT","SAINTE-AGATHE-DES-MONTS","J8C 2B8","DS INACTIF RE 6870205 Physiothérapie - St-Jovite"]
[100171,6870201,1085,300,"234 RUE SAINT-VINCENT","SAINTE-AGATHE-DES-MONTS","J8C 2B8","DS Physiothérapie - P.Lapointe"]
[100171,6870200,1085,300,"234 RUE SAINT-VINCENT","SAINTE-AGATHE-DES-MONTS","J8C 2B8","DS Physiothérapie"]
[100171,6870104,8000,100,"2561 CHEMIN DE LA LIEVRE SUD","MONT-LAURIER","J9L 3G3","AL SA-Physiothérapie"]
[100171,6870103,8000,100,"2561 CHEMIN DE LA LIEVRE SUD","MONT-LAURIER","J9L 3G3","AL ML-Physiothérapie-Orthopédie"]
[100171,6870102,8000,100,"2561 CHEMIN DE LA LIEVRE SUD","MONT-LAURIER","J9L 3G3","AL ML-Physiothérapie"]
[100171,6870101,1047,200,"1525 RUE L'ANNONCIATION NORD","RIVIERE-ROUGE","J0T 1T0","AL RR Physiothérapie"]
[100171,6870010,1053,400,"377 RUE PRINCIPALE","LACHUTE","J8H 1Y1","RL Physiothérapie"]
[100171,6865700,1051,800,"145 AVENUE DE LA PROVIDENCE","LACHUTE","J8H 4C7","AR Orthophonie enfants en CLSC"]
[100171,6865500,1093,600,"520 BOUL. ARTHUR-SAUVE","SAINT-EUSTACHE","J7R 5B1","TB Orthophonie CLSC (71712)"]
[100171,6865301,1070,700,"100, RUE DU CHANOINE-LIONEL-GROULX","SAINTE-THERESE","J7E 5E1","PH ORTHOPHONIE POUR ENFANTS"]
[100171,6865200,1060,400,"290 RUE MONTIGNY","SAINT-JEROME","J7Z 5T3","DS Orthophonie FEJ"]
[100171,6865101,8000,100,"2561 CHEMIN DE LA LIEVRE SUD","MONT-LAURIER","J9L 3G3","AL Orthophonie pour enfants en CLSC"]
[100171,6864200,1085,300,"234 RUE SAINT-VINCENT","SAINTE-AGATHE-DES-MONTS","J8C 2B8","DS Orthophonie - SAD"]
[100171,6862688,1093,600,"520 BOUL. ARTHUR-SAUVE","SAINT-EUSTACHE","J7R 5B1","DM Orthophonie"]
[100171,6862500,1070,700,"100, RUE DU CHANOINE-LIONEL-GROULX","SAINTE-THERESE","J7E 5E1","TB Orthophonie - Adultes"]
[100171,6862400,1060,400,"290 RUE MONTIGNY","SAINT-JEROME","J7Z 5T3","SJ Orthophonie"]
[100171,6862204,1085,300,"234 RUE SAINT-VINCENT","SAINTE-AGATHE-DES-MONTS","J8C 2B8","DS Orthophonie-Labelle"]
[100171,6862203,1085,300,"234 RUE SAINT-VINCENT","SAINTE-AGATHE-DES-MONTS","J8C 2B8","DS Orthophonie CHSLD"]
[100171,6862202,1085,300,"234 RUE SAINT-VINCENT","SAINTE-AGATHE-DES-MONTS","J8C 2B8","DS Orthophonie-Lapointe"]
[100171,6862200,1085,300,"234 RUE SAINT-VINCENT","SAINTE-AGATHE-DES-MONTS","J8C 2B8","DS Orthophonie"]
[100171,6862101,1047,200,"1525 RUE L'ANNONCIATION NORD","RIVIERE-ROUGE","J0T 1T0","AL RR-Orthophonie - P.S.P."]
[100171,6861691,1093,600,"520 BOUL. ARTHUR-SAUVE","SAINT-EUSTACHE","J7R 5B1","DM Audiologie"]
[100171,6861400,1060,400,"290 RUE MONTIGNY","SAINT-JEROME","J7Z 5T3","SJ Audiologie"]
[100171,6861101,1047,200,"1525 RUE L'ANNONCIATION NORD","RIVIERE-ROUGE","J0T 1T0","AL RR-Audiologie"]
[100171,6841601,1093,600,"520 BOUL. ARTHUR-SAUVE","SAINT-EUSTACHE","J7R 5B1","DM Téléthérapie"]
[100171,6839601,1093,600,"520 BOUL. ARTHUR-SAUVE","SAINT-EUSTACHE","J7R 5B1","DM Support imagerie/médicale"]
[100171,6839400,1060,400,"290 RUE MONTIGNY","SAINT-JEROME","J7Z 5T3","SJ Support imagerie/médicale"]
[100171,6839200,1085,300,"234 RUE SAINT-VINCENT","SAINTE-AGATHE-DES-MONTS","J8C 2B8","DS Support à l'imagerie médicale"]
[100171,6839102,8000,100,"2561 CHEMIN DE LA LIEVRE SUD","MONT-LAURIER","J9L 3G3","AL ML-Support à l'imagerie médicale"]
[100171,6839101,1047,200,"1525 RUE L'ANNONCIATION NORD","RIVIERE-ROUGE","J0T 1T0","AL RR-Support imagerie médicale"]
[100171,6837601,1093,600,"520 BOUL. ARTHUR-SAUVE","SAINT-EUSTACHE","J7R 5B1","DM Lithotripsie"]
[100171,6836601,1093,600,"520 BOUL. ARTHUR-SAUVE","SAINT-EUSTACHE","J7R 5B1","DM Angioradiologie"]
[100171,6836481,1060,400,"290 RUE MONTIGNY","SAINT-JEROME","J7Z 5T3","SJ GBM Angioradiologie"]
[100171,6836400,1060,400,"290 RUE MONTIGNY","SAINT-JEROME","J7Z 5T3","SJ Angioradiologie générale"]
[100171,6835601,1093,600,"520 BOUL. ARTHUR-SAUVE","SAINT-EUSTACHE","J7R 5B1","DM Résonance magnétique"]
[100171,6835481,1060,400,"290 RUE MONTIGNY","SAINT-JEROME","J7Z 5T3","SJ GBM Résonance magnétique"]
[100171,6835400,1060,400,"290 RUE MONTIGNY","SAINT-JEROME","J7Z 5T3","SJ Résonance magnétique"]
[100171,6834700,1051,800,"145 AVENUE DE LA PROVIDENCE","LACHUTE","J8H 4C7","AR Tomodensitométrie"]
[100171,6834601,1093,600,"520 BOUL. ARTHUR-SAUVE","SAINT-EUSTACHE","J7R 5B1","DM Tomodensitométrie"]
[100171,6834481,1060,400,"290 RUE MONTIGNY","SAINT-JEROME","J7Z 5T3","SJ GBM Tomodensitométrie"]
[100171,6834400,1060,400,"290 RUE MONTIGNY","SAINT-JEROME","J7Z 5T3","SJ Tomodensitométrie"]
[100171,6834200,1085,300,"234 RUE SAINT-VINCENT","SAINTE-AGATHE-DES-MONTS","J8C 2B8","DS Tomodensitométrie"]
[100171,6834102,8000,100,"2561 CHEMIN DE LA LIEVRE SUD","MONT-LAURIER","J9L 3G3","AL Tomodensitométrie ML"]
[100171,6833700,1051,800,"145 AVENUE DE LA PROVIDENCE","LACHUTE","J8H 4C7","AR Mammographie"]
[100171,6833601,1093,600,"520 BOUL. ARTHUR-SAUVE","SAINT-EUSTACHE","J7R 5B1","DM  Mammographie"]
[100171,6833481,1060,400,"290 RUE MONTIGNY","SAINT-JEROME","J7Z 5T3","SJ GBM Mammographie"]
[100171,6833400,1060,400,"290 RUE MONTIGNY","SAINT-JEROME","J7Z 5T3","SJ  Mammographie"]
[100171,6833200,1085,300,"234 RUE SAINT-VINCENT","SAINTE-AGATHE-DES-MONTS","J8C 2B8","DS Mammographie"]
[100171,6833102,8000,100,"2561 CHEMIN DE LA LIEVRE SUD","MONT-LAURIER","J9L 3G3","AL ML-Mammographie"]
[100171,6833101,1047,200,"1525 RUE L'ANNONCIATION NORD","RIVIERE-ROUGE","J0T 1T0","AL RR-Mammographie"]
[100171,6832700,1051,800,"145 AVENUE DE LA PROVIDENCE","LACHUTE","J8H 4C7","AR Ultrasonographie"]
[100171,6832601,1093,600,"520 BOUL. ARTHUR-SAUVE","SAINT-EUSTACHE","J7R 5B1","DM Ultrasonographie"]
[100171,6832481,1060,400,"290 RUE MONTIGNY","SAINT-JEROME","J7Z 5T3","SJ GBM Ultrasonographie"]
[100171,6832400,1060,400,"290 RUE MONTIGNY","SAINT-JEROME","J7Z 5T3","SJ Ultrasonographie"]
[100171,6832200,1085,300,"234 RUE SAINT-VINCENT","SAINTE-AGATHE-DES-MONTS","J8C 2B8","DS Ultrasonographie"]
[100171,6832102,8000,100,"2561 CHEMIN DE LA LIEVRE SUD","MONT-LAURIER","J9L 3G3","AL ML-Ultrasonographie"]
[100171,6832101,1047,200,"1525 RUE L'ANNONCIATION NORD","RIVIERE-ROUGE","J0T 1T0","AL RR-Ultrasonographie"]
[100171,6831702,1051,800,"145 AVENUE DE LA PROVIDENCE","LACHUTE","J8H 4C7","AR Entretien- réparations"]
[100171,6831701,1051,800,"145 AVENUE DE LA PROVIDENCE","LACHUTE","J8H 4C7","AR Radiologie générale"]
[100171,6831601,1093,600,"520 BOUL. ARTHUR-SAUVE","SAINT-EUSTACHE","J7R 5B1","DM Radiologie générale"]
[100171,6831481,1060,400,"290 RUE MONTIGNY","SAINT-JEROME","J7Z 5T3","SJ GBM Radiologie générale"]
[100171,6831400,1060,400,"290 RUE MONTIGNY","SAINT-JEROME","J7Z 5T3","SJ Radiologie générale"]
[100171,6831200,1085,300,"234 RUE SAINT-VINCENT","SAINTE-AGATHE-DES-MONTS","J8C 2B8","DS Radiologie générale"]
[100171,6831102,8000,100,"2561 CHEMIN DE LA LIEVRE SUD","MONT-LAURIER","J9L 3G3","AL ML-Radiologie générale"]
[100171,6831101,1047,200,"1525 RUE L'ANNONCIATION NORD","RIVIERE-ROUGE","J0T 1T0","AL RR-Radiologie générale"]
[100171,6806700,1051,800,"145 AVENUE DE LA PROVIDENCE","LACHUTE","J8H 4C7","AR Pharmacie CLSC"]
[100171,6806651,1070,700,"100, RUE DU CHANOINE-LIONEL-GROULX","SAINTE-THERESE","J7E 5E1","DM Pharmacie CLSC"]
[100171,6806400,1060,400,"290 RUE MONTIGNY","SAINT-JEROME","J7Z 5T3","SJ Pharmacie CLSC"]
[100171,6806200,1085,300,"234 RUE SAINT-VINCENT","SAINTE-AGATHE-DES-MONTS","J8C 2B8","DS Pharmacie CLSC"]
[100171,6806101,1047,200,"1525 RUE L'ANNONCIATION NORD","RIVIERE-ROUGE","J0T 1T0","AL RR - Pharmacie CLSC"]
[100171,6805700,1051,800,"145 AVENUE DE LA PROVIDENCE","LACHUTE","J8H 4C7","AR Pharmacie - Usagers hébergés"]
[100171,6805641,1070,700,"100, RUE DU CHANOINE-LIONEL-GROULX","SAINTE-THERESE","J7E 5E1","DM Pharmacie - Usagers hébergés"]
[100171,6805500,1070,700,"100, RUE DU CHANOINE-LIONEL-GROULX","SAINTE-THERESE","J7E 5E1","TB Pharmacie - Usagers hébergés"]
[100171,6805400,1060,400,"290 RUE MONTIGNY","SAINT-JEROME","J7Z 5T3","SJ Pharmacie - Usagers hébergés"]
[100171,6805200,1085,300,"234 RUE SAINT-VINCENT","SAINTE-AGATHE-DES-MONTS","J8C 2B8","DS Pharmacie - Usager hébergés"]
[100171,6805102,8000,100,"2561 CHEMIN DE LA LIEVRE SUD","MONT-LAURIER","J9L 3G3","AL ML - Pharmacie - Usagers hébergés"]
[100171,6805101,1047,200,"1525 RUE L'ANNONCIATION NORD","RIVIERE-ROUGE","J0T 1T0","AL RR - Pharmacie - Usagers hébergés"]
[100171,6805010,1053,400,"377 RUE PRINCIPALE","LACHUTE","J8H 1Y1","RL Pharmacie - Usagers hébergés"]
[100171,6804700,1051,800,"145 AVENUE DE LA PROVIDENCE","LACHUTE","J8H 4C7","AR Pharmacie - Usagers hospitalisés"]
[100171,6804400,1060,400,"290 RUE MONTIGNY","SAINT-JEROME","J7Z 5T3","SJ  Pharmacie - Usagers hospitalisés"]
[100171,6804200,1085,300,"234 RUE SAINT-VINCENT","SAINTE-AGATHE-DES-MONTS","J8C 2B8","DS Pharmacie - Usagers hospitalisés"]
[100171,6804101,1047,200,"1525 RUE L'ANNONCIATION NORD","RIVIERE-ROUGE","J0T 1T0","AL RR - Pharmacie - Usagers hospitalisés"]
[100171,6803700,1051,800,"145 AVENUE DE LA PROVIDENCE","LACHUTE","J8H 4C7","AR Pharmacie - Usagers externes"]
[100171,6803602,1093,600,"520 BOUL. ARTHUR-SAUVE","SAINT-EUSTACHE","J7R 5B1","DM Pharmacie - Usagers externes"]
[100171,6803400,1060,400,"290 RUE MONTIGNY","SAINT-JEROME","J7Z 5T3","SJ Pharmacie - Usagers externes"]
[100171,6803201,1085,300,"234 RUE SAINT-VINCENT","SAINTE-AGATHE-DES-MONTS","J8C 2B8","DS Pharmaciens"]
[100171,6803200,1085,300,"234 RUE SAINT-VINCENT","SAINTE-AGATHE-DES-MONTS","J8C 2B8","DS Pharmacie - Usagers externes"]
[100171,6803102,8000,100,"2561 CHEMIN DE LA LIEVRE SUD","MONT-LAURIER","J9L 3G3","AL ML - Pharmacie - Usagers externes"]
[100171,6803101,1047,200,"1525 RUE L'ANNONCIATION NORD","RIVIERE-ROUGE","J0T 1T0","AL RR - Pharmacie - Usagers externes"]
[100171,6795400,1060,400,"290 RUE MONTIGNY","SAINT-JEROME","J7Z 5T3","SJ Dialyse péritonéale"]
[100171,6794400,1060,400,"290 RUE MONTIGNY","SAINT-JEROME","J7Z 5T3","SJ Hémodialyse hors-centre"]
[100171,6793400,1060,400,"290 RUE MONTIGNY","SAINT-JEROME","J7Z 5T3","SJ  Hémodialyse à domicile"]
[100171,6792405,1060,400,"290 RUE MONTIGNY","SAINT-JEROME","J7Z 5T3","SJ Ctre transitoire dialyse ext LG Rolland"]
[100171,6792400,1060,400,"290 RUE MONTIGNY","SAINT-JEROME","J7Z 5T3","SJ Dialyse semi-autonome"]
[100171,6791400,1060,400,"290 RUE MONTIGNY","SAINT-JEROME","J7Z 5T3","SJ Hémodialyse milieu hospit."]
[100171,6791101,1047,200,"1525 RUE L'ANNONCIATION NORD","RIVIERE-ROUGE","J0T 1T0","AL RR-Hémodialyse trad.en unité"]
[100171,6785473,1060,400,"290 RUE MONTIGNY","SAINT-JEROME","J7Z 5T3","SJ GBM Médecine nucléaire"]
[100171,6785400,1060,400,"290 RUE MONTIGNY","SAINT-JEROME","J7Z 5T3","SJ Médecine nucléaire"]
[100171,6770700,1051,800,"145 AVENUE DE LA PROVIDENCE","LACHUTE","J8H 4C7","AR Endoscopie"]
[100171,6770602,1093,600,"520 BOUL. ARTHUR-SAUVE","SAINT-EUSTACHE","J7R 5B1","DM Endoscopie"]
[100171,6770491,1060,400,"290 RUE MONTIGNY","SAINT-JEROME","J7Z 5T3","SJ Brancarderie CA 6770"]
[100171,6770405,1060,400,"290 RUE MONTIGNY","SAINT-JEROME","J7Z 5T3","SJ Colposcopie"]
[100171,6770400,1060,400,"290 RUE MONTIGNY","SAINT-JEROME","J7Z 5T3","SJ Endoscopie"]
[100171,6770200,1085,300,"234 RUE SAINT-VINCENT","SAINTE-AGATHE-DES-MONTS","J8C 2B8","DS Endoscopie"]
[100171,6770101,8000,100,"2561 CHEMIN DE LA LIEVRE SUD","MONT-LAURIER","J9L 3G3","AL ML-Endoscopie"]
[100171,6766090,1060,400,"290 RUE MONTIGNY","SAINT-JEROME","J7Z 5T3","CI Direction coordination et soutien santé publique"]
[100171,6764671,1093,600,"520 BOUL. ARTHUR-SAUVE","SAINT-EUSTACHE","J7R 5B1","DM Enquête épidémiologique Covid-19"]
[100171,6764091,1060,400,"290 RUE MONTIGNY","SAINT-JEROME","J7Z 5T3","CI Protection santé publique"]
[100171,6763090,1060,400,"290 RUE MONTIGNY","SAINT-JEROME","J7Z 5T3","CI Promotion santé publique"]
[100171,6762094,1060,400,"290 RUE MONTIGNY","SAINT-JEROME","J7Z 5T3","CI Progr. québécois dépistage cancer du sein"]
[100171,6762092,1060,400,"290 RUE MONTIGNY","SAINT-JEROME","J7Z 5T3","CI Prévention santé publique"]
[100171,6761090,1060,401,"290 RUE MONTIGNY","SAINT-JEROME","J7Z 5T3","CI Surveillance recherche et évaluation"]
[100171,6752400,1060,400,"290 RUE MONTIGNY","SAINT-JEROME","J7Z 5T3","SJ Électro interventionnelle"]
[100171,6751200,1085,300,"234 RUE SAINT-VINCENT","SAINTE-AGATHE-DES-MONTS","J8C 2B8","DS Hémodynamie"]
[100171,6710700,1051,800,"145 AVENUE DE LA PROVIDENCE","LACHUTE","J8H 4C7","AR Électrophysiologie"]
[100171,6710602,1093,600,"520 BOUL. ARTHUR-SAUVE","SAINT-EUSTACHE","J7R 5B1","DM Électrophysiologie"]
[100171,6710491,1060,400,"290 RUE MONTIGNY","SAINT-JEROME","J7Z 5T3","SJ Brancarderie CA 6710"]
[100171,6710405,1060,400,"290 RUE MONTIGNY","SAINT-JEROME","J7Z 5T3","SJ Laboratoire  vasculaire"]
[100171,6710400,1060,400,"290 RUE MONTIGNY","SAINT-JEROME","J7Z 5T3","SJ Électrophysiologie"]
[100171,6710200,1085,300,"234 RUE SAINT-VINCENT","SAINTE-AGATHE-DES-MONTS","J8C 2B8","DS Électrophysiologie"]
[100171,6710101,8000,100,"2561 CHEMIN DE LA LIEVRE SUD","MONT-LAURIER","J9L 3G3","AL Électrophysiologie"]
[100171,6680653,1070,700,"100, RUE DU CHANOINE-LIONEL-GROULX","SAINTE-THERESE","J7E 5E1","DM Services externes en toxicomanie"]
[100171,6680201,1085,300,"234 RUE SAINT-VINCENT","SAINTE-AGATHE-DES-MONTS","J8C 2B8","DS Plan d'action jeux problématique"]
[100171,6680200,1085,300,"234 RUE SAINT-VINCENT","SAINTE-AGATHE-DES-MONTS","J8C 2B8","DS Dépendance"]
[100171,6680017,1060,null,"290 RUE MONTIGNY","SAINT-JEROME","J7Z 5T3","CR Ser. de réadap. - Soutien administratif"]
[100171,6680016,1060,null,"290 RUE MONTIGNY","SAINT-JEROME","J7Z 5T3","CR Serv. de réadaptation - Cadres"]
[100171,6680015,1060,null,"290 RUE MONTIGNY","SAINT-JEROME","J7Z 5T3","CR Serv de réadap Centre"]
[100171,6680013,1060,null,"290 RUE MONTIGNY","SAINT-JEROME","J7Z 5T3","CR Serv. de réadap. - Serv. infirmiers"]
[100171,6670010,1060,400,"290 RUE MONTIGNY","SAINT-JEROME","J7Z 5T3","CR Serv. de réadap. - Interne"]
[100171,6680011,1060,400,"290 RUE MONTIGNY","SAINT-JEROME","J7Z 5T3","CR Serv. de réadap. - Bassin Sud"]
[100171,6680010,1007,400,"906-910 rue Labelle","Saint-Jérôme","J7Z 5M5","CR Serv. de réadap. - Bassin Nord"]
[100171,6620700,1051,800,"145 AVENUE DE LA PROVIDENCE","LACHUTE","J8H 4C7","AR Sécurité transfusionnels et produits sanguins"]
[100171,6620601,1093,600,"520 BOUL. ARTHUR-SAUVE","SAINT-EUSTACHE","J7R 5B1","DM Securité transfusionnelle HSE"]
[100171,6620400,1060,400,"290 RUE MONTIGNY","SAINT-JEROME","J7Z 5T3","SJ Séc transfu & prod sanguins"]
[100171,6620202,1085,300,"234 RUE SAINT-VINCENT","SAINTE-AGATHE-DES-MONTS","J8C 2B8","DS S.I.I.A.T.H."]
[100171,6620200,1085,300,"234 RUE SAINT-VINCENT","SAINTE-AGATHE-DES-MONTS","J8C 2B8","DS Produit sanguin"]
[100171,6620101,8000,100,"2561 CHEMIN DE LA LIEVRE SUD","MONT-LAURIER","J9L 3G3","AL Sécurité transfusionnelle et produits sanguins"]
[100171,6610700,1051,800,"145 AVENUE DE LA PROVIDENCE","LACHUTE","J8H 4C7","AR Physiologie respiratoire"]
[100171,6610601,1093,600,"520 BOUL. ARTHUR-SAUVE","SAINT-EUSTACHE","J7R 5B1","DM Physiologie respiratoire"]
[100171,6610400,1060,400,"290 RUE MONTIGNY","SAINT-JEROME","J7Z 5T3","SJ Physiologie respiratoire"]
[100171,6610200,1085,300,"234 RUE SAINT-VINCENT","SAINTE-AGATHE-DES-MONTS","J8C 2B8","DS Physiologie respiratoire"]
[100171,6610101,8000,100,"2561 CHEMIN DE LA LIEVRE SUD","MONT-LAURIER","J9L 3G3","AL ML-Physiologie respiratoire (Apnée du sommeil)"]
[100171,6607702,1051,800,"145 AVENUE DE LA PROVIDENCE","LACHUTE","J8H 4C7","AR INACTIF RE 7801700 Entretien réparations"]
[100171,6607701,1051,800,"145 AVENUE DE LA PROVIDENCE","LACHUTE","J8H 4C7","AR Laboratoires regroupés"]
[100171,6607700,1051,800,"145 AVENUE DE LA PROVIDENCE","LACHUTE","J8H 4C7","AR  Laboratoires regroupés"]
[100171,6607619,1093,600,"520 BOUL. ARTHUR-SAUVE","SAINT-EUSTACHE","J7R 5B1","DM Administration laboratoire"]
[100171,6607618,1093,600,"520 BOUL. ARTHUR-SAUVE","SAINT-EUSTACHE","J7R 5B1","DM Microbiologie bactériologie"]
[100171,6607617,1093,600,"520 BOUL. ARTHUR-SAUVE","SAINT-EUSTACHE","J7R 5B1","DM Biochimie"]
[100171,6607616,1093,600,"520 BOUL. ARTHUR-SAUVE","SAINT-EUSTACHE","J7R 5B1","DM Hématologie"]
[100171,6607459,1060,400,"290 RUE MONTIGNY","SAINT-JEROME","J7Z 5T3","SJ Projet labos - chaîne analytique"]
[100171,6607450,1060,400,"290 RUE MONTIGNY","SAINT-JEROME","J7Z 5T3","SJ Projet - Clin pv Labo"]
[100171,6607461,1060,400,"290 RUE MONTIGNY","SAINT-JEROME","J7Z 5T3","SJ GBM Labos non répartis"]
[100171,6607463,1060,400,"290 RUE MONTIGNY","SAINT-JEROME","J7Z 5T3","SJ GBM Hématologie"]
[100171,6607462,1060,400,"290 RUE MONTIGNY","SAINT-JEROME","J7Z 5T3","SJ GBM Biochimie"]
[100171,6607420,1060,400,"290 RUE MONTIGNY","SAINT-JEROME","J7Z 5T3","SJ Laboratoires informatisation"]
[100171,6607464,1060,400,"290 RUE MONTIGNY","SAINT-JEROME","J7Z 5T3","SJ GBM Microbiologie"]
[100171,6607415,1060,400,"290 RUE MONTIGNY","SAINT-JEROME","J7Z 5T3","SJ Hématologie"]
[100171,6607410,1060,400,"290 RUE MONTIGNY","SAINT-JEROME","J7Z 5T3","SJ Biochimie-clinique"]
[100171,6607405,1060,400,"290 RUE MONTIGNY","SAINT-JEROME","J7Z 5T3","SJ Microbio virologie & sérologie"]
[100171,6607400,1060,400,"290 RUE MONTIGNY","SAINT-JEROME","J7Z 5T3","SJ Laboratoires non répartis"]
[100171,6607200,1085,300,"234 RUE SAINT-VINCENT","SAINTE-AGATHE-DES-MONTS","J8C 2B8","DS Laboratoires regroupés"]
[100171,6607101,8000,100,"2561 CHEMIN DE LA LIEVRE SUD","MONT-LAURIER","J9L 3G3","AL Laboratoires regroupés"]
[100171,6606702,1051,800,"145 AVENUE DE LA PROVIDENCE","LACHUTE","J8H 4C7","AR Centre de prélèvement"]
[100171,6606701,1051,800,"145 AVENUE DE LA PROVIDENCE","LACHUTE","J8H 4C7","AR Centre de soins Grenville"]
[100171,6606700,1051,800,"145 AVENUE DE LA PROVIDENCE","LACHUTE","J8H 4C7","AR Centre de prélèvement"]
[100171,6606601,1093,600,"520 BOUL. ARTHUR-SAUVE","SAINT-EUSTACHE","J7R 5B1","DM Centre de prélèvements"]
[100171,6606500,1070,700,"100, RUE DU CHANOINE-LIONEL-GROULX","SAINTE-THERESE","J7E 5E1","TB Prélèvements - Usagers - CLSC"]
[100171,6606405,1060,400,"290 RUE MONTIGNY","SAINT-JEROME","J7Z 5T3","SJ Prélèvement d'échantillons"]
[100171,6606400,1060,400,"290 RUE MONTIGNY","SAINT-JEROME","J7Z 5T3","SJ Centre de prélèvements"]
[100171,6606399,1047,200,"1525 RUE L'ANNONCIATION NORD","RIVIERE-ROUGE","J0T 1T0","PH Centre de prélèvements PDH CISSS"]
[100171,6606301,1047,200,"1525 RUE L'ANNONCIATION NORD","RIVIERE-ROUGE","J0T 1T0","PH CENTRE DE PRÉLÈVEMENTS"]
[100171,6606201,1085,300,"234 RUE SAINT-VINCENT","SAINTE-AGATHE-DES-MONTS","J8C 2B8","DS Centre de prélèvements - Tremblant"]
[100171,6606200,1085,300,"234 RUE SAINT-VINCENT","SAINTE-AGATHE-DES-MONTS","J8C 2B8","DS Centre de prélèvements - Ste-Agathe"]
[100171,6606102,8000,100,"2561 CHEMIN DE LA LIEVRE SUD","MONT-LAURIER","J9L 3G3","AL ML-Centre de prélèvements"]
[100171,6606101,1047,200,"1525 RUE L'ANNONCIATION NORD","RIVIERE-ROUGE","J0T 1T0","AL RR-Centre de prélèvements"]
[100171,6605601,1093,600,"520 BOUL. ARTHUR-SAUVE","SAINT-EUSTACHE","J7R 5B1","DM Cytologie"]
[100171,6605461,1060,400,"290 RUE MONTIGNY","SAINT-JEROME","J7Z 5T3","SJ GBM Cytologie"]
[100171,6605400,1060,400,"290 RUE MONTIGNY","SAINT-JEROME","J7Z 5T3","SJE Cytologie"]
[100171,6604700,1051,800,"145 AVENUE DE LA PROVIDENCE","LACHUTE","J8H 4C7","AR Anatomopathologie"]
[100171,6604601,1093,600,"520 BOUL. ARTHUR-SAUVE","SAINT-EUSTACHE","J7R 5B1","DM Anatomopathologie"]
[100171,6604461,1060,400,"290 RUE MONTIGNY","SAINT-JEROME","J7Z 5T3","SJ GBM Anatomopathologie"]
[100171,6604400,1060,400,"290 RUE MONTIGNY","SAINT-JEROME","J7Z 5T3","SJ Anatomopathologie"]
[100171,6604200,1085,300,"234 RUE SAINT-VINCENT","SAINTE-AGATHE-DES-MONTS","J8C 2B8","DS Pathologie"]
[100171,6604101,8000,100,"2561 CHEMIN DE LA LIEVRE SUD","MONT-LAURIER","J9L 3G3","AL  Anatomopathologie"]
[100171,6602700,1051,800,"145 AVENUE DE LA PROVIDENCE","LACHUTE","J8H 4C7","AR Dépistage prénatal"]
[100171,6601700,1051,800,"145 AVENUE DE LA PROVIDENCE","LACHUTE","J8H 4C7","AR Banque de sang"]
[100171,6601601,1093,600,"520 BOUL. ARTHUR-SAUVE","SAINT-EUSTACHE","J7R 5B1","DM Banque de sang"]
[100171,6601461,1060,400,"290 RUE MONTIGNY","SAINT-JEROME","J7Z 5T3","SJ GBM Banque de sang"]
[100171,6601400,1060,400,"290 RUE MONTIGNY","SAINT-JEROME","J7Z 5T3","SJ Banque de sang"]
[100171,6601200,1085,300,"234 RUE SAINT-VINCENT","SAINTE-AGATHE-DES-MONTS","J8C 2B8","DS Banque de sang"]
[100171,6601101,8000,100,"2561 CHEMIN DE LA LIEVRE SUD","MONT-LAURIER","J9L 3G3","AL Banque de sang"]
[100171,6590701,1051,800,"145 AVENUE DE LA PROVIDENCE","LACHUTE","J8H 4C7","AR Santé scolaire (infirmières)"]
[100171,6590700,1051,800,"145 AVENUE DE LA PROVIDENCE","LACHUTE","J8H 4C7","AR Prévention protection santé publique"]
[100171,6590651,1070,700,"100, RUE DU CHANOINE-LIONEL-GROULX","SAINTE-THERESE","J7E 5E1","DM Santé scolaire"]
[100171,6590500,1070,700,"100, RUE DU CHANOINE-LIONEL-GROULX","SAINTE-THERESE","J7E 5E1","TB Santé scolaire"]
[100171,6590400,1060,400,"290 RUE MONTIGNY","SAINT-JEROME","J7Z 5T3","SJ Santé scolaire"]
[100171,6590301,1075,201,"150 RUE PRINCIPALE","SAINT-SAUVEUR","J0R 1R6","PH SANTE SCOLAIRE"]
[100171,6590201,1085,300,"234 RUE SAINT-VINCENT","SAINTE-AGATHE-DES-MONTS","J8C 2B8","DS Vaccination Rougeole"]
[100171,6590200,1085,300,"234 RUE SAINT-VINCENT","SAINTE-AGATHE-DES-MONTS","J8C 2B8","DS Services santé scolaire"]
[100171,6590101,8000,100,"2561 CHEMIN DE LA LIEVRE SUD","MONT-LAURIER","J9L 3G3","AL CL-Santé scolaire"]
[100171,6565701,1051,800,"145 AVENUE DE LA PROVIDENCE","LACHUTE","J8H 4C7","AR Services sociaux PAPA CHSLD"]
[100171,6565700,1051,800,"145 AVENUE DE LA PROVIDENCE","LACHUTE","J8H 4C7","AR Services sociaux"]
[100171,6565694,1070,700,"100, RUE DU CHANOINE-LIONEL-GROULX","SAINTE-THERESE","J7E 5E1","DM Service Sociaux  DCPA"]
[100171,6565688,1093,600,"520 BOUL. ARTHUR-SAUVE","SAINT-EUSTACHE","J7R 5B1","DM Services sociaux HSE"]
[100171,6565501,1070,700,"100, RUE DU CHANOINE-LIONEL-GROULX","SAINTE-THERESE","J7E 5E1","TB Services sociaux CH"]
[100171,6565500,1070,700,"100, RUE DU CHANOINE-LIONEL-GROULX","SAINTE-THERESE","J7E 5E1","TB Services sociaux Hébergement"]
[100171,6565490,1060,400,"290 RUE MONTIGNY","SAINT-JEROME","J7Z 5T3","SJ Serv soc hôp jour S.M. St-J."]
[100171,6565420,1060,400,"290 RUE MONTIGNY","SAINT-JEROME","J7Z 5T3","SJ Serv prof transversaux"]
[100171,6565415,1060,400,"290 RUE MONTIGNY","SAINT-JEROME","J7Z 5T3","SJE Clin dév volet serv soc"]
[100171,6565410,1060,1,"290 RUE MONTIGNY","SAINT-JEROME","J7Z 5T3","SJ Serv soc CHSLD"]
[100171,6565405,1060,400,"290 RUE MONTIGNY","SAINT-JEROME","J7Z 5T3","SJ Services sociaux DPSP"]
[100171,6565400,1060,400,"290 RUE MONTIGNY","SAINT-JEROME","J7Z 5T3","SJ Services sociaux C.H."]
[100171,6565204,1085,300,"234 RUE SAINT-VINCENT","SAINTE-AGATHE-DES-MONTS","J8C 2B8","DS Services sociaux - Labelle"]
[100171,6565203,1085,300,"234 RUE SAINT-VINCENT","SAINTE-AGATHE-DES-MONTS","J8C 2B8","DS Services sociaux - St-Jovite"]
[100171,6565202,1085,300,"234 RUE SAINT-VINCENT","SAINTE-AGATHE-DES-MONTS","J8C 2B8","DS Services sociaux PALV volet CH"]
[100171,6565201,1085,300,"234 RUE SAINT-VINCENT","SAINTE-AGATHE-DES-MONTS","J8C 2B8","DS Services sociaux"]
[100171,6565200,1085,300,"234 RUE SAINT-VINCENT","SAINTE-AGATHE-DES-MONTS","J8C 2B8","DS Service Sociaux santé Physique"]
[100171,6565105,1047,200,"1525 RUE L'ANNONCIATION NORD","RIVIERE-ROUGE","J0T 1T0","AL RR-Services sociaux-SAPA"]
[100171,6565104,1047,200,"1525 RUE L'ANNONCIATION NORD","RIVIERE-ROUGE","J0T 1T0","AL RR-Services sociaux-SAPA"]
[100171,6565103,1047,200,"1525 RUE L'ANNONCIATION NORD","RIVIERE-ROUGE","J0T 1T0","AL RR-Services sociaux-SM"]
[100171,6565102,8000,100,"2561 CHEMIN DE LA LIEVRE SUD","MONT-LAURIER","J9L 3G3","AL ML Services sociaux"]
[100171,6565101,1047,200,"1525 RUE L'ANNONCIATION NORD","RIVIERE-ROUGE","J0T 1T0","AL RR Services sociaux"]
[100171,6565010,1053,400,"377 RUE PRINCIPALE","LACHUTE","J8H 1Y1","RL Services sociaux"]
[100171,6564420,1060,400,"290 RUE MONTIGNY","SAINT-JEROME","J7Z 5T3","SJ Psychologie 7 - 17 ans"]
[100171,6564405,1060,400,"290 RUE MONTIGNY","SAINT-JEROME","J7Z 5T3","SJ Clin dév volet psycho"]
[100171,6564400,1060,400,"290 RUE MONTIGNY","SAINT-JEROME","J7Z 5T3","SJ Psychologie"]
[100171,6564101,1047,200,"1525 RUE L'ANNONCIATION NORD","RIVIERE-ROUGE","J0T 1T0","AL RR-Psychologie-Client admis"]
[100171,6562300,1075,201,"150 RUE PRINCIPALE","SAINT-SAUVEUR","J0R 1R6","PH PSYCHOSOCIAUX accueil"]
[100171,6561700,1051,800,"145 AVENUE DE LA PROVIDENCE","LACHUTE","J8H 4C7","AR Services sociaux PAPA"]
[100171,6561657,1070,700,"100, RUE DU CHANOINE-LIONEL-GROULX","SAINTE-THERESE","J7E 5E1","DM Serv psychosociaux RI-RPA"]
[100171,6561653,1093,600,"520 BOUL. ARTHUR-SAUVE","SAINT-EUSTACHE","J7R 5B1","DM Accueil services psychosociaux à domicile"]
[100171,6561502,1070,700,"100, RUE DU CHANOINE-LIONEL-GROULX","SAINTE-THERESE","J7E 5E1","TB Serv. psych. dom.-Soins pall."]
[100171,6561501,1070,700,"100, RUE DU CHANOINE-LIONEL-GROULX","SAINTE-THERESE","J7E 5E1","TB Serv. psych. dom. - Accueil"]
[100171,6561500,1070,700,"100, RUE DU CHANOINE-LIONEL-GROULX","SAINTE-THERESE","J7E 5E1","TB Serv. psychosociaux aux PAPA"]
[100171,6561420,1060,400,"290 RUE MONTIGNY","SAINT-JEROME","J7Z 5T3","SJ Serv psycho dom -18 ans"]
[100171,6561409,1060,400,"290 RUE MONTIGNY","SAINT-JEROME","J7Z 5T3","SJ Serv psychosociaux RI"]
[100171,6561401,1060,400,"290 RUE MONTIGNY","SAINT-JEROME","J7Z 5T3","SJ Serv psycho dom UTRF"]
[100171,6561400,1060,400,"290 RUE MONTIGNY","SAINT-JEROME","J7Z 5T3","SJ Serv psycho domicile"]
[100171,6561201,1085,300,"234 RUE SAINT-VINCENT","SAINTE-AGATHE-DES-MONTS","J8C 2B8","DS Services sociaux"]
[100171,6561200,1085,300,"234 RUE SAINT-VINCENT","SAINTE-AGATHE-DES-MONTS","J8C 2B8","DS Services psychosociaux - PAPA"]
[100171,6561104,8000,100,"2561 CHEMIN DE LA LIEVRE SUD","MONT-LAURIER","J9L 3G3","AL Mécanisme d'accès"]
[100171,6561103,8000,100,"2561 CHEMIN DE LA LIEVRE SUD","MONT-LAURIER","J9L 3G3","AL CL-Psychosociaux  SAD-SAPA-NDL"]
[100171,6561101,8000,100,"2561 CHEMIN DE LA LIEVRE SUD","MONT-LAURIER","J9L 3G3","AL Psychosociaux  SAD-SAPA"]
[100171,6540700,1051,800,"145 AVENUE DE LA PROVIDENCE","LACHUTE","J8H 4C7","AR Services dentaires préventifs"]
[100171,6540651,1070,700,"100, RUE DU CHANOINE-LIONEL-GROULX","SAINTE-THERESE","J7E 5E1","DM Services dentaires préventifs"]
[100171,6540500,1070,700,"100, RUE DU CHANOINE-LIONEL-GROULX","SAINTE-THERESE","J7E 5E1","TB Services dentaires préventifs"]
[100171,6540400,1060,400,"290 RUE MONTIGNY","SAINT-JEROME","J7Z 5T3","SJ Serv dentaires préventifs"]
[100171,6540301,1075,201,"150 RUE PRINCIPALE","SAINT-SAUVEUR","J0R 1R6","PH SERVICES DENTAIRES PREVENTIFS"]
[100171,6540200,1085,300,"234 RUE SAINT-VINCENT","SAINTE-AGATHE-DES-MONTS","J8C 2B8","DS Services dentaires préventifs"]
[100171,6540101,8000,100,"2561 CHEMIN DE LA LIEVRE SUD","MONT-LAURIER","J9L 3G3","AL CL-Serv.dentaires préventifs"]
[100171,6531702,1051,800,"145 AVENUE DE LA PROVIDENCE","LACHUTE","J8H 4C7","AR Aide pour fonctions d'élimination"]
[100171,6531701,1051,800,"145 AVENUE DE LA PROVIDENCE","LACHUTE","J8H 4C7","AR Aide à domicile"]
[100171,6531700,1051,800,"145 AVENUE DE LA PROVIDENCE","LACHUTE","J8H 4C7","AR  Aide à domicile"]
[100171,6531503,1070,700,"100, RUE DU CHANOINE-LIONEL-GROULX","SAINTE-THERESE","J7E 5E1","TB Aide à domicile - Allocations"]
[100171,6531502,1070,700,"100, RUE DU CHANOINE-LIONEL-GROULX","SAINTE-THERESE","J7E 5E1","TB Baluchon Alzheimer"]
[100171,6531501,1070,700,"100, RUE DU CHANOINE-LIONEL-GROULX","SAINTE-THERESE","J7E 5E1","TB Aide à domicile"]
[100171,6531415,1060,400,"290 RUE MONTIGNY","SAINT-JEROME","J7Z 5T3","SJ INACTIF RE 6531400 Aide domestique"]
[100171,6531400,1060,400,"290 RUE MONTIGNY","SAINT-JEROME","J7Z 5T3","SJ Aide à domicile"]
[100171,6531303,1075,201,"150 RUE PRINCIPALE","SAINT-SAUVEUR","J0R 1R6","PH DIMOS SOUTIEN A LA PERSONNE"]
[100171,6531301,1073,400,"694 CHEMIN AVILA","PIEDMONT","J0R1R3","PH AIDE A DOMICILE REGULIER"]
[100171,6531200,1085,300,"234 RUE SAINT-VINCENT","SAINTE-AGATHE-DES-MONTS","J8C 2B8","DS Aide à domicile"]
[100171,6531102,8000,100,"2561 CHEMIN DE LA LIEVRE SUD","MONT-LAURIER","J9L 3G3","AL Allocations soutien à domicile (SAD)"]
[100171,6531101,8000,100,"2561 CHEMIN DE LA LIEVRE SUD","MONT-LAURIER","J9L 3G3","AL Aide à domicile"]
[100171,6531651,1070,700,"100, RUE DU CHANOINE-LIONEL-GROULX","SAINTE-THERESE","J7E 5E1","DM Aide à domicile"]
[100171,6513700,1051,800,"145 AVENUE DE LA PROVIDENCE","LACHUTE","J8H 4C7","AR Santé parentale & infantile"]
[100171,6513651,1070,700,"100, RUE DU CHANOINE-LIONEL-GROULX","SAINTE-THERESE","J7E 5E1","DM Santé parentale & infantile"]
[100171,6513500,1070,700,"100, RUE DU CHANOINE-LIONEL-GROULX","SAINTE-THERESE","J7E 5E1","TB Santé parent & infantile"]
[100171,6513400,1060,400,"290 RUE MONTIGNY","SAINT-JEROME","J7Z 5T3","SJ Santé parentale & infantile"]
[100171,6513301,1075,201,"150 RUE PRINCIPALE","SAINT-SAUVEUR","J0R 1R6","PH SANTE PARENTALE ET INFANTILE"]
[100171,6513202,1085,300,"234 RUE SAINT-VINCENT","SAINTE-AGATHE-DES-MONTS","J8C 2B8","DS PSJP"]
[100171,152200,1085,300,"234 RUE SAINT-VINCENT","SAINTE-AGATHE-DES-MONTS","J8C 2B8","DS PCNP"]
[100171,6513200,1085,300,"234 RUE SAINT-VINCENT","SAINTE-AGATHE-DES-MONTS","J8C 2B8","DS Santé parentale & infantile"]
[100171,6513101,8000,100,"2561 CHEMIN DE LA LIEVRE SUD","MONT-LAURIER","J9L 3G3","AL Santé parentale & infantile"]
[100171,6464400,1060,400,"290 RUE MONTIGNY","SAINT-JEROME","J7Z 5T3","SJ Serv santé aux réfugiés"]
[100171,6463400,1060,400,"290 RUE MONTIGNY","SAINT-JEROME","J7Z 5T3","SJ Serv psycho réfugiés"]
[100171,6430939,1149,900,"VOIR INSTRUCTIONS POUR LE FOURNISSEUR","XXX","XXX XXX","FL RESSOURCES RÉSIDENTIELLES"]
[100171,6430001,1160,400,"500 boul. des Laurentides, suite 241","Saint-Jérôme","J7Z4M2","CI Relations contract. avec RI"]
[100171,6430700,1051,800,"145 AVENUE DE LA PROVIDENCE","LACHUTE","J8H 4C7","AR Encadrement RI"]
[100171,6430500,1070,700,"100, RUE DU CHANOINE-LIONEL-GROULX","SAINTE-THERESE","J7E 5E1","TB Encadrement des R.I"]
[100171,6430201,1085,300,"234 RUE SAINT-VINCENT","SAINTE-AGATHE-DES-MONTS","J8C 2B8","DS Budget dével. UTRF"]
[100171,6430200,1085,300,"234 RUE SAINT-VINCENT","SAINTE-AGATHE-DES-MONTS","J8C 2B8","DS Soutien aux Ress.S.Mentale"]
[100171,6430101,1047,200,"1525 RUE L'ANNONCIATION NORD","RIVIERE-ROUGE","J0T 1T0","AL RR-Encadrement RNI - interv.ress."]
[100171,6390700,1051,800,"145 AVENUE DE LA PROVIDENCE","LACHUTE","J8H 4C7","AR Service de pastorale"]
[100171,6390641,1094,600,"55 RUE CHENIER","SAINT-EUSTACHE","J7R 4Y8","DM Animation  spirituelle  CHSLD"]
[100171,6390601,1093,600,"520 BOUL. ARTHUR-SAUVE","SAINT-EUSTACHE","J7R 5B1","DM  Animation spirituelle HSE"]
[100171,6390500,1070,700,"100, RUE DU CHANOINE-LIONEL-GROULX","SAINTE-THERESE","J7E 5E1","TB Service de pastorale"]
[100171,6390400,1060,400,"290 RUE MONTIGNY","SAINT-JEROME","J7Z 5T3","SJ Soins spirituels"]
[100171,6390301,1074,200,"707 BOULEVARD DE SAINTE-ADÈLE","SAINTE-ADÈLE","J8B 2N1","PH SERVICE DE PASTORALE"]
[100171,6390202,1085,300,"234 RUE SAINT-VINCENT","SAINTE-AGATHE-DES-MONTS","J8C 2B8","DS Soins spirituels - Labelle"]
[100171,6390201,1085,300,"234 RUE SAINT-VINCENT","SAINTE-AGATHE-DES-MONTS","J8C 2B8","DS Soins spirituels - St-Jovite"]
[100171,6390200,1085,300,"234 RUE SAINT-VINCENT","SAINTE-AGATHE-DES-MONTS","J8C 2B8","DS Services de soins spirituels"]
[100171,6390101,1047,200,"1525 RUE L'ANNONCIATION NORD","RIVIERE-ROUGE","J0T 1T0","AL Service de pastorale"]
[100171,6364614,1093,600,"520 BOUL. ARTHUR-SAUVE","SAINT-EUSTACHE","J7R 5B1","DM Maternité - Obstétrical"]
[100171,6364400,1060,400,"290 RUE MONTIGNY","SAINT-JEROME","J7Z 5T3","SJ Maternité - Obstétrical"]
[100171,6364201,1085,300,"234 RUE SAINT-VINCENT","SAINTE-AGATHE-DES-MONTS","J8C 2B8","DS Nouveaux-nés"]
[100171,6364200,1085,300,"234 RUE SAINT-VINCENT","SAINTE-AGATHE-DES-MONTS","J8C 2B8","DS Obstétrique"]
[100171,6364101,8000,100,"2561 CHEMIN DE LA LIEVRE SUD","MONT-LAURIER","J9L 3G3","AL ML-Maternité-Obstétric-NR"]
[100171,6352700,1051,800,"145 AVENUE DE LA PROVIDENCE","LACHUTE","J8H 4C7","AR Inhalothérapie"]
[100171,6352691,1093,600,"520 BOUL. ARTHUR-SAUVE","SAINT-EUSTACHE","J7R 5B1","DM Inhalothérapie"]
[100171,6352500,1070,700,"100, RUE DU CHANOINE-LIONEL-GROULX","SAINTE-THERESE","J7E 5E1","TB  Inhalothérapie - Autres"]
[100171,6352405,1060,400,"290 RUE MONTIGNY","SAINT-JEROME","J7Z 5T3","SJ Clinique M.P.O.C."]
[100171,6352400,1060,400,"290 RUE MONTIGNY","SAINT-JEROME","J7Z 5T3","SJ Inhalothérapie"]
[100171,6352201,1085,300,"234 RUE SAINT-VINCENT","SAINTE-AGATHE-DES-MONTS","J8C 2B8","DS Clinique MPOC"]
[100171,6352200,1085,300,"234 RUE SAINT-VINCENT","SAINTE-AGATHE-DES-MONTS","J8C 2B8","DS Inhalothérapie"]
[100171,6352103,8000,100,"2561 CHEMIN DE LA LIEVRE SUD","MONT-LAURIER","J9L 3G3","AL ML-Inhalothérapie-Autres-MPOC"]
[100171,6352102,8000,100,"2561 CHEMIN DE LA LIEVRE SUD","MONT-LAURIER","J9L 3G3","AL ML-Inhalothérapie-Autres"]
[100171,6351700,1051,800,"145 AVENUE DE LA PROVIDENCE","LACHUTE","J8H 4C7","AR Inhalothérapie SAD"]
[100171,6173550,1093,600,"520 BOUL. ARTHUR-SAUVE","SAINT-EUSTACHE","J7R 5B1","TB  Aides/mat. Fct./d'élim."]
[100171,6351651,1070,700,"100, RUE DU CHANOINE-LIONEL-GROULX","SAINTE-THERESE","J7E 5E1","DM Inhalothérapie à domicile"]
[100171,6351501,1070,700,"100, RUE DU CHANOINE-LIONEL-GROULX","SAINTE-THERESE","J7E 5E1","TB Inhalo. à dom.- contingence"]
[100171,6351500,1070,700,"100, RUE DU CHANOINE-LIONEL-GROULX","SAINTE-THERESE","J7E 5E1","TB Inhalothérapie à domicile"]
[100171,6351405,1060,400,"290 RUE MONTIGNY","SAINT-JEROME","J7Z 5T3","SJ Ventilation à domicile"]
[100171,6351400,1060,400,"290 RUE MONTIGNY","SAINT-JEROME","J7Z 5T3","SJ Inhalothérapie à domicile"]
[100171,6351300,1073,200,"694 CHEMIN AVILA","PIEDMONT","J0R1R3","PH INHALOTHERAPIE"]
[100171,6351200,1085,300,"234 RUE SAINT-VINCENT","SAINTE-AGATHE-DES-MONTS","J8C 2B8","DS Inhalothérapie à domicile"]
[100171,6351101,8000,100,"2561 CHEMIN DE LA LIEVRE SUD","MONT-LAURIER","J9L 3G3","AL Inhalothérapie SAD"]
[100171,6332700,1051,800,"145 AVENUE DE LA PROVIDENCE","LACHUTE","J8H 4C7","AR Services externes psych. adultes"]
[100171,6332637,1090,600,"111 RUE SAINT-LAURENT","SAINT-EUSTACHE","J7P 3Z5","DM Service évaluation et de traitement"]
[100171,6332636,1093,600,"520 BOUL. ARTHUR-SAUVE","SAINT-EUSTACHE","J7R 5B1","DM Clinique externe SM"]
[100171,6332402,1060,400,"290 RUE MONTIGNY","SAINT-JEROME","J7Z 5T3","SJ Soins partagés S.M. adulte"]
[100171,6332200,1085,300,"234 RUE SAINT-VINCENT","SAINTE-AGATHE-DES-MONTS","J8C 2B8","DS Service externe psy. adulte"]
[100171,6332103,1047,200,"1525 RUE L'ANNONCIATION NORD","RIVIERE-ROUGE","J0T 1T0","AL RR-Serv.ext.psychiatrie-adultes"]
[100171,6332102,8000,100,"2561 CHEMIN DE LA LIEVRE SUD","MONT-LAURIER","J9L 3G3","AL ML-Serv.ext.psych.-Clinique SM"]
[100171,6331700,1051,800,"145 AVENUE DE LA PROVIDENCE","LACHUTE","J8H 4C7","AR Consult externes Pédopsychiatrie"]
[100171,6331636,1093,600,"520 BOUL. ARTHUR-SAUVE","SAINT-EUSTACHE","J7R 5B1","DM Consult externe Pédopsychiatrie"]
[100171,6331402,1060,400,"290 RUE MONTIGNY","SAINT-JEROME","J7Z 5T3","SJ Consult exter Soins partagés SMJ"]
[100171,6331400,1060,400,"290 RUE MONTIGNY","SAINT-JEROME","J7Z 5T3","SJ Consult externes Pédopsychiatrie"]
[100171,6331200,1085,300,"234 RUE SAINT-VINCENT","SAINTE-AGATHE-DES-MONTS","J8C 2B8","DS Consult externes Pédopsychiatrie"]
[100171,6331102,1047,200,"1525 RUE L'ANNONCIATION NORD","RIVIERE-ROUGE","J0T 1T0","AL RR-Serv.ext.pédopsych.-Psycho."]
[100171,6331101,1047,200,"1525 RUE L'ANNONCIATION NORD","RIVIERE-ROUGE","J0T 1T0","AL RR-Serv.ext.pédopsychiatrie-Clinique"]
[100171,6322700,1051,800,"145 AVENUE DE LA PROVIDENCE","LACHUTE","J8H 4C7","AR Centre de stérilisation"]
[100171,6322601,1093,600,"520 BOUL. ARTHUR-SAUVE","SAINT-EUSTACHE","J7R 5B1","DM Unité de retraitement des dispositifs médicaux"]
[100171,6322400,1060,400,"290 RUE MONTIGNY","SAINT-JEROME","J7Z 5T3","SJ Unité retraitement dispositifs médicaux"]
[100171,6322200,1085,300,"234 RUE SAINT-VINCENT","SAINTE-AGATHE-DES-MONTS","J8C 2B8","DS URDM"]
[100171,6322102,8000,100,"2561 CHEMIN DE LA LIEVRE SUD","MONT-LAURIER","J9L 3G3","AL ML-Retraitement dispositifs médicaux(CLSC - CH)"]
[100171,6322101,1047,200,"1525 RUE L'ANNONCIATION NORD","RIVIERE-ROUGE","J0T 1T0","AL RR-Retraitement dispositifs médicaux(CLSC-CH)"]
[100171,6307702,1051,800,"145 AVENUE DE LA PROVIDENCE","LACHUTE","J8H 4C7","AR Services courants méd CLSC"]
[100171,6307700,1051,800,"145 AVENUE DE LA PROVIDENCE","LACHUTE","J8H 4C7","AR Serv./santé courants"]
[100171,6307669,1070,700,"100, RUE DU CHANOINE-LIONEL-GROULX","SAINTE-THERESE","J7E 5E1","DM Point de service Mirabel"]
[100171,6307663,1070,700,"100, RUE DU CHANOINE-LIONEL-GROULX","SAINTE-THERESE","J7E 5E1","DM Serv./santé courants JOC"]
[100171,6307662,1070,700,"100, RUE DU CHANOINE-LIONEL-GROULX","SAINTE-THERESE","J7E 5E1","DM Soins courants Clinique jeunes"]
[100171,6307654,1070,700,"100, RUE DU CHANOINE-LIONEL-GROULX","SAINTE-THERESE","J7E 5E1","DM INACTIF RE 7534610 Services médicaux courants"]
[100171,6307614,1093,600,"520 BOUL. ARTHUR-SAUVE","SAINT-EUSTACHE","J7R 5B1","DM Accueil clinique"]
[100171,6307612,1060,600,"290 RUE MONTIGNY","SAINT-JEROME","J7Z 5T3","DM Accueil clinique"]
[100171,6307506,1070,700,"100, RUE DU CHANOINE-LIONEL-GROULX","SAINTE-THERESE","J7E 5E1","TB Serv./santé courants"]
[100171,6307504,1070,700,"100, RUE DU CHANOINE-LIONEL-GROULX","SAINTE-THERESE","J7E 5E1","TB Serv. de santé courants - IPS"]
[100171,6307503,1070,700,"100, RUE DU CHANOINE-LIONEL-GROULX","SAINTE-THERESE","J7E 5E1","TB Clinique des jeunes"]
[100171,6307501,1070,700,"100, RUE DU CHANOINE-LIONEL-GROULX","SAINTE-THERESE","J7E 5E1","TB Consult.ext.spéc.-pers. Clin."]
[100171,6307500,1070,700,"100, RUE DU CHANOINE-LIONEL-GROULX","SAINTE-THERESE","J7E 5E1","TB Consult.ext.spéc. - Secrét."]
[100171,6307420,1060,400,"290 RUE MONTIGNY","SAINT-JEROME","J7Z 5T3","SJ Clinique symptome respiratoire (CSR)"]
[100171,6307415,1060,400,"290 RUE MONTIGNY","SAINT-JEROME","J7Z 5T3","SJ Soins courants Clinique jeunes"]
[100171,6307410,1060,400,"290 RUE MONTIGNY","SAINT-JEROME","J7Z 5T3","SJ Guichet unique FEJ santé"]
[100171,6307405,1060,400,"290 RUE MONTIGNY","SAINT-JEROME","J7Z 5T3","SJ Clin méd clientèle orpheline"]
[100171,6307400,1060,400,"290 RUE MONTIGNY","SAINT-JEROME","J7Z 5T3","SJ Serv./santé courants"]
[100171,6307399,1047,200,"1525 RUE L'ANNONCIATION NORD","RIVIERE-ROUGE","J0T 1T0","PH Clinique ambulatoire PDH CISSS"]
[100171,6307301,1074,200,"707 BOULEVARD DE SAINTE-ADÈLE","SAINTE-ADÈLE","J8B 2N1","PH Ste-Adèle SSC"]
[100171,6307203,1085,300,"234 RUE SAINT-VINCENT","SAINTE-AGATHE-DES-MONTS","J8C 2B8","DS GACO"]
[100171,6307202,1085,300,"234 RUE SAINT-VINCENT","SAINTE-AGATHE-DES-MONTS","J8C 2B8","DS Services courants clinique jeunesse"]
[100171,6307201,1085,300,"234 RUE SAINT-VINCENT","SAINTE-AGATHE-DES-MONTS","J8C 2B8","DS Centre de santé courants Labelle"]
[100171,6307200,1085,300,"234 RUE SAINT-VINCENT","SAINTE-AGATHE-DES-MONTS","J8C 2B8","DS Ste-Agathe SSC"]
[100171,6307105,8000,100,"2561 CHEMIN DE LA LIEVRE SUD","MONT-LAURIER","J9L 3G3","AL Organisation médicale de la 1ère ligne"]
[100171,6307102,8000,100,"2561 CHEMIN DE LA LIEVRE SUD","MONT-LAURIER","J9L 3G3","AL CL-Clinique des jeunes"]
[100171,6307101,8000,100,"2561 CHEMIN DE LA LIEVRE SUD","MONT-LAURIER","J9L 3G3","AL Serv./santé courants"]
[100171,6304101,8000,100,"2561 CHEMIN DE LA LIEVRE SUD","MONT-LAURIER","J9L 3G3","AL GMFU Hautes Laurentides"]
[100171,6303601,1070,700,"100, RUE DU CHANOINE-LIONEL-GROULX","SAINTE-THERESE","J7E 5E1","DM Planification familiale"]
[100171,6303400,1060,400,"290 RUE MONTIGNY","SAINT-JEROME","J7Z 5T3","SJ Clinique IVG"]
[100171,6302700,1051,800,"145 AVENUE DE LA PROVIDENCE","LACHUTE","J8H 4C7","AR Cliniques externes"]
[100171,6302610,1093,600,"520 BOUL. ARTHUR-SAUVE","SAINT-EUSTACHE","J7R 5B1","DM Clinique externe pharmacie HSE"]
[100171,6302609,1093,600,"520 BOUL. ARTHUR-SAUVE","SAINT-EUSTACHE","J7R 5B1","DM Consultations externes obstétrique"]
[100171,6302601,1093,600,"520 BOUL. ARTHUR-SAUVE","SAINT-EUSTACHE","J7R 5B1","DM Consultations externes spécialisées"]
[100171,6302491,1060,400,"290 RUE MONTIGNY","SAINT-JEROME","J7Z 5T3","SJ Brancarderie CA 6302"]
[100171,6302430,1060,400,"290 RUE MONTIGNY","SAINT-JEROME","J7Z 5T3","SJ Clin ext générales"]
[100171,6302413,1060,400,"290 RUE MONTIGNY","SAINT-JEROME","J7Z 5T3","SJ Clinique de néphrologie"]
[100171,6302412,1060,400,"290 RUE MONTIGNY","SAINT-JEROME","J7Z 5T3","SJ Clin chir mineure"]
[100171,6302411,1060,400,"290 RUE MONTIGNY","SAINT-JEROME","J7Z 5T3","SJ Consult externes - Pédiatrie"]
[100171,6302410,1060,400,"290 RUE MONTIGNY","SAINT-JEROME","J7Z 5T3","SJ Clinique externe CRID"]
[100171,6302409,1060,400,"290 RUE MONTIGNY","SAINT-JEROME","J7Z 5T3","SJ Clinique externe cardio"]
[100171,6302408,1066,400,"175 RUE DURAND","SAINT-JEROME","J7Z 2V4","SJ Clinique de la mémoire"]
[100171,6302406,1060,400,"290 RUE MONTIGNY","SAINT-JEROME","J7Z 5T3","SJ Clin ext ophtalmologie"]
[100171,6302405,1060,400,"290 RUE MONTIGNY","SAINT-JEROME","J7Z 5T3","SJ Consult externes - Obstétrique"]
[100171,6302404,1060,400,"290 RUE MONTIGNY","SAINT-JEROME","J7Z 5T3","SJ Clin ext pneumologie"]
[100171,6302402,1060,400,"290 RUE MONTIGNY","SAINT-JEROME","J7Z 5T3","SJ Clinique immuno-allergie"]
[100171,6302207,1085,300,"234 RUE SAINT-VINCENT","SAINTE-AGATHE-DES-MONTS","J8C 2B8","DS Fourniture Clinique externe"]
[100171,6302206,1085,300,"234 RUE SAINT-VINCENT","SAINTE-AGATHE-DES-MONTS","J8C 2B8","DS Consult externes - Allaitement"]
[100171,6302205,1085,300,"234 RUE SAINT-VINCENT","SAINTE-AGATHE-DES-MONTS","J8C 2B8","DS Clinique externe de plâtre"]
[100171,6302204,1085,300,"234 RUE SAINT-VINCENT","SAINTE-AGATHE-DES-MONTS","J8C 2B8","DS INACTIF RE 6302203 Clinique externe gynécologie"]
[100171,6302203,1085,300,"234 RUE SAINT-VINCENT","SAINTE-AGATHE-DES-MONTS","J8C 2B8","DS Clinique externe chirurgie"]
[100171,6302202,1085,300,"234 RUE SAINT-VINCENT","SAINTE-AGATHE-DES-MONTS","J8C 2B8","DS Clinique externe ophtalmologie"]
[100171,6302201,1085,300,"234 RUE SAINT-VINCENT","SAINTE-AGATHE-DES-MONTS","J8C 2B8","DS Consult externes - Pédiatrie"]
[100171,6302102,8000,100,"2561 CHEMIN DE LA LIEVRE SUD","MONT-LAURIER","J9L 3G3","AL ML-Consult.externes spécialisées"]
[100171,6302101,1047,200,"1525 RUE L'ANNONCIATION NORD","RIVIERE-ROUGE","J0T 1T0","AL RR-Cons.externes spécialisées"]
[100171,6290700,1051,800,"145 AVENUE DE LA PROVIDENCE","LACHUTE","J8H 4C7","AR Hôpital de jour"]
[100171,6290500,1070,700,"100, RUE DU CHANOINE-LIONEL-GROULX","SAINTE-THERESE","J7E 5E1","TB Hôpital de jour"]
[100171,6290400,1060,400,"290 RUE MONTIGNY","SAINT-JEROME","J7Z 5T3","SJ Hôpital jour gériatrique"]
[100171,6282401,1060,400,"290 RUE MONTIGNY","SAINT-JEROME","J7Z 5T3","SJ Prog troubles human adultes sud"]
[100171,6282400,1060,400,"290 RUE MONTIGNY","SAINT-JEROME","J7Z 5T3","SJ Hôpital jour S.M. adulte - STJ"]
[100171,6274104,1044,100,"757 DE LA MADONE","MONT-LAURIER","J9L 1T3","AL S. assist. LD Autre clientèle (4e)"]
[100171,6273104,1044,100,"757 DE LA MADONE","MONT-LAURIER","J9L 1T3","AL S. infirm. LD Autre clientèle (4e)"]
[100171,6272104,1044,100,"757 DE LA MADONE","MONT-LAURIER","J9L 1T3","AL S. assist. LD asilaire (4e)"]
[100171,6271104,1044,100,"757 DE LA MADONE","MONT-LAURIER","J9L 1T3","AL S. infirm. LD asilaire (4e)"]
[100171,6260700,1051,800,"145 AVENUE DE LA PROVIDENCE","LACHUTE","J8H 4C7","AR Bloc opératoire"]
[100171,6260605,1093,600,"520 BOUL. ARTHUR-SAUVE","SAINT-EUSTACHE","J7R 5B1","DM 1ère assistance au bloc opératoire"]
[100171,6260601,1093,600,"520 BOUL. ARTHUR-SAUVE","SAINT-EUSTACHE","J7R 5B1","DM Bloc opératoire"]
[100171,6260409,1060,400,"290 RUE MONTIGNY","SAINT-JEROME","J7Z 5T3","SJ Chirurgie Ophtalmologie"]
[100171,6260402,1060,400,"290 RUE MONTIGNY","SAINT-JEROME","J7Z 5T3","SJ 1 assistance bloc"]
[100171,6260401,1060,400,"290 RUE MONTIGNY","SAINT-JEROME","J7Z 5T3","SJ Salle réveil bloc op"]
[100171,6260400,1060,400,"290 RUE MONTIGNY","SAINT-JEROME","J7Z 5T3","SJ Bloc opératoire"]
[100171,6260200,1085,300,"234 RUE SAINT-VINCENT","SAINTE-AGATHE-DES-MONTS","J8C 2B8","DS Bloc opératoire"]
[100171,6260102,8000,100,"2561 CHEMIN DE LA LIEVRE SUD","MONT-LAURIER","J9L 3G3","AL ML-Bloc opératoire-Inhalo"]
[100171,6260101,8000,100,"2561 CHEMIN DE LA LIEVRE SUD","MONT-LAURIER","J9L 3G3","AL ML-Bloc opératoire"]
[100171,6240700,1051,800,"145 AVENUE DE LA PROVIDENCE","LACHUTE","J8H 4C7","AR  Bloc d'urgence"]
[100171,6240608,1093,600,"520 BOUL. ARTHUR-SAUVE","SAINT-EUSTACHE","J7R 5B1","DM Urgence réorganisation"]
[100171,6240601,1093,600,"520 BOUL. ARTHUR-SAUVE","SAINT-EUSTACHE","J7R 5B1","DM Urgence"]
[100171,6240491,1060,400,"290 RUE MONTIGNY","SAINT-JEROME","J7Z 5T3","SJ Brancarderie CA 6240"]
[100171,6240409,1060,400,"290 RUE MONTIGNY","SAINT-JEROME","J7Z 5T3","SJ Prog agression sex (urgence)"]
[100171,6240400,1060,400,"290 RUE MONTIGNY","SAINT-JEROME","J7Z 5T3","SJ Urgence"]
[100171,6240291,1085,300,"234 RUE SAINT-VINCENT","SAINTE-AGATHE-DES-MONTS","J8C 2B8","DS Brancarderie"]
[100171,6240200,1085,300,"234 RUE SAINT-VINCENT","SAINTE-AGATHE-DES-MONTS","J8C 2B8","DS Urgence"]
[100171,6240102,8000,100,"2561 CHEMIN DE LA LIEVRE SUD","MONT-LAURIER","J9L 3G3","AL ML L'urgence"]
[100171,6202400,1060,400,"290 RUE MONTIGNY","SAINT-JEROME","J7Z 5T3","SJ Néonatologie Niveau 2B"]
[100171,6201621,1093,600,"520 BOUL. ARTHUR-SAUVE","SAINT-EUSTACHE","J7R 5B1","DM Unité de soins néonatologie de niveau 1b"]
[100171,6174654,1070,700,"100, RUE DU CHANOINE-LIONEL-GROULX","SAINTE-THERESE","J7E 5E1","DM Soins infirmiers à domicile UTRF"]
[100171,6174500,1070,700,"100, RUE DU CHANOINE-LIONEL-GROULX","SAINTE-THERESE","J7E 5E1","TB Soins infirmiers à dom. - RI"]
[100171,6174410,1060,400,"290 RUE MONTIGNY","SAINT-JEROME","J7Z 5T3","SJ Soins inf à domicile continue - R.I."]
[100171,6174200,1085,300,"234 RUE SAINT-VINCENT","SAINTE-AGATHE-DES-MONTS","J8C 2B8","DS Soins Inf.Dom.continus 5 lits"]
[100171,6173700,1051,800,"145 AVENUE DE LA PROVIDENCE","LACHUTE","J8H 4C7","AR Soins infirmiers à domicile"]
[100171,6173654,1070,700,"100, RUE DU CHANOINE-LIONEL-GROULX","SAINTE-THERESE","J7E 5E1","DM Soins infirmiers RI-RPA"]
[100171,6173651,1070,700,"100, RUE DU CHANOINE-LIONEL-GROULX","SAINTE-THERESE","J7E 5E1","DM Soins infirmiers à domicile"]
[100171,6173503,1070,700,"100, RUE DU CHANOINE-LIONEL-GROULX","SAINTE-THERESE","J7E 5E1","TB Prélèvements - Projet à dom."]
[100171,6173502,1070,700,"100, RUE DU CHANOINE-LIONEL-GROULX","SAINTE-THERESE","J7E 5E1","TB Soins inf. à dom. - Accueil"]
[100171,6173501,1070,700,"100, RUE DU CHANOINE-LIONEL-GROULX","SAINTE-THERESE","J7E 5E1","TB Soins infirmiers SAD"]
[100171,6173500,1070,700,"100, RUE DU CHANOINE-LIONEL-GROULX","SAINTE-THERESE","J7E 5E1","TB Soins inf. à dom.-Serv. Cour."]
[100171,6173451,1060,400,"290 RUE MONTIGNY","SAINT-JEROME","J7Z 5T3","SJ Projet OEMC SAD"]
[100171,6173408,1060,400,"290 RUE MONTIGNY","SAINT-JEROME","J7Z 5T3","SJ Maison de soins palliatifs de la RDN"]
[100171,6173405,1060,400,"290 RUE MONTIGNY","SAINT-JEROME","J7Z 5T3","SJ Soins infirmiers RI-RPA"]
[100171,6173400,1060,400,"290 RUE MONTIGNY","SAINT-JEROME","J7Z 5T3","SJ Soins infirmiers à domicile"]
[100171,6173301,1047,200,"1525 RUE L'ANNONCIATION NORD","RIVIERE-ROUGE","J0T 1T0","PH SOINS INFIRMIERS REGULIERS"]
[100171,6173300,1073,400,"694 CHEMIN AVILA","PIEDMONT","J0R1R3","PH ADMINISTRATION SOINS SAD"]
[100171,6173201,1085,300,"234 RUE SAINT-VINCENT","SAINTE-AGATHE-DES-MONTS","J8C 2B8","DS Télésoins"]
[100171,6173200,1085,300,"234 RUE SAINT-VINCENT","SAINTE-AGATHE-DES-MONTS","J8C 2B8","DS Soins infirmiers à domicile"]
[100171,6173105,8000,100,"2561 CHEMIN DE LA LIEVRE SUD","MONT-LAURIER","J9L 3G3","AL Garde SAD"]
[100171,6173103,8000,100,"2561 CHEMIN DE LA LIEVRE SUD","MONT-LAURIER","J9L 3G3","AL CL-Soins inf. A.D. secteur NDL"]
[100171,6173101,8000,100,"2561 CHEMIN DE LA LIEVRE SUD","MONT-LAURIER","J9L 3G3","AL Soins inf. A.Domicile"]
[100171,6160701,1051,800,"145 AVENUE DE LA PROVIDENCE","LACHUTE","J8H 4C7","AR Soins d'assist. Unité du Pavillon"]
[100171,6160700,1051,800,"145 AVENUE DE LA PROVIDENCE","LACHUTE","J8H 4C7","AR Soins d'assist. Argenteuil"]
[100171,6160666,1070,700,"100, RUE DU CHANOINE-LIONEL-GROULX","SAINTE-THERESE","J7E 5E1","DM Soins d'assistance PPA-CHSB"]
[100171,6160646,1070,700,"100, RUE DU CHANOINE-LIONEL-GROULX","SAINTE-THERESE","J7E 5E1","DM Soins d'assistance  PPA 2e étage CHSE"]
[100171,6160645,1070,700,"100, RUE DU CHANOINE-LIONEL-GROULX","SAINTE-THERESE","J7E 5E1","DM Soins d'assistance PPA 1er étage CHSE"]
[100171,6160644,1070,700,"100, RUE DU CHANOINE-LIONEL-GROULX","SAINTE-THERESE","J7E 5E1","DM Soins d'assistance PPA RC CHSE"]
[100171,6173450,1070,700,"100, RUE DU CHANOINE-LIONEL-GROULX","SAINTE-THERESE","J7E 5E1","SJ  Aides/mat. Fct./d'élim."]
[100171,6160506,1070,700,"100, RUE DU CHANOINE-LIONEL-GROULX","SAINTE-THERESE","J7E 5E1","TB S.A - SAPPA - HM2"]
[100171,6160505,1070,700,"100, RUE DU CHANOINE-LIONEL-GROULX","SAINTE-THERESE","J7E 5E1","TB S.A - SAPPA - HM1"]
[100171,6160503,1070,700,"100, RUE DU CHANOINE-LIONEL-GROULX","SAINTE-THERESE","J7E 5E1","TB S.A - SAPPA - CDD 3"]
[100171,6160502,1070,700,"100, RUE DU CHANOINE-LIONEL-GROULX","SAINTE-THERESE","J7E 5E1","TB S.A - SAPPA - CDD 2"]
[100171,6160501,1070,700,"100, RUE DU CHANOINE-LIONEL-GROULX","SAINTE-THERESE","J7E 5E1","TB S.A - SAPPA - CDD 1"]
[100171,6160500,1070,700,"100, RUE DU CHANOINE-LIONEL-GROULX","SAINTE-THERESE","J7E 5E1","TB EV SA/SAPPA Liste de rappel"]
[100171,6160452,1060,400,"290 RUE MONTIGNY","SAINT-JEROME","J7Z 5T3","SJ Projet LG Rolland CGR"]
[100171,6160451,1060,400,"290 RUE MONTIGNY","SAINT-JEROME","J7Z 5T3","SJ Projet org trav Youville"]
[100171,6160415,1060,400,"290 RUE MONTIGNY","SAINT-JEROME","J7Z 5T3","SJ Form continue PAB héb"]
[100171,6160409,1060,400,"290 RUE MONTIGNY","SAINT-JEROME","J7Z 5T3","SJ Postes réservés"]
[100171,6160402,1066,400,"175 RUE DURAND","SAINT-JEROME","J7Z 2V4","SJ Soins d'ass Résidence"]
[100171,6160302,1047,200,"1525 RUE L'ANNONCIATION NORD","RIVIERE-ROUGE","J0T 1T0","PH SOINS D'ASSISTANCE"]
[100171,6160209,1085,300,"234 RUE SAINT-VINCENT","SAINTE-AGATHE-DES-MONTS","J8C 2B8","DS Hébergement clientèle particulière"]
[100171,6160203,1047,200,"1525 RUE L'ANNONCIATION NORD","RIVIERE-ROUGE","J0T 1T0","DS Soins assitance - Labelle"]
[100171,6160202,1047,200,"1525 RUE L'ANNONCIATION NORD","RIVIERE-ROUGE","J0T 1T0","DS Soins assistance - St-Jovite"]
[100171,6160201,3004,304,"925 RUE DE SAINT-JOVITE","MONT-TREMBLANT","J8E 3J8","DS Soins assistance - P.Lapointe"]
[100171,6160107,1047,200,"1525 RUE L'ANNONCIATION NORD","RIVIERE-ROUGE","J0T 1T0","AL RR - Soins d'assist. SAPA 5e S"]
[100171,6160106,1047,200,"1525 RUE L'ANNONCIATION NORD","RIVIERE-ROUGE","J0T 1T0","AL RR Soins assist./SAPA"]
[100171,6160105,1047,200,"1525 RUE L'ANNONCIATION NORD","RIVIERE-ROUGE","J0T 1T0","AL RR-Soins assist. SAPA 5e N"]
[100171,6160101,8000,100,"2561 CHEMIN DE LA LIEVRE SUD","MONT-LAURIER","J9L 3G3","AL SA-Soins assist. SAPA"]
[100171,6160010,1051,800,"145 AVENUE DE LA PROVIDENCE","LACHUTE","J8H 4C7","RL Soins d'assist. aux pers. en perte d'autonomie"]
[100171,6100104,1047,200,"1525 RUE L'ANNONCIATION NORD","RIVIERE-ROUGE","J0T 1T0","AL RR- Psych. légale (4e)"]
[100171,6100103,1047,200,"1525 RUE L'ANNONCIATION NORD","RIVIERE-ROUGE","J0T 1T0","AL RR- Psych. légale (3e)"]
[100171,6100101,1047,200,"1525 RUE L'ANNONCIATION NORD","RIVIERE-ROUGE","J0T 1T0","AL RR- Psych. légale (1er Sud)"]
[100171,6090500,1070,700,"100, RUE DU CHANOINE-LIONEL-GROULX","SAINTE-THERESE","J7E 5E1","TB Info-Santé - autres régions"]
[100171,6082200,1085,300,"234 RUE SAINT-VINCENT","SAINTE-AGATHE-DES-MONTS","J8C 2B8","DS R.F.I. soins assit."]
[100171,6081700,1060,400,"290 RUE MONTIGNY","SAINT-JEROME","J7Z 5T3","AR Réadaptation fonct. intensive"]
[100171,6081200,1085,300,"234 RUE SAINT-VINCENT","SAINTE-AGATHE-DES-MONTS","J8C 2B8","DS Réadaptation fonctionnelle intensive"]
[100171,6070700,1051,800,"145 AVENUE DE LA PROVIDENCE","LACHUTE","J8H 4C7","AR Chirurgie d'un jour"]
[100171,6070601,1093,600,"520 BOUL. ARTHUR-SAUVE","SAINT-EUSTACHE","J7R 5B1","DM Chirurgie d'un jour"]
[100171,6070401,1060,400,"290 RUE MONTIGNY","SAINT-JEROME","J7Z 5T3","SJ Chirurgie d'un jour"]
[100171,6070201,1085,300,"234 RUE SAINT-VINCENT","SAINTE-AGATHE-DES-MONTS","J8C 2B8","DS Chirurgie d'un jour"]
[100171,6070101,8000,100,"2561 CHEMIN DE LA LIEVRE SUD","MONT-LAURIER","J9L 3G3","AL ML-Chirurgie d'un jour"]
[100171,6060702,1051,800,"145 AVENUE DE LA PROVIDENCE","LACHUTE","J8H 4C7","AR Soins infirm. unité débordement SLD"]
[100171,6060701,1051,800,"145 AVENUE DE LA PROVIDENCE","LACHUTE","J8H 4C7","AR INACTIF RE 6060700 Soins infirm. Unité de Lafontaine"]
[100171,6060700,1051,800,"145 AVENUE DE LA PROVIDENCE","LACHUTE","J8H 4C7","AR Soins infirmiers  CHSLD"]
[100171,6060666,1070,700,"100, RUE DU CHANOINE-LIONEL-GROULX","SAINTE-THERESE","J7E 5E1","DM Soins infirmiers PPA CHSB"]
[100171,6060646,1070,700,"100, RUE DU CHANOINE-LIONEL-GROULX","SAINTE-THERESE","J7E 5E1","DM INACTIF RE 6060644 Soins infirmiers PPA 2e étage CHSE"]
[100171,6060645,1070,700,"100, RUE DU CHANOINE-LIONEL-GROULX","SAINTE-THERESE","J7E 5E1","DM INACTIF RE 6060644 Soins infirmiers PPA 1er étage CHSE"]
[100171,6060644,1070,700,"100, RUE DU CHANOINE-LIONEL-GROULX","SAINTE-THERESE","J7E 5E1","DM Soins infirmiers CHSE"]
[100171,6060641,1093,600,"520 BOUL. ARTHUR-SAUVE","SAINT-EUSTACHE","J7R 5B1","DM Soins infirmiers liste de rappel CHSLD"]
[100171,6060506,1070,700,"100, RUE DU CHANOINE-LIONEL-GROULX","SAINTE-THERESE","J7E 5E1","TB INACTIF RE 6060504 S.I - SAPPA - HM2"]
[100171,6060505,1070,700,"100, RUE DU CHANOINE-LIONEL-GROULX","SAINTE-THERESE","J7E 5E1","TB INACTIF RE 6060504 S.I - SAPPA - HM1"]
[100171,6060504,1070,700,"100, RUE DU CHANOINE-LIONEL-GROULX","SAINTE-THERESE","J7E 5E1","TB Soins infirmiers HM"]
[100171,6060503,1070,700,"100, RUE DU CHANOINE-LIONEL-GROULX","SAINTE-THERESE","J7E 5E1","TB INACTIF RE 6060501 S.I - SAPPA - CDD 3"]
[100171,6060502,1070,700,"100, RUE DU CHANOINE-LIONEL-GROULX","SAINTE-THERESE","J7E 5E1","TB INACTIF RE 6060501 S.I - SAPPA - CDD 2"]
[100171,6060501,1070,700,"100, RUE DU CHANOINE-LIONEL-GROULX","SAINTE-THERESE","J7E 5E1","TB Soins infirmiers CDD"]
[100171,6060500,1070,700,"100, RUE DU CHANOINE-LIONEL-GROULX","SAINTE-THERESE","J7E 5E1","TB EV SI/SAPPA Liste de rappel"]
[100171,6060402,1066,400,"175 RUE DURAND","SAINT-JEROME","J7Z 2V4","SJ Soins infirmiers Résidence"]
[100171,6060302,1047,200,"1525 RUE L'ANNONCIATION NORD","RIVIERE-ROUGE","J0T 1T0","PH SOINS INFIRMIERS"]
[100171,6060203,1047,200,"1525 RUE L'ANNONCIATION NORD","RIVIERE-ROUGE","J0T 1T0","DS Soins infirmiers - Labelle"]
[100171,6060202,1047,200,"1525 RUE L'ANNONCIATION NORD","RIVIERE-ROUGE","J0T 1T0","DS Soins infirmiers - Tremblant"]
[100171,6060201,1085,300,"234 RUE SAINT-VINCENT","SAINTE-AGATHE-DES-MONTS","J8C 2B8","DS Soins infirmiers - P.Lapointe"]
[100171,6060106,1047,200,"1525 RUE L'ANNONCIATION NORD","RIVIERE-ROUGE","J0T 1T0","AL RR Soins infirm./SAPA"]
[100171,6060105,1047,200,"1525 RUE L'ANNONCIATION NORD","RIVIERE-ROUGE","J0T 1T0","AL RR-Soins infirmiers SAPA 5e Nord"]
[100171,6060101,8000,100,"2561 CHEMIN DE LA LIEVRE SUD","MONT-LAURIER","J9L 3G3","AL SA-Soins infirmiers SAPA"]
[100171,6060010,1051,800,"145 AVENUE DE LA PROVIDENCE","LACHUTE","J8H 4C7","RL Soins infirm. aux pers. en perte d'autonomie"]
[100171,6058421,1060,400,"290 RUE MONTIGNY","SAINT-JEROME","J7Z 5T3","SJ Projet neuro-psy gér"]
[100171,6058407,1060,400,"290 RUE MONTIGNY","SAINT-JEROME","J7Z 5T3","SJ Soins inf gér active 7e D"]
[100171,6058101,8000,100,"2561 CHEMIN DE LA LIEVRE SUD","MONT-LAURIER","J9L 3G3","AL ML-Gériatrie active"]
[100171,6056700,1051,800,"145 AVENUE DE LA PROVIDENCE","LACHUTE","J8H 4C7","AR Unité de soins courte durée"]
[100171,6056230,1085,300,"234 RUE SAINT-VINCENT","SAINTE-AGATHE-DES-MONTS","J8C 2B8","DS EV Équipe volante fixe"]
[100171,6056229,1085,300,"234 RUE SAINT-VINCENT","SAINTE-AGATHE-DES-MONTS","J8C 2B8","DS Projet support clinique chirurgie"]
[100171,6056215,1085,300,"234 RUE SAINT-VINCENT","SAINTE-AGATHE-DES-MONTS","J8C 2B8","DS Unité de débordement"]
[100171,6056210,1085,300,"234 RUE SAINT-VINCENT","SAINTE-AGATHE-DES-MONTS","J8C 2B8","DS Infirmière liaison santé Physiqu"]
[100171,6056204,1085,300,"234 RUE SAINT-VINCENT","SAINTE-AGATHE-DES-MONTS","J8C 2B8","DS Soins palliatifs"]
[100171,6056202,1085,300,"234 RUE SAINT-VINCENT","SAINTE-AGATHE-DES-MONTS","J8C 2B8","DS Unité de chirurgie"]
[100171,6056201,1085,300,"234 RUE SAINT-VINCENT","SAINTE-AGATHE-DES-MONTS","J8C 2B8","DS Unité de médecine"]
[100171,6056104,8000,100,"2561 CHEMIN DE LA LIEVRE SUD","MONT-LAURIER","J9L 3G3","AL ML-Méd-chir-Unité de débordement"]
[100171,6056103,8000,100,"2561 CHEMIN DE LA LIEVRE SUD","MONT-LAURIER","J9L 3G3","AL ML-Méd-chir-3e étage"]
[100171,6056102,8000,100,"2561 CHEMIN DE LA LIEVRE SUD","MONT-LAURIER","J9L 3G3","AL ML-Méd-chir-2e étage"]
[100171,6056101,1047,200,"1525 RUE L'ANNONCIATION NORD","RIVIERE-ROUGE","J0T 1T0","AL RR-Méd-Chir(NR)-Unité de soins"]
[100171,6055601,1093,600,"520 BOUL. ARTHUR-SAUVE","SAINT-EUSTACHE","J7R 5B1","DM Pédiatrie"]
[100171,6055407,1060,400,"290 RUE MONTIGNY","SAINT-JEROME","J7Z 5T3","SJ Soins inf pédiatrie"]
[100171,6055101,8000,100,"2561 CHEMIN DE LA LIEVRE SUD","MONT-LAURIER","J9L 3G3","AL ML-Pédiatrie"]
[100171,6053700,1051,800,"145 AVENUE DE LA PROVIDENCE","LACHUTE","J8H 4C7","AR Soins intensifs"]
[100171,6053601,1093,600,"520 BOUL. ARTHUR-SAUVE","SAINT-EUSTACHE","J7R 5B1","DM Soins intensifs"]
[100171,6053400,1060,400,"290 RUE MONTIGNY","SAINT-JEROME","J7Z 5T3","SJ Soins inf soins intensifs"]
[100171,6053200,1085,300,"234 RUE SAINT-VINCENT","SAINTE-AGATHE-DES-MONTS","J8C 2B8","DS Soins intensifs"]
[100171,6053103,8000,100,"2561 CHEMIN DE LA LIEVRE SUD","MONT-LAURIER","J9L 3G3","AL ML-Soins intensifs"]
[100171,6053102,1047,200,"1525 RUE L'ANNONCIATION NORD","RIVIERE-ROUGE","J0T 1T0","AL RR-Soins intensifs"]
[100171,6052601,1093,600,"520 BOUL. ARTHUR-SAUVE","SAINT-EUSTACHE","J7R 5B1","DM Chirurgie"]
[100171,6052416,1060,400,"290 RUE MONTIGNY","SAINT-JEROME","J7Z 5T3","SJ Soins inf chirurgie 6e A"]
[100171,6052406,1060,400,"290 RUE MONTIGNY","SAINT-JEROME","J7Z 5T3","SJ Soins inf chirurgie 6e D"]
[100171,6051682,1093,600,"520 BOUL. ARTHUR-SAUVE","SAINT-EUSTACHE","J7R 5B1","DM EV 8/28 Médecine, chir., etc."]
[100171,6051638,1093,600,"520 BOUL. ARTHUR-SAUVE","SAINT-EUSTACHE","J7R 5B1","DM Médecine 3e Bloc C"]
[100171,6051637,1093,600,"520 BOUL. ARTHUR-SAUVE","SAINT-EUSTACHE","J7R 5B1","DM Médecine non déterminée"]
[100171,6051635,1093,600,"520 BOUL. ARTHUR-SAUVE","SAINT-EUSTACHE","J7R 5B1","DM Médecine 3e Bloc E"]
[100171,6051634,1093,600,"520 BOUL. ARTHUR-SAUVE","SAINT-EUSTACHE","J7R 5B1","DM Médecine 2e Bloc C"]
[100171,6051633,1093,600,"520 BOUL. ARTHUR-SAUVE","SAINT-EUSTACHE","J7R 5B1","DM Médecine 1er Bloc E"]
[100171,6051629,1093,600,"520 BOUL. ARTHUR-SAUVE","SAINT-EUSTACHE","J7R 5B1","DM Transfert médecine"]
[100171,6051621,1093,600,"520 BOUL. ARTHUR-SAUVE","SAINT-EUSTACHE","J7R 5B1","DM Unité d'hospitalisation brève"]
[100171,6051606,1093,600,"520 BOUL. ARTHUR-SAUVE","SAINT-EUSTACHE","J7R 5B1","DM Médecine 2e Bloc E"]
[100171,6051602,1093,600,"520 BOUL. ARTHUR-SAUVE","SAINT-EUSTACHE","J7R 5B1","DM Externat"]
[100171,6051492,1060,400,"290 RUE MONTIGNY","SAINT-JEROME","J7Z 5T3","SJ Trsf UM. chir à méd"]
[100171,6051430,1060,400,"290 RUE MONTIGNY","SAINT-JEROME","J7Z 5T3","SJ EV Soins inf équipe volante"]
[100171,6051429,1060,400,"290 RUE MONTIGNY","SAINT-JEROME","J7Z 5T3","SJ EV Liste de rappel"]
[100171,6051425,1060,400,"290 RUE MONTIGNY","SAINT-JEROME","J7Z 5T3","SJ Unité hospit brève S. phys"]
[100171,6051415,1060,400,"290 RUE MONTIGNY","SAINT-JEROME","J7Z 5T3","SJ Soins inf médecine 5e A"]
[100171,6051410,1060,400,"290 RUE MONTIGNY","SAINT-JEROME","J7Z 5T3","SJ Infirmières de liaison"]
[100171,6051407,1060,400,"290 RUE MONTIGNY","SAINT-JEROME","J7Z 5T3","SJ Médecine adulte unité pédiatrie"]
[100171,6051405,1060,400,"290 RUE MONTIGNY","SAINT-JEROME","J7Z 5T3","SJ Soins inf médecine 5e D"]
[100171,6051403,1060,400,"290 RUE MONTIGNY","SAINT-JEROME","J7Z 5T3","SJ Soins inf médecine 3e D"]
[100171,6051402,1060,400,"290 RUE MONTIGNY","SAINT-JEROME","J7Z 5T3","SJ Soins inf médecine 2e D"]
[100171,6026101,1047,200,"1525 RUE L'ANNONCIATION NORD","RIVIERE-ROUGE","J0T 1T0","AL RR-Act.spéc-Besoins complexes 3e"]
[100171,6024101,1047,200,"1525 RUE L'ANNONCIATION NORD","RIVIERE-ROUGE","J0T 1T0","AL RR-Act.gén.soins-trait.LD-Psy-4e"]
[100171,6023403,1060,400,"290 RUE MONTIGNY","SAINT-JEROME","J7Z 5T3","SJ Hospit rég S.M. 3e et 4e"]
[100171,6023402,1060,400,"290 RUE MONTIGNY","SAINT-JEROME","J7Z 5T3","SJ Hospit régulière S.M. 2e"]
[100171,6023200,1085,300,"234 RUE SAINT-VINCENT","SAINTE-AGATHE-DES-MONTS","J8C 2B8","DS Psychiatrie adultes"]
[100171,6023101,1047,200,"1525 RUE L'ANNONCIATION NORD","RIVIERE-ROUGE","J0T 1T0","AL RR-Act.gén.soins aigus-1er Sud"]
[100171,6022401,1060,400,"290 RUE MONTIGNY","SAINT-JEROME","J7Z 5T3","SJ Soins intensifs S.M."]
[100171,6021409,1060,400,"290 RUE MONTIGNY","SAINT-JEROME","J7Z 5T3","SJ Unité transitoire S.M."]
[100171,6000730,1051,800,"145 AVENUE DE LA PROVIDENCE","LACHUTE","J8H 4C7","AR EV Équipe volante"]
[100171,6000729,1051,800,"145 AVENUE DE LA PROVIDENCE","LACHUTE","J8H 4C7","AR EV Occasionnels"]
[100171,6000701,1051,800,"145 AVENUE DE LA PROVIDENCE","LACHUTE","J8H 4C7","AR Administration des soins PAPA"]
[100171,6000700,1051,800,"145 AVENUE DE LA PROVIDENCE","LACHUTE","J8H 4C7","AR  Administration des soins"]
[100171,6000676,1093,600,"520 BOUL. ARTHUR-SAUVE","SAINT-EUSTACHE","J7R 5B1","DM Direction des soins infirmiers"]
[100171,6000671,1093,600,"520 BOUL. ARTHUR-SAUVE","SAINT-EUSTACHE","J7R 5B1","DM Prévention - contrôle des infections PCI"]
[100171,6000641,1070,700,"100, RUE DU CHANOINE-LIONEL-GROULX","SAINTE-THERESE","J7E 5E1","DM Administration des soins SAPA"]
[100171,6000601,1093,600,"520 BOUL. ARTHUR-SAUVE","SAINT-EUSTACHE","J7R 5B1","DM Coordination Prog Santé Physique"]
[100171,6000502,1070,700,"100, RUE DU CHANOINE-LIONEL-GROULX","SAINTE-THERESE","J7E 5E1","TB Admin. soins"]
[100171,6000501,1070,700,"100, RUE DU CHANOINE-LIONEL-GROULX","SAINTE-THERESE","J7E 5E1","TB Adm. soins - Prév. infections PCI"]
[100171,6000500,1070,700,"100, RUE DU CHANOINE-LIONEL-GROULX","SAINTE-THERESE","J7E 5E1","TB Administration des soins SAPA"]
[100171,6000451,1060,400,"290 RUE MONTIGNY","SAINT-JEROME","J7Z 5T3","SJ Projet LG Rolland GAI"]
[100171,6000402,1060,400,"290 RUE MONTIGNY","SAINT-JEROME","J7Z 5T3","SJ Prévention des infections PCI"]
[100171,6000401,1060,400,"290 RUE MONTIGNY","SAINT-JEROME","J7Z 5T3","SJ DSIPQ"]
[100171,6000400,1060,400,"290 RUE MONTIGNY","SAINT-JEROME","J7Z 5T3","SJ Coordination Prog Santé Physique"]
[100171,7151302,1073,200,"694 CHEMIN AVILA","PIEDMONT","J0R1R3","PH ADMINISTRATION SOINS CLSC"]
[100171,6000404,1085,300,"234 RUE SAINT-VINCENT","SAINTE-AGATHE-DES-MONTS","J8C 2B8","SJ Adm./soins héberg"]
[100171,6000201,1085,300,"234 RUE SAINT-VINCENT","SAINTE-AGATHE-DES-MONTS","J8C 2B8","DS Coordination Prog Santé Physique"]
[100171,6000104,8000,100,"2561 CHEMIN DE LA LIEVRE SUD","MONT-LAURIER","J9L 3G3","AL Direction des soins infirmiers"]
[100171,6000103,8000,100,"2561 CHEMIN DE LA LIEVRE SUD","MONT-LAURIER","J9L 3G3","AL Adm. des soins SAPA"]
[100171,6000102,8000,100,"2561 CHEMIN DE LA LIEVRE SUD","MONT-LAURIER","J9L 3G3","AL Administration des soins PCI"]
[100171,6000101,1047,200,"1525 RUE L'ANNONCIATION NORD","RIVIERE-ROUGE","J0T 1T0","AL Coordination Prog Santé Physique"]
[100171,6000055,1060,400,"290 RUE MONTIGNY","SAINT-JEROME","J7Z 5T3","CI Direction soins infirmiers et éthique CISSS"]
[100171,6000010,1053,400,"377 RUE PRINCIPALE","LACHUTE","J8H 1Y1","RL Administration soins SAPA"]
[100171,5990452,1060,400,"290 RUE MONTIGNY","SAINT-JEROME","J7Z 5T3","SJ Projet org travail sages-femmes A  ABOLIR"]
[100171,5990451,1060,400,"290 RUE MONTIGNY","SAINT-JEROME","J7Z 5T3","SJ Projet sages-femmes Antoine-Labelle  A ABOLIR"]
[100171,5980700,1051,800,"145 AVENUE DE LA PROVIDENCE","LACHUTE","J8H 4C7","AR GMF Argenteuil"]
[100171,5980674,1093,600,"520 BOUL. ARTHUR-SAUVE","SAINT-EUSTACHE","J7R 5B1","DM GMF Montée de la Baie"]
[100171,5980673,1093,600,"520 BOUL. ARTHUR-SAUVE","SAINT-EUSTACHE","J7R 5B1","DM GMF Centre médical Des Générations"]
[100171,5980672,1093,600,"520 BOUL. ARTHUR-SAUVE","SAINT-EUSTACHE","J7R 5B1","DM GMF Polyclinique Saint-Eustache"]
[100171,5980671,1093,600,"520 BOUL. ARTHUR-SAUVE","SAINT-EUSTACHE","J7R 5B1","DM GMF Deux-Montagnes"]
[100171,5980504,1070,700,"100, RUE DU CHANOINE-LIONEL-GROULX","SAINTE-THERESE","J7E 5E1","TB GMF - Ste-Anne des Plaines"]
[100171,5980503,1070,700,"100, RUE DU CHANOINE-LIONEL-GROULX","SAINTE-THERESE","J7E 5E1","TB GMF - Chapleau"]
[100171,5980502,1070,700,"100, RUE DU CHANOINE-LIONEL-GROULX","SAINTE-THERESE","J7E 5E1","TB GMF - Fontainebleau"]
[100171,5980501,1070,700,"100, RUE DU CHANOINE-LIONEL-GROULX","SAINTE-THERESE","J7E 5E1","TB GMF Blainville la Source"]
[100171,5980500,1070,700,"100, RUE DU CHANOINE-LIONEL-GROULX","SAINTE-THERESE","J7E 5E1","TB GMF - Lorraine"]
[100171,5980430,1060,400,"290 RUE MONTIGNY","SAINT-JEROME","J7Z 5T3","SJ AR IPS"]
[100171,5980401,1060,400,"290 RUE MONTIGNY","SAINT-JEROME","J7Z 5T3","SJ GMF Grand St-Jérôme"]
[100171,5980203,1085,300,"234 RUE SAINT-VINCENT","SAINTE-AGATHE-DES-MONTS","J8C 2B8","DS GMF(CISSS)"]
[100171,5980202,1085,300,"234 RUE SAINT-VINCENT","SAINTE-AGATHE-DES-MONTS","J8C 2B8","DS GMF des Sommets"]
[100171,5980201,1085,300,"234 RUE SAINT-VINCENT","SAINTE-AGATHE-DES-MONTS","J8C 2B8","DS GMF du Grand Mont-Tremblant"]
[100171,5980101,1047,200,"1525 RUE L'ANNONCIATION NORD","RIVIERE-ROUGE","J0T 1T0","AL GMF La Lièvre"]
[100171,5970500,1070,700,"100, RUE DU CHANOINE-LIONEL-GROULX","SAINTE-THERESE","J7E 5E1","TB Info-Social (60952)"]
[100171,5950400,1060,400,"290 RUE MONTIGNY","SAINT-JEROME","J7Z 5T3","SJ Service de formation S.I."]
[100171,5942700,1051,800,"145 AVENUE DE LA PROVIDENCE","LACHUTE","J8H 4C7","AR SIV dans la communauté"]
[100171,5942651,1070,700,"100, RUE DU CHANOINE-LIONEL-GROULX","SAINTE-THERESE","J7E 5E1","DM SIV Régional"]
[100171,5942500,1070,700,"100, RUE DU CHANOINE-LIONEL-GROULX","SAINTE-THERESE","J7E 5E1","TB Soutien d'int.var. dans comm."]
[100171,5942401,1060,400,"290 RUE MONTIGNY","SAINT-JEROME","J7Z 5T3","SJ Santé mentale justice"]
[100171,5942400,1060,400,"290 RUE MONTIGNY","SAINT-JEROME","J7Z 5T3","SJ Suivi intensité var. S.M."]
[100171,5942200,1085,300,"234 RUE SAINT-VINCENT","SAINTE-AGATHE-DES-MONTS","J8C 2B8","DS Soutien intensité variable"]
[100171,5942102,1047,200,"1525 RUE L'ANNONCIATION NORD","RIVIERE-ROUGE","J0T 1T0","AL RR-Soutien comm-S.M.-ML"]
[100171,5942101,1047,200,"1525 RUE L'ANNONCIATION NORD","RIVIERE-ROUGE","J0T 1T0","AL RR-Soutien comm.-S.M.-LA"]
[100171,5941651,1090,600,"111 RUE SAINT-LAURENT","SAINT-EUSTACHE","J7P 3Z5","DM Suivi intensif dans le milieu"]
[100171,5941500,1070,700,"100, RUE DU CHANOINE-LIONEL-GROULX","SAINTE-THERESE","J7E 5E1","TB RE 5941501 Suivi intensif dans comm."]
[100171,5941400,1060,400,"290 RUE MONTIGNY","SAINT-JEROME","J7Z 5T3","SJ Suivi intensif comm."]
[100171,5941200,1085,300,"234 RUE SAINT-VINCENT","SAINTE-AGATHE-DES-MONTS","J8C 2B8","DS Suivi intensif 2ieme ligne"]
[100171,5939701,1051,800,"145 AVENUE DE LA PROVIDENCE","LACHUTE","J8H 4C7","AR Services ambulatoire sm"]
[100171,5939700,1051,800,"145 AVENUE DE LA PROVIDENCE","LACHUTE","J8H 4C7","AR Services ambulatoire sm jeunes"]
[100171,5939653,1070,700,"100, RUE DU CHANOINE-LIONEL-GROULX","SAINTE-THERESE","J7E 5E1","DM Santé mentale jeunesse"]
[100171,5939651,1070,700,"100, RUE DU CHANOINE-LIONEL-GROULX","SAINTE-THERESE","J7E 5E1","DM Santé mentale adulte"]
[100171,5939502,1070,700,"100, RUE DU CHANOINE-LIONEL-GROULX","SAINTE-THERESE","J7E 5E1","TB Santé mentale - Dimos (69352)"]
[100171,5939501,1070,700,"100, RUE DU CHANOINE-LIONEL-GROULX","SAINTE-THERESE","J7E 5E1","TB Serv.Ambul.-Santé ment. Jeun."]
[100171,5939500,1070,700,"100, RUE DU CHANOINE-LIONEL-GROULX","SAINTE-THERESE","J7E 5E1","TB Service ambul. de santé ment."]
[100171,5939404,1060,400,"290 RUE MONTIGNY","SAINT-JEROME","J7Z 5T3","SJ Suivi court terme S.M."]
[100171,5939403,1060,400,"290 RUE MONTIGNY","SAINT-JEROME","J7Z 5T3","SJ Suivi thérapeutique S.M."]
[100171,5939402,1060,400,"290 RUE MONTIGNY","SAINT-JEROME","J7Z 5T3","SJ Liaison urgence pédopsy"]
[100171,5939400,1060,400,"290 RUE MONTIGNY","SAINT-JEROME","J7Z 5T3","SJ Liaison SM"]
[100171,5939301,1047,200,"1525 RUE L'ANNONCIATION NORD","RIVIERE-ROUGE","J0T 1T0","PH SERV.AMB.SANTÉ MENT.1ER L."]
[100171,5939202,1085,300,"234 RUE SAINT-VINCENT","SAINTE-AGATHE-DES-MONTS","J8C 2B8","DS Dimos Santé Mentale"]
[100171,5939201,1085,300,"234 RUE SAINT-VINCENT","SAINTE-AGATHE-DES-MONTS","J8C 2B8","DS Santé mentale jeunesse"]
[100171,5939200,1085,300,"234 RUE SAINT-VINCENT","SAINTE-AGATHE-DES-MONTS","J8C 2B8","DS Services ambulatoires de s. mentale 1ère ligne"]
[100171,5939102,1044,100,"757 DE LA MADONE","MONT-LAURIER","J9L 1T3","AL Serv.ambul. 1ère ligne - SM - RR"]
[100171,5939101,8000,100,"2561 CHEMIN DE LA LIEVRE SUD","MONT-LAURIER","J9L 3G3","AL Serv.ambul. 1ère ligne - SM - ML"]
[100171,5920700,1051,800,"145 AVENUE DE LA PROVIDENCE","LACHUTE","J8H 4C7","AR Intervention et suivi de crise"]
[100171,5920659,1070,700,"100, RUE DU CHANOINE-LIONEL-GROULX","SAINTE-THERESE","J7E 5E1","DM Service d'intervention de crise adulte"]
[100171,5920500,1070,700,"100, RUE DU CHANOINE-LIONEL-GROULX","SAINTE-THERESE","J7E 5E1","TB Serv.ambul. santé ment.-Crise"]
[100171,5920402,1060,400,"290 RUE MONTIGNY","SAINT-JEROME","J7Z 5T3","SJ Crise urgence S.M."]
[100171,5920401,1060,400,"290 RUE MONTIGNY","SAINT-JEROME","J7Z 5T3","SJ Suivi post-hospit. S.M."]
[100171,5920400,1060,400,"290 RUE MONTIGNY","SAINT-JEROME","J7Z 5T3","SJ Équipe de crise S.M."]
[100171,5919700,1051,800,"145 AVENUE DE LA PROVIDENCE","LACHUTE","J8H 4C7","AR Serv JED Sociaux 0-18 ans"]
[100171,5919654,1090,600,"111 RUE SAINT-LAURENT","SAINT-EUSTACHE","J7P 3Z5","DM Accueil - jeunesse"]
[100171,5919653,1070,700,"100, RUE DU CHANOINE-LIONEL-GROULX","SAINTE-THERESE","J7E 5E1","DM Serv JED Périnat/ petite enfance"]
[100171,5919652,1070,700,"100, RUE DU CHANOINE-LIONEL-GROULX","SAINTE-THERESE","J7E 5E1","DM Jeunes difficulté 0-5 ans"]
[100171,5919509,1070,700,"100, RUE DU CHANOINE-LIONEL-GROULX","SAINTE-THERESE","J7E 5E1","TB Consortium jeunesse"]
[100171,5919508,1070,700,"100, RUE DU CHANOINE-LIONEL-GROULX","SAINTE-THERESE","J7E 5E1","TB Jeunes en difficultés - Régional"]
[100171,5919507,1070,700,"100, RUE DU CHANOINE-LIONEL-GROULX","SAINTE-THERESE","J7E 5E1","TB Atelier stimulation précoce"]
[100171,5919505,1070,700,"100, RUE DU CHANOINE-LIONEL-GROULX","SAINTE-THERESE","J7E 5E1","TB serv JED Sociaux 5-12 ans"]
[100171,5919504,1070,700,"100, RUE DU CHANOINE-LIONEL-GROULX","SAINTE-THERESE","J7E 5E1","TB Serv.psycho aux jeunes-(PSJP)"]
[100171,5919503,1070,700,"100, RUE DU CHANOINE-LIONEL-GROULX","SAINTE-THERESE","J7E 5E1","TB Serv JED Sociaux 12-18 ans"]
[100171,5919502,1070,700,"100, RUE DU CHANOINE-LIONEL-GROULX","SAINTE-THERESE","J7E 5E1","TB Jeunes difficulté 0-5 ans"]
[100171,5919501,1070,700,"100, RUE DU CHANOINE-LIONEL-GROULX","SAINTE-THERESE","J7E 5E1","TB Sout. Fam.-Superv.dr.d'accès"]
[100171,5919500,1070,700,"100, RUE DU CHANOINE-LIONEL-GROULX","SAINTE-THERESE","J7E 5E1","TB Serv JED Périnat/ petite enfance"]
[100171,5919402,1060,400,"290 RUE MONTIGNY","SAINT-JEROME","J7Z 5T3","SJ Gestion et soutien autres progr Sage femme"]
[100171,5919401,1060,400,"290 RUE MONTIGNY","SAINT-JEROME","J7Z 5T3","SJ Serv JED Périnat/ petite enfance"]
[100171,5919301,1047,200,"1525 RUE L'ANNONCIATION NORD","RIVIERE-ROUGE","J0T 1T0","PH Serv JED Sociaux 0-18 ans"]
[100171,5919204,1085,300,"234 RUE SAINT-VINCENT","SAINTE-AGATHE-DES-MONTS","J8C 2B8","DS Serv JED Sociaux 0-18 ans"]
[100171,5919202,1085,300,"234 RUE SAINT-VINCENT","SAINTE-AGATHE-DES-MONTS","J8C 2B8","DS Service de crise jeunesse"]
[100171,5919201,1085,300,"234 RUE SAINT-VINCENT","SAINTE-AGATHE-DES-MONTS","J8C 2B8","DS Services psychosociaux 6-18 ans"]
[100171,5919200,1085,300,"234 RUE SAINT-VINCENT","SAINTE-AGATHE-DES-MONTS","J8C 2B8","DS Programme Négligence"]
[100171,5919102,8000,100,"2561 CHEMIN DE LA LIEVRE SUD","MONT-LAURIER","J9L 3G3","AL CL-Serv.éduc.fam-sociale (Autres TE)"]
[100171,5919101,8000,100,"2561 CHEMIN DE LA LIEVRE SUD","MONT-LAURIER","J9L 3G3","AL Serv JED Sociaux 0-18 ans"]
[100171,5850801,1060,400,"290 RUE MONTIGNY","SAINT-JEROME","J7Z 5T3","CJ Contentieux"]
[100171,5840802,1026,901,"118 RUE NOTRE-DAME","OKA","J0N 1E0","CJ Aff. Ind. -Mes. moins perturb."]
[100171,5840801,1093,600,"520 BOUL. ARTHUR-SAUVE","SAINT-EUSTACHE","J7R 5B1","CJ Affaires indiennes - Adm. Oka"]
[100171,5557401,1060,400,"290 RUE MONTIGNY","SAINT-JEROME","J7Z 5T3","AR R. I. DP Le Geai Bleu Art. 108"]
[100171,5554642,1070,1,"100, RUE DU CHANOINE-LIONEL-GROULX","SAINTE-THERESE","J7E 5E1","DM Supervision, suivi des usagers en RNI"]
[100171,5554407,1060,400,"290 RUE MONTIGNY","SAINT-JEROME","J7Z 5T3","SJ R.I. La Luciole"]
[100171,7995482,1110,400,"24 RUE GLOBENSKY","SAINT-JEROME","J7Z 6X9","SJ R.I. Résidence Le Voilier"]
[100171,5554405,1108,400,"175 RUE ST-JOSEPH","SAINT-JEROME","J7Y 2N1","SJ R.I. Manoir Rivière du Nord"]
[100171,5554404,1060,400,"290 RUE MONTIGNY","SAINT-JEROME","J7Z 5T3","SJ R.I. Desjardins"]
[100171,5554403,1107,400,"905 BOUL.DES LAURENTIDES","SAINT-JEROME","J7Z 6W7","SJ R.I. Manoir les retrouvailles"]
[100171,5554402,1151,400,"495 RUE BIBEAU","ST-EUSTACHE","J7E 0B9","SJ R.I. Villa du Nord"]
[100171,5554401,1106,400,"18083, RUE CHARLES","MIRABEL","J7J 1C5","SJ R.I. Brise des Vents"]
[100171,5554200,1085,300,"234 RUE SAINT-VINCENT","SAINTE-AGATHE-DES-MONTS","J8C 2B8","DS Supervision Usagers RNI"]
[100171,5554101,8000,100,"2561 CHEMIN DE LA LIEVRE SUD","MONT-LAURIER","J9L 3G3","AL SA-Supervision et suivi usagers en RNI - SAPA"]
[100171,5553200,1085,300,"234 RUE SAINT-VINCENT","SAINTE-AGATHE-DES-MONTS","J8C 2B8","DS Superv.suivi usagers RNI-S.Mentale"]
[100171,5553101,1047,200,"1525 RUE L'ANNONCIATION NORD","RIVIERE-ROUGE","J0T 1T0","AL RR-Suivi usagers-RNI-SM"]
[100171,5547500,1070,700,"100, RUE DU CHANOINE-LIONEL-GROULX","SAINTE-THERESE","J7E 5E1","TB Maison M.Matte-Autres ress.DP"]
[100171,5547201,1085,300,"234 RUE SAINT-VINCENT","SAINTE-AGATHE-DES-MONTS","J8C 2B8","DS RNI - Déficience physique"]
[100171,5547200,1085,300,"234 RUE SAINT-VINCENT","SAINTE-AGATHE-DES-MONTS","J8C 2B8","DS Résidence Léonard"]
[100171,5545000,1060,null,"290 RUE MONTIGNY","SAINT-JEROME","J7Z 5T3","CR Autres ressources - Dépendances"]
[100171,5544700,1051,800,"145 AVENUE DE LA PROVIDENCE","LACHUTE","J8H 4C7","AR Autres ressources UTRF St-Philippe"]
[100171,5544649,1070,700,"100, RUE DU CHANOINE-LIONEL-GROULX","SAINTE-THERESE","J7E 5E1","DM Autres ressources personne perte d'autonomie"]
[100171,5544500,1070,700,"100, RUE DU CHANOINE-LIONEL-GROULX","SAINTE-THERESE","J7E 5E1","TB LGAR Boisé BST"]
[100171,5544401,1110,400,"24 RUE GLOBENSKY","SAINT-JEROME","J7Z 7J5","SJ R.I. UTRF Résidence Le Voilier"]
[100171,5544301,1179,200,"195 BOUL DE STE-ADELE","STE-ADELE","J8B1B2","PH AUTRES RESSOURCES - UTRF"]
[100171,5544200,1085,300,"234 RUE SAINT-VINCENT","SAINTE-AGATHE-DES-MONTS","J8C 2B8","DS Budget dével. RI"]
[100171,5543200,1085,300,"234 RUE SAINT-VINCENT","SAINTE-AGATHE-DES-MONTS","J8C 2B8","DS Résidence RNI en santé mentale"]
[100171,5543102,1047,200,"1525 RUE L'ANNONCIATION NORD","RIVIERE-ROUGE","J0T 1T0","AL RR-RAC-SM - Labelle"]
[100171,5543101,1047,200,"1525 RUE L'ANNONCIATION NORD","RIVIERE-ROUGE","J0T 1T0","AL RR-RAC-SM - R.R.  (Fermé)"]
[100171,5542200,1085,300,"234 RUE SAINT-VINCENT","SAINTE-AGATHE-DES-MONTS","J8C 2B8","DS RNI Santé-Physique"]
[100171,5533204,1085,300,"234 RUE SAINT-VINCENT","SAINTE-AGATHE-DES-MONTS","J8C 2B8","DS RTF - Bélanger/Marcotte"]
[100171,5533203,1085,300,"234 RUE SAINT-VINCENT","SAINTE-AGATHE-DES-MONTS","J8C 2B8","DS Résidence RTF Pierrette Labelle"]
[100171,5533202,1085,300,"234 RUE SAINT-VINCENT","SAINTE-AGATHE-DES-MONTS","J8C 2B8","DS Résidence RTF Jocelyne Dupras"]
[100171,5533201,1085,300,"234 RUE SAINT-VINCENT","SAINTE-AGATHE-DES-MONTS","J8C 2B8","DS Résidence RTF Armande Désormeaux"]
[100171,5533101,1047,200,"1525 RUE L'ANNONCIATION NORD","RIVIERE-ROUGE","J0T 1T0","AL RTF - R. Boisclair"]
[100171,5521803,1030,901,"300 RUE SICARD","SAINTE-THÉRÈSE","J7E 3X5","CJ Dép. centr. RTF Centre (Centr)"]
[100171,5517500,1070,700,"100, RUE DU CHANOINE-LIONEL-GROULX","SAINTE-THERESE","J7E 5E1","TB RI - Rés. Hébert"]
[100171,5517200,1085,300,"234 RUE SAINT-VINCENT","SAINTE-AGATHE-DES-MONTS","J8C 2B8","DS RI Papineau"]
[100171,5517102,1044,100,"757 DE LA MADONE","MONT-LAURIER","J9L 1T3","AL RI DP Pav. André Campeau"]
[100171,5517101,1044,100,"757 DE LA MADONE","MONT-LAURIER","J9L 1T3","AL R.I. - DP - Rétribution (PSM)"]
[100171,5515000,1060,null,"290 RUE MONTIGNY","SAINT-JEROME","J7Z 5T3","CR  Ress. intermédiaires - Dépendances"]
[100171,5514700,1199,800,"21 RUE RENAUD","BROWNSBURG-CHATAM","J8G 2E7","AR RI personnes âgées"]
[100171,5514640,1093,600,"520 BOUL. ARTHUR-SAUVE","SAINT-EUSTACHE","J7R 5B1","DM Ressources intermédiaires"]
[100171,5514505,1070,700,"100, RUE DU CHANOINE-LIONEL-GROULX","SAINTE-THERESE","J7E 5E1","TB RI - Boisée 25 places"]
[100171,5514504,1070,700,"100, RUE DU CHANOINE-LIONEL-GROULX","SAINTE-THERESE","J7E 5E1","TB RI - Joie de vivre"]
[100171,5514503,1070,700,"100, RUE DU CHANOINE-LIONEL-GROULX","SAINTE-THERESE","J7E 5E1","TB RI - Marie-Thérèse"]
[100171,5514502,1070,700,"100, RUE DU CHANOINE-LIONEL-GROULX","SAINTE-THERESE","J7E 5E1","TB RI - Le Sage"]
[100171,7995533,7010,700,"1000 FRANC-BOURGEOIS","BOISBRIAND","J7H 0G5","TB RI Les Hauts Bois du Faubourg"]
[100171,5514500,1165,700,"25 76E AVENUE","BLAINVILLE","J7C 0L8","TB RI - Le Roseau (anc.Les Jardins Seigneurie)"]
[100171,5514202,1085,300,"234 RUE SAINT-VINCENT","SAINTE-AGATHE-DES-MONTS","J8C 2B8","DS RI Villa Des Générations"]
[100171,5514201,1047,200,"1525 RUE L'ANNONCIATION NORD","RIVIERE-ROUGE","J0T 1T0","DS RI Pertes/cogn. Vieux Sage"]
[100171,5514200,1085,300,"234 RUE SAINT-VINCENT","SAINTE-AGATHE-DES-MONTS","J8C 2B8","DS Les Résidences du Manoir 4 Saisons Inc."]
[100171,5514101,8000,100,"2561 CHEMIN DE LA LIEVRE SUD","MONT-LAURIER","J9L 3G3","AL RI-SAPA-Rétribution"]
[100171,5513201,1085,300,"234 RUE SAINT-VINCENT","SAINTE-AGATHE-DES-MONTS","J8C 2B8","DS Résidence RI Ressource Mariane"]
[100171,5513200,1085,300,"234 RUE SAINT-VINCENT","SAINTE-AGATHE-DES-MONTS","J8C 2B8","DS  Résidence RI Pierre G"]
[100171,5513101,1047,200,"1525 RUE L'ANNONCIATION NORD","RIVIERE-ROUGE","J0T 1T0","AL RI - Cadieux/Généreux"]
[100171,5512200,1085,300,"234 RUE SAINT-VINCENT","SAINTE-AGATHE-DES-MONTS","J8C 2B8","DS M.R. RI santé mental"]
[100171,5504809,1047,200,"1525 RUE L'ANNONCIATION NORD","RIVIERE-ROUGE","J0T 1T0","CJ La Traversée Huberdeau"]
[100171,5504803,1047,200,"1525 RUE L'ANNONCIATION NORD","RIVIERE-ROUGE","J0T 1T0","CJ L'Escale Huberdeau"]
[100171,5504801,1047,200,"1525 RUE L'ANNONCIATION NORD","RIVIERE-ROUGE","J0T 1T0","CJ Encadr. un pour un - S.Mentale"]
[100171,5502802,1047,200,"1525 RUE L'ANNONCIATION NORD","RIVIERE-ROUGE","J0T 1T0","CJ Serv. nuit sécur. - Huberdeau"]
[100171,5502801,1047,200,"1525 RUE L'ANNONCIATION NORD","RIVIERE-ROUGE","J0T 1T0","CJ Le Relais Huberdeau"]
[100171,5501834,1047,200,"1525 RUE L'ANNONCIATION NORD","RIVIERE-ROUGE","J0T 1T0","CJ La Relance Huberdeau"]
[100171,5501832,1047,200,"1525 RUE L'ANNONCIATION NORD","RIVIERE-ROUGE","J0T 1T0","CJ La Croisée Huberdeau"]
[100171,5501831,1047,200,"1525 RUE L'ANNONCIATION NORD","RIVIERE-ROUGE","J0T 1T0","CJ L'Horizon Huberdeau"]
[100171,5501830,1047,200,"1525 RUE L'ANNONCIATION NORD","RIVIERE-ROUGE","J0T 1T0","CJ La Maisonnée Huberdeau"]
[100171,5501824,1060,400,"290 RUE MONTIGNY","SAINT-JEROME","J7Z 5T3","CJ Le Transit SJ"]
[100171,5501823,1060,400,"290 RUE MONTIGNY","SAINT-JEROME","J7Z 5T3","CJ Administ. Campus St-Jérôme"]
[100171,5501822,1060,400,"290 RUE MONTIGNY","SAINT-JEROME","J7Z 5T3","CJ L'Envolée SJ"]
[100171,5501820,1047,200,"1525 RUE L'ANNONCIATION NORD","RIVIERE-ROUGE","J0T 1T0","CJ Adm. Campus Huberdeau"]
[100171,5501818,1060,400,"290 RUE MONTIGNY","SAINT-JEROME","J7Z 5T3","CJ Service de nuit -  St-Jérôme"]
[100171,5501815,1047,200,"1525 RUE L'ANNONCIATION NORD","RIVIERE-ROUGE","J0T 1T0","CJ Sécurité - U.V.Huberdeau"]
[100171,5501806,1036,901,"500 BOULEVARD DES LAURENTIDES SUITE 241","SAINT-JÉRÔME","J7Z 4M2","CJ Interv. spéciales Boisbriand"]
[100171,5501803,1036,901,"500 BOULEVARD DES LAURENTIDES SUITE 241","SAINT-JÉRÔME","J7Z 4M2","CJ Unité de vie - Budget central."]
[100171,5402837,1036,901,"500 BOULEVARD DES LAURENTIDES SUITE 241","SAINT-JÉRÔME","J7Z 4M2","CJ Supervision parentale LPJ Rég"]
[100171,5402823,1047,200,"1525 RUE L'ANNONCIATION NORD","RIVIERE-ROUGE","J0T 1T0","CJ  Adm. serv. prof.- Huberdeau"]
[100171,5402818,1030,901,"300 RUE SICARD","SAINTE-THÉRÈSE","J7E 3X5","CJ Appl.mes. 0-13 ans Ste-Thérèse"]
[100171,5402805,1070,700,"100, RUE DU CHANOINE-LIONEL-GROULX","SAINTE-THERESE","J7E 5E1","CJ Applic mes 0-5 ans Sud"]
[100171,5202805,1034,901,"358 RUE LAVIOLETTE","SAINT-JÉRÔME","J7Y 2T1","CJL LSJPA - St-Jérôme"]
[100171,5201811,1028,901,"125A CHEMIN DU TOUR-DU-LAC","SAINTE-AGATHE-DES-MONTS","J8C 1B4","CJ E / O - PJ - Ste-Agathe"]
[100171,5201801,1036,901,"500 BOULEVARD DES LAURENTIDES SUITE 241","SAINT-JÉRÔME","J7Z 4M2","CJ Équipe code 1 et 2"]
[100171,5201200,1085,300,"234 RUE SAINT-VINCENT","SAINTE-AGATHE-DES-MONTS","J8C 2B8","DS Évaluation / Orientation (LPJ)"]
[100171,5100802,1036,901,"500 BOULEVARD DES LAURENTIDES SUITE 241","SAINT-JÉRÔME","J7Z 4M2","CJ Accueil urgence sociale"]
[100171,5100801,1036,901,"500 BOULEVARD DES LAURENTIDES SUITE 241","SAINT-JÉRÔME","J7Z 4M2","CJ Accueil DPJ J-S"]
[100171,4160500,1070,700,"100, RUE DU CHANOINE-LIONEL-GROULX","SAINTE-THERESE","J7E 5E1","TB Prom, sout., prat. clin.prév."]
[100171,4160400,1060,400,"290 RUE MONTIGNY","SAINT-JEROME","J7Z 5T3","SJ Prat clin préventives"]
[100171,4160301,1075,201,"150 RUE PRINCIPALE","SAINT-SAUVEUR","J0R 1R6","PH PROM.&SOUT PRAT.CLIN.PRÉV."]
[100171,4160101,1044,100,"757 DE LA MADONE","MONT-LAURIER","J9L 1T3","AL Promotion et soutien des pratiques cliniques préventives"]
[100171,4150700,1051,800,"145 AVENUE DE LA PROVIDENCE","LACHUTE","J8H 4C7","AR Soutien et développement comm."]
[100171,4150657,1070,700,"100, RUE DU CHANOINE-LIONEL-GROULX","SAINTE-THERESE","J7E 5E1","DM Intervention communautaires soutien autre SP"]
[100171,4150400,1060,400,"290 RUE MONTIGNY","SAINT-JEROME","J7Z 5T3","SJ Intervention comm - Autres"]
[100171,4140400,1060,400,"290 RUE MONTIGNY","SAINT-JEROME","J7Z 5T3","SJ Prév chutes - PPA"]
[100171,4140200,1085,300,"234 RUE SAINT-VINCENT","SAINTE-AGATHE-DES-MONTS","J8C 2B8","DS Prévention des chutes - PIED"]
[100171,4140101,1044,100,"757 DE LA MADONE","MONT-LAURIER","J9L 1T3","AL Autres activités de santé publique"]
[100171,4133700,1051,800,"145 AVENUE DE LA PROVIDENCE","LACHUTE","J8H 4C7","AR Prévention ITSS"]
[100171,4133500,1070,700,"100, RUE DU CHANOINE-LIONEL-GROULX","SAINTE-THERESE","J7E 5E1","TB Prévention ITSS"]
[100171,4133400,1060,400,"290 RUE MONTIGNY","SAINT-JEROME","J7Z 5T3","SJ Prévention ITSS"]
[100171,4133301,1075,201,"150 RUE PRINCIPALE","SAINT-SAUVEUR","J0R 1R6","PH PRÉVENTION DES ITSS"]
[100171,4133200,1085,300,"234 RUE SAINT-VINCENT","SAINTE-AGATHE-DES-MONTS","J8C 2B8","DS Prév.infect.transmissibles sexuel.et par le sang"]
[100171,4133101,8000,100,"2561 CHEMIN DE LA LIEVRE SUD","MONT-LAURIER","J9L 3G3","AL Prévention des I.T.S. et par le sang"]
[100171,4133090,1060,400,"290 RUE MONTIGNY","SAINT-JEROME","J7Z 5T3","CI  ITSS - Échanges de seringues"]
[100171,4132700,1051,800,"145 AVENUE DE LA PROVIDENCE","LACHUTE","J8H 4C7","AR Immunisation et manif. clinique"]
[100171,4132656,1070,700,"100, RUE DU CHANOINE-LIONEL-GROULX","SAINTE-THERESE","J7E 5E1","DM Immun et manif cliniques"]
[100171,4132504,1070,700,"100, RUE DU CHANOINE-LIONEL-GROULX","SAINTE-THERESE","J7E 5E1","TB Vaccination employés"]
[100171,4132503,1070,700,"100, RUE DU CHANOINE-LIONEL-GROULX","SAINTE-THERESE","J7E 5E1","TB Vaccination rougeole"]
[100171,4132502,1070,700,"100, RUE DU CHANOINE-LIONEL-GROULX","SAINTE-THERESE","J7E 5E1","TB Vaccination anti-grippale"]
[100171,4132501,1070,700,"100, RUE DU CHANOINE-LIONEL-GROULX","SAINTE-THERESE","J7E 5E1","TB Immun et manif cliniques"]
[100171,4132500,1070,700,"100, RUE DU CHANOINE-LIONEL-GROULX","SAINTE-THERESE","J7E 5E1","TB Maladies infect. (Vacc.Jeun.)trf 4132501"]
[100171,4132404,1060,400,"290 RUE MONTIGNY","SAINT-JEROME","J7Z 5T3","SJ Vaccination petite enfance"]
[100171,4132403,1060,400,"290 RUE MONTIGNY","SAINT-JEROME","J7Z 5T3","SJ Immun et manif cliniques"]
[100171,4132402,1060,400,"290 RUE MONTIGNY","SAINT-JEROME","J7Z 5T3","CI Vaccination employé"]
[100171,4132401,1060,400,"290 RUE MONTIGNY","SAINT-JEROME","J7Z 5T3","SJ Vaccination anti-grippale"]
[100171,4132400,1060,400,"290 RUE MONTIGNY","SAINT-JEROME","J7Z 5T3","SJ Immunisation et manifestations cliniques"]
[100171,4132301,1047,200,"1525 RUE L'ANNONCIATION NORD","RIVIERE-ROUGE","J0T 1T0","PH IMMUN. & MANIFEST. CLIN."]
[100171,4132103,8000,100,"2561 CHEMIN DE LA LIEVRE SUD","MONT-LAURIER","J9L 3G3","AL Vaccination anti-grippale"]
[100171,4132102,1044,100,"757 DE LA MADONE","MONT-LAURIER","J9L 1T3","AL Immunisation - EFJ"]
[100171,4132101,1044,100,"757 DE LA MADONE","MONT-LAURIER","J9L 1T3","AL Immunisation - Serv.Courant"]
[100171,4131501,1070,700,"100, RUE DU CHANOINE-LIONEL-GROULX","SAINTE-THERESE","J7E 5E1","TB Maladies infectieuses"]
[100171,4131500,1070,700,"100, RUE DU CHANOINE-LIONEL-GROULX","SAINTE-THERESE","J7E 5E1","TB Maladies Infect décl oblig"]
[100171,4131400,1060,400,"290 RUE MONTIGNY","SAINT-JEROME","J7Z 5T3","SJ Vaccination des voyageurs"]
[100171,4131101,1044,100,"757 DE LA MADONE","MONT-LAURIER","J9L 1T3","AL Mal. Infect. Déclaration obligatoire, signalements et éclosi"]
[100171,4120700,1051,800,"145 AVENUE DE LA PROVIDENCE","LACHUTE","J8H 4C7","AR Habitudes de vie mal. chroniques"]
[100171,4120661,1087,600,"8475 RUE SAINT-JACQUES","MIRABEL","J7N 2A3","DM Projet Mirabel"]
[100171,4120658,1070,700,"100, RUE DU CHANOINE-LIONEL-GROULX","SAINTE-THERESE","J7E 5E1","DM Habitudes de vie et maladies chroniques"]
[100171,4120656,1070,700,"100, RUE DU CHANOINE-LIONEL-GROULX","SAINTE-THERESE","J7E 5E1","DM Centre d'abandon du tabac"]
[100171,4120502,1070,700,"100, RUE DU CHANOINE-LIONEL-GROULX","SAINTE-THERESE","J7E 5E1","TB  Alcochoix et jeux pathol."]
[100171,4120501,1070,700,"100, RUE DU CHANOINE-LIONEL-GROULX","SAINTE-THERESE","J7E 5E1","TB Programme 0-5-30"]
[100171,4120500,1070,700,"100, RUE DU CHANOINE-LIONEL-GROULX","SAINTE-THERESE","J7E 5E1","TB Hab vie & maladies chroniques"]
[100171,4120402,1060,400,"290 RUE MONTIGNY","SAINT-JEROME","J7Z 5T3","SJ Accessibilité au quartier 50+"]
[100171,4120401,1060,400,"290 RUE MONTIGNY","SAINT-JEROME","J7Z 5T3","SJ Programme 0 - 5 - 30"]
[100171,4120400,1060,400,"290 RUE MONTIGNY","SAINT-JEROME","J7Z 5T3","SJ Habitudes de vie et maladie chronique"]
[100171,4120301,1075,201,"150 RUE PRINCIPALE","SAINT-SAUVEUR","J0R 1R6","PH HAB. DE VIE ET MAL. CHRON."]
[100171,4120200,1085,300,"234 RUE SAINT-VINCENT","SAINTE-AGATHE-DES-MONTS","J8C 2B8","DS Habitudes vie maladies chroniques"]
[100171,4120101,8000,100,"2561 CHEMIN DE LA LIEVRE SUD","MONT-LAURIER","J9L 3G3","AL Habitude de vie et maladies chroniques"]
[100171,4120090,1060,400,"290 RUE MONTIGNY","SAINT-JEROME","J7Z 5T3","CI Tabac cessation"]
[100171,4114700,1051,800,"145 AVENUE DE LA PROVIDENCE","LACHUTE","J8H 4C7","AR Dévelop. adapt. Soc. 6-17 ans"]
[100171,4114500,1070,700,"100, RUE DU CHANOINE-LIONEL-GROULX","SAINTE-THERESE","J7E 5E1","TB Dév.adapt.int.soc. 6-17 ans"]
[100171,4114402,1060,400,"290 RUE MONTIGNY","SAINT-JEROME","J7Z 5T3","SJ École en santé"]
[100171,4114401,1060,400,"290 RUE MONTIGNY","SAINT-JEROME","J7Z 5T3","SJ Santé scolaire - Prévention"]
[100171,4114400,1060,400,"290 RUE MONTIGNY","SAINT-JEROME","J7Z 5T3","SJ Dév soc jeunes 6-17 ans & fam"]
[100171,4114301,1075,201,"150 RUE PRINCIPALE","SAINT-SAUVEUR","J0R 1R6","PH DAIS JEUNE 6-17 ANS ET FAM"]
[100171,4114101,1044,100,"757 DE LA MADONE","MONT-LAURIER","J9L 1T3","AL Dével. Adapt. Int.sociale (6-17 ans) et leur famille"]
[100171,4112700,1051,800,"145 AVENUE DE LA PROVIDENCE","LACHUTE","J8H 4C7","AR Dévelop. adapt. Soc. 0-5 ans"]
[100171,4112500,1070,700,"100, RUE DU CHANOINE-LIONEL-GROULX","SAINTE-THERESE","J7E 5E1","TB Dév adapt et intégr SIPPE"]
[100171,4112409,1060,400,"290 RUE MONTIGNY","SAINT-JEROME","J7Z 5T3","SJ Cours pré-nataux"]
[100171,4112403,1060,400,"290 RUE MONTIGNY","SAINT-JEROME","J7Z 5T3","SJ Orthophonie SIPPE"]
[100171,4112400,1060,400,"290 RUE MONTIGNY","SAINT-JEROME","J7Z 5T3","SJ Dév adapt et intégr (0-5 ans)"]
[100171,4112301,1047,200,"1525 RUE L'ANNONCIATION NORD","RIVIERE-ROUGE","J0T 1T0","PH Dév adapt et intégr (0-5 ans)"]
[100171,4112101,1044,100,"757 DE LA MADONE","MONT-LAURIER","J9L 1T3","AL Dével. Adapt. Int.sociale (0-5 ans) et leur famille"]
[100171,700400,1060,400,"290 RUE MONTIGNY","SAINT-JEROME","J7Z 5T3","SJ Magasin général"]
[100171,600700,1051,800,"145 AVENUE DE LA PROVIDENCE","LACHUTE","J8H 4C7","AR Location télé"]
[100171,600103,8000,100,"2561 CHEMIN DE LA LIEVRE SUD","MONT-LAURIER","J9L 3G3","AL Location télé"]
[100171,550103,1047,200,"1525 RUE L'ANNONCIATION NORD","RIVIERE-ROUGE","J0T 1T0","AL RR-Cantine et casse-croute"]
[100171,500700,1051,800,"145 AVENUE DE LA PROVIDENCE","LACHUTE","J8H 4C7","AR Stationnement"]
[100171,500500,1070,700,"100, RUE DU CHANOINE-LIONEL-GROULX","SAINTE-THERESE","J7E 5E1","TB Parc de stationnement"]
[100171,500400,1060,400,"290 RUE MONTIGNY","SAINT-JEROME","J7Z 5T3","SJ Parc de stationnement"]
[100171,500200,1085,300,"234 RUE SAINT-VINCENT","SAINTE-AGATHE-DES-MONTS","J8C 2B8","DS Stationnement"]
[100171,500104,8000,100,"2561 CHEMIN DE LA LIEVRE SUD","MONT-LAURIER","J9L 3G3","AL ML-Parc de stationnement"]
[100171,500103,1047,200,"1525 RUE L'ANNONCIATION NORD","RIVIERE-ROUGE","J0T 1T0","AL RR-Parc de stationnement"]
[100171,500102,1047,200,"1525 RUE L'ANNONCIATION NORD","RIVIERE-ROUGE","J0T 1T0","AL LA-Parc de stationnement"]
[100171,400500,1070,700,"100, RUE DU CHANOINE-LIONEL-GROULX","SAINTE-THERESE","J7E 5E1","TB Cabine audiométrique"]
[100171,400000,1060,400,"290 RUE MONTIGNY","SAINT-JEROME","J7Z 5T3","CR PECA"]
[100171,360500,1070,700,"100, RUE DU CHANOINE-LIONEL-GROULX","SAINTE-THERESE","J7E 5E1","TB Projet SAAQ"]
[100171,260600,1093,600,"520 BOUL. ARTHUR-SAUVE","SAINT-EUSTACHE","J7R 5B1","DM Salaires des médecins résidents"]
[100171,260101,1044,100,"757 DE LA MADONE","MONT-LAURIER","J9L 1T3","AL Salaires médecins résidents - UMF"]
[100171,159000,1060,400,"290 RUE MONTIGNY","SAINT-JEROME","J7Z 5T3","CI IPLI Itinérance Projets spéciaux"]
[100171,152500,1070,700,"100, RUE DU CHANOINE-LIONEL-GROULX","SAINTE-THERESE","J7E 5E1","TB Projet PCNP - OLO"]
[100171,152101,1044,100,"757 DE LA MADONE","MONT-LAURIER","J9L 1T3","AL Prog.Canadien Nutrition Prénatale"]
[100171,106499,1060,400,"290 RUE MONTIGNY","SAINT-JEROME","J7Z 5T3","SJ Recherche dr Pesant orbofiban"]
[100171,7806494,1060,400,"290 RUE MONTIGNY","SAINT-JEROME","J7Z 5T3","SJ 1000 Labelle Regroupement FEJSC"]
[100171,7806496,1060,400,"290 RUE MONTIGNY","SAINT-JEROME","J7Z 5T3","SJ 1000 Labelle Unité médecine familiale"]
[100171,7901400,1060,400,"290 RUE MONTIGNY","SAINT-JEROME","J7Z 5T3","SJ Personnel en surnuméraire"]
[100171,7905400,1060,400,"290 RUE MONTIGNY","SAINT-JEROME","J7Z 5T3","SJ Personnel non disponible à affectation"]
[100171,6331405,1060,400,"290 RUE MONTIGNY","SAINT-JEROME","J7Z 5T3","SJ  Service social pédopsychiatrie"]
[100171,6304400,1060,400,"290 RUE MONTIGNY","SAINT-JEROME","J7Z 5T3","SJ GMFU Lafontaine"]
[100171,7806433,1060,400,"290 RUE MONTIGNY","SAINT-JEROME","J7Z 5T3","SJ Réfection portes entrée principale"]
[100171,7806491,1060,400,"290 RUE MONTIGNY","SAINT-JEROME","J7Z 5T3","SJ 1000 Labelle Hôpital de jour S.M."]
[100171,7806492,1060,400,"290 RUE MONTIGNY","SAINT-JEROME","J7Z 5T3","SJ 1000 Labelle Clin. externe psych. adultes"]
[100171,7152455,1060,400,"290 RUE MONTIGNY","SAINT-JEROME","J7Z 5T3","SJ Projet Lean DPFEJSC"]
[100171,7806495,1060,400,"290 RUE MONTIGNY","SAINT-JEROME","J7Z 5T3","SJ 1000 Labelle Centre dialyse ext."]
[100171,7703415,1060,400,"290 RUE MONTIGNY","SAINT-JEROME","J7Z 5T3","SJ Déménagements et transports CISSS"]
[100171,7806434,1060,400,"290 RUE MONTIGNY","SAINT-JEROME","J7Z 5T3","SJ Rempl. ascenseurs blocs C & D"]
[100171,6000485,1060,400,"290 RUE MONTIGNY","SAINT-JEROME","J7Z 5T3","SJ Gestion des produits"]
[100171,7301486,1060,400,"290 RUE MONTIGNY","SAINT-JEROME","J7Z 5T3","SJ Banques budget DG"]
[100171,8999512,1070,700,"100, RUE DU CHANOINE-LIONEL-GROULX","SAINTE-THERESE","J7E 5E1","TB Comité des résidents BST"]
[100171,6890550,1070,700,"100, RUE DU CHANOINE-LIONEL-GROULX","SAINTE-THERESE","J7E 5E1","TB FDD Anim milieu de vie C/R"]
[100171,6307510,1070,700,"100, RUE DU CHANOINE-LIONEL-GROULX","SAINTE-THERESE","J7E 5E1","TB Entente de service - CEGEP L.G."]
[100171,6561503,1070,700,"100, RUE DU CHANOINE-LIONEL-GROULX","SAINTE-THERESE","J7E 5E1","TB Gestionnaire de cas"]
[100171,7535598,1070,700,"100, RUE DU CHANOINE-LIONEL-GROULX","SAINTE-THERESE","J7E 5E1","TB Inactif Télécom autres dépenses CLSC"]
[100171,7307505,1070,700,"100, RUE DU CHANOINE-LIONEL-GROULX","SAINTE-THERESE","J7E 5E1","TB Fournitures - Paquets"]
[100171,7301510,1070,700,"100, RUE DU CHANOINE-LIONEL-GROULX","SAINTE-THERESE","J7E 5E1","TB Planification stratégique"]
[100171,5919510,1070,700,"100, RUE DU CHANOINE-LIONEL-GROULX","SAINTE-THERESE","J7E 5E1","TB Projet expérimentation (37636$)"]
[100171,6561505,1070,700,"100, RUE DU CHANOINE-LIONEL-GROULX","SAINTE-THERESE","J7E 5E1","TB Serv. psycho à domicile - EIC"]
[100171,7301595,1070,700,"100, RUE DU CHANOINE-LIONEL-GROULX","SAINTE-THERESE","J7E 5E1","TB Budget de formation"]
[100171,6082700,1070,700,"100, RUE DU CHANOINE-LIONEL-GROULX","SAINTE-THERESE","J7E 5E1","AR Soins d'assistance unité RFI"]
[100171,5201500,1070,700,"100, RUE DU CHANOINE-LIONEL-GROULX","SAINTE-THERESE","J7E 5E1","TB Évaluation oriemtation LPJ"]
[100171,5504802,1028,901,"125A CHEMIN DU TOUR-DU-LAC","SAINTE-AGATHE-DES-MONTS","J8C 1B4","CJ Surnombre filles"]
[100171,5501825,1031,901,"148 RUE CASTONGUAY","SAINT-JÉRÔME"," J7Y2J2","CJ Réinsertion fam. et sociale St-Jérôme"]
[100171,7554802,1028,901,"125A CHEMIN DU TOUR-DU-LAC","SAINTE-AGATHE-DES-MONTS","J8C 1B4","CJ INACTIF Alimentation campus Ste-Agathe"]
[100171,5501837,1025,901,"104 RUE DU VERT-PRÉ","HUBERDEAU","J0T 1G0","CJ Réinsertion fam. et sociale Huberdeau"]
[100171,6173505,1070,700,"100, RUE DU CHANOINE-LIONEL-GROULX","SAINTE-THERESE","J7E 5E1","TB SAD soins palliatifs (budget)"]
[100171,7304502,1070,700,"100, RUE DU CHANOINE-LIONEL-GROULX","SAINTE-THERESE","J7E 5E1","TB INACTIF Administration serv. prof et hospit (budget)"]
[100171,7302502,1070,700,"100, RUE DU CHANOINE-LIONEL-GROULX","SAINTE-THERESE","J7E 5E1","TB Administration financière (budget)"]
[100171,6805705,1051,800,"145 AVENUE DE LA PROVIDENCE","LACHUTE","J8H 4C7","AR Pharmacie RLA"]
[100171,7307705,1051,800,"145 AVENUE DE LA PROVIDENCE","LACHUTE","J8H 4C7","AR INACTIF Imprimerie RE 7307044"]
[100171,5939705,1051,800,"145 AVENUE DE LA PROVIDENCE","LACHUTE","J8H 4C7","AR Accueil crise"]
[100171,8051905,1085,300,"234 RUE SAINT-VINCENT","SAINTE-AGATHE-DES-MONTS","J8C 2B8","FL ADAPT./READ Projet SRP"]
[100171,5919359,1075,201,"150 RUE PRINCIPALE","SAINT-SAUVEUR","J0R 1R6","PH Projet FEJA organisation du travail"]
[100171,6862700,1051,800,"145 AVENUE DE LA PROVIDENCE","LACHUTE","J8H 4C7","AR Orthophonie"]
[100171,7303159,8000,100,"2561 CHEMIN DE LA LIEVRE SUD","MONT-LAURIER","J9L 3G3","AL Projet implantation Magistra"]
[100171,6081100,1047,200,"1525 RUE L'ANNONCIATION NORD","RIVIERE-ROUGE","J0T 1T0","AL Soins infirmiers unité RFI"]
[100171,6082100,1044,200,"757 DE LA MADONE","MONT-LAURIER","J9L 1T3","AL Soins d'assistance unité RFI"]
[100171,7304105,1044,102,"757 DE LA MADONE","MONT-LAURIER","J9L 1T3","AL INACTIF Fonds médecins région éloignée"]
[100171,500101,1044,100,"757 DE LA MADONE","MONT-LAURIER","J9L 1T3","AL CL-Parc de stationnement"]
[100171,7806435,1060,400,"290 RUE MONTIGNY","SAINT-JEROME","J7Z 5T3","SJ Projet 2013-026-CEJ"]
[100171,6836101,8000,100,"2561 CHEMIN DE LA LIEVRE SUD","MONT-LAURIER","J9L 3G3","AL Angioradiologie"]
[100171,7904100,1047,200,"1525 RUE L'ANNONCIATION NORD","RIVIERE-ROUGE","J0T 1T0","AL Personnel en attente d'assignation"]
[100171,7905100,1047,200,"1525 RUE L'ANNONCIATION NORD","RIVIERE-ROUGE","J0T 1T0","AL Personnel non disponible à affectation"]
[100171,7152703,1051,800,"145 AVENUE DE LA PROVIDENCE","LACHUTE","J8H 4C7","AR Gest & sout jeun (0-18 ans-CLSC)"]
[100171,7152704,1051,800,"145 AVENUE DE LA PROVIDENCE","LACHUTE","J8H 4C7","AR Gestion FEJ et services courants"]
[100171,6060706,1051,800,"145 AVENUE DE LA PROVIDENCE","LACHUTE","J8H 4C7","AR ENcadrement Résidence Lachute"]
[100171,4120701,1051,800,"145 AVENUE DE LA PROVIDENCE","LACHUTE","J8H 4C7","AR Habitudes vie maladies choniques"]
[100171,7152705,1051,800,"145 AVENUE DE LA PROVIDENCE","LACHUTE","J8H 4C7","AR Gestion FEJ et services courants"]
[100171,7152706,1051,800,"145 AVENUE DE LA PROVIDENCE","LACHUTE","J8H 4C7","AR Gestion FEJ et services courants"]
[100171,7807307,1047,200,"1525 RUE L'ANNONCIATION NORD","RIVIERE-ROUGE","J0T 1T0","PH  Esp./loués Entr./rép./install."]
[100171,7303109,8000,100,"2561 CHEMIN DE LA LIEVRE SUD","MONT-LAURIER","J9L 3G3","AL Adm. personnel (reconnaissance employés)"]
[100171,7152108,1047,200,"1525 RUE L'ANNONCIATION NORD","RIVIERE-ROUGE","J0T 1T0","AL RR-Gest.-sout.progr.-PSM"]
[100171,7806436,1060,400,"290 RUE MONTIGNY","SAINT-JEROME","J7Z 5T3","SJ Déménagements CISSS (Réserve rég. RF 100 000$)"]
[100171,7302073,1070,700,"100, RUE DU CHANOINE-LIONEL-GROULX","SAINTE-THERESE","J7E 5E1","CI Serv Comptes à payer"]
[100171,7302074,1047,200,"1525 RUE L'ANNONCIATION NORD","RIVIERE-ROUGE","J0T 1T0","CI Serv Comptabilité générale"]
[100171,7302075,1044,102,"757 DE LA MADONE","MONT-LAURIER","J9L 1T3","CI Serv Comptabilité Immo"]
[100171,7302071,1060,400,"290 RUE MONTIGNY","SAINT-JEROME","J7Z 5T3","CI Serv Paie"]
[100171,7901100,1047,200,"1525 RUE L'ANNONCIATION NORD","RIVIERE-ROUGE","J0T 1T0","AL Personnel en surnuméraire"]
[100171,7101102,1044,100,"757 DE LA MADONE","MONT-LAURIER","J9L 1T3","AL Adap./Sout. Pers.Fam - DI-TED - E"]
[100171,7108102,1044,100,"757 DE LA MADONE","MONT-LAURIER","J9L 1T3","AL Adapt.Soutien Pers.Fam - D.Phys - E"]
[100171,7152513,1070,700,"100, RUE DU CHANOINE-LIONEL-GROULX","SAINTE-THERESE","J7E 5E1","TB Sout./adm. Relat/org. commun"]
[100171,7301506,1070,700,"100, RUE DU CHANOINE-LIONEL-GROULX","SAINTE-THERESE","J7E 5E1","TB Activités reconnaissances"]
[100171,600200,1085,300,"234 RUE SAINT-VINCENT","SAINTE-AGATHE-DES-MONTS","J8C 2B8","DS Location télé"]
[100171,750200,1085,300,"234 RUE SAINT-VINCENT","SAINTE-AGATHE-DES-MONTS","J8C 2B8","DS Salon de coiffure"]
[100171,7301210,1085,300,"234 RUE SAINT-VINCENT","SAINTE-AGATHE-DES-MONTS","J8C 2B8","DS Activités de reconnaissance"]
[100171,7303070,1060,400,"290 RUE MONTIGNY","SAINT-JEROME","J7Z 5T3","CI Coordination des activités de remplacement"]
[100171,7303071,1070,700,"100, RUE DU CHANOINE-LIONEL-GROULX","SAINTE-THERESE","J7E 5E1","CI Service act. remplacement Sud"]
[100171,7303072,1060,400,"290 RUE MONTIGNY","SAINT-JEROME","J7Z 5T3","CI Service act. remplacement Centre"]
[100171,7303073,1060,400,"290 RUE MONTIGNY","SAINT-JEROME","J7Z 5T3","CI Service act.remplacement Centre-Nord"]
[100171,7303074,1044,102,"757 DE LA MADONE","MONT-LAURIER","J9L 1T3","CI Service act. remplacement Nord et projets spéciaux"]
[100171,7303075,1051,800,"145 AVENUE DE LA PROVIDENCE","LACHUTE","J8H 4C7","CI Service SSME 1 -DST, Log, DRF, DG, DRHCAJ, DPACQ, Comm."]
[100171,7303077,1044,102,"757 DE LA MADONE","MONT-LAURIER","J9L 1T3","CI Service SSME 3 -DSIEC, DSMER, DSP"]
[100171,7303079,1085,300,"234 RUE SAINT-VINCENT","SAINTE-AGATHE-DES-MONTS","J8C 2B8","CI Serv. Relations de travail"]
[100171,7302060,1024,400,"500 BOULEVARD DES LAURENTIDES","SAINT-JÉRÔME","J7Z 4M2","CI Coordination budgétisation"]
[100171,7644207,1085,300,"234 RUE SAINT-VINCENT","SAINTE-AGATHE-DES-MONTS","J8C 2B8","DS INACTIF Entretien ménager Florès"]
[100171,7301211,1085,300,"234 RUE SAINT-VINCENT","SAINTE-AGATHE-DES-MONTS","J8C 2B8","DS Gestion de la qualité et des risques"]
[100171,7303204,1085,300,"234 RUE SAINT-VINCENT","SAINTE-AGATHE-DES-MONTS","J8C 2B8","DS EV Équipe volante activités de remplacement"]
[100171,7401001,1051,800,"145 AVENUE DE LA PROVIDENCE","LACHUTE","J8H 4C7","CI Déplac usagers entre étab"]
[100171,7307030,1085,300,"234 RUE SAINT-VINCENT","SAINTE-AGATHE-DES-MONTS","J8C 2B8","CI Coordination approvisionnement et production"]
[100171,7307044,1047,200,"1525 RUE L'ANNONCIATION NORD","RIVIERE-ROUGE","J0T 1T0","CI Services de reprographie"]
[100171,7307032,1060,400,"290 RUE MONTIGNY","SAINT-JEROME","J7Z 5T3","CI Service affaires courantes appro"]
[100171,7307031,1060,400,"290 RUE MONTIGNY","SAINT-JEROME","J7Z 5T3","CI Service de gestion contractuelle appro"]
[100171,7307046,1060,400,"290 RUE MONTIGNY","SAINT-JEROME","J7Z 5T3","CI Transport autres"]
[100171,7690003,1060,400,"290 RUE MONTIGNY","SAINT-JEROME","J7Z 5T3","CI Gestion du matériel roulant"]
[100171,7303066,1060,400,"290 RUE MONTIGNY","SAINT-JEROME","J7Z 5T3","CI Dotation externe"]
[100171,7303055,1024,700,"500 BOULEVARD DES LAURENTIDES","SAINT-JÉRÔME","J7Z 4M2","CI Direction adj. services aux cadres et pratique de gestion (dév."]
[100171,6839701,1051,800,"145 AVENUE DE LA PROVIDENCE","LACHUTE","J8H 4C7","AR Support imagerie/médicale"]
[100171,6606302,1075,201,"150 RUE PRINCIPALE","SAINT-SAUVEUR","J0R 1R6","PH Centre de prélèevement (St-Sauveur)"]
[100171,6834100,1047,200,"1525 RUE L'ANNONCIATION NORD","RIVIERE-ROUGE","J0T 1T0","AL Tomodensitométrie RR"]
[100171,6607102,1047,200,"1525 RUE L'ANNONCIATION NORD","RIVIERE-ROUGE","J0T 1T0","AL Laboratoires regroupés RR"]
[100171,6601102,1047,200,"1525 RUE L'ANNONCIATION NORD","RIVIERE-ROUGE","J0T 1T0","AL Banque de sang RR"]
[100171,7535003,1085,300,"234 RUE SAINT-VINCENT","SAINTE-AGATHE-DES-MONTS","J8C 2B8","CI Infrastructures Télécommunications"]
[100171,7535004,1085,300,"234 RUE SAINT-VINCENT","SAINTE-AGATHE-DES-MONTS","J8C 2B8","CI Immobilisation TI, projet et progiciels - téléphonie"]
[100171,7340002,1060,400,"290 RUE MONTIGNY","SAINT-JEROME","J7Z 5T3","CI Opérations informatiques"]
[100171,7340003,1047,200,"1525 RUE L'ANNONCIATION NORD","RIVIERE-ROUGE","J0T 1T0","CI Infrastructures Serveurs"]
[100171,7340004,1160,901,"500 boul. des Laurentides, suite 241","Saint-Jérôme","J7Z4M2","CI Projets et Systèmes d'informations"]
[100171,7535002,1060,400,"290 RUE MONTIGNY","SAINT-JEROME","J7Z 5T3","CI Opérations Télécommunications"]
[100171,6000420,1060,400,"290 RUE MONTIGNY","SAINT-JEROME","J7Z 5T3","SJ Conseil des infirmières et infirmiers"]
[100171,7062405,1060,40,"290 RUE MONTIGNY","SAINT-JEROME","J7Z 5T3","SJ Accompagnement usagers atteint du cancer par l'IPO"]
[100171,7301001,1060,null,"290 RUE MONTIGNY","SAINT-JEROME","J7Z 5T3","CR Activités de reconnaissance"]
[100171,7301080,1060,400,"290 RUE MONTIGNY","SAINT-JEROME","J7Z 5T3","CI Dir adj. Affaires juridiques"]
[100171,7301074,1070,700,"100, RUE DU CHANOINE-LIONEL-GROULX","SAINTE-THERESE","J7E 5E1","CI INACTIF RE 6000060 Gestion intégrée de la qualité et des"]
[100171,7301072,1051,800,"145 AVENUE DE LA PROVIDENCE","LACHUTE","J8H 4C7","CI INACTIF RE 7350002 Bureau de l'évaluation de la performance"]
[100171,7303060,1060,400,"290 RUE MONTIGNY","SAINT-JEROME","J7Z 5T3","CI Services aux cadres"]
[100171,7806437,1060,400,"290 RUE MONTIGNY","SAINT-JEROME","J7Z 5T3","SJ Aménagement Centre de réadaptation St-Jérôme"]
[100171,7302058,1085,300,"234 RUE SAINT-VINCENT","SAINTE-AGATHE-DES-MONTS","J8C 2B8","CI Intégration systèmes GRF-GRM"]
[100171,7302059,1085,300,"234 RUE SAINT-VINCENT","SAINTE-AGATHE-DES-MONTS","J8C 2B8","CI Intégration systèmes RH - Paies"]
[100171,7320069,1060,400,"290 RUE MONTIGNY","SAINT-JEROME","J7Z 5T3","CI gestion de projet immo."]
[100171,6307507,1070,700,"100, RUE DU CHANOINE-LIONEL-GROULX","SAINTE-THERESE","J7E 5E1","TB INACTIF RE 6307001 Clinique GACO"]
[100171,8999414,1060,400,"290 RUE MONTIGNY","SAINT-JEROME","J7Z 5T3","SJ Comité des usagers"]
[100171,7301051,1060,400,"290 RUE MONTIGNY","SAINT-JEROME","J7Z 5T3","CI Service relations médias, publiques et à la communauté"]
[100171,7605010,1053,400,"377 RUE PRINCIPALE","LACHUTE","J8H 1Y1","RL Entret. vêtements usagers"]
[100171,4160700,1051,800,"145 AVENUE DE LA PROVIDENCE","LACHUTE","J8H 4C7","AR Promotion, soutien des pratiques préventives SP"]
[100171,6307205,1085,300,"234 RUE SAINT-VINCENT","SAINTE-AGATHE-DES-MONTS","J8C 2B8","DS Pratiques médicales CLSC"]
[100171,7801001,1093,600,"520 BOUL. ARTHUR-SAUVE","SAINT-EUSTACHE","J7R 5B1","CI Gestion entr/rép installations"]
[100171,6670020,1060,400,"290 RUE MONTIGNY","SAINT-JEROME","J7Z 5T3","CR Serv. de réadap.- Serv. infirmier 24/7"]
[100171,6000202,1085,300,"234 RUE SAINT-VINCENT","SAINTE-AGATHE-DES-MONTS","J8C 2B8","DS INACTIF RE 6000104 Projet Ratio Tremblant"]
[100171,5919701,1051,800,"145 AVENUE DE LA PROVIDENCE","LACHUTE","J8H 4C7","AR Serv JED Périnat/ petite enfance"]
[100171,5919707,1051,800,"145 AVENUE DE LA PROVIDENCE","LACHUTE","J8H 4C7","AR Serv psychosociaux jeunes en difficulté et leur famille NR"]
[100171,5919705,1051,800,"145 AVENUE DE LA PROVIDENCE","LACHUTE","J8H 4C7","AR Réadapt. Communauté"]
[100171,7152430,1060,400,"290 RUE MONTIGNY","SAINT-JEROME","J7Z 5T3","SJ Gestion et soutien programmes JEUNESSE"]
[100171,5402505,1070,700,"100, RUE DU CHANOINE-LIONEL-GROULX","SAINTE-THERESE","J7E 5E1","TB Ass.et support aux jeunes et famille 1-5 ans Sud"]
[100171,5402513,1070,700,"100, RUE DU CHANOINE-LIONEL-GROULX","SAINTE-THERESE","J7E 5E1","TB Ass.et support aux jeunes et famille 13-18 ans Centre"]
[100171,6000030,1060,400,"290 RUE MONTIGNY","SAINT-JEROME","J7Z 5T3","CI Admin Soins SAPA Sud"]
[100171,7151051,2000,200,"1525 RUE L'ANNONCIATION NORD","RIVIERE-ROUGE","J0T 1T0","CI Gestion et soutien aux programmes SAD Nord"]
[100171,7151052,1060,400,"290 RUE MONTIGNY","SAINT-JEROME","J7Z 5T3","CI Gestion et soutien aux programmes SAD Sud"]
[100171,7152030,1060,400,"290 RUE MONTIGNY","SAINT-JEROME","J7Z 5T3","CI Gest./prog. RI-RPA-GÉR"]
[100171,7157190,8000,100,"2561 CHEMIN DE LA LIEVRE SUD","MONT-LAURIER","J9L 3G3","AL Gestion et soutien aux prog.santé publique - ML"]
[100171,7157290,1085,300,"234 RUE SAINT-VINCENT","SAINTE-AGATHE-DES-MONTS","J8C 2B8","DS Gestion et soutien aux prog.santé publique - Nord"]
[100171,7554001,1047,200,"1525 RUE L'ANNONCIATION NORD","RIVIERE-ROUGE","J0T 1T0","CI Adm et gestion de l'alimentation"]
[100171,5919208,1085,300,"234 RUE SAINT-VINCENT","SAINTE-AGATHE-DES-MONTS","J8C 2B8","DS Serv psychosociaux Jeunes en difficulté et leur famille NR"]
[100171,5919406,1060,400,"290 RUE MONTIGNY","SAINT-JEROME","J7Z 5T3","SJ Serv JED Crise guichet"]
[100171,5919658,1092,601,"29 CHEMIN D'OKA","SAINT-EUSTACHE","J7R 1K6","DM Serv psychosociaux jeunes en difficulté et leur famille NR"]
[100171,6000705,1051,800,"145 AVENUE DE LA PROVIDENCE","LACHUTE","J8H 4C7","AR IPS"]
[100171,7553010,1053,400,"377 RUE PRINCIPALE","LACHUTE","J8H 1Y1","RL Nutrition clinique"]
[100171,7802034,1053,400,"377 RUE PRINCIPALE","LACHUTE","J8H 1Y1","SJ INACTIF RE 7802401 GBM exploit EM RLA"]
[100171,7802405,1060,400,"290 RUE MONTIGNY","SAINT-JEROME","J7Z 5T3","SJ FIM - Électromécanique EM"]
[100171,6606461,1060,400,"290 RUE MONTIGNY","SAINT-JEROME","J7Z 5T3","SJ GBM Centre de prélèvements"]
[100171,6060404,1060,400,"290 RUE MONTIGNY","SAINT-JEROME","J7Z 5T3","SJ Soins Inf CHSLD de SJE"]
[100171,6160404,1060,400,"290 RUE MONTIGNY","SAINT-JEROME","J7Z 5T3","SJ Soins Assist CHSLD de SJE"]
[100171,7606501,1070,700,"100, RUE DU CHANOINE-LIONEL-GROULX","SAINTE-THERESE","J7E 5E1","TB Produits d'incontinence CHSLD D. Deschambault 1"]
[100171,7606502,1070,700,"100, RUE DU CHANOINE-LIONEL-GROULX","SAINTE-THERESE","J7E 5E1","TB Produits d'incontinence CHSLD D. Deschambault 2"]
[100171,7606503,1070,700,"100, RUE DU CHANOINE-LIONEL-GROULX","SAINTE-THERESE","J7E 5E1","TB Produits d'incontinence CHSLD D. Deschambault 3"]
[100171,7606504,1070,700,"100, RUE DU CHANOINE-LIONEL-GROULX","SAINTE-THERESE","J7E 5E1","TB Produits d'incontinence CHSLD HM RC"]
[100171,7606505,1070,700,"100, RUE DU CHANOINE-LIONEL-GROULX","SAINTE-THERESE","J7E 5E1","TB Produits d'incontinence CHSLD HM 1E"]
[100171,7606506,1070,700,"100, RUE DU CHANOINE-LIONEL-GROULX","SAINTE-THERESE","J7E 5E1","TB Produits d'incontinence CHSLD HM 2E"]
[100171,7606010,1053,400,"377 RUE PRINCIPALE","LACHUTE","J8H 1Y1","RL Cueill, distr. & autres charg"]
[100171,7802005,1060,null,"290 RUE MONTIGNY","SAINT-JEROME","J7Z 5T3","CR FIM INACTIF Électromécanique EM"]
[100171,6604161,1044,100,"757 DE LA MADONE","MONT-LAURIER","J9L 1T3","AL GBM Anatomopathologie"]
[100171,6606161,1044,100,"757 DE LA MADONE","MONT-LAURIER","J9L 1T3","AL GBM Centre de prélèvements"]
[100171,6607161,8000,100,"2561 CHEMIN DE LA LIEVRE SUD","MONT-LAURIER","J9L 3G3","AL GBM Labos regroupés"]
[100171,6831181,1047,200,"1525 RUE L'ANNONCIATION NORD","RIVIERE-ROUGE","J0T 1T0","AL GBM Radiologie générale"]
[100171,7802105,8000,100,"2561 CHEMIN DE LA LIEVRE SUD","MONT-LAURIER","J9L 3G3","AL FIM - Électromécanique EM"]
[100171,6601161,1044,100,"757 DE LA MADONE","MONT-LAURIER","J9L 1T3","AL GBM Banque de sang"]
[100171,6832181,1044,100,"757 DE LA MADONE","MONT-LAURIER","J9L 1T3","AL GBM Ultrasonographie"]
[100171,6833181,1044,100,"757 DE LA MADONE","MONT-LAURIER","J9L 1T3","AL GBM Mammographie"]
[100171,6834181,1044,100,"757 DE LA MADONE","MONT-LAURIER","J9L 1T3","AL GBM Tomodensitométrie"]
[100171,6836181,1044,100,"757 DE LA MADONE","MONT-LAURIER","J9L 1T3","AL GBM Angioradiologie"]
[100171,6604261,1085,300,"234 RUE SAINT-VINCENT","SAINTE-AGATHE-DES-MONTS","J8C 2B8","DS GBM Anatomopathologie"]
[100171,6606261,1085,300,"234 RUE SAINT-VINCENT","SAINTE-AGATHE-DES-MONTS","J8C 2B8","DS SA - GBM Centre de prélèvements"]
[100171,6606262,1085,300,"234 RUE SAINT-VINCENT","SAINTE-AGATHE-DES-MONTS","J8C 2B8","DS TR - GBM Centre de prélèvements"]
[100171,7802205,1085,300,"234 RUE SAINT-VINCENT","SAINTE-AGATHE-DES-MONTS","J8C 2B8","DS FIM - Électromécanique EM"]
[100171,6601261,1085,300,"234 RUE SAINT-VINCENT","SAINTE-AGATHE-DES-MONTS","J8C 2B8","DS GBM Banque de sang"]
[100171,6751271,1085,300,"234 RUE SAINT-VINCENT","SAINTE-AGATHE-DES-MONTS","J8C 2B8","DS GBM Hémodynamie"]
[100171,6832281,1085,300,"234 RUE SAINT-VINCENT","SAINTE-AGATHE-DES-MONTS","J8C 2B8","DS GBM Ultrasonographie"]
[100171,6833281,1085,300,"234 RUE SAINT-VINCENT","SAINTE-AGATHE-DES-MONTS","J8C 2B8","DS GBM Mammographie"]
[100171,6834281,1085,300,"234 RUE SAINT-VINCENT","SAINTE-AGATHE-DES-MONTS","J8C 2B8","DS GBM Tomodensitométrie"]
[100171,7802305,1047,200,"1525 RUE L'ANNONCIATION NORD","RIVIERE-ROUGE","J0T 1T0","PH FIM - Électromécanique EM"]
[100171,7802505,1070,700,"100, RUE DU CHANOINE-LIONEL-GROULX","SAINTE-THERESE","J7E 5E1","TB FIM - Électromécanique EM"]
[100171,5980102,1047,200,"1525 RUE L'ANNONCIATION NORD","RIVIERE-ROUGE","J0T 1T0","AL GMF La Rouge"]
[100171,7802046,1053,400,"377 RUE PRINCIPALE","LACHUTE","J8H 1Y1","RL GBM Exploitation EM"]
[100171,7802546,1093,600,"520 BOUL. ARTHUR-SAUVE","SAINT-EUSTACHE","J7R 5B1","TB INACTIF 7802601 GBM exploit EM TDB"]
[100171,7802746,1093,600,"520 BOUL. ARTHUR-SAUVE","SAINT-EUSTACHE","J7R 5B1","AR INACTIF RE 7802601 GBM exploit EM ARG"]
[100171,7802610,1093,600,"520 BOUL. ARTHUR-SAUVE","SAINT-EUSTACHE","J7R 5B1","DM GBM Exploitation Dialyse"]
[100171,6601661,1093,600,"520 BOUL. ARTHUR-SAUVE","SAINT-EUSTACHE","J7R 5B1","DM GBM Banque de sang"]
[100171,6604661,1093,600,"520 BOUL. ARTHUR-SAUVE","SAINT-EUSTACHE","J7R 5B1","DM GBM Anatomopathologie"]
[100171,6605661,1093,600,"520 BOUL. ARTHUR-SAUVE","SAINT-EUSTACHE","J7R 5B1","DM GBM Cytologie"]
[100171,6606661,1093,600,"520 BOUL. ARTHUR-SAUVE","SAINT-EUSTACHE","J7R 5B1","DM GBM Centre de prélèvements"]
[100171,6607661,1093,600,"520 BOUL. ARTHUR-SAUVE","SAINT-EUSTACHE","J7R 5B1","DM GBM Labos non répartis"]
[100171,6607662,1093,600,"520 BOUL. ARTHUR-SAUVE","SAINT-EUSTACHE","J7R 5B1","DM GBM Biochimie"]
[100171,6607664,1093,600,"520 BOUL. ARTHUR-SAUVE","SAINT-EUSTACHE","J7R 5B1","DM GBM Microbiologie"]
[100171,6831681,1093,600,"520 BOUL. ARTHUR-SAUVE","SAINT-EUSTACHE","J7R 5B1","DM GBM Radiologie générale"]
[100171,6832681,1093,600,"520 BOUL. ARTHUR-SAUVE","SAINT-EUSTACHE","J7R 5B1","DM GBM Ultrasonographie"]
[100171,6833681,1093,600,"520 BOUL. ARTHUR-SAUVE","SAINT-EUSTACHE","J7R 5B1","DM GBM Mammographie"]
[100171,6834681,1093,600,"520 BOUL. ARTHUR-SAUVE","SAINT-EUSTACHE","J7R 5B1","DM GBM Tomodensitométrie"]
[100171,6835681,1093,600,"520 BOUL. ARTHUR-SAUVE","SAINT-EUSTACHE","J7R 5B1","DM GBM Résonance magnétique"]
[100171,7802705,1051,800,"145 AVENUE DE LA PROVIDENCE","LACHUTE","J8H 4C7","AR FIM - Électromécanique EM"]
[100171,6601761,1051,800,"145 AVENUE DE LA PROVIDENCE","LACHUTE","J8H 4C7","AR GBM Banque de sang"]
[100171,6604761,1051,800,"145 AVENUE DE LA PROVIDENCE","LACHUTE","J8H 4C7","AR GBM Anatomopathologie"]
[100171,6606761,1051,800,"145 AVENUE DE LA PROVIDENCE","LACHUTE","J8H 4C7","AR GBM Centre de prélèvements"]
[100171,6607761,1051,800,"145 AVENUE DE LA PROVIDENCE","LACHUTE","J8H 4C7","AR GBM Laboratoires regroupés"]
[100171,6831781,1051,800,"145 AVENUE DE LA PROVIDENCE","LACHUTE","J8H 4C7","AR GBM Radiologie générale"]
[100171,6832781,1051,800,"145 AVENUE DE LA PROVIDENCE","LACHUTE","J8H 4C7","AR GBM Ultrasonographie"]
[100171,6833781,1051,800,"145 AVENUE DE LA PROVIDENCE","LACHUTE","J8H 4C7","AR GBM Mammographie"]
[100171,6834781,1051,800,"145 AVENUE DE LA PROVIDENCE","LACHUTE","J8H 4C7","AR GBM Tomodensitomètre"]
[100171,6607663,1093,600,"520 BOUL. ARTHUR-SAUVE","SAINT-EUSTACHE","J7R 5B1","DM GBM Hématologie"]
[100171,7802055,1053,400,"377 RUE PRINCIPALE","LACHUTE","J8H 1Y1","RL FIM - Électromécanique EM"]
[100171,5514401,1105,400,"2319 STE-MARIE","SAINTE-SOPHIE","J5H 1M8","SJ RI - Villa du Nord"]
[100171,5514603,1151,600,"495 RUE BIBEAU","ST-EUSTACHE","J7E 0B9","DM RI L'Artisan Groupe santé Valeo"]
[100171,5514602,1155,600,"2083 CHEMIN OKA","OKA","J0N 1E0","LD RI - Manoir Oka"]
[100171,5514601,1154,600,"154 RUE ST-LOUIS","ST-EUSTACHE","J7R 1Y2","DM RI - Pavillon St-Louis"]
[100171,5514406,1060,400,"290 RUE MONTIGNY","SAINT-JEROME","J7Z 5T3","SJ RI - Le voilier"]
[100171,5514405,1106,400,"18083, RUE CHARLES","MIRABEL","J7J 1C5","SJ RI Brise des vents Lucie Canuel"]
[100171,5514404,1107,400,"905 BOUL.DES LAURENTIDES","SAINT-JEROME","J7Z 6W7","SJ RI - Manoir Les Retrouvailles"]
[100171,5514403,1108,400,"175 RUE ST-JOSEPH","SAINT-JEROME","J7Y 2N1","SJ RI - Manoir Rivière du Nord"]
[100171,7203001,1060,400,"290 RUE MONTIGNY","SAINT-JEROME","J7Z 5T3","CI Centre de documentation"]
[100171,7301702,1051,800,"145 AVENUE DE LA PROVIDENCE","LACHUTE","J8H 4C7","AR Bénévoles"]
[100171,7157205,1085,300,"234 RUE SAINT-VINCENT","SAINTE-AGATHE-DES-MONTS","J8C 2B8","DS Gestion et soutien santé publique"]
[100171,7802200,1060,400,"290 RUE MONTIGNY","SAINT-JEROME","J7Z 5T3","DS INACTIF GBM - (Nom à venir 1) SOM RE 7802201"]
[100171,7301504,1070,700,"100, RUE DU CHANOINE-LIONEL-GROULX","SAINTE-THERESE","J7E 5E1","TB Service des bénévoles"]
[100171,7801055,1044,102,"757 DE LA MADONE","MONT-LAURIER","J9L 1T3","CI Service inst. matérielles Nord"]
[100171,7801053,1060,400,"290 RUE MONTIGNY","SAINT-JEROME","J7Z 5T3","CI Service de construction"]
[100171,7644043,1044,102,"757 DE LA MADONE","MONT-LAURIER","J9L 1T3","CI INACTIF Hygiène & salubrité Centre et Nord"]
[100171,7554050,1044,102,"757 DE LA MADONE","MONT-LAURIER","J9L 1T3","CI Coordination activités alimentaires"]
[100171,5514701,1200,800,"167 ROUTE DU LONG-SAULT","ST-ANDRE-D'ARGENTEUIL","J0V 1X0","AR RI - Jardins d'Audrey - Villa Annie-Pier"]
[100171,7801052,1070,700,"100, RUE DU CHANOINE-LIONEL-GROULX","SAINTE-THERESE","J7E 5E1","CI Service int. matérielles Sud LDM-TDB"]
[100171,7152684,1060,400,"290 RUE MONTIGNY","SAINT-JEROME","J7Z 5T3","DM Gestion, soutien autres programmes DI-TSA-DP"]
[100171,7801054,1085,300,"234 RUE SAINT-VINCENT","SAINTE-AGATHE-DES-MONTS","J8C 2B8","CI Service inst. matérielles Centre PDH-SOM"]
[100171,6890501,1070,700,"100, RUE DU CHANOINE-LIONEL-GROULX","SAINTE-THERESE","J7E 5E1","TB Animation - Loisirs CHSLD H.Maisonneuve"]
[100171,6531006,1060,400,"290 RUE MONTIGNY","SAINT-JEROME","J7Z 5T3","CI Projet Maison Alois"]
[100171,7304054,1051,800,"145 AVENUE DE LA PROVIDENCE","LACHUTE","J8H 4C7","CI Comité - Conseil Multidisciplinaire"]
[100171,7154100,1044,100,"757 DE LA MADONE","MONT-LAURIER","J9L 1T3","AL Gestion & soutien centrale"]
[100171,7157100,8000,100,"2561 CHEMIN DE LA LIEVRE SUD","MONT-LAURIER","J9L 3G3","AL Gestion programme santé publique"]
[100171,7061200,1085,300,"234 RUE SAINT-VINCENT","SAINTE-AGATHE-DES-MONTS","J8C 2B8","DS Services externes hémato-oncologie"]
[100171,7061602,1060,400,"290 RUE MONTIGNY","SAINT-JEROME","J7Z 5T3","DM Services externes hémato-oncologie"]
[100171,7061102,8000,100,"2561 CHEMIN DE LA LIEVRE SUD","MONT-LAURIER","J9L 3G3","AL ML - Services externes hémato-oncologie"]
[100171,7062103,8000,100,"2561 CHEMIN DE LA LIEVRE SUD","MONT-LAURIER","J9L 3G3","AL Accompagnement usagers atteint du cancer par l'IPO"]
[100171,7061101,1047,200,"1525 RUE L'ANNONCIATION NORD","RIVIERE-ROUGE","J0T 1T0","AL RR Services externes hémato-oncologie"]
[100171,7061700,1051,800,"145 AVENUE DE LA PROVIDENCE","LACHUTE","J8H 4C7","AR Services externes hémato-oncologie"]
[100171,7062700,1051,800,"145 AVENUE DE LA PROVIDENCE","LACHUTE","J8H 4C7","AR Accompagnement usagers atteint du cancer par l'IPO"]
[100171,7062200,1085,300,"234 RUE SAINT-VINCENT","SAINTE-AGATHE-DES-MONTS","J8C 2B8","DS Accompagnement usagers atteint du cancer par l'IPO"]
[100171,4132701,1051,800,"145 AVENUE DE LA PROVIDENCE","LACHUTE","J8H 4C7","AR Vaccination anti-grippale"]
[100171,7802342,1085,300,"234 RUE SAINT-VINCENT","SAINTE-AGATHE-DES-MONTS","J8C 2B8","DS INACTIF RE 7802201 GBM exploit EM PDH"]
[100171,7802142,1044,300,"757 DE LA MADONE","MONT-LAURIER","J9L 1T3","DS INACTIF RE 7802101 GBM exploit EM ALA"]
[100171,7802110,1085,300,"234 RUE SAINT-VINCENT","SAINTE-AGATHE-DES-MONTS","J8C 2B8","AL GBM Exploitation Dialyse"]
[100171,7644042,1070,700,"100, RUE DU CHANOINE-LIONEL-GROULX","SAINTE-THERESE","J7E 5E1","CI Hygiène salubrité Sud SJE-ARG"]
[100171,6836200,1085,300,"234 RUE SAINT-VINCENT","SAINTE-AGATHE-DES-MONTS","J8C 2B8","DS Angioradiologie générale"]
[100171,6945100,1047,200,"1525 RUE L'ANNONCIATION NORD","RIVIERE-ROUGE","J0T 1T0","AL 5e SUD Internat DI client Pav./Ste-Marie"]
[100171,5542915,1018,900,"233 RUE SAINT-VINCENT","SAINTE-AGATHE-DES-MONTS","J8C 2B7","FL Autres ress. DI-TED enfance Art. 108"]
[100171,7901020,1060,null,"290 RUE MONTIGNY","SAINT-JEROME","J7Z 5T3","CR Personnel en surnuméraire"]
[100171,7905020,1060,null,"290 RUE MONTIGNY","SAINT-JEROME","J7Z 5T3","CR Personnel non disponible à affectation"]
[100171,7905500,1070,700,"100, RUE DU CHANOINE-LIONEL-GROULX","SAINTE-THERESE","J7E 5E1","TB Personnel non disponible à affectation"]
[100171,7901500,1070,700,"100, RUE DU CHANOINE-LIONEL-GROULX","SAINTE-THERESE","J7E 5E1","TB Personnel en surnuméraire"]
[100171,8999000,1060,400,"290 RUE MONTIGNY","SAINT-JEROME","J7Z 5T3","CI CNR intérêts sur emprunts"]
[100171,102201,1085,300,"234 RUE SAINT-VINCENT","SAINTE-AGATHE-DES-MONTS","J8C 2B8","DS Projet de recherche SAPA"]
[100171,7554053,1085,300,"234 RUE SAINT-VINCENT","SAINTE-AGATHE-DES-MONTS","J8C 2B8","CI Service alimentation Centre PDH-SOM"]
[100171,7905200,1085,300,"234 RUE SAINT-VINCENT","SAINTE-AGATHE-DES-MONTS","J8C 2B8","DS Personnel non disponible à affectation"]
[100171,7901200,1085,300,"234 RUE SAINT-VINCENT","SAINTE-AGATHE-DES-MONTS","J8C 2B8","DS Personnel en surnuméraire"]
[100171,7904200,1085,300,"234 RUE SAINT-VINCENT","SAINTE-AGATHE-DES-MONTS","J8C 2B8","DS Personnel en attente d'assignation"]
[100171,7533700,1051,800,"145 AVENUE DE LA PROVIDENCE","LACHUTE","J8H 4C7","AR INACTIF RE  7534400 Réc - Archives - Télécom"]
[100171,6607620,1093,600,"520 BOUL. ARTHUR-SAUVE","SAINT-EUSTACHE","J7R 5B1","DM Laboratoires regroupés"]
[100171,7644041,1070,700,"100, RUE DU CHANOINE-LIONEL-GROULX","SAINTE-THERESE","J7E 5E1","CI Hygiène salubrité Sud LDM-TDB"]
[100171,7554051,1070,700,"100, RUE DU CHANOINE-LIONEL-GROULX","SAINTE-THERESE","J7E 5E1","CI Service alimentation Sud SJE-ARG"]
[100171,5970000,1047,200,"1525 RUE L'ANNONCIATION NORD","RIVIERE-ROUGE","J0T 1T0","CI Info-Social"]
[100171,5554700,1051,800,"145 AVENUE DE LA PROVIDENCE","LACHUTE","J8H 4C7","AR Supervision suivi usagers RNI"]
[100171,4131200,1085,300,"234 RUE SAINT-VINCENT","SAINTE-AGATHE-DES-MONTS","J8C 2B8","DS Mal.infect.décl.oblig.sign.et éclos."]
[100171,4112200,1085,300,"234 RUE SAINT-VINCENT","SAINTE-AGATHE-DES-MONTS","J8C 2B8","DS Dév.adapt.int.sociale (0-5 Ans)"]
[100171,4114200,1085,300,"234 RUE SAINT-VINCENT","SAINTE-AGATHE-DES-MONTS","J8C 2B8","DS Dév.adapt.int.sociale 6 -17 Ans"]
[100171,4132200,1085,300,"234 RUE SAINT-VINCENT","SAINTE-AGATHE-DES-MONTS","J8C 2B8","DS  Immunis.manifest.clin.inhab.liées a immun."]
[100171,7902700,1051,800,"145 AVENUE DE LA PROVIDENCE","LACHUTE","J8H 4C7","AR Personne en orientation, adaptation"]
[100171,7903700,1051,800,"145 AVENUE DE LA PROVIDENCE","LACHUTE","J8H 4C7","AR Personnel en recyclage"]
[100171,7303602,1093,600,"520 BOUL. ARTHUR-SAUVE","SAINT-EUSTACHE","J7R 5B1","DM INACTIF EV Liste de rappel"]
[100171,6564200,1085,300,"234 RUE SAINT-VINCENT","SAINTE-AGATHE-DES-MONTS","J8C 2B8","DS Psychologie"]
[100171,5501810,1085,300,"234 RUE SAINT-VINCENT","SAINTE-AGATHE-DES-MONTS","J8C 2B8","CJ Le Phare (filles) Ste-Agathe"]
[100171,5501808,1047,200,"1525 RUE L'ANNONCIATION NORD","RIVIERE-ROUGE","J0T 1T0","CJ Le Sentier Huberdeau (surnombre)"]
[100171,5402510,1070,700,"100, RUE DU CHANOINE-LIONEL-GROULX","SAINTE-THERESE","J7E 5E1","TB Ass.et support aux jeunes et famille 6 - 12 ans"]
[100171,5514703,1051,800,"145 AVENUE DE LA PROVIDENCE","LACHUTE","J8H 4C7","AR RI - Résidence St-Philippe"]
[100171,5514702,1051,800,"145 AVENUE DE LA PROVIDENCE","LACHUTE","J8H 4C7","AR RI - Médaillon d'Or"]
[100171,5514507,1070,700,"100, RUE DU CHANOINE-LIONEL-GROULX","SAINTE-THERESE","J7E 5E1","TB RI - Mélissa Hébert"]
[100171,5514506,1070,700,"100, RUE DU CHANOINE-LIONEL-GROULX","SAINTE-THERESE","J7E 5E1","TB RI - Le Boisée Ste-Thérèse"]
[100171,5514408,1060,400,"290 RUE MONTIGNY","SAINT-JEROME","J7Z 5T3","SJ RI Au coeur de la vie"]
[100171,5514402,4025,400,"858, BOUL ST-ANTOINE","ST-JEROME","J7Z 3C5","SJ RI Beskcorp"]
[100171,7202500,1070,700,"100, RUE DU CHANOINE-LIONEL-GROULX","SAINTE-THERESE","J7E 5E1","TB Coordination et soutien stages"]
[100171,7303002,1060,40,"290 RUE MONTIGNY","SAINT-JEROME","J7Z 5T3","CR EV Liste de rappel"]
[100171,7646010,1053,400,"377 RUE PRINCIPALE","LACHUTE","J8H 1Y1","RL Hygiène sal.-Désinf. suite à transferts"]
[100171,8999021,1060,40,"290 RUE MONTIGNY","SAINT-JEROME","J7Z 5T3","CR Comité des usagers"]
[100171,8999513,1070,700,"100, RUE DU CHANOINE-LIONEL-GROULX","SAINTE-THERESE","J7E 5E1","TB Comité usagers versements"]
[100171,8999015,1053,400,"377 RUE PRINCIPALE","LACHUTE","J8H 1Y1","RL Comité des usagers"]
[100171,8999999,1060,400,"290 RUE MONTIGNY","SAINT-JEROME","J7Z 5T3","CISSS - Dist. Invalide suspends paie"]
[100171,7301075,1070,700,"100, RUE DU CHANOINE-LIONEL-GROULX","SAINTE-THERESE","J7E 5E1","CI Gestion stratégique de l'information"]
[100172,3002013,1093,600,"520 BOUL. ARTHUR-SAUVE","SAINT-EUSTACHE","J7R 5B1",{"$error":"#N/A"}]
[100171,6565205,1081,301,"144 RUE PRINCIPALE EST","SAINTE-AGATHE-DES-MONTS","J8C 1K3","DS Services sociaux - clinique externe d'oncologie"]
[100171,5919511,1070,700,"100, RUE DU CHANOINE-LIONEL-GROULX","SAINTE-THERESE","J7E 5E1","TB Service périnatalité et petite enfance Sud"]
[100171,5919513,1070,700,"100, RUE DU CHANOINE-LIONEL-GROULX","SAINTE-THERESE","J7E 5E1","TB Service jeunesse 6-12 ans Sud"]
[100171,5919514,1070,700,"100, RUE DU CHANOINE-LIONEL-GROULX","SAINTE-THERESE","J7E 5E1","TB Service jeunesse 13-18 ans Sud"]
[100171,6513302,1075,200,"150 RUE PRINCIPALE","SAINT-SAUVEUR","J0R 1R6","PH Service périnatalité et petite enfance Nord"]
[100171,7303054,1024,400,"500 BOULEVARD DES LAURENTIDES","SAINT-JÉRÔME","J7Z 4M2","CI Branché Santé"]
[100171,8051934,1070,700,"100, RUE DU CHANOINE-LIONEL-GROULX","SAINTE-THERESE","J7E 5E1","FL AR-DI N6"]
[100171,8051943,1085,300,"234 RUE SAINT-VINCENT","SAINTE-AGATHE-DES-MONTS","J8C 2B8","FL AR-DI TSA N-21A  SA"]
[100171,7152514,1070,700,"100, RUE DU CHANOINE-LIONEL-GROULX","SAINTE-THERESE","J7E 5E1","TB Direction santé mentale et dépendance"]
[100171,6173206,1085,300,"234 RUE SAINT-VINCENT","SAINTE-AGATHE-DES-MONTS","J8C 2B8","DS Soins infirmiers RI-RPA-UTRF"]
[100171,6173204,1047,200,"1525 RUE L'ANNONCIATION NORD","RIVIERE-ROUGE","J0T 1T0","DS Soins infirmiers SAD M-T - Labelle CSE"]
[100171,6173203,1085,300,"234 RUE SAINT-VINCENT","SAINTE-AGATHE-DES-MONTS","J8C 2B8","DS EV Équipe volante SI-SAD-RI-RPA-UTRF (DS-PDH)"]
[100171,7162202,1085,300,"234 RUE SAINT-VINCENT","SAINTE-AGATHE-DES-MONTS","J8C 2B8","DS Physiothérapie RI-RPA"]
[100171,5919659,1070,700,"100, RUE DU CHANOINE-LIONEL-GROULX","SAINTE-THERESE","J7E 5E1","DM Services jeunesse 0-5 ans sud"]
[100171,6000211,1085,300,"234 RUE SAINT-VINCENT","SAINTE-AGATHE-DES-MONTS","J8C 2B8","DS Prévention et contrôle des infections"]
[100171,6000212,1085,300,"234 RUE SAINT-VINCENT","SAINTE-AGATHE-DES-MONTS","J8C 2B8","DS Pratique professionnelle en SI"]
[100171,6173150,1070,700,"100, RUE DU CHANOINE-LIONEL-GROULX","SAINTE-THERESE","J7E 5E1","AL Aides/mat. Fct./d'élim."]
[100171,6430031,1085,300,"234 RUE SAINT-VINCENT","SAINTE-AGATHE-DES-MONTS","J8C 2B8","CI Mécanisme d'accès héberg. SAPA"]
[100171,6302208,1085,300,"234 RUE SAINT-VINCENT","SAINTE-AGATHE-DES-MONTS","J8C 2B8","DS Clinique de la mémoire"]
[100171,8999303,1070,700,"100, RUE DU CHANOINE-LIONEL-GROULX","SAINTE-THERESE","J7E 5E1","PH CHSLD Desjardins"]
[100171,4132657,1070,700,"100, RUE DU CHANOINE-LIONEL-GROULX","SAINTE-THERESE","J7E 5E1","DM Vaccination anti-grippale"]
[100171,6307302,1060,400,"290 RUE MONTIGNY","SAINT-JEROME","J7Z 5T3","PH CENTRE DE DETENTION"]
[100171,6804000,1060,400,"290 RUE MONTIGNY","SAINT-JEROME","J7Z 5T3","CI Pharmacie"]
[100171,5919108,8000,100,"2561 CHEMIN DE LA LIEVRE SUD","MONT-LAURIER","J9L 3G3","AL Progr. Continuum de serv. DITSA"]
[100171,8051922,1085,300,"234 RUE SAINT-VINCENT","SAINTE-AGATHE-DES-MONTS","J8C 2B8","FL AR-SRV PAJ Centre-Sud"]
[100171,4131700,1051,400,"145 AVENUE DE LA PROVIDENCE","LACHUTE","J8H 4C7","AR Maladies infectieuses Centre"]
[100171,7532030,1060,400,"290 RUE MONTIGNY","SAINT-JEROME","J7Z 5T3","BC Archives"]
[100171,6731200,1085,300,"234 RUE SAINT-VINCENT","SAINTE-AGATHE-DES-MONTS","J8C 2B8","DS Consult sociale CD"]
[100171,6731401,1060,400,"290 RUE MONTIGNY","SAINT-JEROME","J7Z 5T3","SJ Consult sociale CD"]
[100171,5517408,1111,400,"325 RUE BARETTE","SAINT-JEROME","J7Y 2K1","SJ RI DP Au coeur de la vie"]
[100171,6731101,1047,200,"1525 RUE L'ANNONCIATION NORD","RIVIERE-ROUGE","J0T 1T0","AL Serv psycho généraux adulte"]
[100171,6720002,1060,400,"290 RUE MONTIGNY","SAINT-JEROME","J7Z 5T3","CI Guichet santé mentale Coordination"]
[100171,7992001,1060,400,"290 RUE MONTIGNY","SAINT-JEROME","J7Z 5T3","Projet DCI - Cristal net"]
[100171,6865400,1060,400,"290 RUE MONTIGNY","SAINT-JEROME","J7Z 5T3","SJ Orthophonie"]
[100172,3008034,1060,400,"290 RUE MONTIGNY","SAINT-JEROME","J7Z 5T3",{"$error":"#N/A"}]
[100171,6740000,1060,400,"290 RUE MONTIGNY","SAINT-JEROME","J7Z 5T3","CI Inondation 2019 psyco soc sec civ"]
[100171,7157700,1051,800,"145 AVENUE DE LA PROVIDENCE","LACHUTE","J8H 4C7","AR Gestion programme Santé Publique"]
[100171,7157400,1060,400,"290 RUE MONTIGNY","SAINT-JEROME","J7Z 5T3","SJ Gestion programme Santé Publique"]
[100171,7157300,1074,201,"707 BOULEVARD DE SAINTE-ADÈLE","SAINTE-ADÈLE","J8B 2N1","PH Gestion programme Santé Publique"]
[100171,9998253,1060,400,"290 RUE MONTIGNY","SAINT-JEROME","J7Z 5T3",{"$error":"#N/A"}]
[100171,6565206,1060,400,"290 RUE MONTIGNY","SAINT-JEROME","J7Z 5T3","DS Serv. Sociaux Urg. Fds"]
[100171,5514605,1185,600,"10, 8e avenue","DEUX-MONTAGNES","J7R 3J4","DM RI Sélection DM"]
[100171,9998265,1060,400,"290 RUE MONTIGNY","SAINT-JEROME","J7Z 5T3",{"$error":"#N/A"}]
[100171,6051200,1085,300,"234 RUE SAINT-VINCENT","SAINTE-AGATHE-DES-MONTS","J8C 2B8","DS Unité Hospit Brève"]
[100171,9998266,1060,400,"290 RUE MONTIGNY","SAINT-JEROME","J7Z 5T3",{"$error":"#N/A"}]
[100171,8999991,1060,400,"290 RUE MONTIGNY","SAINT-JEROME","J7Z 5T3","CISSS - Dép/remb Ventes externes"]
[100171,6173512,1070,700,"100, RUE DU CHANOINE-LIONEL-GROULX","SAINTE-THERESE","J7E 5E1","TB Soins infirmiers RI-RPA"]
[100171,5919010,1030,700,"300 RUE SICARD","SAINTE-THÉRÈSE","J7E 3X5","CI JED-Psychologues"]
[100171,6051412,1060,400,"290 RUE MONTIGNY","SAINT-JEROME","J7Z 5T3","SJ USCD Cardiologie"]
[100171,7534610,1070,700,"100, RUE DU CHANOINE-LIONEL-GROULX","SAINTE-THERESE","J7E 5E1","DM Support cléricale"]
[100171,7161550,1060,400,"290 RUE MONTIGNY","SAINT-JEROME","J7Z 5T3","TB Aides/mat. AVQ/QVD"]
[100171,6307206,1085,300,"234 RUE SAINT-VINCENT","SAINTE-AGATHE-DES-MONTS","J8C 2B8","DS Tremblant SSC"]
[100171,6307306,1047,200,"1525 RUE L'ANNONCIATION NORD","RIVIERE-ROUGE","J0T 1T0","PH Piedmont SSC"]
[100171,7303095,1123,400,"185 RUE DURAND","SAINT-JEROME","J7Z 2V4","CI Prév. Accident/Absentéisme 7303"]
[100171,6051495,1060,400,"290 RUE MONTIGNY","SAINT-JEROME","J7Z 5T3","SJ Prév. Accident/Absentéisme 6051"]
[100171,6051695,1093,600,"520 BOUL. ARTHUR-SAUVE","SAINT-EUSTACHE","J7R 5B1","DM Prév. Accident/Absentéisme 6051"]
[100171,6056195,8000,100,"2561 CHEMIN DE LA LIEVRE SUD","MONT-LAURIER","J9L 3G3","AL Prév. Accident/Absentéisme 6056"]
[100171,6056295,1085,300,"234 RUE SAINT-VINCENT","SAINTE-AGATHE-DES-MONTS","J8C 2B8","DS Prév. Accident/Absentéisme 6056"]
[100171,6160195,1126,100,"411 RUE DE LA MADONE","MONT-LAURIER","J9L 1S1","AL Prév. Accident/Absentéisme 6160"]
[100171,6160495,1066,400,"175 RUE DURAND","SAINT-JEROME","J7Z 2V4","SJ Prév. Accident/Absentéisme 6160 Youville"]
[100171,6240495,1060,400,"290 RUE MONTIGNY","SAINT-JEROME","J7Z 5T3","SJ Prév. Accident/Absentéisme 6240"]
[100171,6260495,1060,400,"290 RUE MONTIGNY","SAINT-JEROME","J7Z 5T3","SJ Prév. Accident/Absentéisme 6260"]
[100171,7801495,1060,400,"290 RUE MONTIGNY","SAINT-JEROME","J7Z 5T3","SJ Prév. Accident/Absentéisme 7801"]
[100171,6785495,1060,400,"290 RUE MONTIGNY","SAINT-JEROME","J7Z 5T3","SJ Prév. Accident/Absentéisme 6785"]
[100171,6051496,1060,400,"290 RUE MONTIGNY","SAINT-JEROME","J7Z 5T3","SJ  Prév. Accident/Absentéisme 6051 5E"]
[100171,6053695,1068,700,"365 CHEMIN DE LA GRANDE-CÔTE","ROSEMÈRE"," J7A1K4","DM Prév. Accident/Absentéisme 6053"]
[100171,6060295,1120,300,"635 RUE LEONARD","MONT-TREMBLANT","J8E3H9","DS Prév. Accident/Absentéisme 6060"]
[100171,6060695,1094,600,"55 RUE CHENIER","SAINT-EUSTACHE","J7R 4Y8","DM Prév. Accident/Absentéisme 6060"]
[100171,5501895,1025,200,"104 RUE DU VERT-PRÉ","HUBERDEAU","J0T 1G0","CJ Prév. Accident/Absentéisme 5501"]
[100172,3008054,4002,400,"1000 RUE LABELLE","SAINT-JEROME","J7Z 5N6",{"$error":"#N/A"}]
[100171,5544202,1198,300,"30 RUE LAROCQUE EST","STE-AGATHE-DES-MONTS","J8C3M2","DS Ress. Autres - Résidence des Laurentides"]
[100171,7090201,1085,300,"234 RUE SAINT-VINCENT","SAINTE-AGATHE-DES-MONTS","J8C 2B8","DS Clinique pré-admission"]
[100171,6000795,1051,800,"145 AVENUE DE LA PROVIDENCE","LACHUTE","J8H 4C7","AR Prév. Accident/Absentéisme 6000"]
[100171,6060696,1088,700,"9100 RUE DUMOUCHEL","MIRABEL","J7N 5A1","DM Prév. Accident/Absentéisme 6060"]
[100171,6160796,1051,800,"145 AVENUE DE LA PROVIDENCE","LACHUTE","J8H 4C7","AR Prév. Accident/Absentéisme 6160"]
[100171,6060596,2002,201,"707 BOULEVARD DE SAINTE-ADÈLE","SAINTE-ADÈLE","J8B 2N1","TB Prév. Accident/Absentéisme 6060"]
[100171,6023601,1093,600,"520 BOUL. ARTHUR-SAUVE","SAINT-EUSTACHE","J7R 5B1","DM USCD S.M."]
[100171,6260687,1093,600,"520 BOUL. ARTHUR-SAUVE","SAINT-EUSTACHE","J7R 5B1","DM Contrib./Partenariat Angio au BLOC"]
[100171,6870495,1190,400,"200 rue Rolland","St-Jérôme","J7Z 5S2","SJ Prév. Accident/Absentéisme 6870"]
[100171,5919495,1061,null,"430 RUE LABELLE","SAINT-JEROME","J7Z 5L3","SJ Prév. Accident/Absentéisme 5919"]
[100171,5939795,1051,800,"145 AVENUE DE LA PROVIDENCE","LACHUTE","J8H 4C7","AR Prév. Accident/Absentéisme 5939"]
[100171,7307097,1057,400,"1000 RUE LABELLE","SAINT-JEROME","J7Z 5N6","CI Prév. Accident/Absentéisme 7307"]
[100171,350095,1002,400,"11 RUE BOYER","SAINT-JÉRÔME","J7Z 2K5","BC Prév. Accident/Absentéisme 0350"]
[100171,6051630,1093,600,"520 BOUL. ARTHUR-SAUVE","SAINT-EUSTACHE","J7R 5B1","DM Unité transition"]
[100171,7163595,1071,702,"125 RUE DUQUET","SAINTE-THERESE","J7E 0A5","TB Prév. Accident/Absentéisme 7163"]
[100171,6364195,8000,100,"2561 CHEMIN DE LA LIEVRE SUD","MONT-LAURIER","J9L 3G3","AL Prév. Accident/Absentéisme 6364"]
[100171,6060495,1060,400,"290 RUE MONTIGNY","SAINT-JEROME","J7Z 5T3","SJ Prév. Accident/Absentéisme 6060"]
[100171,7554295,1085,300,"234 RUE SAINT-VINCENT","SAINTE-AGATHE-DES-MONTS","J8C 2B8","DS Prév. Accident/Absentéisme 7554"]
[100171,6000595,1070,700,"100, RUE DU CHANOINE-LIONEL-GROULX","SAINTE-THERESE","J7E 5E1","TB Prév. Accident/Absentéisme 6000"]
[100171,6160507,1070,700,"100, RUE DU CHANOINE-LIONEL-GROULX","SAINTE-THERESE","J7E 5E1","TB Soins assistance - Blainville"]
[100171,6060507,1070,700,"100, RUE DU CHANOINE-LIONEL-GROULX","SAINTE-THERESE","J7E 5E1","TB Soins infirmiers - Blainville"]
[100171,6060095,1053,800,"377 RUE PRINCIPALE","LACHUTE","J8H 1Y1","RL Prév. Accident/Absentéisme 6060"]
[100171,6260600,1207,400,"4800 RUE AMBROISE-LAFORTUNE","BOISBRIAND","J7H 1S6","DM Bloc ophtalmo Boisbriand"]
[100171,6060795,1060,400,"290 RUE MONTIGNY","SAINT-JEROME","J7Z 5T3","AR Prév. Accident/Absentéisme 6060"]
[100171,6710496,1060,400,"290 RUE MONTIGNY","SAINT-JEROME","J7Z 5T3","SJ Prév. Accident/Absentéisme 6710"]
[100171,7801195,8000,100,"2561 CHEMIN DE LA LIEVRE SUD","MONT-LAURIER","J9L 3G3","AL Prév. Accident/Absentéisme 7801"]
[100171,6834495,1060,400,"290 RUE MONTIGNY","SAINT-JEROME","J7Z 5T3","SJ Prév. Accident/Absentéisme 6834"]
[100171,7534595,1142,700,"125 RUE DUQUET","STE-THERESE","J7E 0A5","TB Prév. Accident/Absentéisme 7534"]
[100171,5919295,1071,700,"125 RUE DUQUET","SAINTE-THERESE","J7E 0A5","DS Prév. Accident/Absentéisme 5919"]
[100171,7534215,1120,300,"635 RUE LEONARD","MONT-TREMBLANT","J8E3H9","DS Support cléricale GMF"]
[100171,8042095,7009,700,"1300 BOUL.CURE-LABELLE","BLAINVILLE","J7C 2N8","BC Prév. Accident/Absentéisme 8042"]
[100171,7158015,1060,400,"290 RUE MONTIGNY","SAINT-JEROME","J7Z 5T3","CI SPU DEA SQ Provincial"]
[100171,7158017,1060,400,"290 RUE MONTIGNY","SAINT-JEROME","J7Z 5T3","CI SPU Police DEA Municipale"]
[100171,6833496,1060,null,"290 RUE MONTIGNY","SAINT-JEROME","J7Z 5T3","SJ Prév. Accident/Réam. Accueil Mammographie 6833"]
[100171,6022495,1060,400,"290 RUE MONTIGNY","SAINT-JEROME","J7Z 5T3","SJ Prév. Accident/Absentéisme 6022"]
[100171,7534715,1051,800,"145 AVENUE DE LA PROVIDENCE","LACHUTE","J8H 4C7","AR Support cléricale GMF"]
[100171,7606495,1066,400,"175 RUE DURAND","SAINT-JEROME","J7Z 2V4","SJ Prév. Accident/Absentéisme 7606"]
[100171,6260195,8000,null,"2561 CHEMIN DE LA LIEVRE SUD","MONT-LAURIER","J9L 3G3","AL Prév. Accident/Absentéisme 6260"]
[100171,7554806,1028,300,"125A CHEMIN DU TOUR-DU-LAC","SAINTE-AGATHE-DES-MONTS","J8C 1B4","CJ Alim - Ste-Agathe"]
[100171,6791405,1060,400,"290 RUE MONTIGNY","SAINT-JEROME","J7Z 5T3","SJ Dialyse L.G. Rolland"]
[100171,6791601,1060,400,"290 RUE MONTIGNY","SAINT-JEROME","J7Z 5T3","DM Hémodialyse"]
[100171,6260295,1085,null,"234 RUE SAINT-VINCENT","SAINTE-AGATHE-DES-MONTS","J8C 2B8","DS Prév. Accident/Absentéisme 6260"]
[100171,6081796,1060,400,"290 RUE MONTIGNY","SAINT-JEROME","J7Z 5T3","AR Prév. Accident/Absentéisme 6081"]
[100171,6322195,1047,200,"1525 RUE L'ANNONCIATION NORD","RIVIERE-ROUGE","J0T 1T0","AL ML Prév. Accident/Absentéisme 6322"]
[100171,7801695,1071,700,"125 RUE DUQUET","SAINTE-THERESE","J7E 0A5","DM Prév. Accident/Absentéisme 7801"]
[100171,6833695,1093,600,"520 BOUL. ARTHUR-SAUVE","SAINT-EUSTACHE","J7R 5B1","DM Prév. Accident/Absentéisme 6833"]
[100171,6051413,1060,400,"290 RUE MONTIGNY","SAINT-JEROME","J7Z 5T3","SJ Débordement"]
[100171,6531295,1083,null,"21 RUE GODON OUEST 1ER ETAGE","STE-AGATHE-DES-MONTS","J8C 0A5","DS Prév. Accident/Absentéisme 6531"]
[100171,6173495,1057,null,"1000 RUE LABELLE","SAINT-JEROME","J7Z 5N6","SJ Prév. Accident/Absentéisme 6173"]
[100171,7644095,1051,800,"145 AVENUE DE LA PROVIDENCE","LACHUTE","J8H 4C7","RL Prév. Accident/Absentéisme 7644"]
[100171,6770195,8000,100,"2561 CHEMIN DE LA LIEVRE SUD","MONT-LAURIER","J9L 3G3","AL ML Prév. Accident/Absentéisme 6770"]
[100171,6870696,1093,600,"520 BOUL. ARTHUR-SAUVE","SAINT-EUSTACHE","J7R 5B1","DM Prév. Accident/Absentéisme 6870"]
[100171,7985095,1190,400,"200 rue Rolland","St-Jérôme","J7Z 5S2","CI Prév. Accident/Absentéisme 7985"]
[100171,7554313,2005,200,"249 BOUL. DE SAINTE-ADÈLE","SAINTE-ADÈLE","J8B1A9","PH SNT - Alimentation - Autres -Ste-Adèle"]
[100171,6060511,1070,700,"100, RUE DU CHANOINE-LIONEL-GROULX","SAINTE-THERESE","J7E 5E1","TB SNT - Soins infirmiers - DD"]
[100171,6160511,1070,700,"100, RUE DU CHANOINE-LIONEL-GROULX","SAINTE-THERESE","J7E 5E1","TB SNT - Soins assistance - DD"]
[100171,6260795,1051,800,"145 AVENUE DE LA PROVIDENCE","LACHUTE","J8H 4C7","AR Prév. Accident/Absentéisme 6260"]
[100171,6604495,1060,400,"290 RUE MONTIGNY","SAINT-JEROME","J7Z 5T3","SJ Prév. Accident/Absentéisme 6604"]
[100171,6053602,1093,600,"520 BOUL. ARTHUR-SAUVE","SAINT-EUSTACHE","J7R 5B1","DM Soins intensifs SR Covid-19"]
[null,7995107,185,null,"1011, boulevard Albiny-Paquette Mont-Laurier J9L1M2","Antoine-Labelle","J9L 1M2","AL RPA-Résidence Dumas-Morin"]
[null,7995108,191,null,"2718, rue Adolphe-Chapleau Mont-Laurier J9L2N5","Antoine-Labelle","J9L 2N5","AL RPA-Pavillon Alain Campeau inc."]
[null,7995109,192,null,"175, 10e Avenue Ferme-Neuve J0W1C0","Antoine-Labelle","J0W 1C0","AL RPA-Pavillon Sénath inc."]
[null,7995110,194,null,"278, rue de la Madone Mont-Laurier J9L1R5","Antoine-Labelle","J9L 1R5","AL RPA-La villa des Colibris Mont-Laurier inc."]
[null,7995111,196,null,"220, rue Labelle Sud Rivière-Rouge J0T1T0","Antoine-Labelle","J0T 1T0","AL RPA-Résidences Côme-Cartier"]
[null,7995112,199,null,"569, rue Laviolette Mont-Laurier J9L2J2","Antoine-Labelle","J9L 2J2","AL RPA-Résidences des Violettes (Mont-Laurier)"]
[null,7995113,5171,null,"420, boulevard Albiny-Paquette Mont-Laurier J9L1K6","Antoine-Labelle","J9L 1K6","AL RPA-Manoir du Picardie"]
[null,7995114,5920,null,"2605, chemin de la Lièvre Nord Mont-Laurier J9L0K2","Antoine-Labelle","J9L 0K2","AL RPA-Habitations Antoine-Labelle"]
[null,7995115,6159,null,"140, Principale, C.P. 181 Notre-Dame-du-Laus J0X2M0","Antoine-Labelle","J0X 2M0","AL RPA-Résidence Bertrand"]
[null,7995116,6372,null,"432, rue Carillon Mont-Laurier J9L1P6","Antoine-Labelle","J9L 1P6","AL RPA-Villa des Aînés"]
[null,7995117,6487,null,"4700, chemin de la Lièvre Nord Mont-Laurier J9L0P1","Antoine-Labelle","J9L 0P1","AL RPA-Résidence Au coeur du Temps, S.E.N.C."]
[null,7995118,6493,null,"211, 12e Rue Ferme-Neuve J0W1C0","Antoine-Labelle","J0W 1C0","AL RPA-Résidence Le Gîte inc."]
[null,7995119,6537,null,"3, rue Lauzon Notre-Dame-du-Laus J0X2M0","Antoine-Labelle","J0X 2M0","AL RPA-Résidence Sous les étoiles"]
[null,7995120,6605,null,"330 - 334, des Merles Nominingue J0W1R0","Antoine-Labelle","J0W 1R0","AL RPA-Résidence de Nominingue 2015 inc."]
[null,7995121,7350,null,"1500, rue l'Annonciation Nord Rivière-Rouge J0T1T0","Antoine-Labelle","J0T 1T0","AL RPA-Résidence au Coeur d'Or"]
[null,7995706,56,null,"401-403, rue Thomas Lachute J8H4M8","Argenteuil","J8H 4M8","AR RPA-Résidence Médaillon d'Or Lachute"]
[null,7995707,6080,null,"275, avenue de la Providence Lachute J8H3R8","Argenteuil","J8H 3R8","AR RPA-Résidence Des Sources"]
[null,7995708,6353,null,"21, rue Renaud Brownsburg-Chatham J8G2E7","Argenteuil","J8G 2E7","AR RPA-Résidence St-Philippe"]
[null,7995606,153,null,"3109, chemin Oka Sainte-Marthe-sur-le-Lac J0N1P0","Deux-Montagnes","J0N 1P0","DM RPA-Résidence les Beaux jours du Québec"]
[null,7995607,163,null,"71, rue Grignon Saint-Eustache J7P4X1","Deux-Montagnes","J7P 4X1","DM RPA-Manoir Royal Saint-Eustache"]
[null,7995608,172,null,"484, chemin de la Grande-Côte Saint-Eustache J7P1J8","Deux-Montagnes","J7P 1J8","DM RPA-Résidence Grande-Côte"]
[null,7995609,180,null,"61, rue Chénier Saint-Eustache J7R1W9","Deux-Montagnes","J7R 1W9","DM RPA-Résidence Chénier Saint-Eustache inc."]
[null,7995610,181,null,"95, chemin de la Grande-Côte Saint-Eustache J7P1A5","Deux-Montagnes","J7P 1A5","DM RPA-Résidence La Villa du Bonheur"]
[null,7995611,3912,null,"518, rue Sainte-Philomène Kanesatake J0N1E0","Deux-Montagnes","J0N 1E0","DM RPA-Riverside Elders Home"]
[null,7995612,4285,null,"158, rue Saint-Eustache Saint-Eustache J7R7K2","Deux-Montagnes","J7R 7K2","DM RPA-Les Cours du Moulin"]
[null,7995613,4672,null,"380, chemin Grande-Côte Saint-Eustache J7P1H3","Deux-Montagnes","J7P 1H3","DM RPA-Le Manoir Painchaud"]
[null,7995614,5761,null,"485, 26e Avenue Deux-Montagnes J7R5T8","Deux-Montagnes","J7R 5T8","DM RPA-La Maison Blanche"]
[null,7995615,5797,null,"2083, chemin Oka Oka J0N1E0","Deux-Montagnes","J0N 1E0","DM RPA-Manoir Oka inc."]
[null,7995616,5806,null,"53, boulevard René-Lévesque Saint-Placide J0V2B0","Deux-Montagnes","J0V 2B0","DM RPA-Résidence La Ressource du Lac"]
[null,7995617,6156,null,"65, chemin de la Grande-Côte Saint-Eustache J7P1A5","Deux-Montagnes","J7P 1A5","DM RPA-La Berceuse d'Or"]
[null,7995618,6222,null,"495, rue Bibeau Saint-Eustache J7R0B9","Deux-Montagnes","J7R 0B9","DM RPA-RÉSIDENCE L'ARTISAN"]
[null,7995619,6501,null,"117, 63e Avenue Saint-Eustache J7P3N8","Deux-Montagnes","J7P 3N8","DM RPA-Bonheur DD"]
[null,7995620,6579,null,"94, rue Notre-Dame Oka J0N1E0","Deux-Montagnes","J0N 1E0","DM RPA-Résidence l'Okoise"]
[null,7995621,6639,null,"435, rue Bibeau Saint-Eustache J7R0C7","Deux-Montagnes","J7R 0C7","DM RPA-Chartwell, L'Unique, résidence pour retraités"]
[null,7995622,7305,null,"10, 8e avenue Deux-Montagnes J7R0L7","Deux-Montagnes","J7R 0L7","DM RPA-Le Sélection Deux-Montagnes"]
[null,7995406,236,null,"1872, rue De Boulogne Saint-Jérôme J5L1C9","La Rivière-du-Nord","J5L 1C9","SJ RPA-Résidence La Chaumière 2019"]
[null,7995407,239,null,"2555, boulevard Curé-Labelle Prévost J0R1T0","La Rivière-du-Nord","J0R 1T0","SJ RPA-Accueil au Toit Bleu"]
[null,7995408,242,null,"259, chemin Lac Connely Nord Saint-Hippolyte J8A2A1","La Rivière-du-Nord","J8A 2A1","SJ RPA-Les Chardonnerets"]
[null,7995409,243,null,"508, rue du Palais Saint-Jérôme J7Z1Y4","La Rivière-du-Nord","J7Z 1Y4","SJ RPA-Les Jardins du Roi"]
[null,7995410,245,null,"290, rue Brière Saint-Jérôme J7Y3B3","La Rivière-du-Nord","J7Y 3B3","SJ RPA-Résidence l'Héberge"]
[null,7995411,247,null,"872, rue de la Station Prévost J0R1T0","La Rivière-du-Nord","J0R 1T0","SJ RPA-Manoir l'Émeraude"]
[null,7995412,253,null,"181-A rue Brière Saint-Jérôme J7Y3A7","La Rivière-du-Nord","J7Y 3A7","SJ RPA-Manoir Ange-Marie"]
[null,7995413,254,null,"2025, rue Fournier Saint-Jérôme J7Y4J6","La Rivière-du-Nord","J7Y 4J6","SJ RPA-Résidence Chez-soi"]
[null,7995414,258,null,"487, rue du Domaine Saint-Jérôme J7Z4C9","La Rivière-du-Nord","J7Z 4C9","SJ RPA-Résidence du Domaine"]
[null,7995415,261,null,"522, rue du Palais Saint-Jérôme J7Z1Y4","La Rivière-du-Nord","J7Z 1Y4","SJ RPA-Les Résidences Alexandre Inc."]
[null,7995416,270,null,"40, 102e Avenue Saint-Jérôme J7Y1J3","La Rivière-du-Nord","J7Y 1J3","SJ RPA-Résidence La Fontaine"]
[null,7995417,273,null,"63, rue Saint-Faustin Saint-Jérôme J7Z2P2","La Rivière-du-Nord","J7Z 2P2","SJ RPA-Résidence Lemieux inc."]
[null,7995418,274,null,"394, rue Sainte-Marcelle Saint-Jérôme J7Y2P6","La Rivière-du-Nord","J7Y 2P6","SJ RPA-Les Vignobles, résidence pour gens âgés"]
[null,7995419,278,null,"593, rue du Palais Saint-Jérôme J7Z1Y8","La Rivière-du-Nord","J7Z 1Y8","SJ RPA-Résidence Grégoire D. Inc."]
[null,7995420,527,null,"905, boulevard des Laurentides Saint-Jérôme J7Z6W7","La Rivière-du-Nord","J7Z 6W7","SJ RPA-Manoir Les Retrouvailles"]
[null,7995421,4041,null,"272, rue Gosselin Saint-Jérôme J7Y2H8","La Rivière-du-Nord","J7Y 2H8","SJ RPA-Résidence Marie-André"]
[null,7995422,4153,null,"150, 103e Avenue Saint-Jérôme J7Y4X8","La Rivière-du-Nord","J7Y 4X8","SJ RPA-Résidence du Verger"]
[null,7995423,4154,null,"664, 8e Avenue Saint-Jérôme J7Z4Y1","La Rivière-du-Nord","J7Z 4Y1","SJ RPA-La grive au petit bonheur inc."]
[null,7995424,4408,null,"418, 17e Avenue Nord Saint-Jérôme J7Z4H3","La Rivière-du-Nord","J7Z 4H3","SJ RPA-Résidence Nicole"]
[null,7995425,4466,null,"475, rue Aubry Saint-Jérôme J7Z7H7","La Rivière-du-Nord","J7Z 7H7","SJ RPA-Chartwell Manoir Saint-Jérôme (Phases 1 à 4)"]
[null,7995426,5533,null,"438, rue Melançon Saint-Jérôme J7Z4K4","La Rivière-du-Nord","J7Z 4K4","SJ RPA-Manoir Melançon"]
[null,7995427,5930,null,"2184, boulevard Sainte-Sophie Sainte-Sophie J5J2P5","La Rivière-du-Nord","J5J 2P5","SJ RPA-Villa Sainte-Sophie"]
[null,7995428,5981,null,"2350, chemin Rivière du Nord Mirabel J7N3A8","La Rivière-du-Nord","J7N 3A8","SJ RPA-Résidence Rivière du Nord"]
[null,7995429,6029,null,"325, rue Barrette Saint-Jérôme J7Y0J8","La Rivière-du-Nord","J7Y 0J8","SJ RPA-Résidence Au Coeur de la Vie de St-Jérôme inc."]
[null,7995430,7138,null,"15, 102 ème avenue Saint-Jérôme J7Y1J4","La Rivière-du-Nord","J7Y 1J4","SJ RPA-Résidence Le Corail S.E.N.C."]
[null,7995431,7203,null,"685, boulevard Monseigneur-Dubois Saint-Jérôme J7Y0M3","La Rivière-du-Nord","J7Y 0M3","SJ RPA-Vice Versa St-Jérôme"]
[null,7995432,7241,null,"335 rue des Pins Saint-Jérôme J7Z0A2","La Rivière-du-Nord","J7Z 0A2","SJ RPA-Chartwell Manoir Saint-Jérôme, Phase 5, résidence pour retraités"]
[null,7995433,7273,null,"850, avenue du Bourg Saint-Jérôme J7Z6C5","La Rivière-du-Nord","J7Z 6C5","SJ RPA-CITÉ LES TROIS R"]
[null,7995434,7421,null,"858, boulevard Saint-Antoine Saint-Jérôme J7Z3C5","La Rivière-du-Nord","J7Z 3C5","SJ RPA-Résidence Au Coeur de la Vie de St-Antoine"]
[null,7995435,null,null," (17641, rue Saint-Luc, Mirabel J7J 1C8)","La Rivière-du-Nord","J 1 C8)","SJ RPA-Résidence Rhéaume"]
[null,7995206,206,null,"102, rue Vert Pré Huberdeau J0T1G0","Les Laurentides","J0T 1G0","DS RPA-Résidence Vallée de la Rouge inc."]
[null,7995207,212,null,"150, rue Léonard Mont-Tremblant J8E3K1","Les Laurentides","J8E 3K1","DS RPA-Les Résidences Léonard"]
[null,7995208,213,null,"83, chemin Tour du Lac Sainte-Agathe-des-Monts J8C1B2","Les Laurentides","J8C 1B2","DS RPA-Les résidences du Manoir Quatre Saisons inc."]
[null,7995209,225,null,"179, rue Saint-Antoine Sainte-Agathe-des-Monts J8C2E3","Les Laurentides","J8C 2E3","DS RPA-Résidence Sainte-Agathe-des-Monts"]
[null,7995211,229,null,"30, rue Laurier Sainte-Agathe-des-Monts J8C1R4","Les Laurentides","J8C 1R4","DS RPA-Villa Notre-Dame inc."]
[null,7995212,5691,null,"1450, rue Deguire Mont-Tremblant J8E3C4","Les Laurentides","J8E 3C4","DS RPA-La Villa des Générations du Tremblant"]
[null,7995213,6004,null,"92, rue Major Sainte-Agathe-des-Monts J8C1G1","Les Laurentides","J8C 1G1","DS RPA-Résidence Manoir La Caravelle"]
[null,7995214,6614,null,"725, rue de la Montagne Mont-Tremblant J8E2V2","Les Laurentides","J8E 2V2","DS RPA-Les résidences Le Vieux Sage"]
[null,7995215,7252,null,"423, Nantel Labelle J0T1H0","Les Laurentides","J0T 1H0","DS RPA-Résidence Chantal Legault"]
[null,7995306,7277,null,"30, rue Larocques est Sainte-Agathe-des-Monts J8C1H8","Les Pays-d'en-Haut","J8C 1H8","PH RPA-La résidence des Laurentides"]
[null,7995307,73,null,"201, rue Lesage Sainte-Adèle J8B2R4","Les Pays-d'en-Haut","J8B 2R4","PH RPA-Les Résidences du Manoir Sainte-Adèle inc."]
[null,7995308,301,null,"220, rue Lesage Sainte-Adèle J8B2R4","Les Pays-d'en-Haut","J8B 2R4","PH RPA-Manoir des Pays d'en Haut"]
[null,7995309,4152,null,"101, rue Principale Saint-Sauveur J0R1R6","Les Pays-d'en-Haut","J0R 1R6","PH RPA-Les Résidences du Manoir de la Falaise inc."]
[null,7995310,4891,null,"1544, rue des Musiciens Saint-Adolphe-d'Howard J0T2B0","Les Pays-d'en-Haut","J0T 2B0","PH RPA-Les Résidences du Manoir St-Adolphe inc."]
[null,7995311,5790,null,"100, avenue Mont-Molson Saint-Sauveur J0R1R6","Les Pays-d'en-Haut","J0R 1R6","PH RPA-Les Résidences du Manoir de la Vallée"]
[null,7995506,85,null,"294, rue Rose-Alma Rosemère J7A3C1","Thérèse-De Blainville","J7A 3C1","TB RPA-RÉSIDENCE VÉRO-MANON ROSEMÈRE S.E.N.C."]
[null,7995507,89,null,"147, rue Turgeon Sainte-Thérèse J7E3J2","Thérèse-De Blainville","J7E 3J2","TB RPA-Les Jardins d'Émeraudes"]
[null,7995508,120,null,"101, rue Juteau Sainte-Thérèse J7E1W6","Thérèse-De Blainville","J7E 1W6","TB RPA-Maison Soleil"]
[null,7995509,121,null,"242, rue Adrien Éthier Bois-des-Filion J6Z4M1","Thérèse-De Blainville","J6Z 4M1","TB RPA-Manoir du Boisé Gagnon"]
[null,7995511,122,null,"243, rue Pelletier Boisbriand J7G1G5","Thérèse-De Blainville","J7G 1G5","TB RPA-Résidence Fleurs d'Orient"]
[null,7995512,124,null,"5, rue Tassé Sainte-Thérèse J7E1V4","Thérèse-De Blainville","J7E 1V4","TB RPA-Manoir Joie de Vivre"]
[null,7995513,125,null,"210, rue Ste-Marie Sainte-Anne-des-Plaines J0N1H0","Thérèse-De Blainville","J0N 1H0","TB RPA-Résidence Anne Gabriel"]
[null,7995514,130,null,"25, rue du Marché Sainte-Thérèse J7E5T2","Thérèse-De Blainville","J7E 5T2","TB RPA-Résidence du Marché"]
[null,7995516,137,null,"347, rue Adolphe Chapleau Bois-des-Filion J6Z1G6","Thérèse-De Blainville","J6Z 1G6","TB RPA-Résidence Marie-Laure"]
[null,7995517,138,null,"321, Montée Sanche Boisbriand J7G2E4","Thérèse-De Blainville","J7G 2E4","TB RPA-Résidence Montée Sanche"]
[null,7995518,2910,null,"300, chemin Côte Saint-Louis Ouest (Inclus : 1,3,5 des Centaurées) Sainte-Thérèse J7E5T6","Thérèse-De Blainville","J7E 5T6","TB RPA-Le Jardin des Sources"]
[null,7995519,4045,null,"581-585, rue de Versailles Blainville J7C2S1","Thérèse-De Blainville","J7C 2S1","TB RPA-Les Maisons d'Edgar et Marie-Jeanne"]
[null,7995520,5059,null,"7, rue des Verdiers Blainville J7C5V5","Thérèse-De Blainville","J7C 5V5","TB RPA-Résidence Jardin d'Éden de Blainville"]
[null,7995521,5226,null,"20, place Casavant Sainte-Thérèse J7E5X1","Thérèse-De Blainville","J7E 5X1","TB RPA-Résidence l'Étincelle S.E.C."]
[null,7995522,5482,null,"15, rue Lesage Sainte-Thérèse J7E3E7","Thérèse-De Blainville","J7E 3E7","TB RPA-Le 15 Lesage"]
["Anciennement 7995523 changement en adte du 2020-07-21",7995526,5539,null,"50, boulevard des Châteaux Blainville J7B0A3","Thérèse-De Blainville","J7B 0A3","TB RPA-Maison de vie Sunrise de Fontainebleau"]
[null,7995524,5807,null,"308, Grande Côte Boisbriand J7G1B1","Thérèse-De Blainville","J7G 1B1","TB RPA-Maison d'Hélène et Louise inc."]
[null,7995525,5821,null,"301-303, chemin du Bas Sainte-Thérèse Blainville J7B0A6","Thérèse-De Blainville","J7B 0A6","TB RPA-Le Nobilis"]
["Anciennement 7995526 changement en adte du 2020-07-21",7995523,5921,null,"85, boulevard des Châteaux Blainville J7B0A8","Thérèse-De Blainville","J7B 0A8","TB RPA-Manoir Fontainebleau"]
[null,7995527,5925,null,"172, rue Champagne Sainte-Anne-des-Plaines J0N1H0","Thérèse-De Blainville","J0N 1H0","TB RPA-Résidence Labelle Desjardins (2013) inc."]
[null,7995528,6064,null,"95, Blainville Ouest Sainte-Thérèse J7E1X6","Thérèse-De Blainville","J7E 1X6","TB RPA-Le Paradis des Anges MB 2010 inc."]
[null,7995529,6322,null,"183, chemin de la Grande-Côte Boisbriand J7G1B6","Thérèse-De Blainville","J7G 1B6","TB RPA-Les Résidences Desjardins Boisbriand"]
[null,7995530,6480,null,"138, rue Alexandre Rosemère J7A4H4","Thérèse-De Blainville","J7A 4H4","TB RPA-Au Havre du mieux-vivre"]
[null,7995531,6500,null,"208, rue Turgeon Sainte-Thérèse J7E3J5","Thérèse-De Blainville","J7E 3J5","TB RPA-Résidence pour personnes âgées Francine et Maurice"]
[null,7995532,7253,null,"61, 54e avenue est Blainville J7C0P3","Thérèse-De Blainville","J7C 0P3","TB RPA-Résidence Boréa"]
[null,7995533,7319,null,"1000, rue des Francs-Bourgeois Boisbriand J7H0G5","Thérèse-De Blainville","J7H 0G5","TB RPA-L'Orée du Faubourg S.E.N.C."]
[null,7995413,null,null,"2025, rue Fournier Saint-Jérôme","Saint Jérôme","J7B 1Y5","Résidence chez soi"]
[null,{"$f":"INDEX('[1]1-DI-TSADP'!$A:$I,MATCH(E2160,'[1]1-DI-TSADP'!$G:$G,0),2)","v":7995227},null,null,"1070 rue Principale Est","Ste-Agathe-des-Monts","J8C 1L6","Clinique médicale des Sommets"]
[null,7995459,null,null,"200 Rue Durand, suite 311","St-Jérôme, QC","J7Z 7E2","Clinique de Dermatologie"]
[null,7995628,null,null,"580, 20ème avenue","Deux-Montagnes","J7R 7E9","CHSLD VIGI DE DEUX-MONTAGNES"]
[null,7995629,null,null,"787 boulevard Arthur Sauvé","ST-EUSTACHE","J7R 4K3","CHSLD DES PATRIOTES"]
[null,{"$f":"INDEX('[1]1-DI-TSADP'!$A:$I,MATCH(E2164,'[1]1-DI-TSADP'!$G:$G,0),2)","v":7995547},null,null,"1350 boulevard Michèle-Bohec","BLAINVILLE","J7C 5S4","CHSLD MICHÈLE-BOHEC"]
[null,{"$f":"INDEX('[1]1-DI-TSADP'!$A:$I,MATCH(E2165,'[1]1-DI-TSADP'!$G:$G,0),2)","v":7995460},null,null,"300 rue du Docteur Charles Léonard","ST-JÉRÔME","J7Y 0N2","CHSLD LOUISE-FAUBERT"]
[null,{"$f":"INDEX('[1]1-DI-TSADP'!$A:$I,MATCH(E2166,'[1]1-DI-TSADP'!$G:$G,0),2)","v":7995548},null,null,"179 place Fabien-Drapeau","SAINTE-THÉRÈSE","J7E 5W6","CHSLD BOISÉ STE-THÉRÈSE"]
[null,8999401,null,null,"825 rue melançon","Saint- jérôme","J7Z 4L1","CENTRE D'HEBERGEMENT CHAMPLAIN-DE-LA-VILLA-SOLEIL"]
[null,8999403,null,null,"325 rue Barette","SAINT-JÉRÔME","J7Y 0J8","CHSLD AU CŒUR-DE-LA-VIE INC."]
[null,"8999303",null,null,"55 avenue Hochar","SAINT-SAUVEUR","J0R 1R6","CHSLD L.-B.-DESJARDINS INC."]
[null,{"$f":"INDEX('[1]1-DI-TSADP'!$A:$I,MATCH(E2170,'[1]1-DI-TSADP'!$G:$G,0),2)","v":7995431},null,null,"685 Boulevard monseigneur Dubois","Saint-Jérôme","J7Y 0M3","Vice versa Saint-Jérôme"]
[null,7995546,null,null,"99 Boulevard de Gaulle suite 101","Lorraine","J6Z 3Z9","Clinique médicale Lorraine"]
[null,7995227,null,null,"1070 rue Principale Est","SAINTE-AGATHE-DES-MONTS","J8C 1L6","Clinique médicale des Sommets"]
[null,{"$f":"INDEX('[1]1-DI-TSADP'!$A:$I,MATCH(E2173,'[1]1-DI-TSADP'!$G:$G,0),2)","v":7995211},null,null,"30 rue laurier","SAINTE-AGATHE-DES-MONTS","J8C 1R4","Villa Notre Dame"]
[null,{"$f":"INDEX('[1]1-DI-TSADP'!$A:$I,MATCH(E2174,'[1]1-DI-TSADP'!$G:$G,0),2)","v":7995520},null,null,"7 rue des verdiers","BLAINVILLE","J7C 5V5","Résidence Jardin d'Eden"]
[null,{"$f":"INDEX('[1]1-DI-TSADP'!$A:$I,MATCH(E2175,'[1]1-DI-TSADP'!$G:$G,0),2)","v":7995228},null,null,"955 rue Labelle","Mont-Tremblant","J8E 2W5","Ressource Mariane"]
[null,{"$f":"INDEX('[1]1-DI-TSADP'!$A:$I,MATCH(E2176,'[1]1-DI-TSADP'!$G:$G,0),2)","v":7995547},null,null,"1350 boulevard Michèle-Bohec","Blainville","J7C 5S4","CHSLD MICHÈLE-BOHEC"]
[null,7995460,null,null,"300 rue du Docteur-Charles-Léonard","ST-Jérôme","J7Y 0N2","CHSLD Louise Faubert"]
[null,{"$f":"INDEX('[1]1-DI-TSADP'!$A:$I,MATCH(G2178,'[1]1-DI-TSADP'!$I:$I,0),2)","v":"7995536"},null,null,"55 rue Lecompte","SAINTE-THÉRÈSE","J7E 3S5","RI Desjardins"]
[null,{"$f":"INDEX('[1]1-DI-TSADP'!$A:$I,MATCH(G2179,'[1]1-DI-TSADP'!$I:$I,0),2)","v":"7995442"},null,null,"9650 Boulevard St-Canut","MIRABEL","J7N 1M5","RI Desjardins"]
[null,{"$f":"INDEX('[1]1-DI-TSADP'!$A:$I,MATCH(G2180,'[1]1-DI-TSADP'!$I:$I,0),2)","v":"7995537"},null,null,"10 de Joutel","BLAINVILLE","J7B 1H4","RI Desjardins"]
[null,7995462,null,null,"3055 monté robillard","MIRABEL","J7N 2S3","PILE OU FACE"]
[null,{"$f":"INDEX('[1]1-DI-TSADP'!$A:$I,MATCH(G2182,'[1]1-DI-TSADP'!$I:$I,0),2)","v":"7995538"},null,null,"47, rue de la charente","BLAINVILLE","J7C 4T5","RI LEILA DIAFI"]
[null,null,null,null,"233 rue Turgeon ,suite 101","Ste-Thérèse","J7E 3J8","Clinique médicale st-therese"]
[null,{"$f":"INDEX('[1]1-DI-TSADP'!$A:$I,MATCH(G2184,'[1]1-DI-TSADP'!$I:$I,0),2)","v":"7995545"},null,null,"24 rue Robert"," Ste-Anne-des-Plaines","J0N 1H0","Résidence Lucie Tremblay"]
[null,7995463,null,null,"274 Rue Barrette","Saint-Jérôme","J7Y 3K5","Résidence Lucie Tremblay"]
[null,null,null,null,"876 Boulevard Labelle suite 205","BLAINVILLE","J7C 2K9","Clinique Médicyum"]
[null,null,null,null,"1150, rue du Bourg-Joli","Sainte-Adèle","J8B 1W8","Centre Médical Des Pays-D'en-Haut"]
[null,9998106,null,null,"1, rue St-François-XavierSainte-Anne-du-Lac QCJ0W 1V0",null,"J0W 1V0","Bureau municipal de l’hôtel de ville (GMF)"]
[null,null,null,null,"70, 12E Rue bureau 4Ferme-Neuve QCJ0W 1C0","Antoine‐Labelle","J0W 1C0","Centre de santé de Ferme-Neuve (GMF)"]
[null,9998111,null,null,"304, rue de la Madone Mont-Laurier QCJ9L 1R7","Antoine‐Labelle","J9L 1R7","Centre médical de Mont-Laurier"]
[null,9998213,null,null,"257A, Route 117 Lac Saguay QCJ0W 1L0","Antoine‐Labelle","J0W 1L0","Clinique de Lac Saguay (GMF)"]
[null,9998214,null,null,"59, rue de l’Église L’Ascension QCJ0T 1W0","Antoine‐Labelle","J0T 1W0","Clinique de l’Ascension (GMF)"]
[null,9998191,null,null,"224, 9e Avenue Ferme-Neuve QCJ0W 1C0","Antoine‐Labelle","J0W 1C0","Coopérative de solidarité en soins de santé Ferme-neuve"]
[null,9998122,null,null,"942, boul. Albiny-PaquetteMont-Laurier QCJ9L 1L4","Antoine‐Labelle","J9L 1L4","GMF de la Lièvre"]
[null,9998217,null,null,"1525, rue L’Annonciation nordRivière-Rouge QCJOT 1T0","Antoine‐Labelle","JOT 1T0","GMF De la rouge"]
[null,null,null,null,"2110 chemin du Tour du lac NominingueJ0W 1S4","Antoine‐Labelle","J0W 1S4","Clinique médicale de Nominingue"]
[null,5980105,null,null,"8, rue St-Denis Notre-Dame-du-Laus QCJ0X 2M0","Antoine‐Labelle","J0X 2M0","GMF des Hautes-Laurentides, Centre multiservices"]
[null,6304101,null,null,"757, rue de la Madone Mont-Laurier QCJ9L 1T3","Antoine‐Labelle","J9L 1T3","GMF-U des Hautes Laurentides"]
[null,9998236,null,null,"139 Avenue de la Providence bureau 200 Lachute J8H 4E9","Antoine‐Labelle","J8H 1S4","Centre médical Argenteuil"]
[null,9998206,null,null,"125, Avenue de la Providence Lachute QCJ8H 3L4","Argenteuil","J8H 3L4","Clinique du Dr Richard Fermini – Omni – Coroner"]
[null,5980700,null,null,"145, avenue de la Providence Lachute QCJ8H 4C7","Argenteuil","J8H 4C7","CLSC d’Argenteuil (CMSSS d’Argenteuil)"]
[null,9998112,null,null,"465, rue Bibeau, bureau 200 St-Eustache QCJ7R 0C8","Argenteuil","J7R 0C8","Centre médical des Générations (GMF)"]
[null,9998212,null,null,"128, rue Saint-Laurent, suite 202 St-Eustache QCJ7P 5G1","Lac‐des‐Deux‐Montagnes","J7P 5G1","Clinique médicale Clair Matin"]
[null,9998267,null,null,"201, 9e avenue Deux-Montagnes QCJ7R 3M1","Lac‐des‐Deux‐Montagnes","J7R 3M1","Clinique médicale Deux-Montagnes (GMF)"]
[null,9998161,null,null,"3942, chemin Oka St-Joseph-du-Lac QCJ0N 1M0","Lac‐des‐Deux‐Montagnes","J0N 1M0","Clinique médicale Montée de la Baie (GMF)"]
[null,9998223,null,null,"12, rue Joseph Swan Oka QCJ0N 1E0","Lac‐des‐Deux‐Montagnes","J0N 1E0","Kanesatake Health Center"]
[null,9998239,null,null,"75, rue Grignon St-Eustache QCJ7P 4J2","Lac‐des‐Deux‐Montagnes","J7P 4J2","Polyclinique St-Eustache (GMF)"]
[null,8999002,null,null,"29, chemin Oka St-Eustache QCJ7R 1K6","Lac‐des‐Deux‐Montagnes","J7R 1K6","CLSC Jean-Olivier Chénier (GMF des mille ILES)"]
[null,6304651,null,null,"57, boulevard Industriel, bureau 2200 St-Eustache QCJ7R 5B9","Lac‐des‐Deux‐Montagnes","J7R 5B9","GMF-U de St-Eustache"]
[null,9998199,null,null,"222, chemin du Lac Millette St-Sauveur-des-Monts QCJ0R 1R3","Lac‐des‐Deux‐Montagnes","J0R 1R3","Bureau Dr Jean-Pierre Gascon"]
[null,9998250,null,null,"75, rue de la Gare, Bloc L-4 St-Sauveur-des-Monts QCJ0R 1R6","Pays‐d’en‐Haut","J0R 1R6","Centre de médecine familiale"]
[null,9998201,null,null,"37, ave de L’Église bureau 35 St-Sauveur-des-Monts QCJ0R 1R0","Pays‐d’en‐Haut","J0R 1R0","Clinique médicale Dre Louise Dufresne"]
[null,9998155,null,null,"1986, chemin du Village Ste-Adolphe-d’Howard QCJ0T 2B0","Pays‐d’en‐Haut","J0T 2B0","Clinique médicale Le Val Brise"]
[null,9998168,null,null,0,"Pays‐d’en‐Haut","J8B 1W8","Clinique médicale Ste-Adèle"]
[null,9998175,null,null,"70 Rue Principale, Saint-Sauveur, QC J0R 1R6","Pays‐d’en‐Haut","J0R 1R6","Clinique médicale St-Sauveur (GMF)"]
[null,9998188,null,null,"25, rue des Pins Ste-Marguerite-du-Lac-MassonJ0T 1L0","Pays‐d’en‐Haut","J0T 1L0","COOP Santé Lac-Masson"]
[null,9998186,null,null,"2, Meadowbrook, suite 2 Morin-Heights QCJ0R 1H0","Pays‐d’en‐Haut","J0R 1H0","COOP Santé Morin-Heights"]
[null,9998187,null,null,"1937, chemin Du Village, bureau 206St-Adolphe-d’Howard QCJ0T 2B0","Pays‐d’en‐Haut","J0T 2B0","COOP Santé Saint-Adolphe-d’Howard (GMF)"]
[null,9998190,null,null,"6162, rue Morin Val-Morin QCJ0T 2R0","Pays‐d’en‐Haut","J0T 2R0","COOP de solidarité santé Val-Morin"]
[null,null,null,null,"407, rue Melançon St-Jérôme QCJ7Y 3L8","Pays‐d’en‐Haut","J7Y 3L8","Clinique des Dres Leduc, Laberge & Lacombe"]
[null,9998198,null,null,"409, rue Melançon St-Jérôme QCJ7Y 4K3","Saint‐Jérôme","J7Y 4K3","Clinique du Dr Mario Couturier"]
[null,9998138,null,null,"2100, boul. Labelle St-Jérôme QCJ7Y 1S8","Saint‐Jérôme","J7Y 1S8","Clinique familiale des Basses-Laurentides (GMF)"]
[null,9998145,null,null,"555, boul. St-Antoine - suite 200 St-Antoine QCJ7Z 3B8","Saint‐Jérôme","J7Z 3B8","Clinique médicale Antoine-Labelle (GMF)"]
[null,9998149,null,null,"13714, boul. Curé Labelle - C.P. 1059 Mirabel St-Janvier QCJ7J 2K8","Saint‐Jérôme","J7J 2K8","Clinique médicale de Mirabel"]
[null,59811406,null,null,"11800, rue De Chaumont Mirabel QCJ7J 0T8","Saint‐Jérôme","J7J 0T8","Clinique médicale de Cité Mirabel (GMF)"]
[null,9998131,null,null,"2943, boul. Curé-Labelle Prévost QCJ0R 1T0","Saint‐Jérôme","J0R 1T0","Clinique médicale Dre Julie Gagnon"]
[null,9998117,null,null,"1950, boul. Labelle St-Jérôme QCJ7Y 1S1","Saint‐Jérôme","J7Y 1S1","Clinique médicale des Laurentides"]
[null,9998167,null,null,"305, rue Docteur-Charles-Léonard, b.300 St-Jérôme QCJ7Y 0M9","Saint‐Jérôme","J7Y 0M9","Clinique médicale St-Antoine (GMF)"]
[null,9998266,null,null,"2409, boul. Ste-Sophie Sainte-Sophie QCJ5J 2V3","Saint‐Jérôme","J5J 2V3","Clinique médicale Ste-Sophie (GMF)"]
[null,5981401,null,null,"780, Chemin des Hauteurs #201, C.P. 29St-Hippolyte QCJ8A 1H1","Saint‐Jérôme","J8A 1H1","Clinique médicale St-Hippolyte (GMF)"]
[null,9998174,null,null,"450, boul. Mgr Dubois, bureau 102St-Jérôme QCJ7Z 3L8","Saint‐Jérôme","J7Z 3L8","Clinique médicale St-Jérôme (GMF)"]
[null,9998189,null,null,"1000, rue Nadon / 998-A, boul. SaletteSt-Jérôme QCJ5L 2B1","Saint‐Jérôme","J5L 2B1","Coopérative de Solidarité Santé Bellefeuille"]
[null,9998237,null,null,"200, rue Durand, bureau 102St-Jérôme QCJ7Z 7E2","Saint‐Jérôme","J7Z 7E2","Urgence Polyclinique St-Jérôme"]
[null,null,null,null,"200, rue Durand, bureau 211St-Jérôme QCJ7Z 7E2","Saint‐Jérôme","J7Z 7E2","Clinique I.D."]
[null,7806496,null,null,"1000, rue Labelle, bureau 2100St-Jérôme QCJ7Z 5N6","Saint‐Jérôme","J7Z 5N6","Groupe de médecine familiale universitaire"]
[null,null,null,null,"305 Rue du Docteur-Charles-Léonard bureau 203, Saint-Jérôme, Quebec J7Z 5H9","Saint‐Jérôme",null,"Clinique d'Ophtalmologie de Saint Jérôme"]
[null,9998203,null,null,"141, St-VincentSte-Agathe-des-Monts QCJ8C 2B3","Saint‐Jérôme","J8C 2B3","Bureau Dr Michel Frenette"]
[null,9998134,null,null,"585, rue Labelle bur. 201Mont-Tremblant QCJ8E 3H2","Sommets","J8E 3H2","Clinique médicale du Grand-Tremblant (GMF)"]
[null,9998216,null,null,"17, rue du CouventLabelle QCJ0T 1H0","Sommets","J0T 1H0","Clinique médicale de Labelle (GMF )"]
[null,9998150,null,null,"1070, rue PrincipaleSainte-Agathe-des-MontsJ8C 1L6","Sommets","J8C 1L6","Clinique médicale des Sommets (GMF)"]
[null,null,null,null,"173, rue St-VincentSte-Agathe-des-Monts QCJ8C 2B5","Sommets","J8C 2B5","Clinique médicale Dr Robert Larocque"]
[null,9998116,null,null,"992, rue de Saint-Jovite, CP 19069Mont-Tremblant QCJ8E 3J8","Sommets","J8E 3J8","Clinique médical St-Jovite Ltée (GMF)"]
[null,9998143,null,null,"104, rue Ste-AgatheSainte-Agathe-des-MontsJ8C 2K3","Sommets","J8C 2K3","Clinique médicale 201 (GMF)"]
[null,9998135,null,null,"1972, chemine du Village, bureau 102Mont-Tremblant QCJ8E 1K4","Sommets","J8E 1K4","Clinique médicale du village"]
[null,9998113,null,null,"10, boulevard des Châteaux, S. 102Blainville QCJ7B 1Z5","Sommets","J7B 1Z5","Centre médical Fontainebleau (GMF)"]
[null,5980504,null,null,"442, boul. Ste-AnneSte-Anne-des-Plaines QCJ0N 1H0","Thérèse‐De Blainville","J0N 1H0","Clinique médicale Ste-Anne-des-Plaines (GMF)"]
[null,9998148,null,null,"519, boul. Curé-Labelle suite 104Blainville QCJ7C 2H6","Thérèse‐De Blainville","J7C 2H6","Clinique médicale Blainville (GMF) (BLAINVILLE-LA-SOURCE)"]
[null,9998146,null,null,"877, Grande AlléeBoisbriand QCJ7G 1W6","Thérèse‐De Blainville","J7G 1W6","Clinique médicale Boisbriand"]
[null,9998147,null,null,"87, Montée GagnonBois-des-Filion QCJ6Z 4C4","Thérèse‐De Blainville","J6Z 4C4","Clinique médicale Chapleau (GMF)"]
[null,9998152,null,null,"1, rue des FlorinsBlainville QCJ7C 5P6","Thérèse‐De Blainville","J7C 5P6","Clinique médicale Dre Manon Dusablon/Essor santé"]
[null,null,null,null,"767, boul. Des Milles-ÎlesSte-Thérèse QCJ7E 4E7","Thérèse‐De Blainville","J7E 4E7","Clinique médicale Dr Jacques Gagné"]
[null,9998154,null,null,"3040, chemin de la Rivière-CachéeBoisbriand QCJ7H 1H9","Thérèse‐De Blainville","J7H 1H9","Clinique médicale FOCUS Santé"]
[null,9998158,null,null,"1099, boul. Curé-Labelle, suite 201Blainville QCJ7C 2M2","Thérèse‐De Blainville","J7C 2M2","Clinique médicale Medillys"]
[null,9998156,null,null,"99, boul. de GaulleLorraine QCJ6Z 3Z9","Thérèse‐De Blainville","J6Z 3Z9","GMF de Lorraine"]
[null,5980504,null,null,"183, boul. Ste-AnneSte-Anne-des-Plaines QCJ0N 1H0","Thérèse‐De Blainville","J0N 1H0","Clinique médicale Ste-Anne-des-Plaines"]
[null,9998172,null,null,"233, rue Turgeon, bureau 101Ste-Thérèse QCJ7E 3J8","Thérèse‐De Blainville","J7E 3J8","Clinique médicale Ste-Thérèse (GMF)"]
[null,8999004,null,null,"2000, cour le CorbusierBoisbriand QCJ7G 3E8","Thérèse‐De Blainville","J7G 3E8","Polyclinique 640"]
[null,8999003,null,null,"125, rue Duquet, 3eme étageSainte-Thérèse QCJ7E 0A5","Thérèse‐De Blainville","J7E 0A5","CLSC de Thérèse-De Blainville / GMF des Milles-îles"]
[null,7995556,null,null,"6110, Rue Doris-Lussier","BOISBRIAND","J7H 0E8","Institut de l'œil des Laurentides"]
[null,7995491,null,null,"1790, Chemin du lac écho","Prévost","J0R 1T0","Portage"]
[null,null,null,null,"43 avenue de Hautmont ","Lorraine","J6Z 1T5"]
[null,5547500,null,null,"900 rue de la Mairie","BLAINVILLE","J7C 4E9","Maison Martin Matte"]
[null,7995631,null,null,"1002, chemin Oka","Deux-Montagnes",null,"Paroisse Sainte-Marie-du Lac (comptoirs alimentaires Ste-Marthe-sur-le-Lac, Deux-Montagnes et Oka) "]
[null,7995632,null,null,"374, rue Pie X11","Saint-Eustache","J7P 4S7","Paroisse Saint-Eustache "]
[null,7995633,null,null,"281, montée Saint-Vincent","Saint-Placide",null,"Comité d'aide St-Placide"]
[null,7995634,null,null,"1906, chemin d'Oka","Deux-Montagnes",null,"CAAP "]
[null,7995550,null,null,"1015, boulevard Curé-Labelle","Blainville","J7C 2M2","Centre d’écoute et dépannage Sainte-Famille à Blainville"]
[null,7995635,null,null,"305, chemin de la Grande-Côte","Boisbriand","J7G 1B3","Services d'Entraide Le Relais à Boisbriand"]
[null,7995551,null,null,"12, rue Turgeon","Sainte-Thérèse",null,"Centre Regain de vie"]
[null,7995552,null,null,"154 C boulevard Ste-Anne","Sainte-Anne-des-Plaines",null,"Dépannage alimentaire Sainte-Anne-des-Plaines"]
[null,7995553,null,null,"61, Blainville Ouest","Sainte-Thérèse",null,"Resto Pop TDB"]
[null,7995135,null,null,"284, rue L'Annonciation Sud","Rivière-Rouge","J0T 1T0","Action Bénévole de la Rouge"]
[null,7995136,null,null,"380, rue de la Madone","Mont-Laurier","J9L 1S2","Centre de pédiatrie sociale en communauté d'Antoine-Labelle"]
[null,7995318,null,null,"205, rue Principale","Saint-Sauveur","J0R 1R0","Soupe et cie des Pays-d'en-Haut"]
[null,7995319,null,null,"1006, rue Valiquette","Sainte-Adèle",null,"Café Communautaire L'Entre-gens"]
[null,7995321,null,null,"205, rue Principale","Saint-Sauveur","J0R 1R0","L’Antr’Aidant "]
[null,7995464,null,null,"651, 5e rue ","St-Jérome","J7Z 2W8","Maison Aloïs Alzheimer des Laurentides (8 MRC = RDN (58%) et TDB (25%)"]
[null,7995322,null,null,"2, chemin Masson","Sainte-Marguerite-du-Lac-Masson",null,"La Rencontre de Sainte-Marguerite"]
[null,7995323,null,null,"4- 200, rue Principale","St-Sauveur ",null,"Coop SORE et Répit-Bien-être"]
[null,7995324,null,null,"100, rue Morin","Sainte-Adèle","J8B 2P7","Garde-manger des Pays-d'en-Haut"]
[null,7995325,null,null,"57, rue de L'Église","Saint-Sauveur","J0R 1R0","Maison des jeunes de St-Sauveur/ Piedmont"]
[null,7995465,null,null,"424, rue du Palais","St-Jérôme",null,"Maison Pause-Parent (par MFA? voir Sonia G)"]
[null,7995466,null,null,"531, rue Labelle","St-Jérôme","J7Z 5L8","Hébergement Fleur de Macadam (sauf refuge d'urgence temporaire)"]
[null,7995467,null,null,"195, rue Genest\nSaint-Jérôme","St-Jérôme",null,"Maison de Sophia"]
[null,7995468,null,null,"298, rue Labelle\nSaint-Jérôme","St-Jérôme",null,"Café de rue SoS"]
[null,7995326,null,null,"22 a, rue Goyer","Saint-Sauveur","J0R 1R0","Écluse des Laurentides"]
[null,7995469,null,null,"495, rue St-Georges","St-Jérôme",null,"Centre de jour de Saint-Jérôme"]
[null,7995470,null,null,"241, rue Brière","St-Jérôme",null,"Armée du Salut"]
[null,7995471,null,null,"527, rue Saint-Georges\nSaint-Jérôme (Québec)  J7Z 5B6\nClinique: 516, rue Saint-Georges (en face)",null,null,"Centre sida amitié"]
[null,7995472,null,null,"\n520, boulevard Bourassa","St-Jérôme","J7Y 1X95","Accueil Gabriel-Ramier "]
[null,7995473,null,null,"655, rue Filion","St-Jérôme","J7Z 1J6","Ami-e du Quartier "]
[null,7995474,null,null,"705, boul. des Laurentides","St-Jérôme",null,"Café 20 cœurs "]
[null,7995475,null,null,"181, rue Brière","St-Jérôme","J7Y 3A7","Coup de pouce "]
[null,7995476,null,null,"920, rue Labelle","St-Jérôme","J7Z 5M5","Dépannage alimentaire Sainte-Paule "]
[null,7995477,null,null,"999, rue de l'Église","St-Jérôme","J5L 1L8","Dépannage Notre-Dame-de-la-Salette (Bellefeuille) "]
[null,7995478,null,null,"441, côte St-Paul","Saint-Colomban","J5K 2H9","Centre d'entraide St-Colomban"]
[null,7995479,null,null,"17 599, rue Victor Ouest","Mirabel",null,"Dépannage St-Janvier"]
[null,7995229,null,null,"120, chemin de Brébeuf\nCP 4438","Mont-Tremblant","J8E 1A1","La Samaritaine de Mont-Tremblant"]
[null,7995230,null,null,"2121, chemin des Hauteurs","Sainte-Lucie-des-Laurentides","J0T 2J0","Comptoir Sainte-Lucie-des-Laurentides"]
[null,7995231,null,null,"37, rue Principale est","Sainte-Agathe-des-Monts",null,"Bouffe Dépannage"]
[null,7995137,null,null,"127, rue du Collège","Labelle","J0T 1H0","Comptoir d'entraide de Labelle"]
[null,7995232,null,null,"350, chemin Val-des-Lacs","Val-des-Lacs","J0T 2P0","Coup de pouce alimentaire de Val-des-Lacs"]
[null,7995233,null,null,"37, rue Principale est","Sainte-Agathe-des-Monts",null,"Bouffe Laurentienne"]
[null,7995712,null,null,"505, rue Bethany, suite 408","Lachute",null,"Coup de pouce Argenteuil"]
[null,7995138,null,null,"386, rue Hébert","Mont-Laurier","J9L 2X2","Manne du jour"]
[null,7995481,null,null,"200, rue Durand, bureau 209","Saint-Jérôme","J7Z 7E2","ORL Clinique Lobe"]
[null,7995482,null,null,"24, rue Globensky","Saint-Jérôme","J7Z 7J5","RI Résidence Le Voilier"]
[null,7995636,null,null,"460, rue du Parc Suite 101","Saint-Eustache","J7R 7G6","Clinique ExcelleMd "]
[null,7995485,null,null,"305, rue Docteur-Charles-Léonard, b.300 St-Jérôme QC, local 204","Saint-Jérôme","J7Y 0M9","Clinique Medico chirurgicale des Laurentides"]
[null,7995486,null,null,"305, rue Docteur-Charles-Léonard, b.203 St-Jérôme QC","Saint-Jérôme","J7Y 0M9","Clinique d'Ophtalmologie de Saint Jérôme"]
[null,7995327,null,null,"166, Lesage, Sainte-Adèle (QC)J8B 2R4","Sainte-Adèle","J8B 2R4","Marteau et Plumeau"]
[null,7995483,null,null,"761, rue Pageau, Saint-Jérôme","Saint-Jérôme","J7Z 6E7","RPA Sonia Dossous"]
[null,7995328,null,null,"1150, rue du Burg-Joli, Sainte-Adèle, J8B 1W8","Saint-Adèle","J8B 1W8","Centre Médical Des Pays-D'en-Haut"]
[null,7995139,null,null,"929 Principale Nord, L'Annonciation (Québec) J0T 1T0","L'Annonciation","J0T 1T0","L'Arc-en-Soi"]
[null,7995487,null,null,"909, rue Guy, St-Jérôme","Saint-Jérôme"," J5L 1P3","Maison des Parents d'enfants handicapés"]
[null,7995488,null,null,"1155, Avenue du Parc, St-Jérôme, J7Z 6X6","Saint-Jérôme","J7Z 6X6","Camp St-Jérôme (École Horizon Soleil)"]
[null,7995489,null,null,"909, rue Guy, St-Jérôme,  J5L 1P3","Deux-Montagnes","J5L 1P3","Camp Deux-Montagnes"]
[null,7995490,null,null,"300, rue Longpré, St-Jérôme, J7Y 3B9","Saint-Jérôme","J7Y 3B9","CAJA - ARLPHL"]
[null,9998177,null,null,"200, rue Durand, Saint-Jérôme J7Z 7E2","Saint-Jérôme"," J7Z 7E2","Clinique pédiatrique Laurentienne"]
[null,7995494,null,null,"236, rue Bélanger, Saint-Jérôme, J7Z 1A3","Saint-Jérôme","J7Z 1A3","Ressource Nadeau INC."]
[null,7995142,null,null,"764, rue Labelle Nord","Rivière-Rouge","J0T 0T0","Association de parents hadicapés"]
[null,7995444,null,null,"706, rue Parent","Saint-Jérôme","J7Z 2B1","RTF Francis Ferreri"]
[null,9998231,null,null,"200, rue Durand, bureau 304","Saint-Jérôme","J7Z 7E2","Clinique  Urologique des Laurentides"]
[null,7995235,null,null,"62, rue Préfontaine Est","Sainte-Agathe-des-Monts","J8C 1S2","Association des personnes handicapées intellectuelles des Laurentides"]
[null,7995330,null,null,"195, boul Ste-Adèle","Sainte-Adèle","J8B 0K5","RI Maison Wilfrid Grignon"]
[null,7995557,null,null,"876, boul. Curé-Labelle","Blainville","J7C 2K9","Clinique Médicym"]
[null,6531700,null,null,"538, rue de la Madone","Mont-Laurier","J9L 1S7","Coop Défi-Autonome d'Antoine-Labelle"]
[null,7995558,null,null,"681, boul. Curé-Labelle, bureau 201","Blainville","J7C 2J5","Clinique Urgences Pédiatriques de Blainville"]
[null,7995496,null,null,"27 rue Bruno-Nantel","Saint-Jérôme","J7Y 2E3","RI Résidence Gingras"]
[null,7995497,null,null,"519 rue Blanchard","Saint-Jérôme","J7Y3 K8","RI Résidence Gingras ppart. supervisé"]
[null,7995559,null,null,"2831, rue Jacques-Brel","BOISBRIAND","J7H 1K3","RI Résidence Desjardins Boisbriand"]
[null,7995498,null,null,"705, 22e Rue","Saint-Jérôme","J7Z 5Z9","Ressources résidentielles Robert Lafontaine Inc."]
[null,7995722,null,null,"70 avenue Hamford, C.P 533","LAchute","J8H 3Y1","Univers Jeunesse Argenteuil (mdj)"]
[null,7995526,null,null,null,null,null,"Maison Vie Sunrise Fontainebleau"]
[null,7995724,null,null,"273, rue principale","Lachute",null,"Comptoir d'entraide Lachute"]
[null,7995257,null,null,"146, Chemin de la Sablière","Lantier","J0T 1V0","Sentier du Nouveau Jour"]
[null,7995258,null,null,"3050, Rang 1 Doncaster","Val-David","J0T 2N0","Les Maisons Péladeau (Homme)"]
[null,7995259,null,null,"511, chemin du Lac-la-Grise","Ivry-sur-le-Lac","8C 2Z8","Maison Raymonde-Chopin-Péladeau (Femme)"]
[null,7995337,null,null,"3065, rue Rolland","Sainte-Adèle","J8B 1C9","Centres Bonséjour"]
[null,7995588,null,null,"1160, AVE. De Peribonka","BOISBRIAND","J7G 2Z7","Appartements Rosa Blanda"]
[null,7995142,null,null,"764, Labelle Nord","Rivière-Rouge","J0T 1T0","Association des parents d'enfants handicapés des Hautes-Laurentides"]

{"sheet":"Fiche","index":1,"n_rows":37,"n_cols":6,"rows_kept":37,"cut":false,"hidden":false,"merged":[[36,1,36,5],[9,0,9,1],[13,3,13,4],[11,0,13,0],[11,3,11,4],[12,3,12,4],[14,3,14,4],[18,3,18,4],[19,3,19,4],[20,3,20,4],[21,3,21,4],[14,0,33,0],[33,3,33,4],[25,3,25,4],[30,3,30,4],[31,3,31,4],[2,2,6,3],[22,3,22,4],[23,3,23,4],[24,3,24,4],[8,4,8,5],[10,0,10,5]]}
[]
[]
[null,null,"Transmettre votre fiche de besoin par courriel au: appro64.cissslau@ssss.gouv.qc.ca\nVeuillez allouer un délai de 72h ouvrable après l'envoi du courriel pour la réception de votre commande."]
[]
[]
[]
[]
[null,"Fiche de besoin pour RI-RPA\nCHSLD privé"]
[]
[{"$f":" \"Date de la demande: \"","v":"Date de la demande: "},null,{"$f":"TODAY()","v":"2021-04-08"}]
["Cochez cette case si vous avez fait au préalable vos démarches auprès de vos fournisseurs habituels"]
["Informations","Unité administrative","Nom de l'établissement demandeur:","Adresse:",null,"Nom du demandeur:"]
[]
[null,"Produits","Code GRM","Quantité",null,"Format"]
["Description:","Masque de procédure Niveau 2 ou 3",42051966,null,null,"Boîtes de 50"]
[null,"Masque de procédure Niveau 1",42009429,null,null,"Boîtes de 50"]
[null,"Masque N95 Médicom Small",42052187,null,null,"Boîtes de 50"]
[null,"Masque N95 Médicom Medium",42052188,null,null,"Boîtes de 50"]
[null,"Lunette lavable",46000164,null,null,"unités"]
[null,"Visière courte (visière et monture) lavable","42022223\n42022224",null,null,"unités"]
[null,"Visière longue lavable",42050068,null,null,"unités"]
[null,"Gants S",42006507,null,null,"Boîtes de 100"]
[null,"Gants M",42006506,null,null,"Boîtes de 100"]
[null,"Gants L",42006505,null,null,"Boîtes de 100"]
[null,"Gants XL",42006508,null,null,"Boîtes de 100"]
[null,"Jaquette jetable Small",42052024,null,null,"unités"]
[null,"Jaquette jetable(universel-med-large)",42036458,null,null,"unités"]
[null,"Jaquette jetable XL",42002202,null,null,"unités"]
[null,"Jaquette jetable XXL",42052067,null,null,"unités"]
[null,"Jaquette jetable XXXL",42052068,null,null,"unités"]
[null,"Stérigel bouteille de 500 ml à 1L pour les mains",47002663,null,null,"unités"]
[null,"Désinfectant liquide opticide pour surface ",53000527,null,null,"3.78L"]
[null,"Lingettes désinfectante 3 à 5 min",47000219,null,null,"contenant"]
[null,"Visière longue réutilisable (visière et harnais) (retirer les pellicules plastiques avant usage)","31007267\n46000387",null,null,"unités"]
[]
[]
[null,"*Pour tout besoin autre, communiquez avec votre ressource au CISSS des Laurentides.*"]

{"sheet":"Indicateur","index":2,"n_rows":13,"n_cols":7,"rows_kept":13,"cut":false,"hidden":true,"merged":[]}
["Produit","Code d'article","Code GRM","Concatener","Stock 64","Consommation moyenne","Nombre de jours avant 0 stock"]
["Masque de procédure",{"$f":"INDEX('[3]FEUILLE DE TRAVAIL'!$A:$AT,MATCH(C2,'[3]FEUILLE DE TRAVAIL'!$K:$K,0),8)","v":{"$error":"#N/A"}},42050116,4205011654,{"$f":"INDEX('[3]FEUILLE DE TRAVAIL'!$A:$AT,MATCH(D2,'[3]FEUILLE DE TRAVAIL'!$L:$L,0),22)","v":{"$error":"#N/A"}},{"$f":"INDEX('[3]FEUILLE DE TRAVAIL'!$A:$AT,MATCH(D2,'[3]FEUILLE DE TRAVAIL'!$L:$L,0),44)","v":{"$error":"#N/A"}},{"$f":"E2/F2","v":{"$error":"#N/A"}}]
["Lunette lavable",{"$f":"INDEX('[3]FEUILLE DE TRAVAIL'!$A:$AT,MATCH(C3,'[3]FEUILLE DE TRAVAIL'!$K:$K,0),8)","v":{"$error":"#N/A"}},46000164,4600016454,{"$f":"INDEX('[3]FEUILLE DE TRAVAIL'!$A:$AT,MATCH(D3,'[3]FEUILLE DE TRAVAIL'!$L:$L,0),22)","v":{"$error":"#N/A"}},{"$f":"INDEX('[3]FEUILLE DE TRAVAIL'!$A:$AT,MATCH(D3,'[3]FEUILLE DE TRAVAIL'!$L:$L,0),44)","v":{"$error":"#N/A"}},{"$f":"E3/F3","v":{"$error":"#N/A"}}]
["Visière courte lavable",{"$f":"INDEX('[3]FEUILLE DE TRAVAIL'!$A:$AT,MATCH(C4,'[3]FEUILLE DE TRAVAIL'!$K:$K,0),8)","v":{"$error":"#N/A"}},42022223,4202222354,{"$f":"INDEX('[3]FEUILLE DE TRAVAIL'!$A:$AT,MATCH(D4,'[3]FEUILLE DE TRAVAIL'!$L:$L,0),22)","v":{"$error":"#N/A"}},{"$f":"INDEX('[3]FEUILLE DE TRAVAIL'!$A:$AT,MATCH(D4,'[3]FEUILLE DE TRAVAIL'!$L:$L,0),44)","v":{"$error":"#N/A"}},{"$error":"#N/A"}]
["Monture pour visière",{"$f":"INDEX('[3]FEUILLE DE TRAVAIL'!$A:$AT,MATCH(C5,'[3]FEUILLE DE TRAVAIL'!$K:$K,0),8)","v":{"$error":"#N/A"}},42022224,4202222454,{"$f":"INDEX('[3]FEUILLE DE TRAVAIL'!$A:$AT,MATCH(D5,'[3]FEUILLE DE TRAVAIL'!$L:$L,0),22)","v":{"$error":"#N/A"}},{"$f":"INDEX('[3]FEUILLE DE TRAVAIL'!$A:$AT,MATCH(D5,'[3]FEUILLE DE TRAVAIL'!$L:$L,0),44)","v":{"$error":"#N/A"}},{"$error":"#N/A"}]
["Visière longue lavable",{"$f":"INDEX('[3]FEUILLE DE TRAVAIL'!$A:$AT,MATCH(C6,'[3]FEUILLE DE TRAVAIL'!$K:$K,0),8)","v":{"$error":"#N/A"}},42050068,4205006854,{"$f":"INDEX('[3]FEUILLE DE TRAVAIL'!$A:$AT,MATCH(D6,'[3]FEUILLE DE TRAVAIL'!$L:$L,0),22)","v":{"$error":"#N/A"}},{"$f":"INDEX('[3]FEUILLE DE TRAVAIL'!$A:$AT,MATCH(D6,'[3]FEUILLE DE TRAVAIL'!$L:$L,0),44)","v":{"$error":"#N/A"}},{"$error":"#N/A"}]
["Gants S",{"$f":"INDEX('[3]FEUILLE DE TRAVAIL'!$A:$AT,MATCH(C7,'[3]FEUILLE DE TRAVAIL'!$K:$K,0),8)","v":{"$error":"#N/A"}},42006507,4200650754,{"$f":"INDEX('[3]FEUILLE DE TRAVAIL'!$A:$AT,MATCH(D7,'[3]FEUILLE DE TRAVAIL'!$L:$L,0),22)","v":{"$error":"#N/A"}},{"$f":"INDEX('[3]FEUILLE DE TRAVAIL'!$A:$AT,MATCH(D7,'[3]FEUILLE DE TRAVAIL'!$L:$L,0),44)","v":{"$error":"#N/A"}},{"$error":"#N/A"}]
["Gants M",{"$f":"INDEX('[3]FEUILLE DE TRAVAIL'!$A:$AT,MATCH(C8,'[3]FEUILLE DE TRAVAIL'!$K:$K,0),8)","v":{"$error":"#N/A"}},42006506,4200650654,{"$f":"INDEX('[3]FEUILLE DE TRAVAIL'!$A:$AT,MATCH(D8,'[3]FEUILLE DE TRAVAIL'!$L:$L,0),22)","v":{"$error":"#N/A"}},{"$f":"INDEX('[3]FEUILLE DE TRAVAIL'!$A:$AT,MATCH(D8,'[3]FEUILLE DE TRAVAIL'!$L:$L,0),44)","v":{"$error":"#N/A"}},{"$error":"#N/A"}]
["Gants L",{"$f":"INDEX('[3]FEUILLE DE TRAVAIL'!$A:$AT,MATCH(C9,'[3]FEUILLE DE TRAVAIL'!$K:$K,0),8)","v":{"$error":"#N/A"}},42006505,4200650554,{"$f":"INDEX('[3]FEUILLE DE TRAVAIL'!$A:$AT,MATCH(D9,'[3]FEUILLE DE TRAVAIL'!$L:$L,0),22)","v":{"$error":"#N/A"}},{"$f":"INDEX('[3]FEUILLE DE TRAVAIL'!$A:$AT,MATCH(D9,'[3]FEUILLE DE TRAVAIL'!$L:$L,0),44)","v":{"$error":"#N/A"}},{"$error":"#N/A"}]
["Gants XL",{"$f":"INDEX('[3]FEUILLE DE TRAVAIL'!$A:$AT,MATCH(C10,'[3]FEUILLE DE TRAVAIL'!$K:$K,0),8)","v":{"$error":"#N/A"}},42006508,4200650854,{"$f":"INDEX('[3]FEUILLE DE TRAVAIL'!$A:$AT,MATCH(D10,'[3]FEUILLE DE TRAVAIL'!$L:$L,0),22)","v":{"$error":"#N/A"}},{"$f":"INDEX('[3]FEUILLE DE TRAVAIL'!$A:$AT,MATCH(D10,'[3]FEUILLE DE TRAVAIL'!$L:$L,0),44)","v":{"$error":"#N/A"}},{"$error":"#N/A"}]
["Jaquette jetable",{"$f":"INDEX('[3]FEUILLE DE TRAVAIL'!$A:$AT,MATCH(C11,'[3]FEUILLE DE TRAVAIL'!$K:$K,0),8)","v":{"$error":"#N/A"}},42036458,4203645854,{"$f":"INDEX('[3]FEUILLE DE TRAVAIL'!$A:$AT,MATCH(D11,'[3]FEUILLE DE TRAVAIL'!$L:$L,0),22)","v":{"$error":"#N/A"}},{"$f":"INDEX('[3]FEUILLE DE TRAVAIL'!$A:$AT,MATCH(D11,'[3]FEUILLE DE TRAVAIL'!$L:$L,0),44)","v":{"$error":"#N/A"}},{"$error":"#N/A"}]
["Stérigel bouteille de 500 ml à 1L pour les mains",{"$f":"INDEX('[3]FEUILLE DE TRAVAIL'!$A:$AT,MATCH(C12,'[3]FEUILLE DE TRAVAIL'!$K:$K,0),8)","v":{"$error":"#N/A"}},47002663,4700266354,{"$f":"INDEX('[3]FEUILLE DE TRAVAIL'!$A:$AT,MATCH(D12,'[3]FEUILLE DE TRAVAIL'!$L:$L,0),22)","v":{"$error":"#N/A"}},{"$f":"INDEX('[3]FEUILLE DE TRAVAIL'!$A:$AT,MATCH(D12,'[3]FEUILLE DE TRAVAIL'!$L:$L,0),44)","v":{"$error":"#N/A"}},{"$error":"#N/A"}]
["Désinfectant liquide opticide pour surface ",{"$f":"INDEX('[3]FEUILLE DE TRAVAIL'!$A:$AT,MATCH(C13,'[3]FEUILLE DE TRAVAIL'!$K:$K,0),8)","v":{"$error":"#N/A"}},53000527,5300052754,{"$f":"INDEX('[3]FEUILLE DE TRAVAIL'!$A:$AT,MATCH(D13,'[3]FEUILLE DE TRAVAIL'!$L:$L,0),22)","v":{"$error":"#N/A"}},{"$f":"INDEX('[3]FEUILLE DE TRAVAIL'!$A:$AT,MATCH(D13,'[3]FEUILLE DE TRAVAIL'!$L:$L,0),44)","v":{"$error":"#N/A"}},{"$error":"#N/A"}]